Workbook

Sheet Speiseplan
B2: Speiseplan Grundschule und Kinderhaus Athene | P2: Speiseplan Kita, Grundschule und Kinderhaus Athene
B3: ="Woche vom "&TEXT(Daten!$B$3,"tt.MM.jjjj")&" bis "&TEXT(Daten!$B$4,"tt.MM.jjjj")&", "&TEXT(Daten!$B$2,"0")&". Kalenderwoche" -> Woche vom bis , . Kalenderwoche
B4: =IF(A4<=Daten!$B$8,Daten!B9,"") -> Menülinie 1 | C4: Salatbar | D4: =IF(A8<=Daten!$B$8,Daten!C9) -> Menülinie 2
B5: Obst und Gemüse täglich frisch aus der Salatbar
C6: =IF(A6<=Daten!$B$8,Daten!B9,"") -> Menülinie 1 | I6: =IF(A6<=Daten!$B$8,Daten!C9,"") -> Menülinie 2
B7: Montag | C7: =IF($A$8<=Daten!$B$8,LOOKUP($B$4,Daten!$A$16:$A$65,Daten!$C$16:$C$65),"") ->  | I7: =IF($A$8<=Daten!$B$8,LOOKUP($D$4,Daten!$A$16:$A$65,Daten!$C$16:$C$65),"") -> 
C13: Energie | D13: Fett | E13: Gesättigte Fettsäuren | F13: Kohlen- hydrate | G13: Eiweiß | H13: Salz | I13: Energie | J13: Fett | K13: Gesättigte Fettsäuren | L13: Kohlen- hydrate | M13: Eiweiß | N13: Salz
C14: =IF($A$8<=Daten!$B$8,LOOKUP($B$4,Daten!$A$16:$A$65,Daten!$P$16:$P$65),"")& " " & IF($A$8<=Daten!$B$8,LOOKUP($B$4,Daten!$A$16:$A$65,Daten!$Q$16:$Q$65),"") -> 1,1 Inhalt1Einh[1,1] | D14: =IF($A$8<=Daten!$B$8,LOOKUP($B$4,Daten!$A$16:$A$65,Daten!$X$16:$X$65),"") & " " & IF($A$8<=Daten!$B$8,LOOKUP($B$4,Daten!$A$16:$A$65,Daten!$Y$16:$Y$65),"") -> 1,1 Inhalt5Einh[1,1] | E14: =IF($A$8<=Daten!$B$8,LOOKUP($B$4,Daten!$A$16:$A$65,Daten!$AF$16:$AF$65),"") & " " & IF($A$8<=Daten!$B$8,LOOKUP($B$4,Daten!$A$16:$A$65,Daten!$AG$16:$AG$65),"") ->  | F14: =IF($A$8<=Daten!$B$8,LOOKUP($B$4,Daten!$A$16:$A$65,Daten!$Z$16:$Z$65),"") & " " & IF($A$8<=Daten!$B$8,LOOKUP($B$4,Daten!$A$16:$A$65,Daten!$AA$16:$AA$65),"") -> 1,1 Inhalt6Einh[1,1] | G14: =IF($A$8<=Daten!$B$8,LOOKUP($B$4,Daten!$A$16:$A$65,Daten!$V$16:$V$65),"")&" "&IF($A$8<=Daten!$B$8,LOOKUP($B$4,Daten!$A$16:$A$65,Daten!$W$16:$W$65),"") -> 1,1 Inhalt4Einh[1,1] | H14: =IF($A$8<=Daten!$B$8,LOOKUP($B$4,Daten!$A$16:$A$65,Daten!$BN$16:$BN$65),"") & " " & IF($A$8<=Daten!$B$8,LOOKUP($B$4,Daten!$A$16:$A$65,Daten!$BO$16:$BO$65),"") ->  | I14: =IF($A$8<=Daten!$B$8,LOOKUP($D$4,Daten!$A$16:$A$65,Daten!$P$16:$P$65),"")& " " & IF($A$8<=Daten!$B$8,LOOKUP($D$4,Daten!$A$16:$A$65,Daten!$Q$16:$Q$65),"") -> 2,1 Inhalt1Einh[2,1] | J14: =IF($A$8<=Daten!$B$8,LOOKUP($D$4,Daten!$A$16:$A$65,Daten!$X$16:$X$65),"") & " " & IF($A$8<=Daten!$B$8,LOOKUP($D$4,Daten!$A$16:$A$65,Daten!$Y$16:$Y$65),"") -> 2,1 Inhalt5Einh[2,1] | K14: =IF($A$8<=Daten!$B$8,LOOKUP($D$4,Daten!$A$16:$A$65,Daten!$AF$16:$AF$65),"") & " " & IF($A$8<=Daten!$B$8,LOOKUP($D$4,Daten!$A$16:$A$65,Daten!$AG$16:$AG$65),"") ->  | L14: =IF($A$8<=Daten!$B$8,LOOKUP($D$4,Daten!$A$16:$A$65,Daten!$Z$16:$Z$65),"") & " " & IF($A$8<=Daten!$B$8,LOOKUP($D$4,Daten!$A$16:$A$65,Daten!$AA$16:$AA$65),"") -> 2,1 Inhalt6Einh[2,1] | M14: =IF($A$8<=Daten!$B$8,LOOKUP($D$4,Daten!$A$16:$A$65,Daten!$V$16:$V$65),"")&" "&IF($A$8<=Daten!$B$8,LOOKUP($D$4,Daten!$A$16:$A$65,Daten!$W$16:$W$65),"") -> 2,1 Inhalt4Einh[2,1] | N14: =IF($A$8<=Daten!$B$8,LOOKUP($D$4,Daten!$A$16:$A$65,Daten!$BN$16:$BN$65),"") & " " & IF($A$8<=Daten!$B$8,LOOKUP($D$4,Daten!$A$16:$A$65,Daten!$BO$16:$BO$65),"") -> 
B15: Dienstag | C15: =IF($A$8<=Daten!$B$8,LOOKUP($B$4,Daten!$A$67:$A$116,Daten!$C$67:$C$116),"") ->  | I15: =IF($A$8<=Daten!$B$8,LOOKUP($D$4,Daten!$A$67:$A$116,Daten!$C$67:$C$116),"") -> 
C21: Energie | D21: Fett | E21: Gesättigte Fettsäuren | F21: Kohlen- hydrate | G21: Eiweiß | H21: Salz | I21: Energie | J21: Fett | K21: Gesättigte Fettsäuren | L21: Kohlen- hydrate | M21: Eiweiß | N21: Salz
C22: =IF($A$8<=Daten!$B$8,LOOKUP($B$4,Daten!$A$67:$A$116,Daten!$P$67:$P$116),"")& " " & IF($A$8<=Daten!$B$8,LOOKUP($B$4,Daten!$A$67:$A$116,Daten!$Q$67:$Q$116),"") -> 1,2 Inhalt1Einh[1,2] | D22: =IF($A$8<=Daten!$B$8,LOOKUP($B$4,Daten!$A$67:$A$116,Daten!$X$67:$X$116),"") & " " & IF($A$8<=Daten!$B$8,LOOKUP($B$4,Daten!$A$67:$A$116,Daten!$Y$67:$Y$116),"") -> 1,2 Inhalt5Einh[1,2] | E22: =IF($A$8<=Daten!$B$8,LOOKUP($B$4,Daten!$A$67:$A$116,Daten!$AF$67:$AF$116),"") & " " & IF($A$8<=Daten!$B$8,LOOKUP($B$4,Daten!$A$67:$A$116,Daten!$AG$67:$AG$116),"") ->  | F22: =IF($A$8<=Daten!$B$8,LOOKUP($B$4,Daten!$A$67:$A$116,Daten!$Z$67:$Z$116),"") & " " & IF($A$8<=Daten!$B$8,LOOKUP($B$4,Daten!$A$67:$A$116,Daten!$AA$67:$AA$116),"") -> 1,2 Inhalt6Einh[1,2] | G22: =IF($A$8<=Daten!$B$8,LOOKUP($B$4,Daten!$A$67:$A$116,Daten!$V$67:$V$116),"")&" "&IF($A$8<=Daten!$B$8,LOOKUP($B$4,Daten!$A$67:$A$116,Daten!$W$67:$W$116),"") -> 1,2 Inhalt4Einh[1,2] | H22: =IF($A$8<=Daten!$B$8,LOOKUP($B$4,Daten!$A$67:$A$116,Daten!$BN$67:$BN$116),"") & " " & IF($A$8<=Daten!$B$8,LOOKUP($B$4,Daten!$A$67:$A$116,Daten!$BO$67:$BO$116),"") ->  | I22: =IF($A$8<=Daten!$B$8,LOOKUP($D$4,Daten!$A$67:$A$116,Daten!$P$67:$P$116),"")& " " & IF($A$8<=Daten!$B$8,LOOKUP($D$4,Daten!$A$67:$A$116,Daten!$Q$67:$Q$116),"") -> 2,2 Inhalt1Einh[2,2] | J22: =IF($A$8<=Daten!$B$8,LOOKUP($D$4,Daten!$A$67:$A$116,Daten!$X$67:$X$116),"") & " " & IF($A$8<=Daten!$B$8,LOOKUP($D$4,Daten!$A$67:$A$116,Daten!$Y$67:$Y$116),"") -> 2,2 Inhalt5Einh[2,2] | K22: =IF($A$8<=Daten!$B$8,LOOKUP($D$4,Daten!$A$67:$A$116,Daten!$AF$67:$AF$116),"") & " " & IF($A$8<=Daten!$B$8,LOOKUP($D$4,Daten!$A$67:$A$116,Daten!$AG$67:$AG$116),"") ->  | L22: =IF($A$8<=Daten!$B$8,LOOKUP($D$4,Daten!$A$67:$A$116,Daten!$Z$67:$Z$116),"") & " " & IF($A$8<=Daten!$B$8,LOOKUP($D$4,Daten!$A$67:$A$116,Daten!$AA$67:$AA$116),"") -> 2,2 Inhalt6Einh[2,2] | M22: =IF($A$8<=Daten!$B$8,LOOKUP($D$4,Daten!$A$67:$A$116,Daten!$V$67:$V$116),"")&" "&IF($A$8<=Daten!$B$8,LOOKUP($D$4,Daten!$A$67:$A$116,Daten!$W$67:$W$116),"") -> 2,2 Inhalt4Einh[2,2] | N22: =IF($A$8<=Daten!$B$8,LOOKUP($D$4,Daten!$A$67:$A$116,Daten!$BN$67:$BN$116),"") & " " & IF($A$8<=Daten!$B$8,LOOKUP($D$4,Daten!$A$67:$A$116,Daten!$BO$67:$BO$116),"") -> 
B23: Mittwoch | C23: =IF($A$8<=Daten!$B$8,LOOKUP($B$4,Daten!$A$118:$A$167,Daten!$C$118:$C$167),"") ->  | I23: =IF($A$8<=Daten!$B$8,LOOKUP($D$4,Daten!$A$118:$A$167,Daten!$C$118:$C$167),"") -> 
C29: Energie | D29: Fett | E29: Gesättigte Fettsäuren | F29: Kohlen- hydrate | G29: Eiweiß | H29: Salz | I29: Energie | J29: Fett | K29: Gesättigte Fettsäuren | L29: Kohlen- hydrate | M29: Eiweiß | N29: Salz
C30: =IF($A$8<=Daten!$B$8,LOOKUP($B$4,Daten!$A$118:$A$167,Daten!$P$118:$P$167),"")& " " & IF($A$8<=Daten!$B$8,LOOKUP($B$4,Daten!$A$118:$A$167,Daten!$Q$118:$Q$167),"") -> 1,3 Inhalt1Einh[1,3] | D30: =IF($A$8<=Daten!$B$8,LOOKUP($B$4,Daten!$A$118:$A$167,Daten!$X$118:$X$167),"") & " " & IF($A$8<=Daten!$B$8,LOOKUP($B$4,Daten!$A$118:$A$167,Daten!$Y$118:$Y$167),"") -> 1,3 Inhalt5Einh[1,3] | E30: =IF($A$8<=Daten!$B$8,LOOKUP($B$4,Daten!$A$118:$A$167,Daten!$AF$118:$AF$167),"") & " " & IF($A$8<=Daten!$B$8,LOOKUP($B$4,Daten!$A$118:$A$167,Daten!$AG$118:$AG$167),"") ->  | F30: =IF($A$8<=Daten!$B$8,LOOKUP($B$4,Daten!$A$118:$A$167,Daten!$Z$118:$Z$167),"") & " " & IF($A$8<=Daten!$B$8,LOOKUP($B$4,Daten!$A$118:$A$167,Daten!$AA$118:$AA$167),"") -> 1,3 Inhalt6Einh[1,3] | G30: =IF($A$8<=Daten!$B$8,LOOKUP($B$4,Daten!$A$118:$A$167,Daten!$V$118:$V$167),"")&" "&IF($A$8<=Daten!$B$8,LOOKUP($B$4,Daten!$A$118:$A$167,Daten!$W$118:$W$167),"") -> 1,3 Inhalt4Einh[1,3] | H30: =IF($A$8<=Daten!$B$8,LOOKUP($B$4,Daten!$A$118:$A$167,Daten!$BN$118:$BN$167),"") & " " & IF($A$8<=Daten!$B$8,LOOKUP($B$4,Daten!$A$118:$A$167,Daten!$BO$118:$BO$167),"") ->  | I30: =IF($A$8<=Daten!$B$8,LOOKUP($D$4,Daten!$A$118:$A$167,Daten!$P$118:$P$167),"")& " " & IF($A$8<=Daten!$B$8,LOOKUP($D$4,Daten!$A$118:$A$167,Daten!$Q$118:$Q$167),"") -> 2,3 Inhalt1Einh[2,3] | J30: =IF($A$8<=Daten!$B$8,LOOKUP($D$4,Daten!$A$118:$A$167,Daten!$X$118:$X$167),"") & " " & IF($A$8<=Daten!$B$8,LOOKUP($D$4,Daten!$A$118:$A$167,Daten!$Y$118:$Y$167),"") -> 2,3 Inhalt5Einh[2,3] | K30: =IF($A$8<=Daten!$B$8,LOOKUP($D$4,Daten!$A$118:$A$167,Daten!$AF$118:$AF$167),"") & " " & IF($A$8<=Daten!$B$8,LOOKUP($D$4,Daten!$A$118:$A$167,Daten!$AG$118:$AG$167),"") ->  | L30: =IF($A$8<=Daten!$B$8,LOOKUP($D$4,Daten!$A$118:$A$167,Daten!$Z$118:$Z$167),"") & " " & IF($A$8<=Daten!$B$8,LOOKUP($D$4,Daten!$A$118:$A$167,Daten!$AA$118:$AA$167),"") -> 2,3 Inhalt6Einh[2,3] | M30: =IF($A$8<=Daten!$B$8,LOOKUP($D$4,Daten!$A$118:$A$167,Daten!$V$118:$V$167),"")&" "&IF($A$8<=Daten!$B$8,LOOKUP($D$4,Daten!$A$118:$A$167,Daten!$W$118:$W$167),"") -> 2,3 Inhalt4Einh[2,3] | N30: =IF($A$8<=Daten!$B$8,LOOKUP($D$4,Daten!$A$118:$A$167,Daten!$BN$118:$BN$167),"") & " " & IF($A$8<=Daten!$B$8,LOOKUP($D$4,Daten!$A$118:$A$167,Daten!$BO$118:$BO$167),"") -> 
B31: Donnerstag | C31: =IF($A$8<=Daten!$B$8,LOOKUP($B$4,Daten!$A$169:$A$218,Daten!$C$169:$C$218),"") ->  | I31: =IF($A$8<=Daten!$B$8,LOOKUP($D$4,Daten!$A$169:$A$218,Daten!$C$169:$C$218),"") -> 
C37: Energie | D37: Fett | E37: Gesättigte Fettsäuren | F37: Kohlen- hydrate | G37: Eiweiß | H37: Salz | I37: Energie | J37: Fett | K37: Gesättigte Fettsäuren | L37: Kohlen- hydrate | M37: Eiweiß | N37: Salz
C38: =IF($A$8<=Daten!$B$8,LOOKUP($B$4,Daten!$A$169:$A$218,Daten!$P$169:$P$218),"")& " " & IF($A$8<=Daten!$B$8,LOOKUP($B$4,Daten!$A$169:$A$218,Daten!$Q$169:$Q$218),"") -> 1,4 Inhalt1Einh[1,4] | D38: =IF($A$8<=Daten!$B$8,LOOKUP($B$4,Daten!$A$169:$A$218,Daten!$X$169:$X$218),"") & " " & IF($A$8<=Daten!$B$8,LOOKUP($B$4,Daten!$A$169:$A$218,Daten!$Y$169:$Y$218),"") -> 1,4 Inhalt5Einh[1,4] | E38: =IF($A$8<=Daten!$B$8,LOOKUP($B$4,Daten!$A$169:$A$218,Daten!$AF$169:$AF$218),"") & " " & IF($A$8<=Daten!$B$8,LOOKUP($B$4,Daten!$A$169:$A$218,Daten!$AG$169:$AG$218),"") ->  | F38: =IF($A$8<=Daten!$B$8,LOOKUP($B$4,Daten!$A$169:$A$218,Daten!$Z$169:$Z$218),"") & " " & IF($A$8<=Daten!$B$8,LOOKUP($B$4,Daten!$A$169:$A$218,Daten!$AA$169:$AA$218),"") -> 1,4 Inhalt6Einh[1,4] | G38: =IF($A$8<=Daten!$B$8,LOOKUP($B$4,Daten!$A$169:$A$218,Daten!$V$169:$V$218),"")&" "&IF($A$8<=Daten!$B$8,LOOKUP($B$4,Daten!$A$169:$A$218,Daten!$W$169:$W$218),"") -> 1,4 Inhalt4Einh[1,4] | H38: =IF($A$8<=Daten!$B$8,LOOKUP($B$4,Daten!$A$169:$A$218,Daten!$BN$169:$BN$218),"") & " " & IF($A$8<=Daten!$B$8,LOOKUP($B$4,Daten!$A$169:$A$218,Daten!$BO$169:$BO$218),"") ->  | I38: =IF($A$8<=Daten!$B$8,LOOKUP($D$4,Daten!$A$169:$A$218,Daten!$P$169:$P$218),"")& " " & IF($A$8<=Daten!$B$8,LOOKUP($D$4,Daten!$A$169:$A$218,Daten!$Q$169:$Q$218),"") -> 2,4 Inhalt1Einh[2,4] | J38: =IF($A$8<=Daten!$B$8,LOOKUP($D$4,Daten!$A$169:$A$218,Daten!$X$169:$X$218),"") & " " & IF($A$8<=Daten!$B$8,LOOKUP($D$4,Daten!$A$169:$A$218,Daten!$Y$169:$Y$218),"") -> 2,4 Inhalt5Einh[2,4] | K38: =IF($A$8<=Daten!$B$8,LOOKUP($D$4,Daten!$A$169:$A$218,Daten!$AF$169:$AF$218),"") & " " & IF($A$8<=Daten!$B$8,LOOKUP($D$4,Daten!$A$169:$A$218,Daten!$AG$169:$AG$218),"") ->  | L38: =IF($A$8<=Daten!$B$8,LOOKUP($D$4,Daten!$A$169:$A$218,Daten!$Z$169:$Z$218),"") & " " & IF($A$8<=Daten!$B$8,LOOKUP($D$4,Daten!$A$169:$A$218,Daten!$AA$169:$AA$218),"") -> 2,4 Inhalt6Einh[2,4] | M38: =IF($A$8<=Daten!$B$8,LOOKUP($D$4,Daten!$A$169:$A$218,Daten!$V$169:$V$218),"")&" "&IF($A$8<=Daten!$B$8,LOOKUP($D$4,Daten!$A$169:$A$218,Daten!$W$169:$W$218),"") -> 2,4 Inhalt4Einh[2,4] | N38: =IF($A$8<=Daten!$B$8,LOOKUP($D$4,Daten!$A$169:$A$218,Daten!$BN$169:$BN$218),"") & " " & IF($A$8<=Daten!$B$8,LOOKUP($D$4,Daten!$A$169:$A$218,Daten!$BO$169:$BO$218),"") -> 
B39: Freitag | C39: =IF($A$8<=Daten!$B$8,LOOKUP($B$4,Daten!$A$220:$A$269,Daten!$C$220:$C$269),"") ->  | I39: =IF($A$8<=Daten!$B$8,LOOKUP($D$4,Daten!$A$220:$A$269,Daten!$C$220:$C$269),"") -> 
C45: Energie | D45: Fett | E45: Gesättigte Fettsäuren | F45: Kohlen- hydrate | G45: Eiweiß | H45: Salz | I45: Energie | J45: Fett | K45: Gesättigte Fettsäuren | L45: Kohlen- hydrate | M45: Eiweiß | N45: Salz
C46: =IF($A$8<=Daten!$B$8,LOOKUP($B$4,Daten!$A$220:$A$269,Daten!$P$220:$P$269),"")& " " & IF($A$8<=Daten!$B$8,LOOKUP($B$4,Daten!$A$220:$A$269,Daten!$Q$220:$Q$269),"") -> 1,5 Inhalt1Einh[1,5] | D46: =IF($A$8<=Daten!$B$8,LOOKUP($B$4,Daten!$A$220:$A$269,Daten!$X$220:$X$269),"")& " " & IF($A$8<=Daten!$B$8,LOOKUP($B$4,Daten!$A$220:$A$269,Daten!$Y$220:$Y$269),"") -> 1,5 Inhalt5Einh[1,5] | E46: =IF($A$8<=Daten!$B$8,LOOKUP($B$4,Daten!$A$220:$A$269,Daten!$AF$220:$AF$269),"")& " " & IF($A$8<=Daten!$B$8,LOOKUP($B$4,Daten!$A$220:$A$269,Daten!$AG$220:$AG$269),"") ->  | F46: =IF($A$8<=Daten!$B$8,LOOKUP($B$4,Daten!$A$220:$A$269,Daten!$Z$220:$Z$269),"")& " " & IF($A$8<=Daten!$B$8,LOOKUP($B$4,Daten!$A$220:$A$269,Daten!$AA$220:$AA$269),"") -> 1,5 Inhalt6Einh[1,5] | G46: =IF($A$8<=Daten!$B$8,LOOKUP($B$4,Daten!$A$220:$A$269,Daten!$V$220:$V$269),"")& " " & IF($A$8<=Daten!$B$8,LOOKUP($B$4,Daten!$A$220:$A$269,Daten!$W$220:$W$269),"") -> 1,5 Inhalt4Einh[1,5] | H46: =IF($A$8<=Daten!$B$8,LOOKUP($B$4,Daten!$A$220:$A$269,Daten!$BN$220:$BN$269),"")& " " & IF($A$8<=Daten!$B$8,LOOKUP($B$4,Daten!$A$220:$A$269,Daten!$BO$220:$BO$269),"") ->  | I46: =IF($A$8<=Daten!$B$8,LOOKUP($D$4,Daten!$A$220:$A$269,Daten!$P$220:$P$269),"")& " " & IF($A$8<=Daten!$B$8,LOOKUP($D$4,Daten!$A$220:$A$269,Daten!$Q$220:$Q$269),"") -> 2,5 Inhalt1Einh[2,5] | J46: =IF($A$8<=Daten!$B$8,LOOKUP($D$4,Daten!$A$220:$A$269,Daten!$X$220:$X$269),"")& " " & IF($A$8<=Daten!$B$8,LOOKUP($D$4,Daten!$A$220:$A$269,Daten!$Y$220:$Y$269),"") -> 2,5 Inhalt5Einh[2,5] | K46: =IF($A$8<=Daten!$B$8,LOOKUP($D$4,Daten!$A$220:$A$269,Daten!$AF$220:$AF$269),"")& " " & IF($A$8<=Daten!$B$8,LOOKUP($D$4,Daten!$A$220:$A$269,Daten!$AG$220:$AG$269),"") ->  | L46: =IF($A$8<=Daten!$B$8,LOOKUP($D$4,Daten!$A$220:$A$269,Daten!$Z$220:$Z$269),"")& " " & IF($A$8<=Daten!$B$8,LOOKUP($D$4,Daten!$A$220:$A$269,Daten!$AA$220:$AA$269),"") -> 2,5 Inhalt6Einh[2,5] | M46: =IF($A$8<=Daten!$B$8,LOOKUP($D$4,Daten!$A$220:$A$269,Daten!$V$220:$V$269),"")& " " & IF($A$8<=Daten!$B$8,LOOKUP($D$4,Daten!$A$220:$A$269,Daten!$W$220:$W$269),"") -> 2,5 Inhalt4Einh[2,5] | N46: =IF($A$8<=Daten!$B$8,LOOKUP($D$4,Daten!$A$220:$A$269,Daten!$BN$220:$BN$269),"")& " " & IF($A$8<=Daten!$B$8,LOOKUP($D$4,Daten!$A$220:$A$269,Daten!$BO$220:$BO$269),"") -> 
F47: Wir nutzen ausschließlich Zutaten in Bio-Qualität | J47: außer: Fisch
D49: DE-ÖKO-070

Sheet Speiseplan (WE)
B1: =Daten!B1 -> Vorlageplan
B3: ="Speiseplan vom "&TEXT(Daten!$B$3,"tt.MM.jjjj")&" bis "&TEXT(Daten!$B$4,"tt.MM.jjjj")&", "&TEXT(Daten!$B$2,"0")&". Kalenderwoche" -> Speiseplan vom bis , . Kalenderwoche
D4: 0 | F4: 1 | H4: 2 | J4: 3 | L4: 4 | N4: 5 | P4: 6
B5: Datum | C5: =Daten!$B$3+D$4 ->  | E5: =Daten!$B$3+F$4 ->  | G5: =Daten!$B$3+H$4 ->  | I5: =Daten!$B$3+J$4 ->  | K5: =Daten!$B$3+L$4 ->  | M5: =Daten!$B$3+N$4 ->  | O5: =Daten!$B$3+P$4 -> 
B7: Menülinie | C7: =Daten!$B$3+D$4 ->  | E7: =Daten!$B$3+F$4 ->  | G7: =Daten!$B$3+H$4 ->  | I7: =Daten!$B$3+J$4 ->  | K7: =Daten!$B$3+L$4 ->  | M7: =Daten!$B$3+N$4 ->  | O7: =Daten!$B$3+P$4 -> 
A8: 1 | B8: =IF(A8<=Daten!$B$8,Daten!B9,"") -> Menülinie 1 | C8: =IF($A8<=Daten!$B$8,LOOKUP($B8,Daten!$A$16:$A$65,Daten!$C$16:$C$65),"") ->  | D8: =IF($A8<=Daten!$B$8,LOOKUP($B8,Daten!$A$16:$A$65,Daten!$P$16:$P$65),"") & " " & IF($A8<=Daten!$B$8,LOOKUP($B8,Daten!$A$16:$A$65,Daten!$Q$16:$Q$65),"") -> 1,1 Inhalt1Einh[1,1] | E8: =IF($A8<=Daten!$B$8,LOOKUP($B8,Daten!$A$67:$A$116,Daten!$C$67:$C$116),"") ->  | F8: =IF($A8<=Daten!$B$8,LOOKUP($B8,Daten!$A$67:$A$116,Daten!$P$67:$P$116),"") & " " & IF($A8<=Daten!$B$8,LOOKUP($B8,Daten!$A$67:$A$116,Daten!$Q$67:$Q$116),"") -> 1,2 Inhalt1Einh[1,2] | G8: =IF($A8<=Daten!$B$8,LOOKUP($B8,Daten!$A$118:$A$167,Daten!$C$118:$C$167),"") ->  | H8: =IF($A8<=Daten!$B$8,LOOKUP($B8,Daten!$A$118:$A$167,Daten!$P$118:$P$167),"") & " " & IF($A8<=Daten!$B$8,LOOKUP($B8,Daten!$A$118:$A$167,Daten!$Q$118:$Q$167),"") -> 1,3 Inhalt1Einh[1,3] | I8: =IF($A8<=Daten!$B$8,LOOKUP($B8,Daten!$A$169:$A$218,Daten!$C$169:$C$218),"") ->  | J8: =IF($A8<=Daten!$B$8,LOOKUP($B8,Daten!$A$169:$A$218,Daten!$P$169:$P$218),"") & " " & IF($A8<=Daten!$B$8,LOOKUP($B8,Daten!$A$169:$A$218,Daten!$Q$169:$Q$218),"") -> 1,4 Inhalt1Einh[1,4] | K8: =IF($A8<=Daten!$B$8,LOOKUP($B8,Daten!$A$220:$A$269,Daten!$C$220:$C$269),"") ->  | L8: =IF($A8<=Daten!$B$8,LOOKUP($B8,Daten!$A$220:$A$269,Daten!$P$220:$P$269),"") & " " & IF($A8<=Daten!$B$8,LOOKUP($B8,Daten!$A$220:$A$269,Daten!$Q$220:$Q$269),"") -> 1,5 Inhalt1Einh[1,5] | M8: =IF($A8<=Daten!$B$8,LOOKUP($B8,Daten!$A$271:$A$320,Daten!$C$271:$C$320),"") -> Lang[1,6] | N8: =IF($A8<=Daten!$B$8,LOOKUP($B8,Daten!$A$271:$A$320,Daten!$P$271:$P$320),"") & " " & IF($A8<=Daten!$B$8,LOOKUP($B8,Daten!$A$271:$A$320,Daten!$Q$271:$Q$320),"") -> 1,6 Inhalt1Einh[1,6] | O8: =IF($A8<=Daten!$B$8,LOOKUP($B8,Daten!$A$322:$A$371,Daten!$B$322:$C$371),"") ->  | P8: =IF($A8<=Daten!$B$8,LOOKUP($B8,Daten!$A$322:$A$371,Daten!$P$322:$P$371),"") & " " & IF($A8<=Daten!$B$8,LOOKUP($B8,Daten!$A$322:$A$371,Daten!$Q$322:$Q$371),"") -> 1,7 Inhalt1Einh[1,7]
D9: =IF($A8<=Daten!$B$8,LOOKUP($B8,Daten!$A$16:$A$65,Daten!$R$16:$R$65),"") & " " & IF($A8<=Daten!$B$8,LOOKUP($B8,Daten!$A$16:$A$65,Daten!$S$16:$S$65),"") -> 1,1 Inhalt2Einh[1,1] | F9: =IF($A8<=Daten!$B$8,LOOKUP($B8,Daten!$A$67:$A$116,Daten!$R$67:$R$116),"") & " " & IF($A8<=Daten!$B$8,LOOKUP($B8,Daten!$A$67:$A$116,Daten!$S$67:$S$116),"") -> 1,2 Inhalt2Einh[1,2] | H9: =IF($A8<=Daten!$B$8,LOOKUP($B8,Daten!$A$118:$A$167,Daten!$R$118:$R$167),"") & " " & IF($A8<=Daten!$B$8,LOOKUP($B8,Daten!$A$118:$A$167,Daten!$S$118:$S$167),"") -> 1,3 Inhalt2Einh[1,3] | J9: =IF($A8<=Daten!$B$8,LOOKUP($B8,Daten!$A$169:$A$218,Daten!$R$169:$R$218),"") & " " & IF($A8<=Daten!$B$8,LOOKUP($B8,Daten!$A$169:$A$218,Daten!$S$169:$S$218),"") -> 1,4 Inhalt2Einh[1,4] | L9: =IF($A8<=Daten!$B$8,LOOKUP($B8,Daten!$A$220:$A$269,Daten!$R$220:$R$269),"") & " " & IF($A8<=Daten!$B$8,LOOKUP($B8,Daten!$A$220:$A$269,Daten!$S$220:$S$269),"") -> 1,5 Inhalt2Einh[1,5] | N9: =IF($A8<=Daten!$B$8,LOOKUP($B8,Daten!$A$271:$A$320,Daten!$R$271:$R$320),"") & " " & IF($A8<=Daten!$B$8,LOOKUP($B8,Daten!$A$271:$A$320,Daten!$S$271:$S$320),"") -> 1,6 Inhalt2Einh[1,6] | P9: =IF($A8<=Daten!$B$8,LOOKUP($B8,Daten!$A$322:$A$371,Daten!$R$322:$R$371),"") & " " & IF($A8<=Daten!$B$8,LOOKUP($B8,Daten!$A$322:$A$371,Daten!$S$322:$S$371),"") -> 1,7 Inhalt2Einh[1,7]
D10: =IF($A8<=Daten!$B$8,LOOKUP($B8,Daten!$A$16:$A$65,Daten!$T$16:$T$65),"") & " " & IF($A8<=Daten!$B$8,LOOKUP($B8,Daten!$A$16:$A$65,Daten!$U$16:$U$65),"") -> 1,1 Inhalt3Einh[1,1] | F10: =IF($A8<=Daten!$B$8,LOOKUP($B8,Daten!$A$67:$A$116,Daten!$T$67:$T$116),"") & " " & IF($A8<=Daten!$B$8,LOOKUP($B8,Daten!$A$67:$A$116,Daten!$U$67:$U$116),"") -> 1,2 Inhalt3Einh[1,2] | H10: =IF($A8<=Daten!$B$8,LOOKUP($B8,Daten!$A$118:$A$167,Daten!$T$118:$T$167),"") & " " & IF($A8<=Daten!$B$8,LOOKUP($B8,Daten!$A$118:$A$167,Daten!$U$118:$U$167),"") -> 1,3 Inhalt3Einh[1,3] | J10: =IF($A8<=Daten!$B$8,LOOKUP($B8,Daten!$A$169:$A$218,Daten!$T$169:$T$218),"") & " " & IF($A8<=Daten!$B$8,LOOKUP($B8,Daten!$A$169:$A$218,Daten!$U$169:$U$218),"") -> 1,4 Inhalt3Einh[1,4] | L10: =IF($A8<=Daten!$B$8,LOOKUP($B8,Daten!$A$220:$A$269,Daten!$T$220:$T$269),"") & " " & IF($A8<=Daten!$B$8,LOOKUP($B8,Daten!$A$220:$A$269,Daten!$U$220:$U$269),"") -> 1,5 Inhalt3Einh[1,5] | N10: =IF($A8<=Daten!$B$8,LOOKUP($B8,Daten!$A$271:$A$320,Daten!$T$271:$T$320),"") & " " & IF($A8<=Daten!$B$8,LOOKUP($B8,Daten!$A$271:$A$320,Daten!$U$271:$U$320),"") -> 1,6 Inhalt3Einh[1,6] | P10: =IF($A8<=Daten!$B$8,LOOKUP($B8,Daten!$A$322:$A$371,Daten!$T$322:$T$371),"") & " " & IF($A8<=Daten!$B$8,LOOKUP($B8,Daten!$A$322:$A$371,Daten!$U$322:$U$371),"") -> 1,7 Inhalt3Einh[1,7]
D11: =IF($A8<=Daten!$B$8,LOOKUP($B8,Daten!$A$16:$A$65,Daten!$V$16:$V$65),"") & " " & IF($A8<=Daten!$B$8,LOOKUP($B8,Daten!$A$16:$A$65,Daten!$W$16:$W$65),"") -> 1,1 Inhalt4Einh[1,1] | F11: =IF($A8<=Daten!$B$8,LOOKUP($B8,Daten!$A$67:$A$116,Daten!$V$67:$V$116),"") & " " & IF($A8<=Daten!$B$8,LOOKUP($B8,Daten!$A$67:$A$116,Daten!$W$67:$W$116),"") -> 1,2 Inhalt4Einh[1,2] | H11: =IF($A8<=Daten!$B$8,LOOKUP($B8,Daten!$A$118:$A$167,Daten!$V$118:$V$167),"") & " " & IF($A8<=Daten!$B$8,LOOKUP($B8,Daten!$A$118:$A$167,Daten!$W$118:$W$167),"") -> 1,3 Inhalt4Einh[1,3] | J11: =IF($A8<=Daten!$B$8,LOOKUP($B8,Daten!$A$169:$A$218,Daten!$V$169:$V$218),"") & " " & IF($A8<=Daten!$B$8,LOOKUP($B8,Daten!$A$169:$A$218,Daten!$W$169:$W$218),"") -> 1,4 Inhalt4Einh[1,4] | L11: =IF($A8<=Daten!$B$8,LOOKUP($B8,Daten!$A$220:$A$269,Daten!$V$220:$V$269),"") & " " & IF($A8<=Daten!$B$8,LOOKUP($B8,Daten!$A$220:$A$269,Daten!$W$220:$W$269),"") -> 1,5 Inhalt4Einh[1,5] | N11: =IF($A8<=Daten!$B$8,LOOKUP($B8,Daten!$A$271:$A$320,Daten!$V$271:$V$320),"") & " " & IF($A8<=Daten!$B$8,LOOKUP($B8,Daten!$A$271:$A$320,Daten!$W$271:$W$320),"") -> 1,6 Inhalt4Einh[1,6] | P11: =IF($A8<=Daten!$B$8,LOOKUP($B8,Daten!$A$322:$A$371,Daten!$V$322:$V$371),"") & " " & IF($A8<=Daten!$B$8,LOOKUP($B8,Daten!$A$322:$A$371,Daten!$W$322:$W$371),"") -> 1,7 Inhalt4Einh[1,7]
D12: =IF($A8<=Daten!$B$8,LOOKUP($B8,Daten!$A$16:$A$65,Daten!$X$16:$X$65),"") & " " & IF($A8<=Daten!$B$8,LOOKUP($B8,Daten!$A$16:$A$65,Daten!$Y$16:$Y$65),"") -> 1,1 Inhalt5Einh[1,1] | F12: =IF($A8<=Daten!$B$8,LOOKUP($B8,Daten!$A$67:$A$116,Daten!$X$67:$X$116),"") & " " & IF($A8<=Daten!$B$8,LOOKUP($B8,Daten!$A$67:$A$116,Daten!$Y$67:$Y$116),"") -> 1,2 Inhalt5Einh[1,2] | H12: =IF($A8<=Daten!$B$8,LOOKUP($B8,Daten!$A$118:$A$167,Daten!$X$118:$X$167),"") & " " & IF($A8<=Daten!$B$8,LOOKUP($B8,Daten!$A$118:$A$167,Daten!$Y$118:$Y$167),"") -> 1,3 Inhalt5Einh[1,3] | J12: =IF($A8<=Daten!$B$8,LOOKUP($B8,Daten!$A$169:$A$218,Daten!$X$169:$X$218),"") & " " & IF($A8<=Daten!$B$8,LOOKUP($B8,Daten!$A$169:$A$218,Daten!$Y$169:$Y$218),"") -> 1,4 Inhalt5Einh[1,4] | L12: =IF($A8<=Daten!$B$8,LOOKUP($B8,Daten!$A$220:$A$269,Daten!$X$220:$X$269),"") & " " & IF($A8<=Daten!$B$8,LOOKUP($B8,Daten!$A$220:$A$269,Daten!$Y$220:$Y$269),"") -> 1,5 Inhalt5Einh[1,5] | N12: =IF($A8<=Daten!$B$8,LOOKUP($B8,Daten!$A$271:$A$320,Daten!$X$271:$X$320),"") & " " & IF($A8<=Daten!$B$8,LOOKUP($B8,Daten!$A$271:$A$320,Daten!$Y$271:$Y$320),"") -> 1,6 Inhalt5Einh[1,6] | P12: =IF($A8<=Daten!$B$8,LOOKUP($B8,Daten!$A$322:$A$371,Daten!$X$322:$X$371),"") & " " & IF($A8<=Daten!$B$8,LOOKUP($B8,Daten!$A$322:$A$371,Daten!$Y$322:$Y$371),"") -> 1,7 Inhalt5Einh[1,7]
D13: =IF($A8<=Daten!$B$8,LOOKUP($B8,Daten!$A$16:$A$65,Daten!$Z$16:$Z$65),"") & " " & IF($A8<=Daten!$B$8,LOOKUP($B8,Daten!$A$16:$A$65,Daten!$AA$16:$AA$65),"") -> 1,1 Inhalt6Einh[1,1] | F13: =IF($A8<=Daten!$B$8,LOOKUP($B8,Daten!$A$67:$A$116,Daten!$Z$67:$Z$116),"") & " " & IF($A8<=Daten!$B$8,LOOKUP($B8,Daten!$A$67:$A$116,Daten!$AA$67:$AA$116),"") -> 1,2 Inhalt6Einh[1,2] | H13: =IF($A8<=Daten!$B$8,LOOKUP($B8,Daten!$A$118:$A$167,Daten!$Z$118:$Z$167),"") & " " & IF($A8<=Daten!$B$8,LOOKUP($B8,Daten!$A$118:$A$167,Daten!$AA$118:$AA$167),"") -> 1,3 Inhalt6Einh[1,3] | J13: =IF($A8<=Daten!$B$8,LOOKUP($B8,Daten!$A$169:$A$218,Daten!$Z$169:$Z$218),"") & " " & IF($A8<=Daten!$B$8,LOOKUP($B8,Daten!$A$169:$A$218,Daten!$AA$169:$AA$218),"") -> 1,4 Inhalt6Einh[1,4] | L13: =IF($A8<=Daten!$B$8,LOOKUP($B8,Daten!$A$220:$A$269,Daten!$Z$220:$Z$269),"") & " " & IF($A8<=Daten!$B$8,LOOKUP($B8,Daten!$A$220:$A$269,Daten!$AA$220:$AA$269),"") -> 1,5 Inhalt6Einh[1,5] | N13: =IF($A8<=Daten!$B$8,LOOKUP($B8,Daten!$A$271:$A$320,Daten!$Z$271:$Z$320),"") & " " & IF($A8<=Daten!$B$8,LOOKUP($B8,Daten!$A$271:$A$320,Daten!$AA$271:$AA$320),"") -> 1,6 Inhalt6Einh[1,6] | P13: =IF($A8<=Daten!$B$8,LOOKUP($B8,Daten!$A$322:$A$371,Daten!$Z$322:$Z$371),"") & " " & IF($A8<=Daten!$B$8,LOOKUP($B8,Daten!$A$322:$A$371,Daten!$AA$322:$AA$371),"") -> 1,7 Inhalt6Einh[1,7]
B14: =IF(A8<=Daten!$B$8,"Zusatzstoffe","") -> Zusatzstoffe | C14: =IF($A8<=Daten!$B$8,LOOKUP($B8,Daten!$A$16:$A$65,Daten!$L$16:$L$65),"") -> 1.1 | D14: =IF($A8<=Daten!$B$8,LOOKUP($B8,Daten!$A$16:$A$65,Daten!$E$16:$E$65),"") -> 21.1 | E14: =IF($A8<=Daten!$B$8,LOOKUP($B8,Daten!$A$67:$A$116,Daten!$L$67:$L$116),"") -> 1.2 | F14: =IF($A8<=Daten!$B$8,LOOKUP($B8,Daten!$A$16:$A$65,Daten!$E$67:$E$116),"") -> 0 | G14: =IF($A8<=Daten!$B$8,LOOKUP($B8,Daten!$A$118:$A$167,Daten!$L$118:$L$167),"") -> 1.3 | H14: =IF($A8<=Daten!$B$8,LOOKUP($B8,Daten!$A$118:$A$167,Daten!$E$118:$E$167),"") -> 0 | I14: =IF($A8<=Daten!$B$8,LOOKUP($B8,Daten!$A$169:$A$218,Daten!$L$169:$L$218),"") -> 1.4 | J14: =IF($A8<=Daten!$B$8,LOOKUP($B8,Daten!$A$169:$A$218,Daten!$E$169:$E$218),"") -> 0 | K14: =IF($A8<=Daten!$B$8,LOOKUP($B8,Daten!$A$220:$A$269,Daten!$L$220:$L$269),"") -> 1.5 | L14: =IF($A8<=Daten!$B$8,LOOKUP($B8,Daten!$A$220:$A$269,Daten!$E$220:$E$269),"") -> 0 | M14: =IF($A8<=Daten!$B$8,LOOKUP($B8,Daten!$A$271:$A$320,Daten!$L$271:$L$320),"") -> 1.6 | N14: =IF($A8<=Daten!$B$8,LOOKUP($B8,Daten!$A$271:$A$320,Daten!$E$271:$E$320),"") -> 0 | O14: =IF($A8<=Daten!$B$8,LOOKUP($B8,Daten!$A$322:$A$371,Daten!$L$322:$L$371),"") -> 1.7 | P14: =IF($A8<=Daten!$B$8,LOOKUP($B8,Daten!$A$322:$A$371,Daten!$E$322:$E$371),"") -> 0
A15: 2 | B15: =IF(A15<=Daten!$B$8,Daten!C9,"") -> Menülinie 2 | C15: =IF($A15<=Daten!$B$8,LOOKUP($B15,Daten!$A$16:$A$65,Daten!$C$16:$C$65),"") ->  | D15: =IF($A15<=Daten!$B$8,LOOKUP($B15,Daten!$A$16:$A$65,Daten!$P$16:$P$65),"") & " " & IF($A15<=Daten!$B$8,LOOKUP($B15,Daten!$A$16:$A$65,Daten!$Q$16:$Q$65),"") -> 2,1 Inhalt1Einh[2,1] | E15: =IF($A15<=Daten!$B$8,LOOKUP($B15,Daten!$A$67:$A$116,Daten!$C$67:$C$116),"") ->  | F15: =IF($A15<=Daten!$B$8,LOOKUP($B15,Daten!$A$67:$A$116,Daten!$P$67:$P$116),"") & " " & IF($A15<=Daten!$B$8,LOOKUP($B15,Daten!$A$67:$A$116,Daten!$Q$67:$Q$116),"") -> 2,2 Inhalt1Einh[2,2] | G15: =IF($A15<=Daten!$B$8,LOOKUP($B15,Daten!$A$118:$A$167,Daten!$C$118:$C$167),"") ->  | H15: =IF($A15<=Daten!$B$8,LOOKUP($B15,Daten!$A$118:$A$167,Daten!$P$118:$P$167),"") & " " & IF($A15<=Daten!$B$8,LOOKUP($B15,Daten!$A$118:$A$167,Daten!$Q$118:$Q$167),"") -> 2,3 Inhalt1Einh[2,3] | I15: =IF($A15<=Daten!$B$8,LOOKUP($B15,Daten!$A$169:$A$218,Daten!$C$169:$C$218),"") ->  | J15: =IF($A15<=Daten!$B$8,LOOKUP($B15,Daten!$A$169:$A$218,Daten!$P$169:$P$218),"") & " " & IF($A15<=Daten!$B$8,LOOKUP($B15,Daten!$A$169:$A$218,Daten!$Q$169:$Q$218),"") -> 2,4 Inhalt1Einh[2,4] | K15: =IF($A15<=Daten!$B$8,LOOKUP($B15,Daten!$A$220:$A$269,Daten!$C$220:$C$269),"") ->  | L15: =IF($A15<=Daten!$B$8,LOOKUP($B15,Daten!$A$220:$A$269,Daten!$P$220:$P$269),"") & " " & IF($A15<=Daten!$B$8,LOOKUP($B15,Daten!$A$220:$A$269,Daten!$Q$220:$Q$269),"") -> 2,5 Inhalt1Einh[2,5] | M15: =IF($A15<=Daten!$B$8,LOOKUP($B15,Daten!$A$271:$A$320,Daten!$C$271:$C$320),"") -> Lang[2,6] | N15: =IF($A15<=Daten!$B$8,LOOKUP($B15,Daten!$A$271:$A$320,Daten!$P$271:$P$320),"") & " " & IF($A15<=Daten!$B$8,LOOKUP($B15,Daten!$A$271:$A$320,Daten!$Q$271:$Q$320),"") -> 2,6 Inhalt1Einh[2,6] | O15: =IF($A15<=Daten!$B$8,LOOKUP($B15,Daten!$A$322:$A$371,Daten!$B$322:$C$371),"") ->  | P15: =IF($A15<=Daten!$B$8,LOOKUP($B15,Daten!$A$322:$A$371,Daten!$P$322:$P$371),"") & " " & IF($A15<=Daten!$B$8,LOOKUP($B15,Daten!$A$322:$A$371,Daten!$Q$322:$Q$371),"") -> 2,7 Inhalt1Einh[2,7]
D16: =IF($A15<=Daten!$B$8,LOOKUP($B15,Daten!$A$16:$A$65,Daten!$R$16:$R$65),"") & " " & IF($A15<=Daten!$B$8,LOOKUP($B15,Daten!$A$16:$A$65,Daten!$S$16:$S$65),"") -> 2,1 Inhalt2Einh[2,1] | F16: =IF($A15<=Daten!$B$8,LOOKUP($B15,Daten!$A$67:$A$116,Daten!$R$67:$R$116),"") & " " & IF($A15<=Daten!$B$8,LOOKUP($B15,Daten!$A$67:$A$116,Daten!$S$67:$S$116),"") -> 2,2 Inhalt2Einh[2,2] | H16: =IF($A15<=Daten!$B$8,LOOKUP($B15,Daten!$A$118:$A$167,Daten!$R$118:$R$167),"") & " " & IF($A15<=Daten!$B$8,LOOKUP($B15,Daten!$A$118:$A$167,Daten!$S$118:$S$167),"") -> 2,3 Inhalt2Einh[2,3] | J16: =IF($A15<=Daten!$B$8,LOOKUP($B15,Daten!$A$169:$A$218,Daten!$R$169:$R$218),"") & " " & IF($A15<=Daten!$B$8,LOOKUP($B15,Daten!$A$169:$A$218,Daten!$S$169:$S$218),"") -> 2,4 Inhalt2Einh[2,4] | L16: =IF($A15<=Daten!$B$8,LOOKUP($B15,Daten!$A$220:$A$269,Daten!$R$220:$R$269),"") & " " & IF($A15<=Daten!$B$8,LOOKUP($B15,Daten!$A$220:$A$269,Daten!$S$220:$S$269),"") -> 2,5 Inhalt2Einh[2,5] | N16: =IF($A15<=Daten!$B$8,LOOKUP($B15,Daten!$A$271:$A$320,Daten!$R$271:$R$320),"") & " " & IF($A15<=Daten!$B$8,LOOKUP($B15,Daten!$A$271:$A$320,Daten!$S$271:$S$320),"") -> 2,6 Inhalt2Einh[2,6] | P16: =IF($A15<=Daten!$B$8,LOOKUP($B15,Daten!$A$322:$A$371,Daten!$R$322:$R$371),"") & " " & IF($A15<=Daten!$B$8,LOOKUP($B15,Daten!$A$322:$A$371,Daten!$S$322:$S$371),"") -> 2,7 Inhalt2Einh[2,7]
D17: =IF($A15<=Daten!$B$8,LOOKUP($B15,Daten!$A$16:$A$65,Daten!$T$16:$T$65),"") & " " & IF($A15<=Daten!$B$8,LOOKUP($B15,Daten!$A$16:$A$65,Daten!$U$16:$U$65),"") -> 2,1 Inhalt3Einh[2,1] | F17: =IF($A15<=Daten!$B$8,LOOKUP($B15,Daten!$A$67:$A$116,Daten!$T$67:$T$116),"") & " " & IF($A15<=Daten!$B$8,LOOKUP($B15,Daten!$A$67:$A$116,Daten!$U$67:$U$116),"") -> 2,2 Inhalt3Einh[2,2] | H17: =IF($A15<=Daten!$B$8,LOOKUP($B15,Daten!$A$118:$A$167,Daten!$T$118:$T$167),"") & " " & IF($A15<=Daten!$B$8,LOOKUP($B15,Daten!$A$118:$A$167,Daten!$U$118:$U$167),"") -> 2,3 Inhalt3Einh[2,3] | J17: =IF($A15<=Daten!$B$8,LOOKUP($B15,Daten!$A$169:$A$218,Daten!$T$169:$T$218),"") & " " & IF($A15<=Daten!$B$8,LOOKUP($B15,Daten!$A$169:$A$218,Daten!$U$169:$U$218),"") -> 2,4 Inhalt3Einh[2,4] | L17: =IF($A15<=Daten!$B$8,LOOKUP($B15,Daten!$A$220:$A$269,Daten!$T$220:$T$269),"") & " " & IF($A15<=Daten!$B$8,LOOKUP($B15,Daten!$A$220:$A$269,Daten!$U$220:$U$269),"") -> 2,5 Inhalt3Einh[2,5] | N17: =IF($A15<=Daten!$B$8,LOOKUP($B15,Daten!$A$271:$A$320,Daten!$T$271:$T$320),"") & " " & IF($A15<=Daten!$B$8,LOOKUP($B15,Daten!$A$271:$A$320,Daten!$U$271:$U$320),"") -> 2,6 Inhalt3Einh[2,6] | P17: =IF($A15<=Daten!$B$8,LOOKUP($B15,Daten!$A$322:$A$371,Daten!$T$322:$T$371),"") & " " & IF($A15<=Daten!$B$8,LOOKUP($B15,Daten!$A$322:$A$371,Daten!$U$322:$U$371),"") -> 2,7 Inhalt3Einh[2,7]
D18: =IF($A15<=Daten!$B$8,LOOKUP($B15,Daten!$A$16:$A$65,Daten!$V$16:$V$65),"") & " " & IF($A15<=Daten!$B$8,LOOKUP($B15,Daten!$A$16:$A$65,Daten!$W$16:$W$65),"") -> 2,1 Inhalt4Einh[2,1] | F18: =IF($A15<=Daten!$B$8,LOOKUP($B15,Daten!$A$67:$A$116,Daten!$V$67:$V$116),"") & " " & IF($A15<=Daten!$B$8,LOOKUP($B15,Daten!$A$67:$A$116,Daten!$W$67:$W$116),"") -> 2,2 Inhalt4Einh[2,2] | H18: =IF($A15<=Daten!$B$8,LOOKUP($B15,Daten!$A$118:$A$167,Daten!$V$118:$V$167),"") & " " & IF($A15<=Daten!$B$8,LOOKUP($B15,Daten!$A$118:$A$167,Daten!$W$118:$W$167),"") -> 2,3 Inhalt4Einh[2,3] | J18: =IF($A15<=Daten!$B$8,LOOKUP($B15,Daten!$A$169:$A$218,Daten!$V$169:$V$218),"") & " " & IF($A15<=Daten!$B$8,LOOKUP($B15,Daten!$A$169:$A$218,Daten!$W$169:$W$218),"") -> 2,4 Inhalt4Einh[2,4] | L18: =IF($A15<=Daten!$B$8,LOOKUP($B15,Daten!$A$220:$A$269,Daten!$V$220:$V$269),"") & " " & IF($A15<=Daten!$B$8,LOOKUP($B15,Daten!$A$220:$A$269,Daten!$W$220:$W$269),"") -> 2,5 Inhalt4Einh[2,5] | N18: =IF($A15<=Daten!$B$8,LOOKUP($B15,Daten!$A$271:$A$320,Daten!$V$271:$V$320),"") & " " & IF($A15<=Daten!$B$8,LOOKUP($B15,Daten!$A$271:$A$320,Daten!$W$271:$W$320),"") -> 2,6 Inhalt4Einh[2,6] | P18: =IF($A15<=Daten!$B$8,LOOKUP($B15,Daten!$A$322:$A$371,Daten!$V$322:$V$371),"") & " " & IF($A15<=Daten!$B$8,LOOKUP($B15,Daten!$A$322:$A$371,Daten!$W$322:$W$371),"") -> 2,7 Inhalt4Einh[2,7]
D19: =IF($A15<=Daten!$B$8,LOOKUP($B15,Daten!$A$16:$A$65,Daten!$X$16:$X$65),"") & " " & IF($A15<=Daten!$B$8,LOOKUP($B15,Daten!$A$16:$A$65,Daten!$Y$16:$Y$65),"") -> 2,1 Inhalt5Einh[2,1] | F19: =IF($A15<=Daten!$B$8,LOOKUP($B15,Daten!$A$67:$A$116,Daten!$X$67:$X$116),"") & " " & IF($A15<=Daten!$B$8,LOOKUP($B15,Daten!$A$67:$A$116,Daten!$Y$67:$Y$116),"") -> 2,2 Inhalt5Einh[2,2] | H19: =IF($A15<=Daten!$B$8,LOOKUP($B15,Daten!$A$118:$A$167,Daten!$X$118:$X$167),"") & " " & IF($A15<=Daten!$B$8,LOOKUP($B15,Daten!$A$118:$A$167,Daten!$Y$118:$Y$167),"") -> 2,3 Inhalt5Einh[2,3] | J19: =IF($A15<=Daten!$B$8,LOOKUP($B15,Daten!$A$169:$A$218,Daten!$X$169:$X$218),"") & " " & IF($A15<=Daten!$B$8,LOOKUP($B15,Daten!$A$169:$A$218,Daten!$Y$169:$Y$218),"") -> 2,4 Inhalt5Einh[2,4] | L19: =IF($A15<=Daten!$B$8,LOOKUP($B15,Daten!$A$220:$A$269,Daten!$X$220:$X$269),"") & " " & IF($A15<=Daten!$B$8,LOOKUP($B15,Daten!$A$220:$A$269,Daten!$Y$220:$Y$269),"") -> 2,5 Inhalt5Einh[2,5] | N19: =IF($A15<=Daten!$B$8,LOOKUP($B15,Daten!$A$271:$A$320,Daten!$X$271:$X$320),"") & " " & IF($A15<=Daten!$B$8,LOOKUP($B15,Daten!$A$271:$A$320,Daten!$Y$271:$Y$320),"") -> 2,6 Inhalt5Einh[2,6] | P19: =IF($A15<=Daten!$B$8,LOOKUP($B15,Daten!$A$322:$A$371,Daten!$X$322:$X$371),"") & " " & IF($A15<=Daten!$B$8,LOOKUP($B15,Daten!$A$322:$A$371,Daten!$Y$322:$Y$371),"") -> 2,7 Inhalt5Einh[2,7]
D20: =IF($A15<=Daten!$B$8,LOOKUP($B15,Daten!$A$16:$A$65,Daten!$Z$16:$Z$65),"") & " " & IF($A15<=Daten!$B$8,LOOKUP($B15,Daten!$A$16:$A$65,Daten!$AA$16:$AA$65),"") -> 2,1 Inhalt6Einh[2,1] | F20: =IF($A15<=Daten!$B$8,LOOKUP($B15,Daten!$A$67:$A$116,Daten!$Z$67:$Z$116),"") & " " & IF($A15<=Daten!$B$8,LOOKUP($B15,Daten!$A$67:$A$116,Daten!$AA$67:$AA$116),"") -> 2,2 Inhalt6Einh[2,2] | H20: =IF($A15<=Daten!$B$8,LOOKUP($B15,Daten!$A$118:$A$167,Daten!$Z$118:$Z$167),"") & " " & IF($A15<=Daten!$B$8,LOOKUP($B15,Daten!$A$118:$A$167,Daten!$AA$118:$AA$167),"") -> 2,3 Inhalt6Einh[2,3] | J20: =IF($A15<=Daten!$B$8,LOOKUP($B15,Daten!$A$169:$A$218,Daten!$Z$169:$Z$218),"") & " " & IF($A15<=Daten!$B$8,LOOKUP($B15,Daten!$A$169:$A$218,Daten!$AA$169:$AA$218),"") -> 2,4 Inhalt6Einh[2,4] | L20: =IF($A15<=Daten!$B$8,LOOKUP($B15,Daten!$A$220:$A$269,Daten!$Z$220:$Z$269),"") & " " & IF($A15<=Daten!$B$8,LOOKUP($B15,Daten!$A$220:$A$269,Daten!$AA$220:$AA$269),"") -> 2,5 Inhalt6Einh[2,5] | N20: =IF($A15<=Daten!$B$8,LOOKUP($B15,Daten!$A$271:$A$320,Daten!$Z$271:$Z$320),"") & " " & IF($A15<=Daten!$B$8,LOOKUP($B15,Daten!$A$271:$A$320,Daten!$AA$271:$AA$320),"") -> 2,6 Inhalt6Einh[2,6] | P20: =IF($A15<=Daten!$B$8,LOOKUP($B15,Daten!$A$322:$A$371,Daten!$Z$322:$Z$371),"") & " " & IF($A15<=Daten!$B$8,LOOKUP($B15,Daten!$A$322:$A$371,Daten!$AA$322:$AA$371),"") -> 2,7 Inhalt6Einh[2,7]
B21: =IF(A15<=Daten!$B$8,"Zusatzstoffe","") -> Zusatzstoffe | C21: =IF($A15<=Daten!$B$8,LOOKUP($B15,Daten!$A$16:$A$65,Daten!$L$16:$L$65),"") -> 2.1 | D21: =IF($A15<=Daten!$B$8,LOOKUP($B15,Daten!$A$16:$A$65,Daten!$E$16:$E$65),"") -> 21.1 | E21: =IF($A15<=Daten!$B$8,LOOKUP($B15,Daten!$A$67:$A$116,Daten!$L$67:$L$116),"") -> 2.2 | F21: =IF($A15<=Daten!$B$8,LOOKUP($B15,Daten!$A$16:$A$65,Daten!$E$67:$E$116),"") -> 0 | G21: =IF($A15<=Daten!$B$8,LOOKUP($B15,Daten!$A$118:$A$167,Daten!$L$118:$L$167),"") -> 2.3 | H21: =IF($A15<=Daten!$B$8,LOOKUP($B15,Daten!$A$118:$A$167,Daten!$E$118:$E$167),"") -> 0 | I21: =IF($A15<=Daten!$B$8,LOOKUP($B15,Daten!$A$169:$A$218,Daten!$L$169:$L$218),"") -> 2.4 | J21: =IF($A15<=Daten!$B$8,LOOKUP($B15,Daten!$A$169:$A$218,Daten!$E$169:$E$218),"") -> 0 | K21: =IF($A15<=Daten!$B$8,LOOKUP($B15,Daten!$A$220:$A$269,Daten!$L$220:$L$269),"") -> 2.5 | L21: =IF($A15<=Daten!$B$8,LOOKUP($B15,Daten!$A$220:$A$269,Daten!$E$220:$E$269),"") -> 0 | M21: =IF($A15<=Daten!$B$8,LOOKUP($B15,Daten!$A$271:$A$320,Daten!$L$271:$L$320),"") -> 2.6 | N21: =IF($A15<=Daten!$B$8,LOOKUP($B15,Daten!$A$271:$A$320,Daten!$E$271:$E$320),"") -> 0 | O21: =IF($A15<=Daten!$B$8,LOOKUP($B15,Daten!$A$322:$A$371,Daten!$L$322:$L$371),"") -> 2.7 | P21: =IF($A15<=Daten!$B$8,LOOKUP($B15,Daten!$A$322:$A$371,Daten!$E$322:$E$371),"") -> 0
A22: 3 | B22: =IF(A22<=Daten!$B$8,Daten!D9,"") -> Menülinie 3 | C22: =IF(A22<=Daten!$B$8,LOOKUP(B22,Daten!$A$16:$A$65,Daten!$C$16:$C$65),"") -> Lang[3,1] | D22: =IF($A22<=Daten!$B$8,LOOKUP($B22,Daten!$A$16:$A$65,Daten!$P$16:$P$65),"") & " " & IF($A22<=Daten!$B$8,LOOKUP($B22,Daten!$A$16:$A$65,Daten!$Q$16:$Q$65),"") -> 3,1 Inhalt1Einh[3,1] | E22: =IF($A22<=Daten!$B$8,LOOKUP($B22,Daten!$A$67:$A$116,Daten!$C$67:$C$116),"") -> Lang[3,2] | F22: =IF($A22<=Daten!$B$8,LOOKUP($B22,Daten!$A$67:$A$116,Daten!$P$67:$P$116),"") & " " & IF($A22<=Daten!$B$8,LOOKUP($B22,Daten!$A$67:$A$116,Daten!$Q$67:$Q$116),"") -> 3,2 Inhalt1Einh[3,2] | G22: =IF($A22<=Daten!$B$8,LOOKUP($B22,Daten!$A$118:$A$167,Daten!$C$118:$C$167),"") -> Lang[3,3] | H22: =IF($A22<=Daten!$B$8,LOOKUP($B22,Daten!$A$118:$A$167,Daten!$P$118:$P$167),"") & " " & IF($A22<=Daten!$B$8,LOOKUP($B22,Daten!$A$118:$A$167,Daten!$Q$118:$Q$167),"") -> 3,3 Inhalt1Einh[3,3] | I22: =IF($A22<=Daten!$B$8,LOOKUP($B22,Daten!$A$169:$A$218,Daten!$C$169:$C$218),"") -> Lang[3,4] | J22: =IF($A22<=Daten!$B$8,LOOKUP($B22,Daten!$A$169:$A$218,Daten!$P$169:$P$218),"") & " " & IF($A22<=Daten!$B$8,LOOKUP($B22,Daten!$A$169:$A$218,Daten!$Q$169:$Q$218),"") -> 3,4 Inhalt1Einh[3,4] | K22: =IF($A22<=Daten!$B$8,LOOKUP($B22,Daten!$A$220:$A$269,Daten!$C$220:$C$269),"") -> Lang[3,5] | L22: =IF($A22<=Daten!$B$8,LOOKUP($B22,Daten!$A$220:$A$269,Daten!$P$220:$P$269),"") & " " & IF($A22<=Daten!$B$8,LOOKUP($B22,Daten!$A$220:$A$269,Daten!$Q$220:$Q$269),"") -> 3,5 Inhalt1Einh[3,5] | M22: =IF($A22<=Daten!$B$8,LOOKUP($B22,Daten!$A$271:$A$320,Daten!$C$271:$C$320),"") -> Lang[3,6] | N22: =IF($A22<=Daten!$B$8,LOOKUP($B22,Daten!$A$271:$A$320,Daten!$P$271:$P$320),"") & " " & IF($A22<=Daten!$B$8,LOOKUP($B22,Daten!$A$271:$A$320,Daten!$Q$271:$Q$320),"") -> 3,6 Inhalt1Einh[3,6] | O22: =IF($A22<=Daten!$B$8,LOOKUP($B22,Daten!$A$322:$A$371,Daten!$B$322:$C$371),"") ->  | P22: =IF($A22<=Daten!$B$8,LOOKUP($B22,Daten!$A$322:$A$371,Daten!$P$322:$P$371),"") & " " & IF($A22<=Daten!$B$8,LOOKUP($B22,Daten!$A$322:$A$371,Daten!$Q$322:$Q$371),"") -> 3,7 Inhalt1Einh[3,7]
D23: =IF($A22<=Daten!$B$8,LOOKUP($B22,Daten!$A$16:$A$65,Daten!$R$16:$R$65),"") & " " & IF($A22<=Daten!$B$8,LOOKUP($B22,Daten!$A$16:$A$65,Daten!$S$16:$S$65),"") -> 3,1 Inhalt2Einh[3,1] | F23: =IF($A22<=Daten!$B$8,LOOKUP($B22,Daten!$A$67:$A$116,Daten!$R$67:$R$116),"") & " " & IF($A22<=Daten!$B$8,LOOKUP($B22,Daten!$A$67:$A$116,Daten!$S$67:$S$116),"") -> 3,2 Inhalt2Einh[3,2] | H23: =IF($A22<=Daten!$B$8,LOOKUP($B22,Daten!$A$118:$A$167,Daten!$R$118:$R$167),"") & " " & IF($A22<=Daten!$B$8,LOOKUP($B22,Daten!$A$118:$A$167,Daten!$S$118:$S$167),"") -> 3,3 Inhalt2Einh[3,3] | J23: =IF($A22<=Daten!$B$8,LOOKUP($B22,Daten!$A$169:$A$218,Daten!$R$169:$R$218),"") & " " & IF($A22<=Daten!$B$8,LOOKUP($B22,Daten!$A$169:$A$218,Daten!$S$169:$S$218),"") -> 3,4 Inhalt2Einh[3,4] | L23: =IF($A22<=Daten!$B$8,LOOKUP($B22,Daten!$A$220:$A$269,Daten!$R$220:$R$269),"") & " " & IF($A22<=Daten!$B$8,LOOKUP($B22,Daten!$A$220:$A$269,Daten!$S$220:$S$269),"") -> 3,5 Inhalt2Einh[3,5] | N23: =IF($A22<=Daten!$B$8,LOOKUP($B22,Daten!$A$271:$A$320,Daten!$R$271:$R$320),"") & " " & IF($A22<=Daten!$B$8,LOOKUP($B22,Daten!$A$271:$A$320,Daten!$S$271:$S$320),"") -> 3,6 Inhalt2Einh[3,6] | P23: =IF($A22<=Daten!$B$8,LOOKUP($B22,Daten!$A$322:$A$371,Daten!$R$322:$R$371),"") & " " & IF($A22<=Daten!$B$8,LOOKUP($B22,Daten!$A$322:$A$371,Daten!$S$322:$S$371),"") -> 3,7 Inhalt2Einh[3,7]
D24: =IF($A22<=Daten!$B$8,LOOKUP($B22,Daten!$A$16:$A$65,Daten!$T$16:$T$65),"") & " " & IF($A22<=Daten!$B$8,LOOKUP($B22,Daten!$A$16:$A$65,Daten!$U$16:$U$65),"") -> 3,1 Inhalt3Einh[3,1] | F24: =IF($A22<=Daten!$B$8,LOOKUP($B22,Daten!$A$67:$A$116,Daten!$T$67:$T$116),"") & " " & IF($A22<=Daten!$B$8,LOOKUP($B22,Daten!$A$67:$A$116,Daten!$U$67:$U$116),"") -> 3,2 Inhalt3Einh[3,2] | H24: =IF($A22<=Daten!$B$8,LOOKUP($B22,Daten!$A$118:$A$167,Daten!$T$118:$T$167),"") & " " & IF($A22<=Daten!$B$8,LOOKUP($B22,Daten!$A$118:$A$167,Daten!$U$118:$U$167),"") -> 3,3 Inhalt3Einh[3,3] | J24: =IF($A22<=Daten!$B$8,LOOKUP($B22,Daten!$A$169:$A$218,Daten!$T$169:$T$218),"") & " " & IF($A22<=Daten!$B$8,LOOKUP($B22,Daten!$A$169:$A$218,Daten!$U$169:$U$218),"") -> 3,4 Inhalt3Einh[3,4] | L24: =IF($A22<=Daten!$B$8,LOOKUP($B22,Daten!$A$220:$A$269,Daten!$T$220:$T$269),"") & " " & IF($A22<=Daten!$B$8,LOOKUP($B22,Daten!$A$220:$A$269,Daten!$U$220:$U$269),"") -> 3,5 Inhalt3Einh[3,5] | N24: =IF($A22<=Daten!$B$8,LOOKUP($B22,Daten!$A$271:$A$320,Daten!$T$271:$T$320),"") & " " & IF($A22<=Daten!$B$8,LOOKUP($B22,Daten!$A$271:$A$320,Daten!$U$271:$U$320),"") -> 3,6 Inhalt3Einh[3,6] | P24: =IF($A22<=Daten!$B$8,LOOKUP($B22,Daten!$A$322:$A$371,Daten!$T$322:$T$371),"") & " " & IF($A22<=Daten!$B$8,LOOKUP($B22,Daten!$A$322:$A$371,Daten!$U$322:$U$371),"") -> 3,7 Inhalt3Einh[3,7]
D25: =IF($A22<=Daten!$B$8,LOOKUP($B22,Daten!$A$16:$A$65,Daten!$V$16:$V$65),"") & " " & IF($A22<=Daten!$B$8,LOOKUP($B22,Daten!$A$16:$A$65,Daten!$W$16:$W$65),"") -> 3,1 Inhalt4Einh[3,1] | F25: =IF($A22<=Daten!$B$8,LOOKUP($B22,Daten!$A$67:$A$116,Daten!$V$67:$V$116),"") & " " & IF($A22<=Daten!$B$8,LOOKUP($B22,Daten!$A$67:$A$116,Daten!$W$67:$W$116),"") -> 3,2 Inhalt4Einh[3,2] | H25: =IF($A22<=Daten!$B$8,LOOKUP($B22,Daten!$A$118:$A$167,Daten!$V$118:$V$167),"") & " " & IF($A22<=Daten!$B$8,LOOKUP($B22,Daten!$A$118:$A$167,Daten!$W$118:$W$167),"") -> 3,3 Inhalt4Einh[3,3] | J25: =IF($A22<=Daten!$B$8,LOOKUP($B22,Daten!$A$169:$A$218,Daten!$V$169:$V$218),"") & " " & IF($A22<=Daten!$B$8,LOOKUP($B22,Daten!$A$169:$A$218,Daten!$W$169:$W$218),"") -> 3,4 Inhalt4Einh[3,4] | L25: =IF($A22<=Daten!$B$8,LOOKUP($B22,Daten!$A$220:$A$269,Daten!$V$220:$V$269),"") & " " & IF($A22<=Daten!$B$8,LOOKUP($B22,Daten!$A$220:$A$269,Daten!$W$220:$W$269),"") -> 3,5 Inhalt4Einh[3,5] | N25: =IF($A22<=Daten!$B$8,LOOKUP($B22,Daten!$A$271:$A$320,Daten!$V$271:$V$320),"") & " " & IF($A22<=Daten!$B$8,LOOKUP($B22,Daten!$A$271:$A$320,Daten!$W$271:$W$320),"") -> 3,6 Inhalt4Einh[3,6] | P25: =IF($A22<=Daten!$B$8,LOOKUP($B22,Daten!$A$322:$A$371,Daten!$V$322:$V$371),"") & " " & IF($A22<=Daten!$B$8,LOOKUP($B22,Daten!$A$322:$A$371,Daten!$W$322:$W$371),"") -> 3,7 Inhalt4Einh[3,7]
D26: =IF($A22<=Daten!$B$8,LOOKUP($B22,Daten!$A$16:$A$65,Daten!$X$16:$X$65),"") & " " & IF($A22<=Daten!$B$8,LOOKUP($B22,Daten!$A$16:$A$65,Daten!$Y$16:$Y$65),"") -> 3,1 Inhalt5Einh[3,1] | F26: =IF($A22<=Daten!$B$8,LOOKUP($B22,Daten!$A$67:$A$116,Daten!$X$67:$X$116),"") & " " & IF($A22<=Daten!$B$8,LOOKUP($B22,Daten!$A$67:$A$116,Daten!$Y$67:$Y$116),"") -> 3,2 Inhalt5Einh[3,2] | H26: =IF($A22<=Daten!$B$8,LOOKUP($B22,Daten!$A$118:$A$167,Daten!$X$118:$X$167),"") & " " & IF($A22<=Daten!$B$8,LOOKUP($B22,Daten!$A$118:$A$167,Daten!$Y$118:$Y$167),"") -> 3,3 Inhalt5Einh[3,3] | J26: =IF($A22<=Daten!$B$8,LOOKUP($B22,Daten!$A$169:$A$218,Daten!$X$169:$X$218),"") & " " & IF($A22<=Daten!$B$8,LOOKUP($B22,Daten!$A$169:$A$218,Daten!$Y$169:$Y$218),"") -> 3,4 Inhalt5Einh[3,4] | L26: =IF($A22<=Daten!$B$8,LOOKUP($B22,Daten!$A$220:$A$269,Daten!$X$220:$X$269),"") & " " & IF($A22<=Daten!$B$8,LOOKUP($B22,Daten!$A$220:$A$269,Daten!$Y$220:$Y$269),"") -> 3,5 Inhalt5Einh[3,5] | N26: =IF($A22<=Daten!$B$8,LOOKUP($B22,Daten!$A$271:$A$320,Daten!$X$271:$X$320),"") & " " & IF($A22<=Daten!$B$8,LOOKUP($B22,Daten!$A$271:$A$320,Daten!$Y$271:$Y$320),"") -> 3,6 Inhalt5Einh[3,6] | P26: =IF($A22<=Daten!$B$8,LOOKUP($B22,Daten!$A$322:$A$371,Daten!$X$322:$X$371),"") & " " & IF($A22<=Daten!$B$8,LOOKUP($B22,Daten!$A$322:$A$371,Daten!$Y$322:$Y$371),"") -> 3,7 Inhalt5Einh[3,7]
D27: =IF($A22<=Daten!$B$8,LOOKUP($B22,Daten!$A$16:$A$65,Daten!$Z$16:$Z$65),"") & " " & IF($A22<=Daten!$B$8,LOOKUP($B22,Daten!$A$16:$A$65,Daten!$AA$16:$AA$65),"") -> 3,1 Inhalt6Einh[3,1] | F27: =IF($A22<=Daten!$B$8,LOOKUP($B22,Daten!$A$67:$A$116,Daten!$Z$67:$Z$116),"") & " " & IF($A22<=Daten!$B$8,LOOKUP($B22,Daten!$A$67:$A$116,Daten!$AA$67:$AA$116),"") -> 3,2 Inhalt6Einh[3,2] | H27: =IF($A22<=Daten!$B$8,LOOKUP($B22,Daten!$A$118:$A$167,Daten!$Z$118:$Z$167),"") & " " & IF($A22<=Daten!$B$8,LOOKUP($B22,Daten!$A$118:$A$167,Daten!$AA$118:$AA$167),"") -> 3,3 Inhalt6Einh[3,3] | J27: =IF($A22<=Daten!$B$8,LOOKUP($B22,Daten!$A$169:$A$218,Daten!$Z$169:$Z$218),"") & " " & IF($A22<=Daten!$B$8,LOOKUP($B22,Daten!$A$169:$A$218,Daten!$AA$169:$AA$218),"") -> 3,4 Inhalt6Einh[3,4] | L27: =IF($A22<=Daten!$B$8,LOOKUP($B22,Daten!$A$220:$A$269,Daten!$Z$220:$Z$269),"") & " " & IF($A22<=Daten!$B$8,LOOKUP($B22,Daten!$A$220:$A$269,Daten!$AA$220:$AA$269),"") -> 3,5 Inhalt6Einh[3,5] | N27: =IF($A22<=Daten!$B$8,LOOKUP($B22,Daten!$A$271:$A$320,Daten!$Z$271:$Z$320),"") & " " & IF($A22<=Daten!$B$8,LOOKUP($B22,Daten!$A$271:$A$320,Daten!$AA$271:$AA$320),"") -> 3,6 Inhalt6Einh[3,6] | P27: =IF($A22<=Daten!$B$8,LOOKUP($B22,Daten!$A$322:$A$371,Daten!$Z$322:$Z$371),"") & " " & IF($A22<=Daten!$B$8,LOOKUP($B22,Daten!$A$322:$A$371,Daten!$AA$322:$AA$371),"") -> 3,7 Inhalt6Einh[3,7]
B28: =IF(A22<=Daten!$B$8,"Zusatzstoffe","") -> Zusatzstoffe | C28: =IF($A22<=Daten!$B$8,LOOKUP($B22,Daten!$A$16:$A$65,Daten!$L$16:$L$65),"") -> 3.1 | D28: =IF($A22<=Daten!$B$8,LOOKUP($B22,Daten!$A$16:$A$65,Daten!$E$16:$E$65),"") -> 21.1 | E28: =IF($A22<=Daten!$B$8,LOOKUP($B22,Daten!$A$67:$A$116,Daten!$L$67:$L$116),"") -> 3.2 | F28: =IF($A22<=Daten!$B$8,LOOKUP($B22,Daten!$A$16:$A$65,Daten!$E$67:$E$116),"") -> 0 | G28: =IF($A22<=Daten!$B$8,LOOKUP($B22,Daten!$A$118:$A$167,Daten!$L$118:$L$167),"") -> 3.3 | H28: =IF($A22<=Daten!$B$8,LOOKUP($B22,Daten!$A$118:$A$167,Daten!$E$118:$E$167),"") -> 0 | I28: =IF($A22<=Daten!$B$8,LOOKUP($B22,Daten!$A$169:$A$218,Daten!$L$169:$L$218),"") -> 3.4 | J28: =IF($A22<=Daten!$B$8,LOOKUP($B22,Daten!$A$169:$A$218,Daten!$E$169:$E$218),"") -> 0 | K28: =IF($A22<=Daten!$B$8,LOOKUP($B22,Daten!$A$220:$A$269,Daten!$L$220:$L$269),"") -> 3.5 | L28: =IF($A22<=Daten!$B$8,LOOKUP($B22,Daten!$A$220:$A$269,Daten!$E$220:$E$269),"") -> 0 | M28: =IF($A22<=Daten!$B$8,LOOKUP($B22,Daten!$A$271:$A$320,Daten!$L$271:$L$320),"") -> 3.6 | N28: =IF($A22<=Daten!$B$8,LOOKUP($B22,Daten!$A$271:$A$320,Daten!$E$271:$E$320),"") -> 0 | O28: =IF($A22<=Daten!$B$8,LOOKUP($B22,Daten!$A$322:$A$371,Daten!$L$322:$L$371),"") -> 3.7 | P28: =IF($A22<=Daten!$B$8,LOOKUP($B22,Daten!$A$322:$A$371,Daten!$E$322:$E$371),"") -> 0
A29: 4 | B29: =IF(A29<=Daten!$B$8,Daten!E9,"") -> Menülinie 4 | C29: =IF(A29<=Daten!$B$8,LOOKUP(B29,Daten!$A$16:$A$65,Daten!$C$16:$C$65),"") -> Lang[4,1] | D29: =IF($A29<=Daten!$B$8,LOOKUP($B29,Daten!$A$16:$A$65,Daten!$P$16:$P$65),"") & " " & IF($A29<=Daten!$B$8,LOOKUP($B29,Daten!$A$16:$A$65,Daten!$Q$16:$Q$65),"") -> 4,1 Inhalt1Einh[4,1] | E29: =IF($A29<=Daten!$B$8,LOOKUP($B29,Daten!$A$67:$A$116,Daten!$C$67:$C$116),"") -> Lang[4,2] | F29: =IF($A29<=Daten!$B$8,LOOKUP($B29,Daten!$A$67:$A$116,Daten!$P$67:$P$116),"") & " " & IF($A29<=Daten!$B$8,LOOKUP($B29,Daten!$A$67:$A$116,Daten!$Q$67:$Q$116),"") -> 4,2 Inhalt1Einh[4,2] | G29: =IF($A29<=Daten!$B$8,LOOKUP($B29,Daten!$A$118:$A$167,Daten!$C$118:$C$167),"") -> Lang[4,3] | H29: =IF($A29<=Daten!$B$8,LOOKUP($B29,Daten!$A$118:$A$167,Daten!$P$118:$P$167),"") & " " & IF($A29<=Daten!$B$8,LOOKUP($B29,Daten!$A$118:$A$167,Daten!$Q$118:$Q$167),"") -> 4,3 Inhalt1Einh[4,3] | I29: =IF($A29<=Daten!$B$8,LOOKUP($B29,Daten!$A$169:$A$218,Daten!$C$169:$C$218),"") -> Lang[4,4] | J29: =IF($A29<=Daten!$B$8,LOOKUP($B29,Daten!$A$169:$A$218,Daten!$P$169:$P$218),"") & " " & IF($A29<=Daten!$B$8,LOOKUP($B29,Daten!$A$169:$A$218,Daten!$Q$169:$Q$218),"") -> 4,4 Inhalt1Einh[4,4] | K29: =IF($A29<=Daten!$B$8,LOOKUP($B29,Daten!$A$220:$A$269,Daten!$C$220:$C$269),"") -> Lang[4,5] | L29: =IF($A29<=Daten!$B$8,LOOKUP($B29,Daten!$A$220:$A$269,Daten!$P$220:$P$269),"") & " " & IF($A29<=Daten!$B$8,LOOKUP($B29,Daten!$A$220:$A$269,Daten!$Q$220:$Q$269),"") -> 4,5 Inhalt1Einh[4,5] | M29: =IF($A29<=Daten!$B$8,LOOKUP($B29,Daten!$A$271:$A$320,Daten!$C$271:$C$320),"") -> Lang[4,6] | N29: =IF($A29<=Daten!$B$8,LOOKUP($B29,Daten!$A$271:$A$320,Daten!$P$271:$P$320),"") & " " & IF($A29<=Daten!$B$8,LOOKUP($B29,Daten!$A$271:$A$320,Daten!$Q$271:$Q$320),"") -> 4,6 Inhalt1Einh[4,6] | O29: =IF($A29<=Daten!$B$8,LOOKUP($B29,Daten!$A$322:$A$371,Daten!$B$322:$C$371),"") ->  | P29: =IF($A29<=Daten!$B$8,LOOKUP($B29,Daten!$A$322:$A$371,Daten!$P$322:$P$371),"") & " " & IF($A29<=Daten!$B$8,LOOKUP($B29,Daten!$A$322:$A$371,Daten!$Q$322:$Q$371),"") -> 4,7 Inhalt1Einh[4,7]
D30: =IF($A29<=Daten!$B$8,LOOKUP($B29,Daten!$A$16:$A$65,Daten!$R$16:$R$65),"") & " " & IF($A29<=Daten!$B$8,LOOKUP($B29,Daten!$A$16:$A$65,Daten!$S$16:$S$65),"") -> 4,1 Inhalt2Einh[4,1] | F30: =IF($A29<=Daten!$B$8,LOOKUP($B29,Daten!$A$67:$A$116,Daten!$R$67:$R$116),"") & " " & IF($A29<=Daten!$B$8,LOOKUP($B29,Daten!$A$67:$A$116,Daten!$S$67:$S$116),"") -> 4,2 Inhalt2Einh[4,2] | H30: =IF($A29<=Daten!$B$8,LOOKUP($B29,Daten!$A$118:$A$167,Daten!$R$118:$R$167),"") & " " & IF($A29<=Daten!$B$8,LOOKUP($B29,Daten!$A$118:$A$167,Daten!$S$118:$S$167),"") -> 4,3 Inhalt2Einh[4,3] | J30: =IF($A29<=Daten!$B$8,LOOKUP($B29,Daten!$A$169:$A$218,Daten!$R$169:$R$218),"") & " " & IF($A29<=Daten!$B$8,LOOKUP($B29,Daten!$A$169:$A$218,Daten!$S$169:$S$218),"") -> 4,4 Inhalt2Einh[4,4] | L30: =IF($A29<=Daten!$B$8,LOOKUP($B29,Daten!$A$220:$A$269,Daten!$R$220:$R$269),"") & " " & IF($A29<=Daten!$B$8,LOOKUP($B29,Daten!$A$220:$A$269,Daten!$S$220:$S$269),"") -> 4,5 Inhalt2Einh[4,5] | N30: =IF($A29<=Daten!$B$8,LOOKUP($B29,Daten!$A$271:$A$320,Daten!$R$271:$R$320),"") & " " & IF($A29<=Daten!$B$8,LOOKUP($B29,Daten!$A$271:$A$320,Daten!$S$271:$S$320),"") -> 4,6 Inhalt2Einh[4,6] | P30: =IF($A29<=Daten!$B$8,LOOKUP($B29,Daten!$A$322:$A$371,Daten!$R$322:$R$371),"") & " " & IF($A29<=Daten!$B$8,LOOKUP($B29,Daten!$A$322:$A$371,Daten!$S$322:$S$371),"") -> 4,7 Inhalt2Einh[4,7]
D31: =IF($A29<=Daten!$B$8,LOOKUP($B29,Daten!$A$16:$A$65,Daten!$T$16:$T$65),"") & " " & IF($A29<=Daten!$B$8,LOOKUP($B29,Daten!$A$16:$A$65,Daten!$U$16:$U$65),"") -> 4,1 Inhalt3Einh[4,1] | F31: =IF($A29<=Daten!$B$8,LOOKUP($B29,Daten!$A$67:$A$116,Daten!$T$67:$T$116),"") & " " & IF($A29<=Daten!$B$8,LOOKUP($B29,Daten!$A$67:$A$116,Daten!$U$67:$U$116),"") -> 4,2 Inhalt3Einh[4,2] | H31: =IF($A29<=Daten!$B$8,LOOKUP($B29,Daten!$A$118:$A$167,Daten!$T$118:$T$167),"") & " " & IF($A29<=Daten!$B$8,LOOKUP($B29,Daten!$A$118:$A$167,Daten!$U$118:$U$167),"") -> 4,3 Inhalt3Einh[4,3] | J31: =IF($A29<=Daten!$B$8,LOOKUP($B29,Daten!$A$169:$A$218,Daten!$T$169:$T$218),"") & " " & IF($A29<=Daten!$B$8,LOOKUP($B29,Daten!$A$169:$A$218,Daten!$U$169:$U$218),"") -> 4,4 Inhalt3Einh[4,4] | L31: =IF($A29<=Daten!$B$8,LOOKUP($B29,Daten!$A$220:$A$269,Daten!$T$220:$T$269),"") & " " & IF($A29<=Daten!$B$8,LOOKUP($B29,Daten!$A$220:$A$269,Daten!$U$220:$U$269),"") -> 4,5 Inhalt3Einh[4,5] | N31: =IF($A29<=Daten!$B$8,LOOKUP($B29,Daten!$A$271:$A$320,Daten!$T$271:$T$320),"") & " " & IF($A29<=Daten!$B$8,LOOKUP($B29,Daten!$A$271:$A$320,Daten!$U$271:$U$320),"") -> 4,6 Inhalt3Einh[4,6] | P31: =IF($A29<=Daten!$B$8,LOOKUP($B29,Daten!$A$322:$A$371,Daten!$T$322:$T$371),"") & " " & IF($A29<=Daten!$B$8,LOOKUP($B29,Daten!$A$322:$A$371,Daten!$U$322:$U$371),"") -> 4,7 Inhalt3Einh[4,7]
D32: =IF($A29<=Daten!$B$8,LOOKUP($B29,Daten!$A$16:$A$65,Daten!$V$16:$V$65),"") & " " & IF($A29<=Daten!$B$8,LOOKUP($B29,Daten!$A$16:$A$65,Daten!$W$16:$W$65),"") -> 4,1 Inhalt4Einh[4,1] | F32: =IF($A29<=Daten!$B$8,LOOKUP($B29,Daten!$A$67:$A$116,Daten!$V$67:$V$116),"") & " " & IF($A29<=Daten!$B$8,LOOKUP($B29,Daten!$A$67:$A$116,Daten!$W$67:$W$116),"") -> 4,2 Inhalt4Einh[4,2] | H32: =IF($A29<=Daten!$B$8,LOOKUP($B29,Daten!$A$118:$A$167,Daten!$V$118:$V$167),"") & " " & IF($A29<=Daten!$B$8,LOOKUP($B29,Daten!$A$118:$A$167,Daten!$W$118:$W$167),"") -> 4,3 Inhalt4Einh[4,3] | J32: =IF($A29<=Daten!$B$8,LOOKUP($B29,Daten!$A$169:$A$218,Daten!$V$169:$V$218),"") & " " & IF($A29<=Daten!$B$8,LOOKUP($B29,Daten!$A$169:$A$218,Daten!$W$169:$W$218),"") -> 4,4 Inhalt4Einh[4,4] | L32: =IF($A29<=Daten!$B$8,LOOKUP($B29,Daten!$A$220:$A$269,Daten!$V$220:$V$269),"") & " " & IF($A29<=Daten!$B$8,LOOKUP($B29,Daten!$A$220:$A$269,Daten!$W$220:$W$269),"") -> 4,5 Inhalt4Einh[4,5] | N32: =IF($A29<=Daten!$B$8,LOOKUP($B29,Daten!$A$271:$A$320,Daten!$V$271:$V$320),"") & " " & IF($A29<=Daten!$B$8,LOOKUP($B29,Daten!$A$271:$A$320,Daten!$W$271:$W$320),"") -> 4,6 Inhalt4Einh[4,6] | P32: =IF($A29<=Daten!$B$8,LOOKUP($B29,Daten!$A$322:$A$371,Daten!$V$322:$V$371),"") & " " & IF($A29<=Daten!$B$8,LOOKUP($B29,Daten!$A$322:$A$371,Daten!$W$322:$W$371),"") -> 4,7 Inhalt4Einh[4,7]
D33: =IF($A29<=Daten!$B$8,LOOKUP($B29,Daten!$A$16:$A$65,Daten!$X$16:$X$65),"") & " " & IF($A29<=Daten!$B$8,LOOKUP($B29,Daten!$A$16:$A$65,Daten!$Y$16:$Y$65),"") -> 4,1 Inhalt5Einh[4,1] | F33: =IF($A29<=Daten!$B$8,LOOKUP($B29,Daten!$A$67:$A$116,Daten!$X$67:$X$116),"") & " " & IF($A29<=Daten!$B$8,LOOKUP($B29,Daten!$A$67:$A$116,Daten!$Y$67:$Y$116),"") -> 4,2 Inhalt5Einh[4,2] | H33: =IF($A29<=Daten!$B$8,LOOKUP($B29,Daten!$A$118:$A$167,Daten!$X$118:$X$167),"") & " " & IF($A29<=Daten!$B$8,LOOKUP($B29,Daten!$A$118:$A$167,Daten!$Y$118:$Y$167),"") -> 4,3 Inhalt5Einh[4,3] | J33: =IF($A29<=Daten!$B$8,LOOKUP($B29,Daten!$A$169:$A$218,Daten!$X$169:$X$218),"") & " " & IF($A29<=Daten!$B$8,LOOKUP($B29,Daten!$A$169:$A$218,Daten!$Y$169:$Y$218),"") -> 4,4 Inhalt5Einh[4,4] | L33: =IF($A29<=Daten!$B$8,LOOKUP($B29,Daten!$A$220:$A$269,Daten!$X$220:$X$269),"") & " " & IF($A29<=Daten!$B$8,LOOKUP($B29,Daten!$A$220:$A$269,Daten!$Y$220:$Y$269),"") -> 4,5 Inhalt5Einh[4,5] | N33: =IF($A29<=Daten!$B$8,LOOKUP($B29,Daten!$A$271:$A$320,Daten!$X$271:$X$320),"") & " " & IF($A29<=Daten!$B$8,LOOKUP($B29,Daten!$A$271:$A$320,Daten!$Y$271:$Y$320),"") -> 4,6 Inhalt5Einh[4,6] | P33: =IF($A29<=Daten!$B$8,LOOKUP($B29,Daten!$A$322:$A$371,Daten!$X$322:$X$371),"") & " " & IF($A29<=Daten!$B$8,LOOKUP($B29,Daten!$A$322:$A$371,Daten!$Y$322:$Y$371),"") -> 4,7 Inhalt5Einh[4,7]
D34: =IF($A29<=Daten!$B$8,LOOKUP($B29,Daten!$A$16:$A$65,Daten!$Z$16:$Z$65),"") & " " & IF($A29<=Daten!$B$8,LOOKUP($B29,Daten!$A$16:$A$65,Daten!$AA$16:$AA$65),"") -> 4,1 Inhalt6Einh[4,1] | F34: =IF($A29<=Daten!$B$8,LOOKUP($B29,Daten!$A$67:$A$116,Daten!$Z$67:$Z$116),"") & " " & IF($A29<=Daten!$B$8,LOOKUP($B29,Daten!$A$67:$A$116,Daten!$AA$67:$AA$116),"") -> 4,2 Inhalt6Einh[4,2] | H34: =IF($A29<=Daten!$B$8,LOOKUP($B29,Daten!$A$118:$A$167,Daten!$Z$118:$Z$167),"") & " " & IF($A29<=Daten!$B$8,LOOKUP($B29,Daten!$A$118:$A$167,Daten!$AA$118:$AA$167),"") -> 4,3 Inhalt6Einh[4,3] | J34: =IF($A29<=Daten!$B$8,LOOKUP($B29,Daten!$A$169:$A$218,Daten!$Z$169:$Z$218),"") & " " & IF($A29<=Daten!$B$8,LOOKUP($B29,Daten!$A$169:$A$218,Daten!$AA$169:$AA$218),"") -> 4,4 Inhalt6Einh[4,4] | L34: =IF($A29<=Daten!$B$8,LOOKUP($B29,Daten!$A$220:$A$269,Daten!$Z$220:$Z$269),"") & " " & IF($A29<=Daten!$B$8,LOOKUP($B29,Daten!$A$220:$A$269,Daten!$AA$220:$AA$269),"") -> 4,5 Inhalt6Einh[4,5] | N34: =IF($A29<=Daten!$B$8,LOOKUP($B29,Daten!$A$271:$A$320,Daten!$Z$271:$Z$320),"") & " " & IF($A29<=Daten!$B$8,LOOKUP($B29,Daten!$A$271:$A$320,Daten!$AA$271:$AA$320),"") -> 4,6 Inhalt6Einh[4,6] | P34: =IF($A29<=Daten!$B$8,LOOKUP($B29,Daten!$A$322:$A$371,Daten!$Z$322:$Z$371),"") & " " & IF($A29<=Daten!$B$8,LOOKUP($B29,Daten!$A$322:$A$371,Daten!$AA$322:$AA$371),"") -> 4,7 Inhalt6Einh[4,7]
B35: =IF(A29<=Daten!$B$8,"Zusatzstoffe","") -> Zusatzstoffe | C35: =IF($A29<=Daten!$B$8,LOOKUP($B29,Daten!$A$16:$A$65,Daten!$L$16:$L$65),"") -> 4.1 | D35: =IF($A29<=Daten!$B$8,LOOKUP($B29,Daten!$A$16:$A$65,Daten!$E$16:$E$65),"") -> 21.1 | E35: =IF($A29<=Daten!$B$8,LOOKUP($B29,Daten!$A$67:$A$116,Daten!$L$67:$L$116),"") -> 4.2 | F35: =IF($A29<=Daten!$B$8,LOOKUP($B29,Daten!$A$16:$A$65,Daten!$E$67:$E$116),"") -> 0 | G35: =IF($A29<=Daten!$B$8,LOOKUP($B29,Daten!$A$118:$A$167,Daten!$L$118:$L$167),"") -> 4.3 | H35: =IF($A29<=Daten!$B$8,LOOKUP($B29,Daten!$A$118:$A$167,Daten!$E$118:$E$167),"") -> 0 | I35: =IF($A29<=Daten!$B$8,LOOKUP($B29,Daten!$A$169:$A$218,Daten!$L$169:$L$218),"") -> 4.4 | J35: =IF($A29<=Daten!$B$8,LOOKUP($B29,Daten!$A$169:$A$218,Daten!$E$169:$E$218),"") -> 0 | K35: =IF($A29<=Daten!$B$8,LOOKUP($B29,Daten!$A$220:$A$269,Daten!$L$220:$L$269),"") -> 4.5 | L35: =IF($A29<=Daten!$B$8,LOOKUP($B29,Daten!$A$220:$A$269,Daten!$E$220:$E$269),"") -> 0 | M35: =IF($A29<=Daten!$B$8,LOOKUP($B29,Daten!$A$271:$A$320,Daten!$L$271:$L$320),"") -> 4.6 | N35: =IF($A29<=Daten!$B$8,LOOKUP($B29,Daten!$A$271:$A$320,Daten!$E$271:$E$320),"") -> 0 | O35: =IF($A29<=Daten!$B$8,LOOKUP($B29,Daten!$A$322:$A$371,Daten!$L$322:$L$371),"") -> 4.7 | P35: =IF($A29<=Daten!$B$8,LOOKUP($B29,Daten!$A$322:$A$371,Daten!$E$322:$E$371),"") -> 0
A36: 5 | B36: =IF(A36<=Daten!$B$8,Daten!F9,"") -> Menülinie 5 | C36: =IF(A36<=Daten!$B$8,LOOKUP(B36,Daten!$A$16:$A$65,Daten!$C$16:$C$65),"") -> Lang[5,1] | D36: =IF($A36<=Daten!$B$8,LOOKUP($B36,Daten!$A$16:$A$65,Daten!$P$16:$P$65),"") & " " & IF($A36<=Daten!$B$8,LOOKUP($B36,Daten!$A$16:$A$65,Daten!$Q$16:$Q$65),"") -> 5,1 Inhalt1Einh[5,1] | E36: =IF($A36<=Daten!$B$8,LOOKUP($B36,Daten!$A$67:$A$116,Daten!$C$67:$C$116),"") -> Lang[5,2] | F36: =IF($A36<=Daten!$B$8,LOOKUP($B36,Daten!$A$67:$A$116,Daten!$P$67:$P$116),"") & " " & IF($A36<=Daten!$B$8,LOOKUP($B36,Daten!$A$67:$A$116,Daten!$Q$67:$Q$116),"") -> 5,2 Inhalt1Einh[5,2] | G36: =IF($A36<=Daten!$B$8,LOOKUP($B36,Daten!$A$118:$A$167,Daten!$C$118:$C$167),"") -> Lang[5,3] | H36: =IF($A36<=Daten!$B$8,LOOKUP($B36,Daten!$A$118:$A$167,Daten!$P$118:$P$167),"") & " " & IF($A36<=Daten!$B$8,LOOKUP($B36,Daten!$A$118:$A$167,Daten!$Q$118:$Q$167),"") -> 5,3 Inhalt1Einh[5,3] | I36: =IF($A36<=Daten!$B$8,LOOKUP($B36,Daten!$A$169:$A$218,Daten!$C$169:$C$218),"") -> Lang[5,4] | J36: =IF($A36<=Daten!$B$8,LOOKUP($B36,Daten!$A$169:$A$218,Daten!$P$169:$P$218),"") & " " & IF($A36<=Daten!$B$8,LOOKUP($B36,Daten!$A$169:$A$218,Daten!$Q$169:$Q$218),"") -> 5,4 Inhalt1Einh[5,4] | K36: =IF($A36<=Daten!$B$8,LOOKUP($B36,Daten!$A$220:$A$269,Daten!$C$220:$C$269),"") -> Lang[5,5] | L36: =IF($A36<=Daten!$B$8,LOOKUP($B36,Daten!$A$220:$A$269,Daten!$P$220:$P$269),"") & " " & IF($A36<=Daten!$B$8,LOOKUP($B36,Daten!$A$220:$A$269,Daten!$Q$220:$Q$269),"") -> 5,5 Inhalt1Einh[5,5] | M36: =IF($A36<=Daten!$B$8,LOOKUP($B36,Daten!$A$271:$A$320,Daten!$C$271:$C$320),"") -> Lang[5,6] | N36: =IF($A36<=Daten!$B$8,LOOKUP($B36,Daten!$A$271:$A$320,Daten!$P$271:$P$320),"") & " " & IF($A36<=Daten!$B$8,LOOKUP($B36,Daten!$A$271:$A$320,Daten!$Q$271:$Q$320),"") -> 5,6 Inhalt1Einh[5,6] | O36: =IF($A36<=Daten!$B$8,LOOKUP($B36,Daten!$A$322:$A$371,Daten!$B$322:$C$371),"") ->  | P36: =IF($A36<=Daten!$B$8,LOOKUP($B36,Daten!$A$322:$A$371,Daten!$P$322:$P$371),"") & " " & IF($A36<=Daten!$B$8,LOOKUP($B36,Daten!$A$322:$A$371,Daten!$Q$322:$Q$371),"") -> 5,7 Inhalt1Einh[5,7]
D37: =IF($A36<=Daten!$B$8,LOOKUP($B36,Daten!$A$16:$A$65,Daten!$R$16:$R$65),"") & " " & IF($A36<=Daten!$B$8,LOOKUP($B36,Daten!$A$16:$A$65,Daten!$S$16:$S$65),"") -> 5,1 Inhalt2Einh[5,1] | F37: =IF($A36<=Daten!$B$8,LOOKUP($B36,Daten!$A$67:$A$116,Daten!$R$67:$R$116),"") & " " & IF($A36<=Daten!$B$8,LOOKUP($B36,Daten!$A$67:$A$116,Daten!$S$67:$S$116),"") -> 5,2 Inhalt2Einh[5,2] | H37: =IF($A36<=Daten!$B$8,LOOKUP($B36,Daten!$A$118:$A$167,Daten!$R$118:$R$167),"") & " " & IF($A36<=Daten!$B$8,LOOKUP($B36,Daten!$A$118:$A$167,Daten!$S$118:$S$167),"") -> 5,3 Inhalt2Einh[5,3] | J37: =IF($A36<=Daten!$B$8,LOOKUP($B36,Daten!$A$169:$A$218,Daten!$R$169:$R$218),"") & " " & IF($A36<=Daten!$B$8,LOOKUP($B36,Daten!$A$169:$A$218,Daten!$S$169:$S$218),"") -> 5,4 Inhalt2Einh[5,4] | L37: =IF($A36<=Daten!$B$8,LOOKUP($B36,Daten!$A$220:$A$269,Daten!$R$220:$R$269),"") & " " & IF($A36<=Daten!$B$8,LOOKUP($B36,Daten!$A$220:$A$269,Daten!$S$220:$S$269),"") -> 5,5 Inhalt2Einh[5,5] | N37: =IF($A36<=Daten!$B$8,LOOKUP($B36,Daten!$A$271:$A$320,Daten!$R$271:$R$320),"") & " " & IF($A36<=Daten!$B$8,LOOKUP($B36,Daten!$A$271:$A$320,Daten!$S$271:$S$320),"") -> 5,6 Inhalt2Einh[5,6] | P37: =IF($A36<=Daten!$B$8,LOOKUP($B36,Daten!$A$322:$A$371,Daten!$R$322:$R$371),"") & " " & IF($A36<=Daten!$B$8,LOOKUP($B36,Daten!$A$322:$A$371,Daten!$S$322:$S$371),"") -> 5,7 Inhalt2Einh[5,7]
D38: =IF($A36<=Daten!$B$8,LOOKUP($B36,Daten!$A$16:$A$65,Daten!$T$16:$T$65),"") & " " & IF($A36<=Daten!$B$8,LOOKUP($B36,Daten!$A$16:$A$65,Daten!$U$16:$U$65),"") -> 5,1 Inhalt3Einh[5,1] | F38: =IF($A36<=Daten!$B$8,LOOKUP($B36,Daten!$A$67:$A$116,Daten!$T$67:$T$116),"") & " " & IF($A36<=Daten!$B$8,LOOKUP($B36,Daten!$A$67:$A$116,Daten!$U$67:$U$116),"") -> 5,2 Inhalt3Einh[5,2] | H38: =IF($A36<=Daten!$B$8,LOOKUP($B36,Daten!$A$118:$A$167,Daten!$T$118:$T$167),"") & " " & IF($A36<=Daten!$B$8,LOOKUP($B36,Daten!$A$118:$A$167,Daten!$U$118:$U$167),"") -> 5,3 Inhalt3Einh[5,3] | J38: =IF($A36<=Daten!$B$8,LOOKUP($B36,Daten!$A$169:$A$218,Daten!$T$169:$T$218),"") & " " & IF($A36<=Daten!$B$8,LOOKUP($B36,Daten!$A$169:$A$218,Daten!$U$169:$U$218),"") -> 5,4 Inhalt3Einh[5,4] | L38: =IF($A36<=Daten!$B$8,LOOKUP($B36,Daten!$A$220:$A$269,Daten!$T$220:$T$269),"") & " " & IF($A36<=Daten!$B$8,LOOKUP($B36,Daten!$A$220:$A$269,Daten!$U$220:$U$269),"") -> 5,5 Inhalt3Einh[5,5] | N38: =IF($A36<=Daten!$B$8,LOOKUP($B36,Daten!$A$271:$A$320,Daten!$T$271:$T$320),"") & " " & IF($A36<=Daten!$B$8,LOOKUP($B36,Daten!$A$271:$A$320,Daten!$U$271:$U$320),"") -> 5,6 Inhalt3Einh[5,6] | P38: =IF($A36<=Daten!$B$8,LOOKUP($B36,Daten!$A$322:$A$371,Daten!$T$322:$T$371),"") & " " & IF($A36<=Daten!$B$8,LOOKUP($B36,Daten!$A$322:$A$371,Daten!$U$322:$U$371),"") -> 5,7 Inhalt3Einh[5,7]
D39: =IF($A36<=Daten!$B$8,LOOKUP($B36,Daten!$A$16:$A$65,Daten!$V$16:$V$65),"") & " " & IF($A36<=Daten!$B$8,LOOKUP($B36,Daten!$A$16:$A$65,Daten!$W$16:$W$65),"") -> 5,1 Inhalt4Einh[5,1] | F39: =IF($A36<=Daten!$B$8,LOOKUP($B36,Daten!$A$67:$A$116,Daten!$V$67:$V$116),"") & " " & IF($A36<=Daten!$B$8,LOOKUP($B36,Daten!$A$67:$A$116,Daten!$W$67:$W$116),"") -> 5,2 Inhalt4Einh[5,2] | H39: =IF($A36<=Daten!$B$8,LOOKUP($B36,Daten!$A$118:$A$167,Daten!$V$118:$V$167),"") & " " & IF($A36<=Daten!$B$8,LOOKUP($B36,Daten!$A$118:$A$167,Daten!$W$118:$W$167),"") -> 5,3 Inhalt4Einh[5,3] | J39: =IF($A36<=Daten!$B$8,LOOKUP($B36,Daten!$A$169:$A$218,Daten!$V$169:$V$218),"") & " " & IF($A36<=Daten!$B$8,LOOKUP($B36,Daten!$A$169:$A$218,Daten!$W$169:$W$218),"") -> 5,4 Inhalt4Einh[5,4] | L39: =IF($A36<=Daten!$B$8,LOOKUP($B36,Daten!$A$220:$A$269,Daten!$V$220:$V$269),"") & " " & IF($A36<=Daten!$B$8,LOOKUP($B36,Daten!$A$220:$A$269,Daten!$W$220:$W$269),"") -> 5,5 Inhalt4Einh[5,5] | N39: =IF($A36<=Daten!$B$8,LOOKUP($B36,Daten!$A$271:$A$320,Daten!$V$271:$V$320),"") & " " & IF($A36<=Daten!$B$8,LOOKUP($B36,Daten!$A$271:$A$320,Daten!$W$271:$W$320),"") -> 5,6 Inhalt4Einh[5,6] | P39: =IF($A36<=Daten!$B$8,LOOKUP($B36,Daten!$A$322:$A$371,Daten!$V$322:$V$371),"") & " " & IF($A36<=Daten!$B$8,LOOKUP($B36,Daten!$A$322:$A$371,Daten!$W$322:$W$371),"") -> 5,7 Inhalt4Einh[5,7]
D40: =IF($A36<=Daten!$B$8,LOOKUP($B36,Daten!$A$16:$A$65,Daten!$X$16:$X$65),"") & " " & IF($A36<=Daten!$B$8,LOOKUP($B36,Daten!$A$16:$A$65,Daten!$Y$16:$Y$65),"") -> 5,1 Inhalt5Einh[5,1] | F40: =IF($A36<=Daten!$B$8,LOOKUP($B36,Daten!$A$67:$A$116,Daten!$X$67:$X$116),"") & " " & IF($A36<=Daten!$B$8,LOOKUP($B36,Daten!$A$67:$A$116,Daten!$Y$67:$Y$116),"") -> 5,2 Inhalt5Einh[5,2] | H40: =IF($A36<=Daten!$B$8,LOOKUP($B36,Daten!$A$118:$A$167,Daten!$X$118:$X$167),"") & " " & IF($A36<=Daten!$B$8,LOOKUP($B36,Daten!$A$118:$A$167,Daten!$Y$118:$Y$167),"") -> 5,3 Inhalt5Einh[5,3] | J40: =IF($A36<=Daten!$B$8,LOOKUP($B36,Daten!$A$169:$A$218,Daten!$X$169:$X$218),"") & " " & IF($A36<=Daten!$B$8,LOOKUP($B36,Daten!$A$169:$A$218,Daten!$Y$169:$Y$218),"") -> 5,4 Inhalt5Einh[5,4] | L40: =IF($A36<=Daten!$B$8,LOOKUP($B36,Daten!$A$220:$A$269,Daten!$X$220:$X$269),"") & " " & IF($A36<=Daten!$B$8,LOOKUP($B36,Daten!$A$220:$A$269,Daten!$Y$220:$Y$269),"") -> 5,5 Inhalt5Einh[5,5] | N40: =IF($A36<=Daten!$B$8,LOOKUP($B36,Daten!$A$271:$A$320,Daten!$X$271:$X$320),"") & " " & IF($A36<=Daten!$B$8,LOOKUP($B36,Daten!$A$271:$A$320,Daten!$Y$271:$Y$320),"") -> 5,6 Inhalt5Einh[5,6] | P40: =IF($A36<=Daten!$B$8,LOOKUP($B36,Daten!$A$322:$A$371,Daten!$X$322:$X$371),"") & " " & IF($A36<=Daten!$B$8,LOOKUP($B36,Daten!$A$322:$A$371,Daten!$Y$322:$Y$371),"") -> 5,7 Inhalt5Einh[5,7]
D41: =IF($A36<=Daten!$B$8,LOOKUP($B36,Daten!$A$16:$A$65,Daten!$Z$16:$Z$65),"") & " " & IF($A36<=Daten!$B$8,LOOKUP($B36,Daten!$A$16:$A$65,Daten!$AA$16:$AA$65),"") -> 5,1 Inhalt6Einh[5,1] | F41: =IF($A36<=Daten!$B$8,LOOKUP($B36,Daten!$A$67:$A$116,Daten!$Z$67:$Z$116),"") & " " & IF($A36<=Daten!$B$8,LOOKUP($B36,Daten!$A$67:$A$116,Daten!$AA$67:$AA$116),"") -> 5,2 Inhalt6Einh[5,2] | H41: =IF($A36<=Daten!$B$8,LOOKUP($B36,Daten!$A$118:$A$167,Daten!$Z$118:$Z$167),"") & " " & IF($A36<=Daten!$B$8,LOOKUP($B36,Daten!$A$118:$A$167,Daten!$AA$118:$AA$167),"") -> 5,3 Inhalt6Einh[5,3] | J41: =IF($A36<=Daten!$B$8,LOOKUP($B36,Daten!$A$169:$A$218,Daten!$Z$169:$Z$218),"") & " " & IF($A36<=Daten!$B$8,LOOKUP($B36,Daten!$A$169:$A$218,Daten!$AA$169:$AA$218),"") -> 5,4 Inhalt6Einh[5,4] | L41: =IF($A36<=Daten!$B$8,LOOKUP($B36,Daten!$A$220:$A$269,Daten!$Z$220:$Z$269),"") & " " & IF($A36<=Daten!$B$8,LOOKUP($B36,Daten!$A$220:$A$269,Daten!$AA$220:$AA$269),"") -> 5,5 Inhalt6Einh[5,5] | N41: =IF($A36<=Daten!$B$8,LOOKUP($B36,Daten!$A$271:$A$320,Daten!$Z$271:$Z$320),"") & " " & IF($A36<=Daten!$B$8,LOOKUP($B36,Daten!$A$271:$A$320,Daten!$AA$271:$AA$320),"") -> 5,6 Inhalt6Einh[5,6] | P41: =IF($A36<=Daten!$B$8,LOOKUP($B36,Daten!$A$322:$A$371,Daten!$Z$322:$Z$371),"") & " " & IF($A36<=Daten!$B$8,LOOKUP($B36,Daten!$A$322:$A$371,Daten!$AA$322:$AA$371),"") -> 5,7 Inhalt6Einh[5,7]
B42: =IF(A36<=Daten!$B$8,"Zusatzstoffe","") -> Zusatzstoffe | C42: =IF($A36<=Daten!$B$8,LOOKUP($B36,Daten!$A$16:$A$65,Daten!$L$16:$L$65),"") -> 5.1 | D42: =IF($A36<=Daten!$B$8,LOOKUP($B36,Daten!$A$16:$A$65,Daten!$E$16:$E$65),"") -> 0 | E42: =IF($A36<=Daten!$B$8,LOOKUP($B36,Daten!$A$67:$A$116,Daten!$L$67:$L$116),"") -> 5.2 | F42: =IF($A36<=Daten!$B$8,LOOKUP($B36,Daten!$A$16:$A$65,Daten!$E$67:$E$116),"") -> 0 | G42: =IF($A36<=Daten!$B$8,LOOKUP($B36,Daten!$A$118:$A$167,Daten!$L$118:$L$167),"") -> 5.3 | H42: =IF($A36<=Daten!$B$8,LOOKUP($B36,Daten!$A$118:$A$167,Daten!$E$118:$E$167),"") -> 0 | I42: =IF($A36<=Daten!$B$8,LOOKUP($B36,Daten!$A$169:$A$218,Daten!$L$169:$L$218),"") -> 5.4 | J42: =IF($A36<=Daten!$B$8,LOOKUP($B36,Daten!$A$169:$A$218,Daten!$E$169:$E$218),"") -> 0 | K42: =IF($A36<=Daten!$B$8,LOOKUP($B36,Daten!$A$220:$A$269,Daten!$L$220:$L$269),"") -> 5.5 | L42: =IF($A36<=Daten!$B$8,LOOKUP($B36,Daten!$A$220:$A$269,Daten!$E$220:$E$269),"") -> 0 | M42: =IF($A36<=Daten!$B$8,LOOKUP($B36,Daten!$A$271:$A$320,Daten!$L$271:$L$320),"") -> 5.6 | N42: =IF($A36<=Daten!$B$8,LOOKUP($B36,Daten!$A$271:$A$320,Daten!$E$271:$E$320),"") -> 0 | O42: =IF($A36<=Daten!$B$8,LOOKUP($B36,Daten!$A$322:$A$371,Daten!$L$322:$L$371),"") -> 5.7 | P42: =IF($A36<=Daten!$B$8,LOOKUP($B36,Daten!$A$322:$A$371,Daten!$E$322:$E$371),"") -> 0
A43: 6 | B43: =IF(A43<=Daten!$B$8,Daten!G9,"") -> Menülinie 6 | C43: =IF(A43<=Daten!$B$8,LOOKUP(B43,Daten!$A$16:$A$65,Daten!$C$16:$C$65),"") -> Lang[6,1] | D43: =IF($A43<=Daten!$B$8,LOOKUP($B43,Daten!$A$16:$A$65,Daten!$P$16:$P$65),"") & " " & IF($A43<=Daten!$B$8,LOOKUP($B43,Daten!$A$16:$A$65,Daten!$Q$16:$Q$65),"") -> 6,1 Inhalt1Einh[6,1] | E43: =IF($A43<=Daten!$B$8,LOOKUP($B43,Daten!$A$67:$A$116,Daten!$C$67:$C$116),"") -> Lang[6,2] | F43: =IF($A43<=Daten!$B$8,LOOKUP($B43,Daten!$A$67:$A$116,Daten!$P$67:$P$116),"") & " " & IF($A43<=Daten!$B$8,LOOKUP($B43,Daten!$A$67:$A$116,Daten!$Q$67:$Q$116),"") -> 6,2 Inhalt1Einh[6,2] | G43: =IF($A43<=Daten!$B$8,LOOKUP($B43,Daten!$A$118:$A$167,Daten!$C$118:$C$167),"") -> Lang[6,3] | H43: =IF($A43<=Daten!$B$8,LOOKUP($B43,Daten!$A$118:$A$167,Daten!$P$118:$P$167),"") & " " & IF($A43<=Daten!$B$8,LOOKUP($B43,Daten!$A$118:$A$167,Daten!$Q$118:$Q$167),"") -> 6,3 Inhalt1Einh[6,3] | I43: =IF($A43<=Daten!$B$8,LOOKUP($B43,Daten!$A$169:$A$218,Daten!$C$169:$C$218),"") -> Lang[6,4] | J43: =IF($A43<=Daten!$B$8,LOOKUP($B43,Daten!$A$169:$A$218,Daten!$P$169:$P$218),"") & " " & IF($A43<=Daten!$B$8,LOOKUP($B43,Daten!$A$169:$A$218,Daten!$Q$169:$Q$218),"") -> 6,4 Inhalt1Einh[6,4] | K43: =IF($A43<=Daten!$B$8,LOOKUP($B43,Daten!$A$220:$A$269,Daten!$C$220:$C$269),"") -> Lang[6,5] | L43: =IF($A43<=Daten!$B$8,LOOKUP($B43,Daten!$A$220:$A$269,Daten!$P$220:$P$269),"") & " " & IF($A43<=Daten!$B$8,LOOKUP($B43,Daten!$A$220:$A$269,Daten!$Q$220:$Q$269),"") -> 6,5 Inhalt1Einh[6,5] | M43: =IF($A43<=Daten!$B$8,LOOKUP($B43,Daten!$A$271:$A$320,Daten!$C$271:$C$320),"") -> Lang[6,6] | N43: =IF($A43<=Daten!$B$8,LOOKUP($B43,Daten!$A$271:$A$320,Daten!$P$271:$P$320),"") & " " & IF($A43<=Daten!$B$8,LOOKUP($B43,Daten!$A$271:$A$320,Daten!$Q$271:$Q$320),"") -> 6,6 Inhalt1Einh[6,6] | O43: =IF($A43<=Daten!$B$8,LOOKUP($B43,Daten!$A$322:$A$371,Daten!$B$322:$C$371),"") ->  | P43: =IF($A43<=Daten!$B$8,LOOKUP($B43,Daten!$A$322:$A$371,Daten!$P$322:$P$371),"") & " " & IF($A43<=Daten!$B$8,LOOKUP($B43,Daten!$A$322:$A$371,Daten!$Q$322:$Q$371),"") -> 6,7 Inhalt1Einh[6,7]
D44: =IF($A43<=Daten!$B$8,LOOKUP($B43,Daten!$A$16:$A$65,Daten!$R$16:$R$65),"") & " " & IF($A43<=Daten!$B$8,LOOKUP($B43,Daten!$A$16:$A$65,Daten!$S$16:$S$65),"") -> 6,1 Inhalt2Einh[6,1] | F44: =IF($A43<=Daten!$B$8,LOOKUP($B43,Daten!$A$67:$A$116,Daten!$R$67:$R$116),"") & " " & IF($A43<=Daten!$B$8,LOOKUP($B43,Daten!$A$67:$A$116,Daten!$S$67:$S$116),"") -> 6,2 Inhalt2Einh[6,2] | H44: =IF($A43<=Daten!$B$8,LOOKUP($B43,Daten!$A$118:$A$167,Daten!$R$118:$R$167),"") & " " & IF($A43<=Daten!$B$8,LOOKUP($B43,Daten!$A$118:$A$167,Daten!$S$118:$S$167),"") -> 6,3 Inhalt2Einh[6,3] | J44: =IF($A43<=Daten!$B$8,LOOKUP($B43,Daten!$A$169:$A$218,Daten!$R$169:$R$218),"") & " " & IF($A43<=Daten!$B$8,LOOKUP($B43,Daten!$A$169:$A$218,Daten!$S$169:$S$218),"") -> 6,4 Inhalt2Einh[6,4] | L44: =IF($A43<=Daten!$B$8,LOOKUP($B43,Daten!$A$220:$A$269,Daten!$R$220:$R$269),"") & " " & IF($A43<=Daten!$B$8,LOOKUP($B43,Daten!$A$220:$A$269,Daten!$S$220:$S$269),"") -> 6,5 Inhalt2Einh[6,5] | N44: =IF($A43<=Daten!$B$8,LOOKUP($B43,Daten!$A$271:$A$320,Daten!$R$271:$R$320),"") & " " & IF($A43<=Daten!$B$8,LOOKUP($B43,Daten!$A$271:$A$320,Daten!$S$271:$S$320),"") -> 6,6 Inhalt2Einh[6,6] | P44: =IF($A43<=Daten!$B$8,LOOKUP($B43,Daten!$A$322:$A$371,Daten!$R$322:$R$371),"") & " " & IF($A43<=Daten!$B$8,LOOKUP($B43,Daten!$A$322:$A$371,Daten!$S$322:$S$371),"") -> 6,7 Inhalt2Einh[6,7]
D45: =IF($A43<=Daten!$B$8,LOOKUP($B43,Daten!$A$16:$A$65,Daten!$T$16:$T$65),"") & " " & IF($A43<=Daten!$B$8,LOOKUP($B43,Daten!$A$16:$A$65,Daten!$U$16:$U$65),"") -> 6,1 Inhalt3Einh[6,1] | F45: =IF($A43<=Daten!$B$8,LOOKUP($B43,Daten!$A$67:$A$116,Daten!$T$67:$T$116),"") & " " & IF($A43<=Daten!$B$8,LOOKUP($B43,Daten!$A$67:$A$116,Daten!$U$67:$U$116),"") -> 6,2 Inhalt3Einh[6,2] | H45: =IF($A43<=Daten!$B$8,LOOKUP($B43,Daten!$A$118:$A$167,Daten!$T$118:$T$167),"") & " " & IF($A43<=Daten!$B$8,LOOKUP($B43,Daten!$A$118:$A$167,Daten!$U$118:$U$167),"") -> 6,3 Inhalt3Einh[6,3] | J45: =IF($A43<=Daten!$B$8,LOOKUP($B43,Daten!$A$169:$A$218,Daten!$T$169:$T$218),"") & " " & IF($A43<=Daten!$B$8,LOOKUP($B43,Daten!$A$169:$A$218,Daten!$U$169:$U$218),"") -> 6,4 Inhalt3Einh[6,4] | L45: =IF($A43<=Daten!$B$8,LOOKUP($B43,Daten!$A$220:$A$269,Daten!$T$220:$T$269),"") & " " & IF($A43<=Daten!$B$8,LOOKUP($B43,Daten!$A$220:$A$269,Daten!$U$220:$U$269),"") -> 6,5 Inhalt3Einh[6,5] | N45: =IF($A43<=Daten!$B$8,LOOKUP($B43,Daten!$A$271:$A$320,Daten!$T$271:$T$320),"") & " " & IF($A43<=Daten!$B$8,LOOKUP($B43,Daten!$A$271:$A$320,Daten!$U$271:$U$320),"") -> 6,6 Inhalt3Einh[6,6] | P45: =IF($A43<=Daten!$B$8,LOOKUP($B43,Daten!$A$322:$A$371,Daten!$T$322:$T$371),"") & " " & IF($A43<=Daten!$B$8,LOOKUP($B43,Daten!$A$322:$A$371,Daten!$U$322:$U$371),"") -> 6,7 Inhalt3Einh[6,7]
D46: =IF($A43<=Daten!$B$8,LOOKUP($B43,Daten!$A$16:$A$65,Daten!$V$16:$V$65),"") & " " & IF($A43<=Daten!$B$8,LOOKUP($B43,Daten!$A$16:$A$65,Daten!$W$16:$W$65),"") -> 6,1 Inhalt4Einh[6,1] | F46: =IF($A43<=Daten!$B$8,LOOKUP($B43,Daten!$A$67:$A$116,Daten!$V$67:$V$116),"") & " " & IF($A43<=Daten!$B$8,LOOKUP($B43,Daten!$A$67:$A$116,Daten!$W$67:$W$116),"") -> 6,2 Inhalt4Einh[6,2] | H46: =IF($A43<=Daten!$B$8,LOOKUP($B43,Daten!$A$118:$A$167,Daten!$V$118:$V$167),"") & " " & IF($A43<=Daten!$B$8,LOOKUP($B43,Daten!$A$118:$A$167,Daten!$W$118:$W$167),"") -> 6,3 Inhalt4Einh[6,3] | J46: =IF($A43<=Daten!$B$8,LOOKUP($B43,Daten!$A$169:$A$218,Daten!$V$169:$V$218),"") & " " & IF($A43<=Daten!$B$8,LOOKUP($B43,Daten!$A$169:$A$218,Daten!$W$169:$W$218),"") -> 6,4 Inhalt4Einh[6,4] | L46: =IF($A43<=Daten!$B$8,LOOKUP($B43,Daten!$A$220:$A$269,Daten!$V$220:$V$269),"") & " " & IF($A43<=Daten!$B$8,LOOKUP($B43,Daten!$A$220:$A$269,Daten!$W$220:$W$269),"") -> 6,5 Inhalt4Einh[6,5] | N46: =IF($A43<=Daten!$B$8,LOOKUP($B43,Daten!$A$271:$A$320,Daten!$V$271:$V$320),"") & " " & IF($A43<=Daten!$B$8,LOOKUP($B43,Daten!$A$271:$A$320,Daten!$W$271:$W$320),"") -> 6,6 Inhalt4Einh[6,6] | P46: =IF($A43<=Daten!$B$8,LOOKUP($B43,Daten!$A$322:$A$371,Daten!$V$322:$V$371),"") & " " & IF($A43<=Daten!$B$8,LOOKUP($B43,Daten!$A$322:$A$371,Daten!$W$322:$W$371),"") -> 6,7 Inhalt4Einh[6,7]
D47: =IF($A43<=Daten!$B$8,LOOKUP($B43,Daten!$A$16:$A$65,Daten!$X$16:$X$65),"") & " " & IF($A43<=Daten!$B$8,LOOKUP($B43,Daten!$A$16:$A$65,Daten!$Y$16:$Y$65),"") -> 6,1 Inhalt5Einh[6,1] | F47: =IF($A43<=Daten!$B$8,LOOKUP($B43,Daten!$A$67:$A$116,Daten!$X$67:$X$116),"") & " " & IF($A43<=Daten!$B$8,LOOKUP($B43,Daten!$A$67:$A$116,Daten!$Y$67:$Y$116),"") -> 6,2 Inhalt5Einh[6,2] | H47: =IF($A43<=Daten!$B$8,LOOKUP($B43,Daten!$A$118:$A$167,Daten!$X$118:$X$167),"") & " " & IF($A43<=Daten!$B$8,LOOKUP($B43,Daten!$A$118:$A$167,Daten!$Y$118:$Y$167),"") -> 6,3 Inhalt5Einh[6,3] | J47: =IF($A43<=Daten!$B$8,LOOKUP($B43,Daten!$A$169:$A$218,Daten!$X$169:$X$218),"") & " " & IF($A43<=Daten!$B$8,LOOKUP($B43,Daten!$A$169:$A$218,Daten!$Y$169:$Y$218),"") -> 6,4 Inhalt5Einh[6,4] | L47: =IF($A43<=Daten!$B$8,LOOKUP($B43,Daten!$A$220:$A$269,Daten!$X$220:$X$269),"") & " " & IF($A43<=Daten!$B$8,LOOKUP($B43,Daten!$A$220:$A$269,Daten!$Y$220:$Y$269),"") -> 6,5 Inhalt5Einh[6,5] | N47: =IF($A43<=Daten!$B$8,LOOKUP($B43,Daten!$A$271:$A$320,Daten!$X$271:$X$320),"") & " " & IF($A43<=Daten!$B$8,LOOKUP($B43,Daten!$A$271:$A$320,Daten!$Y$271:$Y$320),"") -> 6,6 Inhalt5Einh[6,6] | P47: =IF($A43<=Daten!$B$8,LOOKUP($B43,Daten!$A$322:$A$371,Daten!$X$322:$X$371),"") & " " & IF($A43<=Daten!$B$8,LOOKUP($B43,Daten!$A$322:$A$371,Daten!$Y$322:$Y$371),"") -> 6,7 Inhalt5Einh[6,7]
D48: =IF($A43<=Daten!$B$8,LOOKUP($B43,Daten!$A$16:$A$65,Daten!$Z$16:$Z$65),"") & " " & IF($A43<=Daten!$B$8,LOOKUP($B43,Daten!$A$16:$A$65,Daten!$AA$16:$AA$65),"") -> 6,1 Inhalt6Einh[6,1] | F48: =IF($A43<=Daten!$B$8,LOOKUP($B43,Daten!$A$67:$A$116,Daten!$Z$67:$Z$116),"") & " " & IF($A43<=Daten!$B$8,LOOKUP($B43,Daten!$A$67:$A$116,Daten!$AA$67:$AA$116),"") -> 6,2 Inhalt6Einh[6,2] | H48: =IF($A43<=Daten!$B$8,LOOKUP($B43,Daten!$A$118:$A$167,Daten!$Z$118:$Z$167),"") & " " & IF($A43<=Daten!$B$8,LOOKUP($B43,Daten!$A$118:$A$167,Daten!$AA$118:$AA$167),"") -> 6,3 Inhalt6Einh[6,3] | J48: =IF($A43<=Daten!$B$8,LOOKUP($B43,Daten!$A$169:$A$218,Daten!$Z$169:$Z$218),"") & " " & IF($A43<=Daten!$B$8,LOOKUP($B43,Daten!$A$169:$A$218,Daten!$AA$169:$AA$218),"") -> 6,4 Inhalt6Einh[6,4] | L48: =IF($A43<=Daten!$B$8,LOOKUP($B43,Daten!$A$220:$A$269,Daten!$Z$220:$Z$269),"") & " " & IF($A43<=Daten!$B$8,LOOKUP($B43,Daten!$A$220:$A$269,Daten!$AA$220:$AA$269),"") -> 6,5 Inhalt6Einh[6,5] | N48: =IF($A43<=Daten!$B$8,LOOKUP($B43,Daten!$A$271:$A$320,Daten!$Z$271:$Z$320),"") & " " & IF($A43<=Daten!$B$8,LOOKUP($B43,Daten!$A$271:$A$320,Daten!$AA$271:$AA$320),"") -> 6,6 Inhalt6Einh[6,6] | P48: =IF($A43<=Daten!$B$8,LOOKUP($B43,Daten!$A$322:$A$371,Daten!$Z$322:$Z$371),"") & " " & IF($A43<=Daten!$B$8,LOOKUP($B43,Daten!$A$322:$A$371,Daten!$AA$322:$AA$371),"") -> 6,7 Inhalt6Einh[6,7]
B49: =IF(A43<=Daten!$B$8,"Zusatzstoffe","") -> Zusatzstoffe | C49: =IF($A43<=Daten!$B$8,LOOKUP($B43,Daten!$A$16:$A$65,Daten!$L$16:$L$65),"") -> 6.1 | D49: =IF($A43<=Daten!$B$8,LOOKUP($B43,Daten!$A$16:$A$65,Daten!$E$16:$E$65),"") -> 0 | E49: =IF($A43<=Daten!$B$8,LOOKUP($B43,Daten!$A$67:$A$116,Daten!$L$67:$L$116),"") -> 6.2 | F49: =IF($A43<=Daten!$B$8,LOOKUP($B43,Daten!$A$16:$A$65,Daten!$E$67:$E$116),"") -> 0 | G49: =IF($A43<=Daten!$B$8,LOOKUP($B43,Daten!$A$118:$A$167,Daten!$L$118:$L$167),"") -> 6.3 | H49: =IF($A43<=Daten!$B$8,LOOKUP($B43,Daten!$A$118:$A$167,Daten!$E$118:$E$167),"") -> 0 | I49: =IF($A43<=Daten!$B$8,LOOKUP($B43,Daten!$A$169:$A$218,Daten!$L$169:$L$218),"") -> 6.4 | J49: =IF($A43<=Daten!$B$8,LOOKUP($B43,Daten!$A$169:$A$218,Daten!$E$169:$E$218),"") -> 0 | K49: =IF($A43<=Daten!$B$8,LOOKUP($B43,Daten!$A$220:$A$269,Daten!$L$220:$L$269),"") -> 6.5 | L49: =IF($A43<=Daten!$B$8,LOOKUP($B43,Daten!$A$220:$A$269,Daten!$E$220:$E$269),"") -> 0 | M49: =IF($A43<=Daten!$B$8,LOOKUP($B43,Daten!$A$271:$A$320,Daten!$L$271:$L$320),"") -> 6.6 | N49: =IF($A43<=Daten!$B$8,LOOKUP($B43,Daten!$A$271:$A$320,Daten!$E$271:$E$320),"") -> 0 | O49: =IF($A43<=Daten!$B$8,LOOKUP($B43,Daten!$A$322:$A$371,Daten!$L$322:$L$371),"") -> 6.7 | P49: =IF($A43<=Daten!$B$8,LOOKUP($B43,Daten!$A$322:$A$371,Daten!$E$322:$E$371),"") -> 0
A50: 7 | B50: =IF(A50<=Daten!$B$8,Daten!H9,"") -> Menülinie 7 | C50: =IF(A50<=Daten!$B$8,LOOKUP(B50,Daten!$A$16:$A$65,Daten!$C$16:$C$65),"") -> Lang[7,1] | D50: =IF($A50<=Daten!$B$8,LOOKUP($B50,Daten!$A$16:$A$65,Daten!$P$16:$P$65),"") & " " & IF($A50<=Daten!$B$8,LOOKUP($B50,Daten!$A$16:$A$65,Daten!$Q$16:$Q$65),"") -> 7,1 Inhalt1Einh[7,1] | E50: =IF($A50<=Daten!$B$8,LOOKUP($B50,Daten!$A$67:$A$116,Daten!$C$67:$C$116),"") -> Lang[7,2] | F50: =IF($A50<=Daten!$B$8,LOOKUP($B50,Daten!$A$67:$A$116,Daten!$P$67:$P$116),"") & " " & IF($A50<=Daten!$B$8,LOOKUP($B50,Daten!$A$67:$A$116,Daten!$Q$67:$Q$116),"") -> 7,2 Inhalt1Einh[7,2] | G50: =IF($A50<=Daten!$B$8,LOOKUP($B50,Daten!$A$118:$A$167,Daten!$C$118:$C$167),"") -> Lang[7,3] | H50: =IF($A50<=Daten!$B$8,LOOKUP($B50,Daten!$A$118:$A$167,Daten!$P$118:$P$167),"") & " " & IF($A50<=Daten!$B$8,LOOKUP($B50,Daten!$A$118:$A$167,Daten!$Q$118:$Q$167),"") -> 7,3 Inhalt1Einh[7,3] | I50: =IF($A50<=Daten!$B$8,LOOKUP($B50,Daten!$A$169:$A$218,Daten!$C$169:$C$218),"") -> Lang[7,4] | J50: =IF($A50<=Daten!$B$8,LOOKUP($B50,Daten!$A$169:$A$218,Daten!$P$169:$P$218),"") & " " & IF($A50<=Daten!$B$8,LOOKUP($B50,Daten!$A$169:$A$218,Daten!$Q$169:$Q$218),"") -> 7,4 Inhalt1Einh[7,4] | K50: =IF($A50<=Daten!$B$8,LOOKUP($B50,Daten!$A$220:$A$269,Daten!$C$220:$C$269),"") -> Lang[7,5] | L50: =IF($A50<=Daten!$B$8,LOOKUP($B50,Daten!$A$220:$A$269,Daten!$P$220:$P$269),"") & " " & IF($A50<=Daten!$B$8,LOOKUP($B50,Daten!$A$220:$A$269,Daten!$Q$220:$Q$269),"") -> 7,5 Inhalt1Einh[7,5] | M50: =IF($A50<=Daten!$B$8,LOOKUP($B50,Daten!$A$271:$A$320,Daten!$C$271:$C$320),"") -> Lang[7,6] | N50: =IF($A50<=Daten!$B$8,LOOKUP($B50,Daten!$A$271:$A$320,Daten!$P$271:$P$320),"") & " " & IF($A50<=Daten!$B$8,LOOKUP($B50,Daten!$A$271:$A$320,Daten!$Q$271:$Q$320),"") -> 7,6 Inhalt1Einh[7,6] | O50: =IF($A50<=Daten!$B$8,LOOKUP($B50,Daten!$A$322:$A$371,Daten!$B$322:$C$371),"") ->  | P50: =IF($A50<=Daten!$B$8,LOOKUP($B50,Daten!$A$322:$A$371,Daten!$P$322:$P$371),"") & " " & IF($A50<=Daten!$B$8,LOOKUP($B50,Daten!$A$322:$A$371,Daten!$Q$322:$Q$371),"") -> 7,7 Inhalt1Einh[7,7]
D51: =IF($A50<=Daten!$B$8,LOOKUP($B50,Daten!$A$16:$A$65,Daten!$R$16:$R$65),"") & " " & IF($A50<=Daten!$B$8,LOOKUP($B50,Daten!$A$16:$A$65,Daten!$S$16:$S$65),"") -> 7,1 Inhalt2Einh[7,1] | F51: =IF($A50<=Daten!$B$8,LOOKUP($B50,Daten!$A$67:$A$116,Daten!$R$67:$R$116),"") & " " & IF($A50<=Daten!$B$8,LOOKUP($B50,Daten!$A$67:$A$116,Daten!$S$67:$S$116),"") -> 7,2 Inhalt2Einh[7,2] | H51: =IF($A50<=Daten!$B$8,LOOKUP($B50,Daten!$A$118:$A$167,Daten!$R$118:$R$167),"") & " " & IF($A50<=Daten!$B$8,LOOKUP($B50,Daten!$A$118:$A$167,Daten!$S$118:$S$167),"") -> 7,3 Inhalt2Einh[7,3] | J51: =IF($A50<=Daten!$B$8,LOOKUP($B50,Daten!$A$169:$A$218,Daten!$R$169:$R$218),"") & " " & IF($A50<=Daten!$B$8,LOOKUP($B50,Daten!$A$169:$A$218,Daten!$S$169:$S$218),"") -> 7,4 Inhalt2Einh[7,4] | L51: =IF($A50<=Daten!$B$8,LOOKUP($B50,Daten!$A$220:$A$269,Daten!$R$220:$R$269),"") & " " & IF($A50<=Daten!$B$8,LOOKUP($B50,Daten!$A$220:$A$269,Daten!$S$220:$S$269),"") -> 7,5 Inhalt2Einh[7,5] | N51: =IF($A50<=Daten!$B$8,LOOKUP($B50,Daten!$A$271:$A$320,Daten!$R$271:$R$320),"") & " " & IF($A50<=Daten!$B$8,LOOKUP($B50,Daten!$A$271:$A$320,Daten!$S$271:$S$320),"") -> 7,6 Inhalt2Einh[7,6] | P51: =IF($A50<=Daten!$B$8,LOOKUP($B50,Daten!$A$322:$A$371,Daten!$R$322:$R$371),"") & " " & IF($A50<=Daten!$B$8,LOOKUP($B50,Daten!$A$322:$A$371,Daten!$S$322:$S$371),"") -> 7,7 Inhalt2Einh[7,7]
D52: =IF($A50<=Daten!$B$8,LOOKUP($B50,Daten!$A$16:$A$65,Daten!$T$16:$T$65),"") & " " & IF($A50<=Daten!$B$8,LOOKUP($B50,Daten!$A$16:$A$65,Daten!$U$16:$U$65),"") -> 7,1 Inhalt3Einh[7,1] | F52: =IF($A50<=Daten!$B$8,LOOKUP($B50,Daten!$A$67:$A$116,Daten!$T$67:$T$116),"") & " " & IF($A50<=Daten!$B$8,LOOKUP($B50,Daten!$A$67:$A$116,Daten!$U$67:$U$116),"") -> 7,2 Inhalt3Einh[7,2] | H52: =IF($A50<=Daten!$B$8,LOOKUP($B50,Daten!$A$118:$A$167,Daten!$T$118:$T$167),"") & " " & IF($A50<=Daten!$B$8,LOOKUP($B50,Daten!$A$118:$A$167,Daten!$U$118:$U$167),"") -> 7,3 Inhalt3Einh[7,3] | J52: =IF($A50<=Daten!$B$8,LOOKUP($B50,Daten!$A$169:$A$218,Daten!$T$169:$T$218),"") & " " & IF($A50<=Daten!$B$8,LOOKUP($B50,Daten!$A$169:$A$218,Daten!$U$169:$U$218),"") -> 7,4 Inhalt3Einh[7,4] | L52: =IF($A50<=Daten!$B$8,LOOKUP($B50,Daten!$A$220:$A$269,Daten!$T$220:$T$269),"") & " " & IF($A50<=Daten!$B$8,LOOKUP($B50,Daten!$A$220:$A$269,Daten!$U$220:$U$269),"") -> 7,5 Inhalt3Einh[7,5] | N52: =IF($A50<=Daten!$B$8,LOOKUP($B50,Daten!$A$271:$A$320,Daten!$T$271:$T$320),"") & " " & IF($A50<=Daten!$B$8,LOOKUP($B50,Daten!$A$271:$A$320,Daten!$U$271:$U$320),"") -> 7,6 Inhalt3Einh[7,6] | P52: =IF($A50<=Daten!$B$8,LOOKUP($B50,Daten!$A$322:$A$371,Daten!$T$322:$T$371),"") & " " & IF($A50<=Daten!$B$8,LOOKUP($B50,Daten!$A$322:$A$371,Daten!$U$322:$U$371),"") -> 7,7 Inhalt3Einh[7,7]
D53: =IF($A50<=Daten!$B$8,LOOKUP($B50,Daten!$A$16:$A$65,Daten!$V$16:$V$65),"") & " " & IF($A50<=Daten!$B$8,LOOKUP($B50,Daten!$A$16:$A$65,Daten!$W$16:$W$65),"") -> 7,1 Inhalt4Einh[7,1] | F53: =IF($A50<=Daten!$B$8,LOOKUP($B50,Daten!$A$67:$A$116,Daten!$V$67:$V$116),"") & " " & IF($A50<=Daten!$B$8,LOOKUP($B50,Daten!$A$67:$A$116,Daten!$W$67:$W$116),"") -> 7,2 Inhalt4Einh[7,2] | H53: =IF($A50<=Daten!$B$8,LOOKUP($B50,Daten!$A$118:$A$167,Daten!$V$118:$V$167),"") & " " & IF($A50<=Daten!$B$8,LOOKUP($B50,Daten!$A$118:$A$167,Daten!$W$118:$W$167),"") -> 7,3 Inhalt4Einh[7,3] | J53: =IF($A50<=Daten!$B$8,LOOKUP($B50,Daten!$A$169:$A$218,Daten!$V$169:$V$218),"") & " " & IF($A50<=Daten!$B$8,LOOKUP($B50,Daten!$A$169:$A$218,Daten!$W$169:$W$218),"") -> 7,4 Inhalt4Einh[7,4] | L53: =IF($A50<=Daten!$B$8,LOOKUP($B50,Daten!$A$220:$A$269,Daten!$V$220:$V$269),"") & " " & IF($A50<=Daten!$B$8,LOOKUP($B50,Daten!$A$220:$A$269,Daten!$W$220:$W$269),"") -> 7,5 Inhalt4Einh[7,5] | N53: =IF($A50<=Daten!$B$8,LOOKUP($B50,Daten!$A$271:$A$320,Daten!$V$271:$V$320),"") & " " & IF($A50<=Daten!$B$8,LOOKUP($B50,Daten!$A$271:$A$320,Daten!$W$271:$W$320),"") -> 7,6 Inhalt4Einh[7,6] | P53: =IF($A50<=Daten!$B$8,LOOKUP($B50,Daten!$A$322:$A$371,Daten!$V$322:$V$371),"") & " " & IF($A50<=Daten!$B$8,LOOKUP($B50,Daten!$A$322:$A$371,Daten!$W$322:$W$371),"") -> 7,7 Inhalt4Einh[7,7]
D54: =IF($A50<=Daten!$B$8,LOOKUP($B50,Daten!$A$16:$A$65,Daten!$X$16:$X$65),"") & " " & IF($A50<=Daten!$B$8,LOOKUP($B50,Daten!$A$16:$A$65,Daten!$Y$16:$Y$65),"") -> 7,1 Inhalt5Einh[7,1] | F54: =IF($A50<=Daten!$B$8,LOOKUP($B50,Daten!$A$67:$A$116,Daten!$X$67:$X$116),"") & " " & IF($A50<=Daten!$B$8,LOOKUP($B50,Daten!$A$67:$A$116,Daten!$Y$67:$Y$116),"") -> 7,2 Inhalt5Einh[7,2] | H54: =IF($A50<=Daten!$B$8,LOOKUP($B50,Daten!$A$118:$A$167,Daten!$X$118:$X$167),"") & " " & IF($A50<=Daten!$B$8,LOOKUP($B50,Daten!$A$118:$A$167,Daten!$Y$118:$Y$167),"") -> 7,3 Inhalt5Einh[7,3] | J54: =IF($A50<=Daten!$B$8,LOOKUP($B50,Daten!$A$169:$A$218,Daten!$X$169:$X$218),"") & " " & IF($A50<=Daten!$B$8,LOOKUP($B50,Daten!$A$169:$A$218,Daten!$Y$169:$Y$218),"") -> 7,4 Inhalt5Einh[7,4] | L54: =IF($A50<=Daten!$B$8,LOOKUP($B50,Daten!$A$220:$A$269,Daten!$X$220:$X$269),"") & " " & IF($A50<=Daten!$B$8,LOOKUP($B50,Daten!$A$220:$A$269,Daten!$Y$220:$Y$269),"") -> 7,5 Inhalt5Einh[7,5] | N54: =IF($A50<=Daten!$B$8,LOOKUP($B50,Daten!$A$271:$A$320,Daten!$X$271:$X$320),"") & " " & IF($A50<=Daten!$B$8,LOOKUP($B50,Daten!$A$271:$A$320,Daten!$Y$271:$Y$320),"") -> 7,6 Inhalt5Einh[7,6] | P54: =IF($A50<=Daten!$B$8,LOOKUP($B50,Daten!$A$322:$A$371,Daten!$X$322:$X$371),"") & " " & IF($A50<=Daten!$B$8,LOOKUP($B50,Daten!$A$322:$A$371,Daten!$Y$322:$Y$371),"") -> 7,7 Inhalt5Einh[7,7]
D55: =IF($A50<=Daten!$B$8,LOOKUP($B50,Daten!$A$16:$A$65,Daten!$Z$16:$Z$65),"") & " " & IF($A50<=Daten!$B$8,LOOKUP($B50,Daten!$A$16:$A$65,Daten!$AA$16:$AA$65),"") -> 7,1 Inhalt6Einh[7,1] | F55: =IF($A50<=Daten!$B$8,LOOKUP($B50,Daten!$A$67:$A$116,Daten!$Z$67:$Z$116),"") & " " & IF($A50<=Daten!$B$8,LOOKUP($B50,Daten!$A$67:$A$116,Daten!$AA$67:$AA$116),"") -> 7,2 Inhalt6Einh[7,2] | H55: =IF($A50<=Daten!$B$8,LOOKUP($B50,Daten!$A$118:$A$167,Daten!$Z$118:$Z$167),"") & " " & IF($A50<=Daten!$B$8,LOOKUP($B50,Daten!$A$118:$A$167,Daten!$AA$118:$AA$167),"") -> 7,3 Inhalt6Einh[7,3] | J55: =IF($A50<=Daten!$B$8,LOOKUP($B50,Daten!$A$169:$A$218,Daten!$Z$169:$Z$218),"") & " " & IF($A50<=Daten!$B$8,LOOKUP($B50,Daten!$A$169:$A$218,Daten!$AA$169:$AA$218),"") -> 7,4 Inhalt6Einh[7,4] | L55: =IF($A50<=Daten!$B$8,LOOKUP($B50,Daten!$A$220:$A$269,Daten!$Z$220:$Z$269),"") & " " & IF($A50<=Daten!$B$8,LOOKUP($B50,Daten!$A$220:$A$269,Daten!$AA$220:$AA$269),"") -> 7,5 Inhalt6Einh[7,5] | N55: =IF($A50<=Daten!$B$8,LOOKUP($B50,Daten!$A$271:$A$320,Daten!$Z$271:$Z$320),"") & " " & IF($A50<=Daten!$B$8,LOOKUP($B50,Daten!$A$271:$A$320,Daten!$AA$271:$AA$320),"") -> 7,6 Inhalt6Einh[7,6] | P55: =IF($A50<=Daten!$B$8,LOOKUP($B50,Daten!$A$322:$A$371,Daten!$Z$322:$Z$371),"") & " " & IF($A50<=Daten!$B$8,LOOKUP($B50,Daten!$A$322:$A$371,Daten!$AA$322:$AA$371),"") -> 7,7 Inhalt6Einh[7,7]
B56: =IF(A50<=Daten!$B$8,"Zusatzstoffe","") -> Zusatzstoffe | C56: =IF($A50<=Daten!$B$8,LOOKUP($B50,Daten!$A$16:$A$65,Daten!$L$16:$L$65),"") -> 7.1 | D56: =IF($A50<=Daten!$B$8,LOOKUP($B50,Daten!$A$16:$A$65,Daten!$E$16:$E$65),"") -> 0 | E56: =IF($A50<=Daten!$B$8,LOOKUP($B50,Daten!$A$67:$A$116,Daten!$L$67:$L$116),"") -> 7.2 | F56: =IF($A50<=Daten!$B$8,LOOKUP($B50,Daten!$A$16:$A$65,Daten!$E$67:$E$116),"") -> 0 | G56: =IF($A50<=Daten!$B$8,LOOKUP($B50,Daten!$A$118:$A$167,Daten!$L$118:$L$167),"") -> 7.3 | H56: =IF($A50<=Daten!$B$8,LOOKUP($B50,Daten!$A$118:$A$167,Daten!$E$118:$E$167),"") -> 0 | I56: =IF($A50<=Daten!$B$8,LOOKUP($B50,Daten!$A$169:$A$218,Daten!$L$169:$L$218),"") -> 7.4 | J56: =IF($A50<=Daten!$B$8,LOOKUP($B50,Daten!$A$169:$A$218,Daten!$E$169:$E$218),"") -> 0 | K56: =IF($A50<=Daten!$B$8,LOOKUP($B50,Daten!$A$220:$A$269,Daten!$L$220:$L$269),"") -> 7.5 | L56: =IF($A50<=Daten!$B$8,LOOKUP($B50,Daten!$A$220:$A$269,Daten!$E$220:$E$269),"") -> 0 | M56: =IF($A50<=Daten!$B$8,LOOKUP($B50,Daten!$A$271:$A$320,Daten!$L$271:$L$320),"") -> 7.6 | N56: =IF($A50<=Daten!$B$8,LOOKUP($B50,Daten!$A$271:$A$320,Daten!$E$271:$E$320),"") -> 0 | O56: =IF($A50<=Daten!$B$8,LOOKUP($B50,Daten!$A$322:$A$371,Daten!$L$322:$L$371),"") -> 7.7 | P56: =IF($A50<=Daten!$B$8,LOOKUP($B50,Daten!$A$322:$A$371,Daten!$E$322:$E$371),"") -> 0
A57: 8 | B57: =IF(A57<=Daten!$B$8,Daten!I9,"") -> Menülinie 8 | C57: =IF(A57<=Daten!$B$8,LOOKUP(B57,Daten!$A$16:$A$65,Daten!$C$16:$C$65),"") -> Lang[8,1] | D57: =IF($A57<=Daten!$B$8,LOOKUP($B57,Daten!$A$16:$A$65,Daten!$P$16:$P$65),"") & " " & IF($A57<=Daten!$B$8,LOOKUP($B57,Daten!$A$16:$A$65,Daten!$Q$16:$Q$65),"") -> 8,1 Inhalt1Einh[8,1] | E57: =IF($A57<=Daten!$B$8,LOOKUP($B57,Daten!$A$57:$A$116,Daten!$C$57:$C$116),"") -> Lang[8,2] | F57: =IF($A57<=Daten!$B$8,LOOKUP($B57,Daten!$A$57:$A$116,Daten!$P$57:$P$116),"") & " " & IF($A57<=Daten!$B$8,LOOKUP($B57,Daten!$A$57:$A$116,Daten!$Q$57:$Q$116),"") -> 8,2 Inhalt1Einh[8,2] | G57: =IF($A57<=Daten!$B$8,LOOKUP($B57,Daten!$A$118:$A$167,Daten!$C$118:$C$167),"") -> Lang[8,3] | H57: =IF($A57<=Daten!$B$8,LOOKUP($B57,Daten!$A$118:$A$167,Daten!$P$118:$P$167),"") & " " & IF($A57<=Daten!$B$8,LOOKUP($B57,Daten!$A$118:$A$167,Daten!$Q$118:$Q$167),"") -> 8,3 Inhalt1Einh[8,3] | I57: =IF($A57<=Daten!$B$8,LOOKUP($B57,Daten!$A$169:$A$218,Daten!$C$169:$C$218),"") -> Lang[8,4] | J57: =IF($A57<=Daten!$B$8,LOOKUP($B57,Daten!$A$169:$A$218,Daten!$P$169:$P$218),"") & " " & IF($A57<=Daten!$B$8,LOOKUP($B57,Daten!$A$169:$A$218,Daten!$Q$169:$Q$218),"") -> 8,4 Inhalt1Einh[8,4] | K57: =IF($A57<=Daten!$B$8,LOOKUP($B57,Daten!$A$220:$A$269,Daten!$C$220:$C$269),"") -> Lang[8,5] | L57: =IF($A57<=Daten!$B$8,LOOKUP($B57,Daten!$A$220:$A$269,Daten!$P$220:$P$269),"") & " " & IF($A57<=Daten!$B$8,LOOKUP($B57,Daten!$A$220:$A$269,Daten!$Q$220:$Q$269),"") -> 8,5 Inhalt1Einh[8,5] | M57: =IF($A57<=Daten!$B$8,LOOKUP($B57,Daten!$A$271:$A$320,Daten!$C$271:$C$320),"") -> Lang[8,6] | N57: =IF($A57<=Daten!$B$8,LOOKUP($B57,Daten!$A$271:$A$320,Daten!$P$271:$P$320),"") & " " & IF($A57<=Daten!$B$8,LOOKUP($B57,Daten!$A$271:$A$320,Daten!$Q$271:$Q$320),"") -> 8,6 Inhalt1Einh[8,6] | O57: =IF($A57<=Daten!$B$8,LOOKUP($B57,Daten!$A$322:$A$371,Daten!$B$322:$C$371),"") ->  | P57: =IF($A57<=Daten!$B$8,LOOKUP($B57,Daten!$A$322:$A$371,Daten!$P$322:$P$371),"") & " " & IF($A57<=Daten!$B$8,LOOKUP($B57,Daten!$A$322:$A$371,Daten!$Q$322:$Q$371),"") -> 8,7 Inhalt1Einh[8,7]
D58: =IF($A57<=Daten!$B$8,LOOKUP($B57,Daten!$A$16:$A$65,Daten!$R$16:$R$65),"") & " " & IF($A57<=Daten!$B$8,LOOKUP($B57,Daten!$A$16:$A$65,Daten!$S$16:$S$65),"") -> 8,1 Inhalt2Einh[8,1] | F58: =IF($A57<=Daten!$B$8,LOOKUP($B57,Daten!$A$57:$A$116,Daten!$R$57:$R$116),"") & " " & IF($A57<=Daten!$B$8,LOOKUP($B57,Daten!$A$57:$A$116,Daten!$S$57:$S$116),"") -> 8,2 Inhalt2Einh[8,2] | H58: =IF($A57<=Daten!$B$8,LOOKUP($B57,Daten!$A$118:$A$167,Daten!$R$118:$R$167),"") & " " & IF($A57<=Daten!$B$8,LOOKUP($B57,Daten!$A$118:$A$167,Daten!$S$118:$S$167),"") -> 8,3 Inhalt2Einh[8,3] | J58: =IF($A57<=Daten!$B$8,LOOKUP($B57,Daten!$A$169:$A$218,Daten!$R$169:$R$218),"") & " " & IF($A57<=Daten!$B$8,LOOKUP($B57,Daten!$A$169:$A$218,Daten!$S$169:$S$218),"") -> 8,4 Inhalt2Einh[8,4] | L58: =IF($A57<=Daten!$B$8,LOOKUP($B57,Daten!$A$220:$A$269,Daten!$R$220:$R$269),"") & " " & IF($A57<=Daten!$B$8,LOOKUP($B57,Daten!$A$220:$A$269,Daten!$S$220:$S$269),"") -> 8,5 Inhalt2Einh[8,5] | N58: =IF($A57<=Daten!$B$8,LOOKUP($B57,Daten!$A$271:$A$320,Daten!$R$271:$R$320),"") & " " & IF($A57<=Daten!$B$8,LOOKUP($B57,Daten!$A$271:$A$320,Daten!$S$271:$S$320),"") -> 8,6 Inhalt2Einh[8,6] | P58: =IF($A57<=Daten!$B$8,LOOKUP($B57,Daten!$A$322:$A$371,Daten!$R$322:$R$371),"") & " " & IF($A57<=Daten!$B$8,LOOKUP($B57,Daten!$A$322:$A$371,Daten!$S$322:$S$371),"") -> 8,7 Inhalt2Einh[8,7]
D59: =IF($A57<=Daten!$B$8,LOOKUP($B57,Daten!$A$16:$A$65,Daten!$T$16:$T$65),"") & " " & IF($A57<=Daten!$B$8,LOOKUP($B57,Daten!$A$16:$A$65,Daten!$U$16:$U$65),"") -> 8,1 Inhalt3Einh[8,1] | F59: =IF($A57<=Daten!$B$8,LOOKUP($B57,Daten!$A$57:$A$116,Daten!$T$57:$T$116),"") & " " & IF($A57<=Daten!$B$8,LOOKUP($B57,Daten!$A$57:$A$116,Daten!$U$57:$U$116),"") -> 8,2 Inhalt3Einh[8,2] | H59: =IF($A57<=Daten!$B$8,LOOKUP($B57,Daten!$A$118:$A$167,Daten!$T$118:$T$167),"") & " " & IF($A57<=Daten!$B$8,LOOKUP($B57,Daten!$A$118:$A$167,Daten!$U$118:$U$167),"") -> 8,3 Inhalt3Einh[8,3] | J59: =IF($A57<=Daten!$B$8,LOOKUP($B57,Daten!$A$169:$A$218,Daten!$T$169:$T$218),"") & " " & IF($A57<=Daten!$B$8,LOOKUP($B57,Daten!$A$169:$A$218,Daten!$U$169:$U$218),"") -> 8,4 Inhalt3Einh[8,4] | L59: =IF($A57<=Daten!$B$8,LOOKUP($B57,Daten!$A$220:$A$269,Daten!$T$220:$T$269),"") & " " & IF($A57<=Daten!$B$8,LOOKUP($B57,Daten!$A$220:$A$269,Daten!$U$220:$U$269),"") -> 8,5 Inhalt3Einh[8,5] | N59: =IF($A57<=Daten!$B$8,LOOKUP($B57,Daten!$A$271:$A$320,Daten!$T$271:$T$320),"") & " " & IF($A57<=Daten!$B$8,LOOKUP($B57,Daten!$A$271:$A$320,Daten!$U$271:$U$320),"") -> 8,6 Inhalt3Einh[8,6] | P59: =IF($A57<=Daten!$B$8,LOOKUP($B57,Daten!$A$322:$A$371,Daten!$T$322:$T$371),"") & " " & IF($A57<=Daten!$B$8,LOOKUP($B57,Daten!$A$322:$A$371,Daten!$U$322:$U$371),"") -> 8,7 Inhalt3Einh[8,7]
D60: =IF($A57<=Daten!$B$8,LOOKUP($B57,Daten!$A$16:$A$65,Daten!$V$16:$V$65),"") & " " & IF($A57<=Daten!$B$8,LOOKUP($B57,Daten!$A$16:$A$65,Daten!$W$16:$W$65),"") -> 8,1 Inhalt4Einh[8,1] | F60: =IF($A57<=Daten!$B$8,LOOKUP($B57,Daten!$A$57:$A$116,Daten!$V$57:$V$116),"") & " " & IF($A57<=Daten!$B$8,LOOKUP($B57,Daten!$A$57:$A$116,Daten!$W$57:$W$116),"") -> 8,2 Inhalt4Einh[8,2] | H60: =IF($A57<=Daten!$B$8,LOOKUP($B57,Daten!$A$118:$A$167,Daten!$V$118:$V$167),"") & " " & IF($A57<=Daten!$B$8,LOOKUP($B57,Daten!$A$118:$A$167,Daten!$W$118:$W$167),"") -> 8,3 Inhalt4Einh[8,3] | J60: =IF($A57<=Daten!$B$8,LOOKUP($B57,Daten!$A$169:$A$218,Daten!$V$169:$V$218),"") & " " & IF($A57<=Daten!$B$8,LOOKUP($B57,Daten!$A$169:$A$218,Daten!$W$169:$W$218),"") -> 8,4 Inhalt4Einh[8,4] | L60: =IF($A57<=Daten!$B$8,LOOKUP($B57,Daten!$A$220:$A$269,Daten!$V$220:$V$269),"") & " " & IF($A57<=Daten!$B$8,LOOKUP($B57,Daten!$A$220:$A$269,Daten!$W$220:$W$269),"") -> 8,5 Inhalt4Einh[8,5] | N60: =IF($A57<=Daten!$B$8,LOOKUP($B57,Daten!$A$271:$A$320,Daten!$V$271:$V$320),"") & " " & IF($A57<=Daten!$B$8,LOOKUP($B57,Daten!$A$271:$A$320,Daten!$W$271:$W$320),"") -> 8,6 Inhalt4Einh[8,6] | P60: =IF($A57<=Daten!$B$8,LOOKUP($B57,Daten!$A$322:$A$371,Daten!$V$322:$V$371),"") & " " & IF($A57<=Daten!$B$8,LOOKUP($B57,Daten!$A$322:$A$371,Daten!$W$322:$W$371),"") -> 8,7 Inhalt4Einh[8,7]
D61: =IF($A57<=Daten!$B$8,LOOKUP($B57,Daten!$A$16:$A$65,Daten!$X$16:$X$65),"") & " " & IF($A57<=Daten!$B$8,LOOKUP($B57,Daten!$A$16:$A$65,Daten!$Y$16:$Y$65),"") -> 8,1 Inhalt5Einh[8,1] | F61: =IF($A57<=Daten!$B$8,LOOKUP($B57,Daten!$A$57:$A$116,Daten!$X$57:$X$116),"") & " " & IF($A57<=Daten!$B$8,LOOKUP($B57,Daten!$A$57:$A$116,Daten!$Y$57:$Y$116),"") -> 8,2 Inhalt5Einh[8,2] | H61: =IF($A57<=Daten!$B$8,LOOKUP($B57,Daten!$A$118:$A$167,Daten!$X$118:$X$167),"") & " " & IF($A57<=Daten!$B$8,LOOKUP($B57,Daten!$A$118:$A$167,Daten!$Y$118:$Y$167),"") -> 8,3 Inhalt5Einh[8,3] | J61: =IF($A57<=Daten!$B$8,LOOKUP($B57,Daten!$A$169:$A$218,Daten!$X$169:$X$218),"") & " " & IF($A57<=Daten!$B$8,LOOKUP($B57,Daten!$A$169:$A$218,Daten!$Y$169:$Y$218),"") -> 8,4 Inhalt5Einh[8,4] | L61: =IF($A57<=Daten!$B$8,LOOKUP($B57,Daten!$A$220:$A$269,Daten!$X$220:$X$269),"") & " " & IF($A57<=Daten!$B$8,LOOKUP($B57,Daten!$A$220:$A$269,Daten!$Y$220:$Y$269),"") -> 8,5 Inhalt5Einh[8,5] | N61: =IF($A57<=Daten!$B$8,LOOKUP($B57,Daten!$A$271:$A$320,Daten!$X$271:$X$320),"") & " " & IF($A57<=Daten!$B$8,LOOKUP($B57,Daten!$A$271:$A$320,Daten!$Y$271:$Y$320),"") -> 8,6 Inhalt5Einh[8,6] | P61: =IF($A57<=Daten!$B$8,LOOKUP($B57,Daten!$A$322:$A$371,Daten!$X$322:$X$371),"") & " " & IF($A57<=Daten!$B$8,LOOKUP($B57,Daten!$A$322:$A$371,Daten!$Y$322:$Y$371),"") -> 8,7 Inhalt5Einh[8,7]
D62: =IF($A57<=Daten!$B$8,LOOKUP($B57,Daten!$A$16:$A$65,Daten!$Z$16:$Z$65),"") & " " & IF($A57<=Daten!$B$8,LOOKUP($B57,Daten!$A$16:$A$65,Daten!$AA$16:$AA$65),"") -> 8,1 Inhalt6Einh[8,1] | F62: =IF($A57<=Daten!$B$8,LOOKUP($B57,Daten!$A$57:$A$116,Daten!$Z$57:$Z$116),"") & " " & IF($A57<=Daten!$B$8,LOOKUP($B57,Daten!$A$57:$A$116,Daten!$AA$57:$AA$116),"") -> 8,2 Inhalt6Einh[8,2] | H62: =IF($A57<=Daten!$B$8,LOOKUP($B57,Daten!$A$118:$A$167,Daten!$Z$118:$Z$167),"") & " " & IF($A57<=Daten!$B$8,LOOKUP($B57,Daten!$A$118:$A$167,Daten!$AA$118:$AA$167),"") -> 8,3 Inhalt6Einh[8,3] | J62: =IF($A57<=Daten!$B$8,LOOKUP($B57,Daten!$A$169:$A$218,Daten!$Z$169:$Z$218),"") & " " & IF($A57<=Daten!$B$8,LOOKUP($B57,Daten!$A$169:$A$218,Daten!$AA$169:$AA$218),"") -> 8,4 Inhalt6Einh[8,4] | L62: =IF($A57<=Daten!$B$8,LOOKUP($B57,Daten!$A$220:$A$269,Daten!$Z$220:$Z$269),"") & " " & IF($A57<=Daten!$B$8,LOOKUP($B57,Daten!$A$220:$A$269,Daten!$AA$220:$AA$269),"") -> 8,5 Inhalt6Einh[8,5] | N62: =IF($A57<=Daten!$B$8,LOOKUP($B57,Daten!$A$271:$A$320,Daten!$Z$271:$Z$320),"") & " " & IF($A57<=Daten!$B$8,LOOKUP($B57,Daten!$A$271:$A$320,Daten!$AA$271:$AA$320),"") -> 8,6 Inhalt6Einh[8,6] | P62: =IF($A57<=Daten!$B$8,LOOKUP($B57,Daten!$A$322:$A$371,Daten!$Z$322:$Z$371),"") & " " & IF($A57<=Daten!$B$8,LOOKUP($B57,Daten!$A$322:$A$371,Daten!$AA$322:$AA$371),"") -> 8,7 Inhalt6Einh[8,7]
B63: =IF(A57<=Daten!$B$8,"Zusatzstoffe","") -> Zusatzstoffe | C63: =IF($A57<=Daten!$B$8,LOOKUP($B57,Daten!$A$16:$A$65,Daten!$L$16:$L$65),"") -> 8.1 | D63: =IF($A57<=Daten!$B$8,LOOKUP($B57,Daten!$A$16:$A$65,Daten!$E$16:$E$65),"") -> 0 | E63: =IF($A57<=Daten!$B$8,LOOKUP($B57,Daten!$A$67:$A$116,Daten!$L$67:$L$116),"") -> 8.2 | F63: =IF($A57<=Daten!$B$8,LOOKUP($B57,Daten!$A$16:$A$65,Daten!$E$67:$E$116),"") -> 0 | G63: =IF($A57<=Daten!$B$8,LOOKUP($B57,Daten!$A$118:$A$167,Daten!$L$118:$L$167),"") -> 8.3 | H63: =IF($A57<=Daten!$B$8,LOOKUP($B57,Daten!$A$118:$A$167,Daten!$E$118:$E$167),"") -> 0 | I63: =IF($A57<=Daten!$B$8,LOOKUP($B57,Daten!$A$169:$A$218,Daten!$L$169:$L$218),"") -> 8.4 | J63: =IF($A57<=Daten!$B$8,LOOKUP($B57,Daten!$A$169:$A$218,Daten!$E$169:$E$218),"") -> 0 | K63: =IF($A57<=Daten!$B$8,LOOKUP($B57,Daten!$A$220:$A$269,Daten!$L$220:$L$269),"") -> 8.5 | L63: =IF($A57<=Daten!$B$8,LOOKUP($B57,Daten!$A$220:$A$269,Daten!$E$220:$E$269),"") -> 0 | M63: =IF($A57<=Daten!$B$8,LOOKUP($B57,Daten!$A$271:$A$320,Daten!$L$271:$L$320),"") -> 8.6 | N63: =IF($A57<=Daten!$B$8,LOOKUP($B57,Daten!$A$271:$A$320,Daten!$E$271:$E$320),"") -> 0 | O63: =IF($A57<=Daten!$B$8,LOOKUP($B57,Daten!$A$322:$A$371,Daten!$L$322:$L$371),"") -> 8.7 | P63: =IF($A57<=Daten!$B$8,LOOKUP($B57,Daten!$A$322:$A$371,Daten!$E$322:$E$371),"") -> 0
A64: 9 | B64: =IF(A64<=Daten!$B$8,Daten!J9,"") -> Menülinie 9 | C64: =IF(A64<=Daten!$B$8,LOOKUP(B64,Daten!$A$16:$A$65,Daten!$C$16:$C$65),"") -> Lang[9,1] | D64: =IF($A64<=Daten!$B$8,LOOKUP($B64,Daten!$A$16:$A$65,Daten!$P$16:$P$65),"") & " " & IF($A64<=Daten!$B$8,LOOKUP($B64,Daten!$A$16:$A$65,Daten!$Q$16:$Q$65),"") -> 9,1 Inhalt1Einh[9,1] | E64: =IF($A64<=Daten!$B$8,LOOKUP($B64,Daten!$A$67:$A$116,Daten!$C$67:$C$116),"") -> Lang[9,2] | F64: =IF($A64<=Daten!$B$8,LOOKUP($B64,Daten!$A$67:$A$116,Daten!$P$67:$P$116),"") & " " & IF($A64<=Daten!$B$8,LOOKUP($B64,Daten!$A$67:$A$116,Daten!$Q$67:$Q$116),"") -> 9,2 Inhalt1Einh[9,2] | G64: =IF($A64<=Daten!$B$8,LOOKUP($B64,Daten!$A$118:$A$167,Daten!$C$118:$C$167),"") -> Lang[9,3] | H64: =IF($A64<=Daten!$B$8,LOOKUP($B64,Daten!$A$118:$A$167,Daten!$P$118:$P$167),"") & " " & IF($A64<=Daten!$B$8,LOOKUP($B64,Daten!$A$118:$A$167,Daten!$Q$118:$Q$167),"") -> 9,3 Inhalt1Einh[9,3] | I64: =IF($A64<=Daten!$B$8,LOOKUP($B64,Daten!$A$169:$A$218,Daten!$C$169:$C$218),"") -> Lang[9,4] | J64: =IF($A64<=Daten!$B$8,LOOKUP($B64,Daten!$A$169:$A$218,Daten!$P$169:$P$218),"") & " " & IF($A64<=Daten!$B$8,LOOKUP($B64,Daten!$A$169:$A$218,Daten!$Q$169:$Q$218),"") -> 9,4 Inhalt1Einh[9,4] | K64: =IF($A64<=Daten!$B$8,LOOKUP($B64,Daten!$A$220:$A$269,Daten!$C$220:$C$269),"") -> Lang[9,5] | L64: =IF($A64<=Daten!$B$8,LOOKUP($B64,Daten!$A$220:$A$269,Daten!$P$220:$P$269),"") & " " & IF($A64<=Daten!$B$8,LOOKUP($B64,Daten!$A$220:$A$269,Daten!$Q$220:$Q$269),"") -> 9,5 Inhalt1Einh[9,5] | M64: =IF($A64<=Daten!$B$8,LOOKUP($B64,Daten!$A$271:$A$320,Daten!$C$271:$C$320),"") -> Lang[9,6] | N64: =IF($A64<=Daten!$B$8,LOOKUP($B64,Daten!$A$271:$A$320,Daten!$P$271:$P$320),"") & " " & IF($A64<=Daten!$B$8,LOOKUP($B64,Daten!$A$271:$A$320,Daten!$Q$271:$Q$320),"") -> 9,6 Inhalt1Einh[9,6] | O64: =IF($A64<=Daten!$B$8,LOOKUP($B64,Daten!$A$322:$A$371,Daten!$B$322:$C$371),"") ->  | P64: =IF($A64<=Daten!$B$8,LOOKUP($B64,Daten!$A$322:$A$371,Daten!$P$322:$P$371),"") & " " & IF($A64<=Daten!$B$8,LOOKUP($B64,Daten!$A$322:$A$371,Daten!$Q$322:$Q$371),"") -> 9,7 Inhalt1Einh[9,7]
D65: =IF($A64<=Daten!$B$8,LOOKUP($B64,Daten!$A$16:$A$65,Daten!$R$16:$R$65),"") & " " & IF($A64<=Daten!$B$8,LOOKUP($B64,Daten!$A$16:$A$65,Daten!$S$16:$S$65),"") -> 9,1 Inhalt2Einh[9,1] | F65: =IF($A64<=Daten!$B$8,LOOKUP($B64,Daten!$A$67:$A$116,Daten!$R$67:$R$116),"") & " " & IF($A64<=Daten!$B$8,LOOKUP($B64,Daten!$A$67:$A$116,Daten!$S$67:$S$116),"") -> 9,2 Inhalt2Einh[9,2] | H65: =IF($A64<=Daten!$B$8,LOOKUP($B64,Daten!$A$118:$A$167,Daten!$R$118:$R$167),"") & " " & IF($A64<=Daten!$B$8,LOOKUP($B64,Daten!$A$118:$A$167,Daten!$S$118:$S$167),"") -> 9,3 Inhalt2Einh[9,3] | J65: =IF($A64<=Daten!$B$8,LOOKUP($B64,Daten!$A$169:$A$218,Daten!$R$169:$R$218),"") & " " & IF($A64<=Daten!$B$8,LOOKUP($B64,Daten!$A$169:$A$218,Daten!$S$169:$S$218),"") -> 9,4 Inhalt2Einh[9,4] | L65: =IF($A64<=Daten!$B$8,LOOKUP($B64,Daten!$A$220:$A$269,Daten!$R$220:$R$269),"") & " " & IF($A64<=Daten!$B$8,LOOKUP($B64,Daten!$A$220:$A$269,Daten!$S$220:$S$269),"") -> 9,5 Inhalt2Einh[9,5] | N65: =IF($A64<=Daten!$B$8,LOOKUP($B64,Daten!$A$271:$A$320,Daten!$R$271:$R$320),"") & " " & IF($A64<=Daten!$B$8,LOOKUP($B64,Daten!$A$271:$A$320,Daten!$S$271:$S$320),"") -> 9,6 Inhalt2Einh[9,6] | P65: =IF($A64<=Daten!$B$8,LOOKUP($B64,Daten!$A$322:$A$371,Daten!$R$322:$R$371),"") & " " & IF($A64<=Daten!$B$8,LOOKUP($B64,Daten!$A$322:$A$371,Daten!$S$322:$S$371),"") -> 9,7 Inhalt2Einh[9,7]
D66: =IF($A64<=Daten!$B$8,LOOKUP($B64,Daten!$A$16:$A$65,Daten!$T$16:$T$65),"") & " " & IF($A64<=Daten!$B$8,LOOKUP($B64,Daten!$A$16:$A$65,Daten!$U$16:$U$65),"") -> 9,1 Inhalt3Einh[9,1] | F66: =IF($A64<=Daten!$B$8,LOOKUP($B64,Daten!$A$67:$A$116,Daten!$T$67:$T$116),"") & " " & IF($A64<=Daten!$B$8,LOOKUP($B64,Daten!$A$67:$A$116,Daten!$U$67:$U$116),"") -> 9,2 Inhalt3Einh[9,2] | H66: =IF($A64<=Daten!$B$8,LOOKUP($B64,Daten!$A$118:$A$167,Daten!$T$118:$T$167),"") & " " & IF($A64<=Daten!$B$8,LOOKUP($B64,Daten!$A$118:$A$167,Daten!$U$118:$U$167),"") -> 9,3 Inhalt3Einh[9,3] | J66: =IF($A64<=Daten!$B$8,LOOKUP($B64,Daten!$A$169:$A$218,Daten!$T$169:$T$218),"") & " " & IF($A64<=Daten!$B$8,LOOKUP($B64,Daten!$A$169:$A$218,Daten!$U$169:$U$218),"") -> 9,4 Inhalt3Einh[9,4] | L66: =IF($A64<=Daten!$B$8,LOOKUP($B64,Daten!$A$220:$A$269,Daten!$T$220:$T$269),"") & " " & IF($A64<=Daten!$B$8,LOOKUP($B64,Daten!$A$220:$A$269,Daten!$U$220:$U$269),"") -> 9,5 Inhalt3Einh[9,5] | N66: =IF($A64<=Daten!$B$8,LOOKUP($B64,Daten!$A$271:$A$320,Daten!$T$271:$T$320),"") & " " & IF($A64<=Daten!$B$8,LOOKUP($B64,Daten!$A$271:$A$320,Daten!$U$271:$U$320),"") -> 9,6 Inhalt3Einh[9,6] | P66: =IF($A64<=Daten!$B$8,LOOKUP($B64,Daten!$A$322:$A$371,Daten!$T$322:$T$371),"") & " " & IF($A64<=Daten!$B$8,LOOKUP($B64,Daten!$A$322:$A$371,Daten!$U$322:$U$371),"") -> 9,7 Inhalt3Einh[9,7]
D67: =IF($A64<=Daten!$B$8,LOOKUP($B64,Daten!$A$16:$A$65,Daten!$V$16:$V$65),"") & " " & IF($A64<=Daten!$B$8,LOOKUP($B64,Daten!$A$16:$A$65,Daten!$W$16:$W$65),"") -> 9,1 Inhalt4Einh[9,1] | F67: =IF($A64<=Daten!$B$8,LOOKUP($B64,Daten!$A$67:$A$116,Daten!$V$67:$V$116),"") & " " & IF($A64<=Daten!$B$8,LOOKUP($B64,Daten!$A$67:$A$116,Daten!$W$67:$W$116),"") -> 9,2 Inhalt4Einh[9,2] | H67: =IF($A64<=Daten!$B$8,LOOKUP($B64,Daten!$A$118:$A$167,Daten!$V$118:$V$167),"") & " " & IF($A64<=Daten!$B$8,LOOKUP($B64,Daten!$A$118:$A$167,Daten!$W$118:$W$167),"") -> 9,3 Inhalt4Einh[9,3] | J67: =IF($A64<=Daten!$B$8,LOOKUP($B64,Daten!$A$169:$A$218,Daten!$V$169:$V$218),"") & " " & IF($A64<=Daten!$B$8,LOOKUP($B64,Daten!$A$169:$A$218,Daten!$W$169:$W$218),"") -> 9,4 Inhalt4Einh[9,4] | L67: =IF($A64<=Daten!$B$8,LOOKUP($B64,Daten!$A$220:$A$269,Daten!$V$220:$V$269),"") & " " & IF($A64<=Daten!$B$8,LOOKUP($B64,Daten!$A$220:$A$269,Daten!$W$220:$W$269),"") -> 9,5 Inhalt4Einh[9,5] | N67: =IF($A64<=Daten!$B$8,LOOKUP($B64,Daten!$A$271:$A$320,Daten!$V$271:$V$320),"") & " " & IF($A64<=Daten!$B$8,LOOKUP($B64,Daten!$A$271:$A$320,Daten!$W$271:$W$320),"") -> 9,6 Inhalt4Einh[9,6] | P67: =IF($A64<=Daten!$B$8,LOOKUP($B64,Daten!$A$322:$A$371,Daten!$V$322:$V$371),"") & " " & IF($A64<=Daten!$B$8,LOOKUP($B64,Daten!$A$322:$A$371,Daten!$W$322:$W$371),"") -> 9,7 Inhalt4Einh[9,7]
D68: =IF($A64<=Daten!$B$8,LOOKUP($B64,Daten!$A$16:$A$65,Daten!$X$16:$X$65),"") & " " & IF($A64<=Daten!$B$8,LOOKUP($B64,Daten!$A$16:$A$65,Daten!$Y$16:$Y$65),"") -> 9,1 Inhalt5Einh[9,1] | F68: =IF($A64<=Daten!$B$8,LOOKUP($B64,Daten!$A$67:$A$116,Daten!$X$67:$X$116),"") & " " & IF($A64<=Daten!$B$8,LOOKUP($B64,Daten!$A$67:$A$116,Daten!$Y$67:$Y$116),"") -> 9,2 Inhalt5Einh[9,2] | H68: =IF($A64<=Daten!$B$8,LOOKUP($B64,Daten!$A$118:$A$167,Daten!$X$118:$X$167),"") & " " & IF($A64<=Daten!$B$8,LOOKUP($B64,Daten!$A$118:$A$167,Daten!$Y$118:$Y$167),"") -> 9,3 Inhalt5Einh[9,3] | J68: =IF($A64<=Daten!$B$8,LOOKUP($B64,Daten!$A$169:$A$218,Daten!$X$169:$X$218),"") & " " & IF($A64<=Daten!$B$8,LOOKUP($B64,Daten!$A$169:$A$218,Daten!$Y$169:$Y$218),"") -> 9,4 Inhalt5Einh[9,4] | L68: =IF($A64<=Daten!$B$8,LOOKUP($B64,Daten!$A$220:$A$269,Daten!$X$220:$X$269),"") & " " & IF($A64<=Daten!$B$8,LOOKUP($B64,Daten!$A$220:$A$269,Daten!$Y$220:$Y$269),"") -> 9,5 Inhalt5Einh[9,5] | N68: =IF($A64<=Daten!$B$8,LOOKUP($B64,Daten!$A$271:$A$320,Daten!$X$271:$X$320),"") & " " & IF($A64<=Daten!$B$8,LOOKUP($B64,Daten!$A$271:$A$320,Daten!$Y$271:$Y$320),"") -> 9,6 Inhalt5Einh[9,6] | P68: =IF($A64<=Daten!$B$8,LOOKUP($B64,Daten!$A$322:$A$371,Daten!$X$322:$X$371),"") & " " & IF($A64<=Daten!$B$8,LOOKUP($B64,Daten!$A$322:$A$371,Daten!$Y$322:$Y$371),"") -> 9,7 Inhalt5Einh[9,7]
D69: =IF($A64<=Daten!$B$8,LOOKUP($B64,Daten!$A$16:$A$65,Daten!$Z$16:$Z$65),"") & " " & IF($A64<=Daten!$B$8,LOOKUP($B64,Daten!$A$16:$A$65,Daten!$AA$16:$AA$65),"") -> 9,1 Inhalt6Einh[9,1] | F69: =IF($A64<=Daten!$B$8,LOOKUP($B64,Daten!$A$67:$A$116,Daten!$Z$67:$Z$116),"") & " " & IF($A64<=Daten!$B$8,LOOKUP($B64,Daten!$A$67:$A$116,Daten!$AA$67:$AA$116),"") -> 9,2 Inhalt6Einh[9,2] | H69: =IF($A64<=Daten!$B$8,LOOKUP($B64,Daten!$A$118:$A$167,Daten!$Z$118:$Z$167),"") & " " & IF($A64<=Daten!$B$8,LOOKUP($B64,Daten!$A$118:$A$167,Daten!$AA$118:$AA$167),"") -> 9,3 Inhalt6Einh[9,3] | J69: =IF($A64<=Daten!$B$8,LOOKUP($B64,Daten!$A$169:$A$218,Daten!$Z$169:$Z$218),"") & " " & IF($A64<=Daten!$B$8,LOOKUP($B64,Daten!$A$169:$A$218,Daten!$AA$169:$AA$218),"") -> 9,4 Inhalt6Einh[9,4] | L69: =IF($A64<=Daten!$B$8,LOOKUP($B64,Daten!$A$220:$A$269,Daten!$Z$220:$Z$269),"") & " " & IF($A64<=Daten!$B$8,LOOKUP($B64,Daten!$A$220:$A$269,Daten!$AA$220:$AA$269),"") -> 9,5 Inhalt6Einh[9,5] | N69: =IF($A64<=Daten!$B$8,LOOKUP($B64,Daten!$A$271:$A$320,Daten!$Z$271:$Z$320),"") & " " & IF($A64<=Daten!$B$8,LOOKUP($B64,Daten!$A$271:$A$320,Daten!$AA$271:$AA$320),"") -> 9,6 Inhalt6Einh[9,6] | P69: =IF($A64<=Daten!$B$8,LOOKUP($B64,Daten!$A$322:$A$371,Daten!$Z$322:$Z$371),"") & " " & IF($A64<=Daten!$B$8,LOOKUP($B64,Daten!$A$322:$A$371,Daten!$AA$322:$AA$371),"") -> 9,7 Inhalt6Einh[9,7]
B70: =IF(A64<=Daten!$B$8,"Zusatzstoffe","") -> Zusatzstoffe | C70: =IF($A64<=Daten!$B$8,LOOKUP($B64,Daten!$A$16:$A$65,Daten!$L$16:$L$65),"") -> 9.1 | D70: =IF($A64<=Daten!$B$8,LOOKUP($B64,Daten!$A$16:$A$65,Daten!$E$16:$E$65),"") -> 0 | E70: =IF($A64<=Daten!$B$8,LOOKUP($B64,Daten!$A$67:$A$116,Daten!$L$67:$L$116),"") -> 9.2 | F70: =IF($A64<=Daten!$B$8,LOOKUP($B64,Daten!$A$16:$A$65,Daten!$E$67:$E$116),"") -> 0 | G70: =IF($A64<=Daten!$B$8,LOOKUP($B64,Daten!$A$118:$A$167,Daten!$L$118:$L$167),"") -> 9.3 | H70: =IF($A64<=Daten!$B$8,LOOKUP($B64,Daten!$A$118:$A$167,Daten!$E$118:$E$167),"") -> 0 | I70: =IF($A64<=Daten!$B$8,LOOKUP($B64,Daten!$A$169:$A$218,Daten!$L$169:$L$218),"") -> 9.4 | J70: =IF($A64<=Daten!$B$8,LOOKUP($B64,Daten!$A$169:$A$218,Daten!$E$169:$E$218),"") -> 0 | K70: =IF($A64<=Daten!$B$8,LOOKUP($B64,Daten!$A$220:$A$269,Daten!$L$220:$L$269),"") -> 9.5 | L70: =IF($A64<=Daten!$B$8,LOOKUP($B64,Daten!$A$220:$A$269,Daten!$E$220:$E$269),"") -> 0 | M70: =IF($A64<=Daten!$B$8,LOOKUP($B64,Daten!$A$271:$A$320,Daten!$L$271:$L$320),"") -> 9.6 | N70: =IF($A64<=Daten!$B$8,LOOKUP($B64,Daten!$A$271:$A$320,Daten!$E$271:$E$320),"") -> 0 | O70: =IF($A64<=Daten!$B$8,LOOKUP($B64,Daten!$A$322:$A$371,Daten!$L$322:$L$371),"") -> 9.7 | P70: =IF($A64<=Daten!$B$8,LOOKUP($B64,Daten!$A$322:$A$371,Daten!$E$322:$E$371),"") -> 0
A71: 10 | B71: =IF(A71<=Daten!$B$8,Daten!K9,"") -> Menülinie 10 | C71: =IF(A71<=Daten!$B$8,LOOKUP(B71,Daten!$A$16:$A$65,Daten!$C$16:$C$65),"") -> Lang[10,1] | D71: =IF($A71<=Daten!$B$8,LOOKUP($B71,Daten!$A$16:$A$65,Daten!$P$16:$P$65),"") & " " & IF($A71<=Daten!$B$8,LOOKUP($B71,Daten!$A$16:$A$65,Daten!$Q$16:$Q$65),"") -> 10,1 Inhalt1Einh[10,1] | E71: =IF($A71<=Daten!$B$8,LOOKUP($B71,Daten!$A$67:$A$116,Daten!$C$67:$C$116),"") -> Lang[10,2] | F71: =IF($A71<=Daten!$B$8,LOOKUP($B71,Daten!$A$67:$A$116,Daten!$P$67:$P$116),"") & " " & IF($A71<=Daten!$B$8,LOOKUP($B71,Daten!$A$67:$A$116,Daten!$Q$67:$Q$116),"") -> 10,2 Inhalt1Einh[10,2] | G71: =IF($A71<=Daten!$B$8,LOOKUP($B71,Daten!$A$118:$A$167,Daten!$C$118:$C$167),"") -> Lang[10,3] | H71: =IF($A71<=Daten!$B$8,LOOKUP($B71,Daten!$A$118:$A$167,Daten!$P$118:$P$167),"") & " " & IF($A71<=Daten!$B$8,LOOKUP($B71,Daten!$A$118:$A$167,Daten!$Q$118:$Q$167),"") -> 10,3 Inhalt1Einh[10,3] | I71: =IF($A71<=Daten!$B$8,LOOKUP($B71,Daten!$A$169:$A$218,Daten!$C$169:$C$218),"") -> Lang[10,4] | J71: =IF($A71<=Daten!$B$8,LOOKUP($B71,Daten!$A$169:$A$218,Daten!$P$169:$P$218),"") & " " & IF($A71<=Daten!$B$8,LOOKUP($B71,Daten!$A$169:$A$218,Daten!$Q$169:$Q$218),"") -> 10,4 Inhalt1Einh[10,4] | K71: =IF($A71<=Daten!$B$8,LOOKUP($B71,Daten!$A$220:$A$269,Daten!$C$220:$C$269),"") -> Lang[10,5] | L71: =IF($A71<=Daten!$B$8,LOOKUP($B71,Daten!$A$220:$A$269,Daten!$P$220:$P$269),"") & " " & IF($A71<=Daten!$B$8,LOOKUP($B71,Daten!$A$220:$A$269,Daten!$Q$220:$Q$269),"") -> 10,5 Inhalt1Einh[10,5] | M71: =IF($A71<=Daten!$B$8,LOOKUP($B71,Daten!$A$271:$A$320,Daten!$C$271:$C$320),"") -> Lang[10,6] | N71: =IF($A71<=Daten!$B$8,LOOKUP($B71,Daten!$A$271:$A$320,Daten!$P$271:$P$320),"") & " " & IF($A71<=Daten!$B$8,LOOKUP($B71,Daten!$A$271:$A$320,Daten!$Q$271:$Q$320),"") -> 10,6 Inhalt1Einh[10,6] | O71: =IF($A71<=Daten!$B$8,LOOKUP($B71,Daten!$A$322:$A$371,Daten!$B$322:$C$371),"") ->  | P71: =IF($A71<=Daten!$B$8,LOOKUP($B71,Daten!$A$322:$A$371,Daten!$P$322:$P$371),"") & " " & IF($A71<=Daten!$B$8,LOOKUP($B71,Daten!$A$322:$A$371,Daten!$Q$322:$Q$371),"") -> 10,7 Inhalt1Einh[10,7]
D72: =IF($A71<=Daten!$B$8,LOOKUP($B71,Daten!$A$16:$A$65,Daten!$R$16:$R$65),"") & " " & IF($A71<=Daten!$B$8,LOOKUP($B71,Daten!$A$16:$A$65,Daten!$S$16:$S$65),"") -> 10,1 Inhalt2Einh[10,1] | F72: =IF($A71<=Daten!$B$8,LOOKUP($B71,Daten!$A$67:$A$116,Daten!$R$67:$R$116),"") & " " & IF($A71<=Daten!$B$8,LOOKUP($B71,Daten!$A$67:$A$116,Daten!$S$67:$S$116),"") -> 10,2 Inhalt2Einh[10,2] | H72: =IF($A71<=Daten!$B$8,LOOKUP($B71,Daten!$A$118:$A$167,Daten!$R$118:$R$167),"") & " " & IF($A71<=Daten!$B$8,LOOKUP($B71,Daten!$A$118:$A$167,Daten!$S$118:$S$167),"") -> 10,3 Inhalt2Einh[10,3] | J72: =IF($A71<=Daten!$B$8,LOOKUP($B71,Daten!$A$169:$A$218,Daten!$R$169:$R$218),"") & " " & IF($A71<=Daten!$B$8,LOOKUP($B71,Daten!$A$169:$A$218,Daten!$S$169:$S$218),"") -> 10,4 Inhalt2Einh[10,4] | L72: =IF($A71<=Daten!$B$8,LOOKUP($B71,Daten!$A$220:$A$269,Daten!$R$220:$R$269),"") & " " & IF($A71<=Daten!$B$8,LOOKUP($B71,Daten!$A$220:$A$269,Daten!$S$220:$S$269),"") -> 10,5 Inhalt2Einh[10,5] | N72: =IF($A71<=Daten!$B$8,LOOKUP($B71,Daten!$A$271:$A$320,Daten!$R$271:$R$320),"") & " " & IF($A71<=Daten!$B$8,LOOKUP($B71,Daten!$A$271:$A$320,Daten!$S$271:$S$320),"") -> 10,6 Inhalt2Einh[10,6] | P72: =IF($A71<=Daten!$B$8,LOOKUP($B71,Daten!$A$322:$A$371,Daten!$R$322:$R$371),"") & " " & IF($A71<=Daten!$B$8,LOOKUP($B71,Daten!$A$322:$A$371,Daten!$S$322:$S$371),"") -> 10,7 Inhalt2Einh[10,7]
D73: =IF($A71<=Daten!$B$8,LOOKUP($B71,Daten!$A$16:$A$65,Daten!$T$16:$T$65),"") & " " & IF($A71<=Daten!$B$8,LOOKUP($B71,Daten!$A$16:$A$65,Daten!$U$16:$U$65),"") -> 10,1 Inhalt3Einh[10,1] | F73: =IF($A71<=Daten!$B$8,LOOKUP($B71,Daten!$A$67:$A$116,Daten!$T$67:$T$116),"") & " " & IF($A71<=Daten!$B$8,LOOKUP($B71,Daten!$A$67:$A$116,Daten!$U$67:$U$116),"") -> 10,2 Inhalt3Einh[10,2] | H73: =IF($A71<=Daten!$B$8,LOOKUP($B71,Daten!$A$118:$A$167,Daten!$T$118:$T$167),"") & " " & IF($A71<=Daten!$B$8,LOOKUP($B71,Daten!$A$118:$A$167,Daten!$U$118:$U$167),"") -> 10,3 Inhalt3Einh[10,3] | J73: =IF($A71<=Daten!$B$8,LOOKUP($B71,Daten!$A$169:$A$218,Daten!$T$169:$T$218),"") & " " & IF($A71<=Daten!$B$8,LOOKUP($B71,Daten!$A$169:$A$218,Daten!$U$169:$U$218),"") -> 10,4 Inhalt3Einh[10,4] | L73: =IF($A71<=Daten!$B$8,LOOKUP($B71,Daten!$A$220:$A$269,Daten!$T$220:$T$269),"") & " " & IF($A71<=Daten!$B$8,LOOKUP($B71,Daten!$A$220:$A$269,Daten!$U$220:$U$269),"") -> 10,5 Inhalt3Einh[10,5] | N73: =IF($A71<=Daten!$B$8,LOOKUP($B71,Daten!$A$271:$A$320,Daten!$T$271:$T$320),"") & " " & IF($A71<=Daten!$B$8,LOOKUP($B71,Daten!$A$271:$A$320,Daten!$U$271:$U$320),"") -> 10,6 Inhalt3Einh[10,6] | P73: =IF($A71<=Daten!$B$8,LOOKUP($B71,Daten!$A$322:$A$371,Daten!$T$322:$T$371),"") & " " & IF($A71<=Daten!$B$8,LOOKUP($B71,Daten!$A$322:$A$371,Daten!$U$322:$U$371),"") -> 10,7 Inhalt3Einh[10,7]
D74: =IF($A71<=Daten!$B$8,LOOKUP($B71,Daten!$A$16:$A$65,Daten!$V$16:$V$65),"") & " " & IF($A71<=Daten!$B$8,LOOKUP($B71,Daten!$A$16:$A$65,Daten!$W$16:$W$65),"") -> 10,1 Inhalt4Einh[10,1] | F74: =IF($A71<=Daten!$B$8,LOOKUP($B71,Daten!$A$67:$A$116,Daten!$V$67:$V$116),"") & " " & IF($A71<=Daten!$B$8,LOOKUP($B71,Daten!$A$67:$A$116,Daten!$W$67:$W$116),"") -> 10,2 Inhalt4Einh[10,2] | H74: =IF($A71<=Daten!$B$8,LOOKUP($B71,Daten!$A$118:$A$167,Daten!$V$118:$V$167),"") & " " & IF($A71<=Daten!$B$8,LOOKUP($B71,Daten!$A$118:$A$167,Daten!$W$118:$W$167),"") -> 10,3 Inhalt4Einh[10,3] | J74: =IF($A71<=Daten!$B$8,LOOKUP($B71,Daten!$A$169:$A$218,Daten!$V$169:$V$218),"") & " " & IF($A71<=Daten!$B$8,LOOKUP($B71,Daten!$A$169:$A$218,Daten!$W$169:$W$218),"") -> 10,4 Inhalt4Einh[10,4] | L74: =IF($A71<=Daten!$B$8,LOOKUP($B71,Daten!$A$220:$A$269,Daten!$V$220:$V$269),"") & " " & IF($A71<=Daten!$B$8,LOOKUP($B71,Daten!$A$220:$A$269,Daten!$W$220:$W$269),"") -> 10,5 Inhalt4Einh[10,5] | N74: =IF($A71<=Daten!$B$8,LOOKUP($B71,Daten!$A$271:$A$320,Daten!$V$271:$V$320),"") & " " & IF($A71<=Daten!$B$8,LOOKUP($B71,Daten!$A$271:$A$320,Daten!$W$271:$W$320),"") -> 10,6 Inhalt4Einh[10,6] | P74: =IF($A71<=Daten!$B$8,LOOKUP($B71,Daten!$A$322:$A$371,Daten!$V$322:$V$371),"") & " " & IF($A71<=Daten!$B$8,LOOKUP($B71,Daten!$A$322:$A$371,Daten!$W$322:$W$371),"") -> 10,7 Inhalt4Einh[10,7]
D75: =IF($A71<=Daten!$B$8,LOOKUP($B71,Daten!$A$16:$A$65,Daten!$X$16:$X$65),"") & " " & IF($A71<=Daten!$B$8,LOOKUP($B71,Daten!$A$16:$A$65,Daten!$Y$16:$Y$65),"") -> 10,1 Inhalt5Einh[10,1] | F75: =IF($A71<=Daten!$B$8,LOOKUP($B71,Daten!$A$67:$A$116,Daten!$X$67:$X$116),"") & " " & IF($A71<=Daten!$B$8,LOOKUP($B71,Daten!$A$67:$A$116,Daten!$Y$67:$Y$116),"") -> 10,2 Inhalt5Einh[10,2] | H75: =IF($A71<=Daten!$B$8,LOOKUP($B71,Daten!$A$118:$A$167,Daten!$X$118:$X$167),"") & " " & IF($A71<=Daten!$B$8,LOOKUP($B71,Daten!$A$118:$A$167,Daten!$Y$118:$Y$167),"") -> 10,3 Inhalt5Einh[10,3] | J75: =IF($A71<=Daten!$B$8,LOOKUP($B71,Daten!$A$169:$A$218,Daten!$X$169:$X$218),"") & " " & IF($A71<=Daten!$B$8,LOOKUP($B71,Daten!$A$169:$A$218,Daten!$Y$169:$Y$218),"") -> 10,4 Inhalt5Einh[10,4] | L75: =IF($A71<=Daten!$B$8,LOOKUP($B71,Daten!$A$220:$A$269,Daten!$X$220:$X$269),"") & " " & IF($A71<=Daten!$B$8,LOOKUP($B71,Daten!$A$220:$A$269,Daten!$Y$220:$Y$269),"") -> 10,5 Inhalt5Einh[10,5] | N75: =IF($A71<=Daten!$B$8,LOOKUP($B71,Daten!$A$271:$A$320,Daten!$X$271:$X$320),"") & " " & IF($A71<=Daten!$B$8,LOOKUP($B71,Daten!$A$271:$A$320,Daten!$Y$271:$Y$320),"") -> 10,6 Inhalt5Einh[10,6] | P75: =IF($A71<=Daten!$B$8,LOOKUP($B71,Daten!$A$322:$A$371,Daten!$X$322:$X$371),"") & " " & IF($A71<=Daten!$B$8,LOOKUP($B71,Daten!$A$322:$A$371,Daten!$Y$322:$Y$371),"") -> 10,7 Inhalt5Einh[10,7]
D76: =IF($A71<=Daten!$B$8,LOOKUP($B71,Daten!$A$16:$A$65,Daten!$Z$16:$Z$65),"") & " " & IF($A71<=Daten!$B$8,LOOKUP($B71,Daten!$A$16:$A$65,Daten!$AA$16:$AA$65),"") -> 10,1 Inhalt6Einh[10,1] | F76: =IF($A71<=Daten!$B$8,LOOKUP($B71,Daten!$A$67:$A$116,Daten!$Z$67:$Z$116),"") & " " & IF($A71<=Daten!$B$8,LOOKUP($B71,Daten!$A$67:$A$116,Daten!$AA$67:$AA$116),"") -> 10,2 Inhalt6Einh[10,2] | H76: =IF($A71<=Daten!$B$8,LOOKUP($B71,Daten!$A$118:$A$167,Daten!$Z$118:$Z$167),"") & " " & IF($A71<=Daten!$B$8,LOOKUP($B71,Daten!$A$118:$A$167,Daten!$AA$118:$AA$167),"") -> 10,3 Inhalt6Einh[10,3] | J76: =IF($A71<=Daten!$B$8,LOOKUP($B71,Daten!$A$169:$A$218,Daten!$Z$169:$Z$218),"") & " " & IF($A71<=Daten!$B$8,LOOKUP($B71,Daten!$A$169:$A$218,Daten!$AA$169:$AA$218),"") -> 10,4 Inhalt6Einh[10,4] | L76: =IF($A71<=Daten!$B$8,LOOKUP($B71,Daten!$A$220:$A$269,Daten!$Z$220:$Z$269),"") & " " & IF($A71<=Daten!$B$8,LOOKUP($B71,Daten!$A$220:$A$269,Daten!$AA$220:$AA$269),"") -> 10,5 Inhalt6Einh[10,5] | N76: =IF($A71<=Daten!$B$8,LOOKUP($B71,Daten!$A$271:$A$320,Daten!$Z$271:$Z$320),"") & " " & IF($A71<=Daten!$B$8,LOOKUP($B71,Daten!$A$271:$A$320,Daten!$AA$271:$AA$320),"") -> 10,6 Inhalt6Einh[10,6] | P76: =IF($A71<=Daten!$B$8,LOOKUP($B71,Daten!$A$322:$A$371,Daten!$Z$322:$Z$371),"") & " " & IF($A71<=Daten!$B$8,LOOKUP($B71,Daten!$A$322:$A$371,Daten!$AA$322:$AA$371),"") -> 10,7 Inhalt6Einh[10,7]
B77: =IF(A71<=Daten!$B$8,"Zusatzstoffe","") -> Zusatzstoffe | C77: =IF($A71<=Daten!$B$8,LOOKUP($B71,Daten!$A$16:$A$65,Daten!$L$16:$L$65),"") -> 10.1 | D77: =IF($A71<=Daten!$B$8,LOOKUP($B71,Daten!$A$16:$A$65,Daten!$E$16:$E$65),"") -> 210.1 | E77: =IF($A71<=Daten!$B$8,LOOKUP($B71,Daten!$A$67:$A$116,Daten!$L$67:$L$116),"") -> 10.2 | F77: =IF($A71<=Daten!$B$8,LOOKUP($B71,Daten!$A$16:$A$65,Daten!$E$67:$E$116),"") -> 0 | G77: =IF($A71<=Daten!$B$8,LOOKUP($B71,Daten!$A$118:$A$167,Daten!$L$118:$L$167),"") -> 10.3 | H77: =IF($A71<=Daten!$B$8,LOOKUP($B71,Daten!$A$118:$A$167,Daten!$E$118:$E$167),"") -> 0 | I77: =IF($A71<=Daten!$B$8,LOOKUP($B71,Daten!$A$169:$A$218,Daten!$L$169:$L$218),"") -> 10.4 | J77: =IF($A71<=Daten!$B$8,LOOKUP($B71,Daten!$A$169:$A$218,Daten!$E$169:$E$218),"") -> 0 | K77: =IF($A71<=Daten!$B$8,LOOKUP($B71,Daten!$A$220:$A$269,Daten!$L$220:$L$269),"") -> 10.5 | L77: =IF($A71<=Daten!$B$8,LOOKUP($B71,Daten!$A$220:$A$269,Daten!$E$220:$E$269),"") -> 0 | M77: =IF($A71<=Daten!$B$8,LOOKUP($B71,Daten!$A$271:$A$320,Daten!$L$271:$L$320),"") -> 10.6 | N77: =IF($A71<=Daten!$B$8,LOOKUP($B71,Daten!$A$271:$A$320,Daten!$E$271:$E$320),"") -> 0 | O77: =IF($A71<=Daten!$B$8,LOOKUP($B71,Daten!$A$322:$A$371,Daten!$L$322:$L$371),"") -> 10.7 | P77: =IF($A71<=Daten!$B$8,LOOKUP($B71,Daten!$A$322:$A$371,Daten!$E$322:$E$371),"") -> 0
A78: 11 | B78: =IF(A78<=Daten!$B$8,Daten!L9,"") -> Menülinie 11 | C78: =IF($A78<=Daten!$B$8,LOOKUP($B78,Daten!$A$16:$A$65,Daten!$C$16:$C$65),"") -> Lang[11,1] | D78: =IF($A78<=Daten!$B$8,LOOKUP($B78,Daten!$A$16:$A$65,Daten!$P$16:$P$65),"") & " " & IF($A78<=Daten!$B$8,LOOKUP($B78,Daten!$A$16:$A$65,Daten!$Q$16:$Q$65),"") -> 11,1 Inhalt1Einh[11,1] | E78: =IF($A78<=Daten!$B$8,LOOKUP($B78,Daten!$A$67:$A$116,Daten!$C$67:$C$116),"") -> Lang[11,2] | F78: =IF($A78<=Daten!$B$8,LOOKUP($B78,Daten!$A$67:$A$116,Daten!$P$67:$P$116),"") & " " & IF($A78<=Daten!$B$8,LOOKUP($B78,Daten!$A$67:$A$116,Daten!$Q$67:$Q$116),"") -> 11,2 Inhalt1Einh[11,2] | G78: =IF($A78<=Daten!$B$8,LOOKUP($B78,Daten!$A$118:$A$167,Daten!$C$118:$C$167),"") -> Lang[11,3] | H78: =IF($A78<=Daten!$B$8,LOOKUP($B78,Daten!$A$118:$A$167,Daten!$P$118:$P$167),"") & " " & IF($A78<=Daten!$B$8,LOOKUP($B78,Daten!$A$118:$A$167,Daten!$Q$118:$Q$167),"") -> 11,3 Inhalt1Einh[11,3] | I78: =IF($A78<=Daten!$B$8,LOOKUP($B78,Daten!$A$169:$A$218,Daten!$C$169:$C$218),"") -> Lang[11,4] | J78: =IF($A78<=Daten!$B$8,LOOKUP($B78,Daten!$A$169:$A$218,Daten!$P$169:$P$218),"") & " " & IF($A78<=Daten!$B$8,LOOKUP($B78,Daten!$A$169:$A$218,Daten!$Q$169:$Q$218),"") -> 11,4 Inhalt1Einh[11,4] | K78: =IF($A78<=Daten!$B$8,LOOKUP($B78,Daten!$A$220:$A$269,Daten!$C$220:$C$269),"") -> Lang[11,5] | L78: =IF($A78<=Daten!$B$8,LOOKUP($B78,Daten!$A$220:$A$269,Daten!$P$220:$P$269),"") & " " & IF($A78<=Daten!$B$8,LOOKUP($B78,Daten!$A$220:$A$269,Daten!$Q$220:$Q$269),"") -> 11,5 Inhalt1Einh[11,5] | M78: =IF($A78<=Daten!$B$8,LOOKUP($B78,Daten!$A$271:$A$320,Daten!$C$271:$C$320),"") -> Lang[11,6] | N78: =IF($A78<=Daten!$B$8,LOOKUP($B78,Daten!$A$271:$A$320,Daten!$P$271:$P$320),"") & " " & IF($A78<=Daten!$B$8,LOOKUP($B78,Daten!$A$271:$A$320,Daten!$Q$271:$Q$320),"") -> 11,6 Inhalt1Einh[11,6] | O78: =IF($A78<=Daten!$B$8,LOOKUP($B78,Daten!$A$322:$A$371,Daten!$B$322:$C$371),"") ->  | P78: =IF($A78<=Daten!$B$8,LOOKUP($B78,Daten!$A$322:$A$371,Daten!$P$322:$P$371),"") & " " & IF($A78<=Daten!$B$8,LOOKUP($B78,Daten!$A$322:$A$371,Daten!$Q$322:$Q$371),"") -> 11,7 Inhalt1Einh[11,7]
D79: =IF($A78<=Daten!$B$8,LOOKUP($B78,Daten!$A$16:$A$65,Daten!$R$16:$R$65),"") & " " & IF($A78<=Daten!$B$8,LOOKUP($B78,Daten!$A$16:$A$65,Daten!$S$16:$S$65),"") -> 11,1 Inhalt2Einh[11,1] | F79: =IF($A78<=Daten!$B$8,LOOKUP($B78,Daten!$A$67:$A$116,Daten!$R$67:$R$116),"") & " " & IF($A78<=Daten!$B$8,LOOKUP($B78,Daten!$A$67:$A$116,Daten!$S$67:$S$116),"") -> 11,2 Inhalt2Einh[11,2] | H79: =IF($A78<=Daten!$B$8,LOOKUP($B78,Daten!$A$118:$A$167,Daten!$R$118:$R$167),"") & " " & IF($A78<=Daten!$B$8,LOOKUP($B78,Daten!$A$118:$A$167,Daten!$S$118:$S$167),"") -> 11,3 Inhalt2Einh[11,3] | J79: =IF($A78<=Daten!$B$8,LOOKUP($B78,Daten!$A$169:$A$218,Daten!$R$169:$R$218),"") & " " & IF($A78<=Daten!$B$8,LOOKUP($B78,Daten!$A$169:$A$218,Daten!$S$169:$S$218),"") -> 11,4 Inhalt2Einh[11,4] | L79: =IF($A78<=Daten!$B$8,LOOKUP($B78,Daten!$A$220:$A$269,Daten!$R$220:$R$269),"") & " " & IF($A78<=Daten!$B$8,LOOKUP($B78,Daten!$A$220:$A$269,Daten!$S$220:$S$269),"") -> 11,5 Inhalt2Einh[11,5] | N79: =IF($A78<=Daten!$B$8,LOOKUP($B78,Daten!$A$271:$A$320,Daten!$R$271:$R$320),"") & " " & IF($A78<=Daten!$B$8,LOOKUP($B78,Daten!$A$271:$A$320,Daten!$S$271:$S$320),"") -> 11,6 Inhalt2Einh[11,6] | P79: =IF($A78<=Daten!$B$8,LOOKUP($B78,Daten!$A$322:$A$371,Daten!$R$322:$R$371),"") & " " & IF($A78<=Daten!$B$8,LOOKUP($B78,Daten!$A$322:$A$371,Daten!$S$322:$S$371),"") -> 11,7 Inhalt2Einh[11,7]
D80: =IF($A78<=Daten!$B$8,LOOKUP($B78,Daten!$A$16:$A$65,Daten!$T$16:$T$65),"") & " " & IF($A78<=Daten!$B$8,LOOKUP($B78,Daten!$A$16:$A$65,Daten!$U$16:$U$65),"") -> 11,1 Inhalt3Einh[11,1] | F80: =IF($A78<=Daten!$B$8,LOOKUP($B78,Daten!$A$67:$A$116,Daten!$T$67:$T$116),"") & " " & IF($A78<=Daten!$B$8,LOOKUP($B78,Daten!$A$67:$A$116,Daten!$U$67:$U$116),"") -> 11,2 Inhalt3Einh[11,2] | H80: =IF($A78<=Daten!$B$8,LOOKUP($B78,Daten!$A$118:$A$167,Daten!$T$118:$T$167),"") & " " & IF($A78<=Daten!$B$8,LOOKUP($B78,Daten!$A$118:$A$167,Daten!$U$118:$U$167),"") -> 11,3 Inhalt3Einh[11,3] | J80: =IF($A78<=Daten!$B$8,LOOKUP($B78,Daten!$A$169:$A$218,Daten!$T$169:$T$218),"") & " " & IF($A78<=Daten!$B$8,LOOKUP($B78,Daten!$A$169:$A$218,Daten!$U$169:$U$218),"") -> 11,4 Inhalt3Einh[11,4] | L80: =IF($A78<=Daten!$B$8,LOOKUP($B78,Daten!$A$220:$A$269,Daten!$T$220:$T$269),"") & " " & IF($A78<=Daten!$B$8,LOOKUP($B78,Daten!$A$220:$A$269,Daten!$U$220:$U$269),"") -> 11,5 Inhalt3Einh[11,5] | N80: =IF($A78<=Daten!$B$8,LOOKUP($B78,Daten!$A$271:$A$320,Daten!$T$271:$T$320),"") & " " & IF($A78<=Daten!$B$8,LOOKUP($B78,Daten!$A$271:$A$320,Daten!$U$271:$U$320),"") -> 11,6 Inhalt3Einh[11,6] | P80: =IF($A78<=Daten!$B$8,LOOKUP($B78,Daten!$A$322:$A$371,Daten!$T$322:$T$371),"") & " " & IF($A78<=Daten!$B$8,LOOKUP($B78,Daten!$A$322:$A$371,Daten!$U$322:$U$371),"") -> 11,7 Inhalt3Einh[11,7]
D81: =IF($A78<=Daten!$B$8,LOOKUP($B78,Daten!$A$16:$A$65,Daten!$V$16:$V$65),"") & " " & IF($A78<=Daten!$B$8,LOOKUP($B78,Daten!$A$16:$A$65,Daten!$W$16:$W$65),"") -> 11,1 Inhalt4Einh[11,1] | F81: =IF($A78<=Daten!$B$8,LOOKUP($B78,Daten!$A$67:$A$116,Daten!$V$67:$V$116),"") & " " & IF($A78<=Daten!$B$8,LOOKUP($B78,Daten!$A$67:$A$116,Daten!$W$67:$W$116),"") -> 11,2 Inhalt4Einh[11,2] | H81: =IF($A78<=Daten!$B$8,LOOKUP($B78,Daten!$A$118:$A$167,Daten!$V$118:$V$167),"") & " " & IF($A78<=Daten!$B$8,LOOKUP($B78,Daten!$A$118:$A$167,Daten!$W$118:$W$167),"") -> 11,3 Inhalt4Einh[11,3] | J81: =IF($A78<=Daten!$B$8,LOOKUP($B78,Daten!$A$169:$A$218,Daten!$V$169:$V$218),"") & " " & IF($A78<=Daten!$B$8,LOOKUP($B78,Daten!$A$169:$A$218,Daten!$W$169:$W$218),"") -> 11,4 Inhalt4Einh[11,4] | L81: =IF($A78<=Daten!$B$8,LOOKUP($B78,Daten!$A$220:$A$269,Daten!$V$220:$V$269),"") & " " & IF($A78<=Daten!$B$8,LOOKUP($B78,Daten!$A$220:$A$269,Daten!$W$220:$W$269),"") -> 11,5 Inhalt4Einh[11,5] | N81: =IF($A78<=Daten!$B$8,LOOKUP($B78,Daten!$A$271:$A$320,Daten!$V$271:$V$320),"") & " " & IF($A78<=Daten!$B$8,LOOKUP($B78,Daten!$A$271:$A$320,Daten!$W$271:$W$320),"") -> 11,6 Inhalt4Einh[11,6] | P81: =IF($A78<=Daten!$B$8,LOOKUP($B78,Daten!$A$322:$A$371,Daten!$V$322:$V$371),"") & " " & IF($A78<=Daten!$B$8,LOOKUP($B78,Daten!$A$322:$A$371,Daten!$W$322:$W$371),"") -> 11,7 Inhalt4Einh[11,7]
D82: =IF($A78<=Daten!$B$8,LOOKUP($B78,Daten!$A$16:$A$65,Daten!$X$16:$X$65),"") & " " & IF($A78<=Daten!$B$8,LOOKUP($B78,Daten!$A$16:$A$65,Daten!$Y$16:$Y$65),"") -> 11,1 Inhalt5Einh[11,1] | F82: =IF($A78<=Daten!$B$8,LOOKUP($B78,Daten!$A$67:$A$116,Daten!$X$67:$X$116),"") & " " & IF($A78<=Daten!$B$8,LOOKUP($B78,Daten!$A$67:$A$116,Daten!$Y$67:$Y$116),"") -> 11,2 Inhalt5Einh[11,2] | H82: =IF($A78<=Daten!$B$8,LOOKUP($B78,Daten!$A$118:$A$167,Daten!$X$118:$X$167),"") & " " & IF($A78<=Daten!$B$8,LOOKUP($B78,Daten!$A$118:$A$167,Daten!$Y$118:$Y$167),"") -> 11,3 Inhalt5Einh[11,3] | J82: =IF($A78<=Daten!$B$8,LOOKUP($B78,Daten!$A$169:$A$218,Daten!$X$169:$X$218),"") & " " & IF($A78<=Daten!$B$8,LOOKUP($B78,Daten!$A$169:$A$218,Daten!$Y$169:$Y$218),"") -> 11,4 Inhalt5Einh[11,4] | L82: =IF($A78<=Daten!$B$8,LOOKUP($B78,Daten!$A$220:$A$269,Daten!$X$220:$X$269),"") & " " & IF($A78<=Daten!$B$8,LOOKUP($B78,Daten!$A$220:$A$269,Daten!$Y$220:$Y$269),"") -> 11,5 Inhalt5Einh[11,5] | N82: =IF($A78<=Daten!$B$8,LOOKUP($B78,Daten!$A$271:$A$320,Daten!$X$271:$X$320),"") & " " & IF($A78<=Daten!$B$8,LOOKUP($B78,Daten!$A$271:$A$320,Daten!$Y$271:$Y$320),"") -> 11,6 Inhalt5Einh[11,6] | P82: =IF($A78<=Daten!$B$8,LOOKUP($B78,Daten!$A$322:$A$371,Daten!$X$322:$X$371),"") & " " & IF($A78<=Daten!$B$8,LOOKUP($B78,Daten!$A$322:$A$371,Daten!$Y$322:$Y$371),"") -> 11,7 Inhalt5Einh[11,7]
D83: =IF($A78<=Daten!$B$8,LOOKUP($B78,Daten!$A$16:$A$65,Daten!$Z$16:$Z$65),"") & " " & IF($A78<=Daten!$B$8,LOOKUP($B78,Daten!$A$16:$A$65,Daten!$AA$16:$AA$65),"") -> 11,1 Inhalt6Einh[11,1] | F83: =IF($A78<=Daten!$B$8,LOOKUP($B78,Daten!$A$67:$A$116,Daten!$Z$67:$Z$116),"") & " " & IF($A78<=Daten!$B$8,LOOKUP($B78,Daten!$A$67:$A$116,Daten!$AA$67:$AA$116),"") -> 11,2 Inhalt6Einh[11,2] | H83: =IF($A78<=Daten!$B$8,LOOKUP($B78,Daten!$A$118:$A$167,Daten!$Z$118:$Z$167),"") & " " & IF($A78<=Daten!$B$8,LOOKUP($B78,Daten!$A$118:$A$167,Daten!$AA$118:$AA$167),"") -> 11,3 Inhalt6Einh[11,3] | J83: =IF($A78<=Daten!$B$8,LOOKUP($B78,Daten!$A$169:$A$218,Daten!$Z$169:$Z$218),"") & " " & IF($A78<=Daten!$B$8,LOOKUP($B78,Daten!$A$169:$A$218,Daten!$AA$169:$AA$218),"") -> 11,4 Inhalt6Einh[11,4] | L83: =IF($A78<=Daten!$B$8,LOOKUP($B78,Daten!$A$220:$A$269,Daten!$Z$220:$Z$269),"") & " " & IF($A78<=Daten!$B$8,LOOKUP($B78,Daten!$A$220:$A$269,Daten!$AA$220:$AA$269),"") -> 11,5 Inhalt6Einh[11,5] | N83: =IF($A78<=Daten!$B$8,LOOKUP($B78,Daten!$A$271:$A$320,Daten!$Z$271:$Z$320),"") & " " & IF($A78<=Daten!$B$8,LOOKUP($B78,Daten!$A$271:$A$320,Daten!$AA$271:$AA$320),"") -> 11,6 Inhalt6Einh[11,6] | P83: =IF($A78<=Daten!$B$8,LOOKUP($B78,Daten!$A$322:$A$371,Daten!$Z$322:$Z$371),"") & " " & IF($A78<=Daten!$B$8,LOOKUP($B78,Daten!$A$322:$A$371,Daten!$AA$322:$AA$371),"") -> 11,7 Inhalt6Einh[11,7]
B84: =IF(A78<=Daten!$B$8,"Zusatzstoffe","") -> Zusatzstoffe | C84: =IF($A78<=Daten!$B$8,LOOKUP($B78,Daten!$A$16:$A$65,Daten!$L$16:$L$65),"") -> 11.1 | D84: =IF($A78<=Daten!$B$8,LOOKUP($B78,Daten!$A$16:$A$65,Daten!$E$16:$E$65),"") -> 211.1 | E84: =IF($A78<=Daten!$B$8,LOOKUP($B78,Daten!$A$67:$A$116,Daten!$L$67:$L$116),"") -> 11.2 | F84: =IF($A78<=Daten!$B$8,LOOKUP($B78,Daten!$A$16:$A$65,Daten!$E$67:$E$116),"") -> 0 | G84: =IF($A78<=Daten!$B$8,LOOKUP($B78,Daten!$A$118:$A$167,Daten!$L$118:$L$167),"") -> 11.3 | H84: =IF($A78<=Daten!$B$8,LOOKUP($B78,Daten!$A$118:$A$167,Daten!$E$118:$E$167),"") -> 0 | I84: =IF($A78<=Daten!$B$8,LOOKUP($B78,Daten!$A$169:$A$218,Daten!$L$169:$L$218),"") -> 11.4 | J84: =IF($A78<=Daten!$B$8,LOOKUP($B78,Daten!$A$169:$A$218,Daten!$E$169:$E$218),"") -> 0 | K84: =IF($A78<=Daten!$B$8,LOOKUP($B78,Daten!$A$220:$A$269,Daten!$L$220:$L$269),"") -> 11.5 | L84: =IF($A78<=Daten!$B$8,LOOKUP($B78,Daten!$A$220:$A$269,Daten!$E$220:$E$269),"") -> 0 | M84: =IF($A78<=Daten!$B$8,LOOKUP($B78,Daten!$A$271:$A$320,Daten!$L$271:$L$320),"") -> 11.6 | N84: =IF($A78<=Daten!$B$8,LOOKUP($B78,Daten!$A$271:$A$320,Daten!$E$271:$E$320),"") -> 0 | O84: =IF($A78<=Daten!$B$8,LOOKUP($B78,Daten!$A$322:$A$371,Daten!$L$322:$L$371),"") -> 11.7 | P84: =IF($A78<=Daten!$B$8,LOOKUP($B78,Daten!$A$322:$A$371,Daten!$E$322:$E$371),"") -> 0
A85: 12 | B85: =IF(A85<=Daten!$B$8,Daten!M9,"") -> Menülinie 12 | C85: =IF($A85<=Daten!$B$8,LOOKUP($B85,Daten!$A$16:$A$65,Daten!$C$16:$C$65),"") -> Lang[12,1] | D85: =IF($A85<=Daten!$B$8,LOOKUP($B85,Daten!$A$16:$A$65,Daten!$P$16:$P$65),"") & " " & IF($A85<=Daten!$B$8,LOOKUP($B85,Daten!$A$16:$A$65,Daten!$Q$16:$Q$65),"") -> 12,1 Inhalt1Einh[12,1] | E85: =IF($A85<=Daten!$B$8,LOOKUP($B85,Daten!$A$67:$A$116,Daten!$C$67:$C$116),"") -> Lang[12,2] | F85: =IF($A85<=Daten!$B$8,LOOKUP($B85,Daten!$A$67:$A$116,Daten!$P$67:$P$116),"") & " " & IF($A85<=Daten!$B$8,LOOKUP($B85,Daten!$A$67:$A$116,Daten!$Q$67:$Q$116),"") -> 12,2 Inhalt1Einh[12,2] | G85: =IF($A85<=Daten!$B$8,LOOKUP($B85,Daten!$A$118:$A$167,Daten!$C$118:$C$167),"") -> Lang[12,3] | H85: =IF($A85<=Daten!$B$8,LOOKUP($B85,Daten!$A$118:$A$167,Daten!$P$118:$P$167),"") & " " & IF($A85<=Daten!$B$8,LOOKUP($B85,Daten!$A$118:$A$167,Daten!$Q$118:$Q$167),"") -> 12,3 Inhalt1Einh[12,3] | I85: =IF($A85<=Daten!$B$8,LOOKUP($B85,Daten!$A$169:$A$218,Daten!$C$169:$C$218),"") -> Lang[12,4] | J85: =IF($A85<=Daten!$B$8,LOOKUP($B85,Daten!$A$169:$A$218,Daten!$P$169:$P$218),"") & " " & IF($A85<=Daten!$B$8,LOOKUP($B85,Daten!$A$169:$A$218,Daten!$Q$169:$Q$218),"") -> 12,4 Inhalt1Einh[12,4] | K85: =IF($A85<=Daten!$B$8,LOOKUP($B85,Daten!$A$220:$A$269,Daten!$C$220:$C$269),"") -> Lang[12,5] | L85: =IF($A85<=Daten!$B$8,LOOKUP($B85,Daten!$A$220:$A$269,Daten!$P$220:$P$269),"") & " " & IF($A85<=Daten!$B$8,LOOKUP($B85,Daten!$A$220:$A$269,Daten!$Q$220:$Q$269),"") -> 12,5 Inhalt1Einh[12,5] | M85: =IF($A85<=Daten!$B$8,LOOKUP($B85,Daten!$A$271:$A$320,Daten!$C$271:$C$320),"") -> Lang[12,6] | N85: =IF($A85<=Daten!$B$8,LOOKUP($B85,Daten!$A$271:$A$320,Daten!$P$271:$P$320),"") & " " & IF($A85<=Daten!$B$8,LOOKUP($B85,Daten!$A$271:$A$320,Daten!$Q$271:$Q$320),"") -> 12,6 Inhalt1Einh[12,6] | O85: =IF($A85<=Daten!$B$8,LOOKUP($B85,Daten!$A$322:$A$371,Daten!$B$322:$C$371),"") ->  | P85: =IF($A85<=Daten!$B$8,LOOKUP($B85,Daten!$A$322:$A$371,Daten!$P$322:$P$371),"") & " " & IF($A85<=Daten!$B$8,LOOKUP($B85,Daten!$A$322:$A$371,Daten!$Q$322:$Q$371),"") -> 12,7 Inhalt1Einh[12,7]
D86: =IF($A85<=Daten!$B$8,LOOKUP($B85,Daten!$A$16:$A$65,Daten!$R$16:$R$65),"") & " " & IF($A85<=Daten!$B$8,LOOKUP($B85,Daten!$A$16:$A$65,Daten!$S$16:$S$65),"") -> 12,1 Inhalt2Einh[12,1] | F86: =IF($A85<=Daten!$B$8,LOOKUP($B85,Daten!$A$67:$A$116,Daten!$R$67:$R$116),"") & " " & IF($A85<=Daten!$B$8,LOOKUP($B85,Daten!$A$67:$A$116,Daten!$S$67:$S$116),"") -> 12,2 Inhalt2Einh[12,2] | H86: =IF($A85<=Daten!$B$8,LOOKUP($B85,Daten!$A$118:$A$167,Daten!$R$118:$R$167),"") & " " & IF($A85<=Daten!$B$8,LOOKUP($B85,Daten!$A$118:$A$167,Daten!$S$118:$S$167),"") -> 12,3 Inhalt2Einh[12,3] | J86: =IF($A85<=Daten!$B$8,LOOKUP($B85,Daten!$A$169:$A$218,Daten!$R$169:$R$218),"") & " " & IF($A85<=Daten!$B$8,LOOKUP($B85,Daten!$A$169:$A$218,Daten!$S$169:$S$218),"") -> 12,4 Inhalt2Einh[12,4] | L86: =IF($A85<=Daten!$B$8,LOOKUP($B85,Daten!$A$220:$A$269,Daten!$R$220:$R$269),"") & " " & IF($A85<=Daten!$B$8,LOOKUP($B85,Daten!$A$220:$A$269,Daten!$S$220:$S$269),"") -> 12,5 Inhalt2Einh[12,5] | N86: =IF($A85<=Daten!$B$8,LOOKUP($B85,Daten!$A$271:$A$320,Daten!$R$271:$R$320),"") & " " & IF($A85<=Daten!$B$8,LOOKUP($B85,Daten!$A$271:$A$320,Daten!$S$271:$S$320),"") -> 12,6 Inhalt2Einh[12,6] | P86: =IF($A85<=Daten!$B$8,LOOKUP($B85,Daten!$A$322:$A$371,Daten!$R$322:$R$371),"") & " " & IF($A85<=Daten!$B$8,LOOKUP($B85,Daten!$A$322:$A$371,Daten!$S$322:$S$371),"") -> 12,7 Inhalt2Einh[12,7]
D87: =IF($A85<=Daten!$B$8,LOOKUP($B85,Daten!$A$16:$A$65,Daten!$T$16:$T$65),"") & " " & IF($A85<=Daten!$B$8,LOOKUP($B85,Daten!$A$16:$A$65,Daten!$U$16:$U$65),"") -> 12,1 Inhalt3Einh[12,1] | F87: =IF($A85<=Daten!$B$8,LOOKUP($B85,Daten!$A$67:$A$116,Daten!$T$67:$T$116),"") & " " & IF($A85<=Daten!$B$8,LOOKUP($B85,Daten!$A$67:$A$116,Daten!$U$67:$U$116),"") -> 12,2 Inhalt3Einh[12,2] | H87: =IF($A85<=Daten!$B$8,LOOKUP($B85,Daten!$A$118:$A$167,Daten!$T$118:$T$167),"") & " " & IF($A85<=Daten!$B$8,LOOKUP($B85,Daten!$A$118:$A$167,Daten!$U$118:$U$167),"") -> 12,3 Inhalt3Einh[12,3] | J87: =IF($A85<=Daten!$B$8,LOOKUP($B85,Daten!$A$169:$A$218,Daten!$T$169:$T$218),"") & " " & IF($A85<=Daten!$B$8,LOOKUP($B85,Daten!$A$169:$A$218,Daten!$U$169:$U$218),"") -> 12,4 Inhalt3Einh[12,4] | L87: =IF($A85<=Daten!$B$8,LOOKUP($B85,Daten!$A$220:$A$269,Daten!$T$220:$T$269),"") & " " & IF($A85<=Daten!$B$8,LOOKUP($B85,Daten!$A$220:$A$269,Daten!$U$220:$U$269),"") -> 12,5 Inhalt3Einh[12,5] | N87: =IF($A85<=Daten!$B$8,LOOKUP($B85,Daten!$A$271:$A$320,Daten!$T$271:$T$320),"") & " " & IF($A85<=Daten!$B$8,LOOKUP($B85,Daten!$A$271:$A$320,Daten!$U$271:$U$320),"") -> 12,6 Inhalt3Einh[12,6] | P87: =IF($A85<=Daten!$B$8,LOOKUP($B85,Daten!$A$322:$A$371,Daten!$T$322:$T$371),"") & " " & IF($A85<=Daten!$B$8,LOOKUP($B85,Daten!$A$322:$A$371,Daten!$U$322:$U$371),"") -> 12,7 Inhalt3Einh[12,7]
D88: =IF($A85<=Daten!$B$8,LOOKUP($B85,Daten!$A$16:$A$65,Daten!$V$16:$V$65),"") & " " & IF($A85<=Daten!$B$8,LOOKUP($B85,Daten!$A$16:$A$65,Daten!$W$16:$W$65),"") -> 12,1 Inhalt4Einh[12,1] | F88: =IF($A85<=Daten!$B$8,LOOKUP($B85,Daten!$A$67:$A$116,Daten!$V$67:$V$116),"") & " " & IF($A85<=Daten!$B$8,LOOKUP($B85,Daten!$A$67:$A$116,Daten!$W$67:$W$116),"") -> 12,2 Inhalt4Einh[12,2] | H88: =IF($A85<=Daten!$B$8,LOOKUP($B85,Daten!$A$118:$A$167,Daten!$V$118:$V$167),"") & " " & IF($A85<=Daten!$B$8,LOOKUP($B85,Daten!$A$118:$A$167,Daten!$W$118:$W$167),"") -> 12,3 Inhalt4Einh[12,3] | J88: =IF($A85<=Daten!$B$8,LOOKUP($B85,Daten!$A$169:$A$218,Daten!$V$169:$V$218),"") & " " & IF($A85<=Daten!$B$8,LOOKUP($B85,Daten!$A$169:$A$218,Daten!$W$169:$W$218),"") -> 12,4 Inhalt4Einh[12,4] | L88: =IF($A85<=Daten!$B$8,LOOKUP($B85,Daten!$A$220:$A$269,Daten!$V$220:$V$269),"") & " " & IF($A85<=Daten!$B$8,LOOKUP($B85,Daten!$A$220:$A$269,Daten!$W$220:$W$269),"") -> 12,5 Inhalt4Einh[12,5] | N88: =IF($A85<=Daten!$B$8,LOOKUP($B85,Daten!$A$271:$A$320,Daten!$V$271:$V$320),"") & " " & IF($A85<=Daten!$B$8,LOOKUP($B85,Daten!$A$271:$A$320,Daten!$W$271:$W$320),"") -> 12,6 Inhalt4Einh[12,6] | P88: =IF($A85<=Daten!$B$8,LOOKUP($B85,Daten!$A$322:$A$371,Daten!$V$322:$V$371),"") & " " & IF($A85<=Daten!$B$8,LOOKUP($B85,Daten!$A$322:$A$371,Daten!$W$322:$W$371),"") -> 12,7 Inhalt4Einh[12,7]
D89: =IF($A85<=Daten!$B$8,LOOKUP($B85,Daten!$A$16:$A$65,Daten!$X$16:$X$65),"") & " " & IF($A85<=Daten!$B$8,LOOKUP($B85,Daten!$A$16:$A$65,Daten!$Y$16:$Y$65),"") -> 12,1 Inhalt5Einh[12,1] | F89: =IF($A85<=Daten!$B$8,LOOKUP($B85,Daten!$A$67:$A$116,Daten!$X$67:$X$116),"") & " " & IF($A85<=Daten!$B$8,LOOKUP($B85,Daten!$A$67:$A$116,Daten!$Y$67:$Y$116),"") -> 12,2 Inhalt5Einh[12,2] | H89: =IF($A85<=Daten!$B$8,LOOKUP($B85,Daten!$A$118:$A$167,Daten!$X$118:$X$167),"") & " " & IF($A85<=Daten!$B$8,LOOKUP($B85,Daten!$A$118:$A$167,Daten!$Y$118:$Y$167),"") -> 12,3 Inhalt5Einh[12,3] | J89: =IF($A85<=Daten!$B$8,LOOKUP($B85,Daten!$A$169:$A$218,Daten!$X$169:$X$218),"") & " " & IF($A85<=Daten!$B$8,LOOKUP($B85,Daten!$A$169:$A$218,Daten!$Y$169:$Y$218),"") -> 12,4 Inhalt5Einh[12,4] | L89: =IF($A85<=Daten!$B$8,LOOKUP($B85,Daten!$A$220:$A$269,Daten!$X$220:$X$269),"") & " " & IF($A85<=Daten!$B$8,LOOKUP($B85,Daten!$A$220:$A$269,Daten!$Y$220:$Y$269),"") -> 12,5 Inhalt5Einh[12,5] | N89: =IF($A85<=Daten!$B$8,LOOKUP($B85,Daten!$A$271:$A$320,Daten!$X$271:$X$320),"") & " " & IF($A85<=Daten!$B$8,LOOKUP($B85,Daten!$A$271:$A$320,Daten!$Y$271:$Y$320),"") -> 12,6 Inhalt5Einh[12,6] | P89: =IF($A85<=Daten!$B$8,LOOKUP($B85,Daten!$A$322:$A$371,Daten!$X$322:$X$371),"") & " " & IF($A85<=Daten!$B$8,LOOKUP($B85,Daten!$A$322:$A$371,Daten!$Y$322:$Y$371),"") -> 12,7 Inhalt5Einh[12,7]
D90: =IF($A85<=Daten!$B$8,LOOKUP($B85,Daten!$A$16:$A$65,Daten!$Z$16:$Z$65),"") & " " & IF($A85<=Daten!$B$8,LOOKUP($B85,Daten!$A$16:$A$65,Daten!$AA$16:$AA$65),"") -> 12,1 Inhalt6Einh[12,1] | F90: =IF($A85<=Daten!$B$8,LOOKUP($B85,Daten!$A$67:$A$116,Daten!$Z$67:$Z$116),"") & " " & IF($A85<=Daten!$B$8,LOOKUP($B85,Daten!$A$67:$A$116,Daten!$AA$67:$AA$116),"") -> 12,2 Inhalt6Einh[12,2] | H90: =IF($A85<=Daten!$B$8,LOOKUP($B85,Daten!$A$118:$A$167,Daten!$Z$118:$Z$167),"") & " " & IF($A85<=Daten!$B$8,LOOKUP($B85,Daten!$A$118:$A$167,Daten!$AA$118:$AA$167),"") -> 12,3 Inhalt6Einh[12,3] | J90: =IF($A85<=Daten!$B$8,LOOKUP($B85,Daten!$A$169:$A$218,Daten!$Z$169:$Z$218),"") & " " & IF($A85<=Daten!$B$8,LOOKUP($B85,Daten!$A$169:$A$218,Daten!$AA$169:$AA$218),"") -> 12,4 Inhalt6Einh[12,4] | L90: =IF($A85<=Daten!$B$8,LOOKUP($B85,Daten!$A$220:$A$269,Daten!$Z$220:$Z$269),"") & " " & IF($A85<=Daten!$B$8,LOOKUP($B85,Daten!$A$220:$A$269,Daten!$AA$220:$AA$269),"") -> 12,5 Inhalt6Einh[12,5] | N90: =IF($A85<=Daten!$B$8,LOOKUP($B85,Daten!$A$271:$A$320,Daten!$Z$271:$Z$320),"") & " " & IF($A85<=Daten!$B$8,LOOKUP($B85,Daten!$A$271:$A$320,Daten!$AA$271:$AA$320),"") -> 12,6 Inhalt6Einh[12,6] | P90: =IF($A85<=Daten!$B$8,LOOKUP($B85,Daten!$A$322:$A$371,Daten!$Z$322:$Z$371),"") & " " & IF($A85<=Daten!$B$8,LOOKUP($B85,Daten!$A$322:$A$371,Daten!$AA$322:$AA$371),"") -> 12,7 Inhalt6Einh[12,7]
B91: =IF(A85<=Daten!$B$8,"Zusatzstoffe","") -> Zusatzstoffe | C91: =IF($A85<=Daten!$B$8,LOOKUP($B85,Daten!$A$16:$A$65,Daten!$L$16:$L$65),"") -> 12.1 | D91: =IF($A85<=Daten!$B$8,LOOKUP($B85,Daten!$A$16:$A$65,Daten!$E$16:$E$65),"") -> 212.1 | E91: =IF($A85<=Daten!$B$8,LOOKUP($B85,Daten!$A$67:$A$116,Daten!$L$67:$L$116),"") -> 12.2 | F91: =IF($A85<=Daten!$B$8,LOOKUP($B85,Daten!$A$16:$A$65,Daten!$E$67:$E$116),"") -> 0 | G91: =IF($A85<=Daten!$B$8,LOOKUP($B85,Daten!$A$118:$A$167,Daten!$L$118:$L$167),"") -> 12.3 | H91: =IF($A85<=Daten!$B$8,LOOKUP($B85,Daten!$A$118:$A$167,Daten!$E$118:$E$167),"") -> 0 | I91: =IF($A85<=Daten!$B$8,LOOKUP($B85,Daten!$A$169:$A$218,Daten!$L$169:$L$218),"") -> 12.4 | J91: =IF($A85<=Daten!$B$8,LOOKUP($B85,Daten!$A$169:$A$218,Daten!$E$169:$E$218),"") -> 0 | K91: =IF($A85<=Daten!$B$8,LOOKUP($B85,Daten!$A$220:$A$269,Daten!$L$220:$L$269),"") -> 12.5 | L91: =IF($A85<=Daten!$B$8,LOOKUP($B85,Daten!$A$220:$A$269,Daten!$E$220:$E$269),"") -> 0 | M91: =IF($A85<=Daten!$B$8,LOOKUP($B85,Daten!$A$271:$A$320,Daten!$L$271:$L$320),"") -> 12.6 | N91: =IF($A85<=Daten!$B$8,LOOKUP($B85,Daten!$A$271:$A$320,Daten!$E$271:$E$320),"") -> 0 | O91: =IF($A85<=Daten!$B$8,LOOKUP($B85,Daten!$A$322:$A$371,Daten!$L$322:$L$371),"") -> 12.7 | P91: =IF($A85<=Daten!$B$8,LOOKUP($B85,Daten!$A$322:$A$371,Daten!$E$322:$E$371),"") -> 0
A92: 13 | B92: =IF(A92<=Daten!$B$8,Daten!N9,"") -> Menülinie 13 | C92: =IF(A92<=Daten!$B$8,LOOKUP(B92,Daten!$A$16:$A$65,Daten!$C$16:$C$65),"") -> Lang[13,1] | D92: =IF($A92<=Daten!$B$8,LOOKUP($B92,Daten!$A$16:$A$65,Daten!$P$16:$P$65),"") & " " & IF($A92<=Daten!$B$8,LOOKUP($B92,Daten!$A$16:$A$65,Daten!$Q$16:$Q$65),"") -> 13,1 Inhalt1Einh[13,1] | E92: =IF($A92<=Daten!$B$8,LOOKUP($B92,Daten!$A$67:$A$116,Daten!$C$67:$C$116),"") -> Lang[13,2] | F92: =IF($A92<=Daten!$B$8,LOOKUP($B92,Daten!$A$67:$A$116,Daten!$P$67:$P$116),"") & " " & IF($A92<=Daten!$B$8,LOOKUP($B92,Daten!$A$67:$A$116,Daten!$Q$67:$Q$116),"") -> 13,2 Inhalt1Einh[13,2] | G92: =IF($A92<=Daten!$B$8,LOOKUP($B92,Daten!$A$118:$A$167,Daten!$C$118:$C$167),"") -> Lang[13,3] | H92: =IF($A92<=Daten!$B$8,LOOKUP($B92,Daten!$A$118:$A$167,Daten!$P$118:$P$167),"") & " " & IF($A92<=Daten!$B$8,LOOKUP($B92,Daten!$A$118:$A$167,Daten!$Q$118:$Q$167),"") -> 13,3 Inhalt1Einh[13,3] | I92: =IF($A92<=Daten!$B$8,LOOKUP($B92,Daten!$A$169:$A$218,Daten!$C$169:$C$218),"") -> Lang[13,4] | J92: =IF($A92<=Daten!$B$8,LOOKUP($B92,Daten!$A$169:$A$218,Daten!$P$169:$P$218),"") & " " & IF($A92<=Daten!$B$8,LOOKUP($B92,Daten!$A$169:$A$218,Daten!$Q$169:$Q$218),"") -> 13,4 Inhalt1Einh[13,4] | K92: =IF($A92<=Daten!$B$8,LOOKUP($B92,Daten!$A$220:$A$269,Daten!$C$220:$C$269),"") -> Lang[13,5] | L92: =IF($A92<=Daten!$B$8,LOOKUP($B92,Daten!$A$220:$A$269,Daten!$P$220:$P$269),"") & " " & IF($A92<=Daten!$B$8,LOOKUP($B92,Daten!$A$220:$A$269,Daten!$Q$220:$Q$269),"") -> 13,5 Inhalt1Einh[13,5] | M92: =IF($A92<=Daten!$B$8,LOOKUP($B92,Daten!$A$271:$A$320,Daten!$C$271:$C$320),"") -> Lang[13,6] | N92: =IF($A92<=Daten!$B$8,LOOKUP($B92,Daten!$A$271:$A$320,Daten!$P$271:$P$320),"") & " " & IF($A92<=Daten!$B$8,LOOKUP($B92,Daten!$A$271:$A$320,Daten!$Q$271:$Q$320),"") -> 13,6 Inhalt1Einh[13,6] | O92: =IF($A92<=Daten!$B$8,LOOKUP($B92,Daten!$A$322:$A$371,Daten!$B$322:$C$371),"") ->  | P92: =IF($A92<=Daten!$B$8,LOOKUP($B92,Daten!$A$322:$A$371,Daten!$P$322:$P$371),"") & " " & IF($A92<=Daten!$B$8,LOOKUP($B92,Daten!$A$322:$A$371,Daten!$Q$322:$Q$371),"") -> 13,7 Inhalt1Einh[13,7]
D93: =IF($A92<=Daten!$B$8,LOOKUP($B92,Daten!$A$16:$A$65,Daten!$R$16:$R$65),"") & " " & IF($A92<=Daten!$B$8,LOOKUP($B92,Daten!$A$16:$A$65,Daten!$S$16:$S$65),"") -> 13,1 Inhalt2Einh[13,1] | F93: =IF($A92<=Daten!$B$8,LOOKUP($B92,Daten!$A$67:$A$116,Daten!$R$67:$R$116),"") & " " & IF($A92<=Daten!$B$8,LOOKUP($B92,Daten!$A$67:$A$116,Daten!$S$67:$S$116),"") -> 13,2 Inhalt2Einh[13,2] | H93: =IF($A92<=Daten!$B$8,LOOKUP($B92,Daten!$A$118:$A$167,Daten!$R$118:$R$167),"") & " " & IF($A92<=Daten!$B$8,LOOKUP($B92,Daten!$A$118:$A$167,Daten!$S$118:$S$167),"") -> 13,3 Inhalt2Einh[13,3] | J93: =IF($A92<=Daten!$B$8,LOOKUP($B92,Daten!$A$169:$A$218,Daten!$R$169:$R$218),"") & " " & IF($A92<=Daten!$B$8,LOOKUP($B92,Daten!$A$169:$A$218,Daten!$S$169:$S$218),"") -> 13,4 Inhalt2Einh[13,4] | L93: =IF($A92<=Daten!$B$8,LOOKUP($B92,Daten!$A$220:$A$269,Daten!$R$220:$R$269),"") & " " & IF($A92<=Daten!$B$8,LOOKUP($B92,Daten!$A$220:$A$269,Daten!$S$220:$S$269),"") -> 13,5 Inhalt2Einh[13,5] | N93: =IF($A92<=Daten!$B$8,LOOKUP($B92,Daten!$A$271:$A$320,Daten!$R$271:$R$320),"") & " " & IF($A92<=Daten!$B$8,LOOKUP($B92,Daten!$A$271:$A$320,Daten!$S$271:$S$320),"") -> 13,6 Inhalt2Einh[13,6] | P93: =IF($A92<=Daten!$B$8,LOOKUP($B92,Daten!$A$322:$A$371,Daten!$R$322:$R$371),"") & " " & IF($A92<=Daten!$B$8,LOOKUP($B92,Daten!$A$322:$A$371,Daten!$S$322:$S$371),"") -> 13,7 Inhalt2Einh[13,7]
D94: =IF($A92<=Daten!$B$8,LOOKUP($B92,Daten!$A$16:$A$65,Daten!$T$16:$T$65),"") & " " & IF($A92<=Daten!$B$8,LOOKUP($B92,Daten!$A$16:$A$65,Daten!$U$16:$U$65),"") -> 13,1 Inhalt3Einh[13,1] | F94: =IF($A92<=Daten!$B$8,LOOKUP($B92,Daten!$A$67:$A$116,Daten!$T$67:$T$116),"") & " " & IF($A92<=Daten!$B$8,LOOKUP($B92,Daten!$A$67:$A$116,Daten!$U$67:$U$116),"") -> 13,2 Inhalt3Einh[13,2] | H94: =IF($A92<=Daten!$B$8,LOOKUP($B92,Daten!$A$118:$A$167,Daten!$T$118:$T$167),"") & " " & IF($A92<=Daten!$B$8,LOOKUP($B92,Daten!$A$118:$A$167,Daten!$U$118:$U$167),"") -> 13,3 Inhalt3Einh[13,3] | J94: =IF($A92<=Daten!$B$8,LOOKUP($B92,Daten!$A$169:$A$218,Daten!$T$169:$T$218),"") & " " & IF($A92<=Daten!$B$8,LOOKUP($B92,Daten!$A$169:$A$218,Daten!$U$169:$U$218),"") -> 13,4 Inhalt3Einh[13,4] | L94: =IF($A92<=Daten!$B$8,LOOKUP($B92,Daten!$A$220:$A$269,Daten!$T$220:$T$269),"") & " " & IF($A92<=Daten!$B$8,LOOKUP($B92,Daten!$A$220:$A$269,Daten!$U$220:$U$269),"") -> 13,5 Inhalt3Einh[13,5] | N94: =IF($A92<=Daten!$B$8,LOOKUP($B92,Daten!$A$271:$A$320,Daten!$T$271:$T$320),"") & " " & IF($A92<=Daten!$B$8,LOOKUP($B92,Daten!$A$271:$A$320,Daten!$U$271:$U$320),"") -> 13,6 Inhalt3Einh[13,6] | P94: =IF($A92<=Daten!$B$8,LOOKUP($B92,Daten!$A$322:$A$371,Daten!$T$322:$T$371),"") & " " & IF($A92<=Daten!$B$8,LOOKUP($B92,Daten!$A$322:$A$371,Daten!$U$322:$U$371),"") -> 13,7 Inhalt3Einh[13,7]
D95: =IF($A92<=Daten!$B$8,LOOKUP($B92,Daten!$A$16:$A$65,Daten!$V$16:$V$65),"") & " " & IF($A92<=Daten!$B$8,LOOKUP($B92,Daten!$A$16:$A$65,Daten!$W$16:$W$65),"") -> 13,1 Inhalt4Einh[13,1] | F95: =IF($A92<=Daten!$B$8,LOOKUP($B92,Daten!$A$67:$A$116,Daten!$V$67:$V$116),"") & " " & IF($A92<=Daten!$B$8,LOOKUP($B92,Daten!$A$67:$A$116,Daten!$W$67:$W$116),"") -> 13,2 Inhalt4Einh[13,2] | H95: =IF($A92<=Daten!$B$8,LOOKUP($B92,Daten!$A$118:$A$167,Daten!$V$118:$V$167),"") & " " & IF($A92<=Daten!$B$8,LOOKUP($B92,Daten!$A$118:$A$167,Daten!$W$118:$W$167),"") -> 13,3 Inhalt4Einh[13,3] | J95: =IF($A92<=Daten!$B$8,LOOKUP($B92,Daten!$A$169:$A$218,Daten!$V$169:$V$218),"") & " " & IF($A92<=Daten!$B$8,LOOKUP($B92,Daten!$A$169:$A$218,Daten!$W$169:$W$218),"") -> 13,4 Inhalt4Einh[13,4] | L95: =IF($A92<=Daten!$B$8,LOOKUP($B92,Daten!$A$220:$A$269,Daten!$V$220:$V$269),"") & " " & IF($A92<=Daten!$B$8,LOOKUP($B92,Daten!$A$220:$A$269,Daten!$W$220:$W$269),"") -> 13,5 Inhalt4Einh[13,5] | N95: =IF($A92<=Daten!$B$8,LOOKUP($B92,Daten!$A$271:$A$320,Daten!$V$271:$V$320),"") & " " & IF($A92<=Daten!$B$8,LOOKUP($B92,Daten!$A$271:$A$320,Daten!$W$271:$W$320),"") -> 13,6 Inhalt4Einh[13,6] | P95: =IF($A92<=Daten!$B$8,LOOKUP($B92,Daten!$A$322:$A$371,Daten!$V$322:$V$371),"") & " " & IF($A92<=Daten!$B$8,LOOKUP($B92,Daten!$A$322:$A$371,Daten!$W$322:$W$371),"") -> 13,7 Inhalt4Einh[13,7]
D96: =IF($A92<=Daten!$B$8,LOOKUP($B92,Daten!$A$16:$A$65,Daten!$X$16:$X$65),"") & " " & IF($A92<=Daten!$B$8,LOOKUP($B92,Daten!$A$16:$A$65,Daten!$Y$16:$Y$65),"") -> 13,1 Inhalt5Einh[13,1] | F96: =IF($A92<=Daten!$B$8,LOOKUP($B92,Daten!$A$67:$A$116,Daten!$X$67:$X$116),"") & " " & IF($A92<=Daten!$B$8,LOOKUP($B92,Daten!$A$67:$A$116,Daten!$Y$67:$Y$116),"") -> 13,2 Inhalt5Einh[13,2] | H96: =IF($A92<=Daten!$B$8,LOOKUP($B92,Daten!$A$118:$A$167,Daten!$X$118:$X$167),"") & " " & IF($A92<=Daten!$B$8,LOOKUP($B92,Daten!$A$118:$A$167,Daten!$Y$118:$Y$167),"") -> 13,3 Inhalt5Einh[13,3] | J96: =IF($A92<=Daten!$B$8,LOOKUP($B92,Daten!$A$169:$A$218,Daten!$X$169:$X$218),"") & " " & IF($A92<=Daten!$B$8,LOOKUP($B92,Daten!$A$169:$A$218,Daten!$Y$169:$Y$218),"") -> 13,4 Inhalt5Einh[13,4] | L96: =IF($A92<=Daten!$B$8,LOOKUP($B92,Daten!$A$220:$A$269,Daten!$X$220:$X$269),"") & " " & IF($A92<=Daten!$B$8,LOOKUP($B92,Daten!$A$220:$A$269,Daten!$Y$220:$Y$269),"") -> 13,5 Inhalt5Einh[13,5] | N96: =IF($A92<=Daten!$B$8,LOOKUP($B92,Daten!$A$271:$A$320,Daten!$X$271:$X$320),"") & " " & IF($A92<=Daten!$B$8,LOOKUP($B92,Daten!$A$271:$A$320,Daten!$Y$271:$Y$320),"") -> 13,6 Inhalt5Einh[13,6] | P96: =IF($A92<=Daten!$B$8,LOOKUP($B92,Daten!$A$322:$A$371,Daten!$X$322:$X$371),"") & " " & IF($A92<=Daten!$B$8,LOOKUP($B92,Daten!$A$322:$A$371,Daten!$Y$322:$Y$371),"") -> 13,7 Inhalt5Einh[13,7]
D97: =IF($A92<=Daten!$B$8,LOOKUP($B92,Daten!$A$16:$A$65,Daten!$Z$16:$Z$65),"") & " " & IF($A92<=Daten!$B$8,LOOKUP($B92,Daten!$A$16:$A$65,Daten!$AA$16:$AA$65),"") -> 13,1 Inhalt6Einh[13,1] | F97: =IF($A92<=Daten!$B$8,LOOKUP($B92,Daten!$A$67:$A$116,Daten!$Z$67:$Z$116),"") & " " & IF($A92<=Daten!$B$8,LOOKUP($B92,Daten!$A$67:$A$116,Daten!$AA$67:$AA$116),"") -> 13,2 Inhalt6Einh[13,2] | H97: =IF($A92<=Daten!$B$8,LOOKUP($B92,Daten!$A$118:$A$167,Daten!$Z$118:$Z$167),"") & " " & IF($A92<=Daten!$B$8,LOOKUP($B92,Daten!$A$118:$A$167,Daten!$AA$118:$AA$167),"") -> 13,3 Inhalt6Einh[13,3] | J97: =IF($A92<=Daten!$B$8,LOOKUP($B92,Daten!$A$169:$A$218,Daten!$Z$169:$Z$218),"") & " " & IF($A92<=Daten!$B$8,LOOKUP($B92,Daten!$A$169:$A$218,Daten!$AA$169:$AA$218),"") -> 13,4 Inhalt6Einh[13,4] | L97: =IF($A92<=Daten!$B$8,LOOKUP($B92,Daten!$A$220:$A$269,Daten!$Z$220:$Z$269),"") & " " & IF($A92<=Daten!$B$8,LOOKUP($B92,Daten!$A$220:$A$269,Daten!$AA$220:$AA$269),"") -> 13,5 Inhalt6Einh[13,5] | N97: =IF($A92<=Daten!$B$8,LOOKUP($B92,Daten!$A$271:$A$320,Daten!$Z$271:$Z$320),"") & " " & IF($A92<=Daten!$B$8,LOOKUP($B92,Daten!$A$271:$A$320,Daten!$AA$271:$AA$320),"") -> 13,6 Inhalt6Einh[13,6] | P97: =IF($A92<=Daten!$B$8,LOOKUP($B92,Daten!$A$322:$A$371,Daten!$Z$322:$Z$371),"") & " " & IF($A92<=Daten!$B$8,LOOKUP($B92,Daten!$A$322:$A$371,Daten!$AA$322:$AA$371),"") -> 13,7 Inhalt6Einh[13,7]
B98: =IF(A92<=Daten!$B$8,"Zusatzstoffe","") -> Zusatzstoffe | C98: =IF($A92<=Daten!$B$8,LOOKUP($B92,Daten!$A$16:$A$65,Daten!$L$16:$L$65),"") -> 13.1 | D98: =IF($A92<=Daten!$B$8,LOOKUP($B92,Daten!$A$16:$A$65,Daten!$E$16:$E$65),"") -> 213.1 | E98: =IF($A92<=Daten!$B$8,LOOKUP($B92,Daten!$A$67:$A$116,Daten!$L$67:$L$116),"") -> 13.2 | F98: =IF($A92<=Daten!$B$8,LOOKUP($B92,Daten!$A$16:$A$65,Daten!$E$67:$E$116),"") -> 0 | G98: =IF($A92<=Daten!$B$8,LOOKUP($B92,Daten!$A$118:$A$167,Daten!$L$118:$L$167),"") -> 13.3 | H98: =IF($A92<=Daten!$B$8,LOOKUP($B92,Daten!$A$118:$A$167,Daten!$E$118:$E$167),"") -> 0 | I98: =IF($A92<=Daten!$B$8,LOOKUP($B92,Daten!$A$169:$A$218,Daten!$L$169:$L$218),"") -> 13.4 | J98: =IF($A92<=Daten!$B$8,LOOKUP($B92,Daten!$A$169:$A$218,Daten!$E$169:$E$218),"") -> 0 | K98: =IF($A92<=Daten!$B$8,LOOKUP($B92,Daten!$A$220:$A$269,Daten!$L$220:$L$269),"") -> 13.5 | L98: =IF($A92<=Daten!$B$8,LOOKUP($B92,Daten!$A$220:$A$269,Daten!$E$220:$E$269),"") -> 0 | M98: =IF($A92<=Daten!$B$8,LOOKUP($B92,Daten!$A$271:$A$320,Daten!$L$271:$L$320),"") -> 13.6 | N98: =IF($A92<=Daten!$B$8,LOOKUP($B92,Daten!$A$271:$A$320,Daten!$E$271:$E$320),"") -> 0 | O98: =IF($A92<=Daten!$B$8,LOOKUP($B92,Daten!$A$322:$A$371,Daten!$L$322:$L$371),"") -> 13.7 | P98: =IF($A92<=Daten!$B$8,LOOKUP($B92,Daten!$A$322:$A$371,Daten!$E$322:$E$371),"") -> 0
A99: 14 | B99: =IF(A99<=Daten!$B$8,Daten!O9,"") -> Menülinie 14 | C99: =IF(A99<=Daten!$B$8,LOOKUP(B99,Daten!$A$16:$A$65,Daten!$C$16:$C$65),"") -> Lang[14,1] | D99: =IF($A99<=Daten!$B$8,LOOKUP($B99,Daten!$A$16:$A$65,Daten!$P$16:$P$65),"") & " " & IF($A99<=Daten!$B$8,LOOKUP($B99,Daten!$A$16:$A$65,Daten!$Q$16:$Q$65),"") -> 14,1 Inhalt1Einh[14,1] | E99: =IF($A99<=Daten!$B$8,LOOKUP($B99,Daten!$A$67:$A$116,Daten!$C$67:$C$116),"") -> Lang[14,2] | F99: =IF($A99<=Daten!$B$8,LOOKUP($B99,Daten!$A$67:$A$116,Daten!$P$67:$P$116),"") & " " & IF($A99<=Daten!$B$8,LOOKUP($B99,Daten!$A$67:$A$116,Daten!$Q$67:$Q$116),"") -> 14,2 Inhalt1Einh[14,2] | G99: =IF($A99<=Daten!$B$8,LOOKUP($B99,Daten!$A$118:$A$167,Daten!$C$118:$C$167),"") -> Lang[14,3] | H99: =IF($A99<=Daten!$B$8,LOOKUP($B99,Daten!$A$118:$A$167,Daten!$P$118:$P$167),"") & " " & IF($A99<=Daten!$B$8,LOOKUP($B99,Daten!$A$118:$A$167,Daten!$Q$118:$Q$167),"") -> 14,3 Inhalt1Einh[14,3] | I99: =IF($A99<=Daten!$B$8,LOOKUP($B99,Daten!$A$169:$A$218,Daten!$C$169:$C$218),"") -> Lang[14,4] | J99: =IF($A99<=Daten!$B$8,LOOKUP($B99,Daten!$A$169:$A$218,Daten!$P$169:$P$218),"") & " " & IF($A99<=Daten!$B$8,LOOKUP($B99,Daten!$A$169:$A$218,Daten!$Q$169:$Q$218),"") -> 14,4 Inhalt1Einh[14,4] | K99: =IF($A99<=Daten!$B$8,LOOKUP($B99,Daten!$A$220:$A$269,Daten!$C$220:$C$269),"") -> Lang[14,5] | L99: =IF($A99<=Daten!$B$8,LOOKUP($B99,Daten!$A$220:$A$269,Daten!$P$220:$P$269),"") & " " & IF($A99<=Daten!$B$8,LOOKUP($B99,Daten!$A$220:$A$269,Daten!$Q$220:$Q$269),"") -> 14,5 Inhalt1Einh[14,5] | M99: =IF($A99<=Daten!$B$8,LOOKUP($B99,Daten!$A$271:$A$320,Daten!$C$271:$C$320),"") -> Lang[14,6] | N99: =IF($A99<=Daten!$B$8,LOOKUP($B99,Daten!$A$271:$A$320,Daten!$P$271:$P$320),"") & " " & IF($A99<=Daten!$B$8,LOOKUP($B99,Daten!$A$271:$A$320,Daten!$Q$271:$Q$320),"") -> 14,6 Inhalt1Einh[14,6] | O99: =IF($A99<=Daten!$B$8,LOOKUP($B99,Daten!$A$322:$A$371,Daten!$B$322:$C$371),"") ->  | P99: =IF($A99<=Daten!$B$8,LOOKUP($B99,Daten!$A$322:$A$371,Daten!$P$322:$P$371),"") & " " & IF($A99<=Daten!$B$8,LOOKUP($B99,Daten!$A$322:$A$371,Daten!$Q$322:$Q$371),"") -> 14,7 Inhalt1Einh[14,7]
D100: =IF($A99<=Daten!$B$8,LOOKUP($B99,Daten!$A$16:$A$65,Daten!$R$16:$R$65),"") & " " & IF($A99<=Daten!$B$8,LOOKUP($B99,Daten!$A$16:$A$65,Daten!$S$16:$S$65),"") -> 14,1 Inhalt2Einh[14,1] | F100: =IF($A99<=Daten!$B$8,LOOKUP($B99,Daten!$A$67:$A$116,Daten!$R$67:$R$116),"") & " " & IF($A99<=Daten!$B$8,LOOKUP($B99,Daten!$A$67:$A$116,Daten!$S$67:$S$116),"") -> 14,2 Inhalt2Einh[14,2] | H100: =IF($A99<=Daten!$B$8,LOOKUP($B99,Daten!$A$118:$A$167,Daten!$R$118:$R$167),"") & " " & IF($A99<=Daten!$B$8,LOOKUP($B99,Daten!$A$118:$A$167,Daten!$S$118:$S$167),"") -> 14,3 Inhalt2Einh[14,3] | J100: =IF($A99<=Daten!$B$8,LOOKUP($B99,Daten!$A$169:$A$218,Daten!$R$169:$R$218),"") & " " & IF($A99<=Daten!$B$8,LOOKUP($B99,Daten!$A$169:$A$218,Daten!$S$169:$S$218),"") -> 14,4 Inhalt2Einh[14,4] | L100: =IF($A99<=Daten!$B$8,LOOKUP($B99,Daten!$A$220:$A$269,Daten!$R$220:$R$269),"") & " " & IF($A99<=Daten!$B$8,LOOKUP($B99,Daten!$A$220:$A$269,Daten!$S$220:$S$269),"") -> 14,5 Inhalt2Einh[14,5] | N100: =IF($A99<=Daten!$B$8,LOOKUP($B99,Daten!$A$271:$A$320,Daten!$R$271:$R$320),"") & " " & IF($A99<=Daten!$B$8,LOOKUP($B99,Daten!$A$271:$A$320,Daten!$S$271:$S$320),"") -> 14,6 Inhalt2Einh[14,6] | P100: =IF($A99<=Daten!$B$8,LOOKUP($B99,Daten!$A$322:$A$371,Daten!$R$322:$R$371),"") & " " & IF($A99<=Daten!$B$8,LOOKUP($B99,Daten!$A$322:$A$371,Daten!$S$322:$S$371),"") -> 14,7 Inhalt2Einh[14,7]
D101: =IF($A99<=Daten!$B$8,LOOKUP($B99,Daten!$A$16:$A$65,Daten!$T$16:$T$65),"") & " " & IF($A99<=Daten!$B$8,LOOKUP($B99,Daten!$A$16:$A$65,Daten!$U$16:$U$65),"") -> 14,1 Inhalt3Einh[14,1] | F101: =IF($A99<=Daten!$B$8,LOOKUP($B99,Daten!$A$67:$A$116,Daten!$T$67:$T$116),"") & " " & IF($A99<=Daten!$B$8,LOOKUP($B99,Daten!$A$67:$A$116,Daten!$U$67:$U$116),"") -> 14,2 Inhalt3Einh[14,2] | H101: =IF($A99<=Daten!$B$8,LOOKUP($B99,Daten!$A$118:$A$167,Daten!$T$118:$T$167),"") & " " & IF($A99<=Daten!$B$8,LOOKUP($B99,Daten!$A$118:$A$167,Daten!$U$118:$U$167),"") -> 14,3 Inhalt3Einh[14,3] | J101: =IF($A99<=Daten!$B$8,LOOKUP($B99,Daten!$A$169:$A$218,Daten!$T$169:$T$218),"") & " " & IF($A99<=Daten!$B$8,LOOKUP($B99,Daten!$A$169:$A$218,Daten!$U$169:$U$218),"") -> 14,4 Inhalt3Einh[14,4] | L101: =IF($A99<=Daten!$B$8,LOOKUP($B99,Daten!$A$220:$A$269,Daten!$T$220:$T$269),"") & " " & IF($A99<=Daten!$B$8,LOOKUP($B99,Daten!$A$220:$A$269,Daten!$U$220:$U$269),"") -> 14,5 Inhalt3Einh[14,5] | N101: =IF($A99<=Daten!$B$8,LOOKUP($B99,Daten!$A$271:$A$320,Daten!$T$271:$T$320),"") & " " & IF($A99<=Daten!$B$8,LOOKUP($B99,Daten!$A$271:$A$320,Daten!$U$271:$U$320),"") -> 14,6 Inhalt3Einh[14,6] | P101: =IF($A99<=Daten!$B$8,LOOKUP($B99,Daten!$A$322:$A$371,Daten!$T$322:$T$371),"") & " " & IF($A99<=Daten!$B$8,LOOKUP($B99,Daten!$A$322:$A$371,Daten!$U$322:$U$371),"") -> 14,7 Inhalt3Einh[14,7]
D102: =IF($A99<=Daten!$B$8,LOOKUP($B99,Daten!$A$16:$A$65,Daten!$V$16:$V$65),"") & " " & IF($A99<=Daten!$B$8,LOOKUP($B99,Daten!$A$16:$A$65,Daten!$W$16:$W$65),"") -> 14,1 Inhalt4Einh[14,1] | F102: =IF($A99<=Daten!$B$8,LOOKUP($B99,Daten!$A$67:$A$116,Daten!$V$67:$V$116),"") & " " & IF($A99<=Daten!$B$8,LOOKUP($B99,Daten!$A$67:$A$116,Daten!$W$67:$W$116),"") -> 14,2 Inhalt4Einh[14,2] | H102: =IF($A99<=Daten!$B$8,LOOKUP($B99,Daten!$A$118:$A$167,Daten!$V$118:$V$167),"") & " " & IF($A99<=Daten!$B$8,LOOKUP($B99,Daten!$A$118:$A$167,Daten!$W$118:$W$167),"") -> 14,3 Inhalt4Einh[14,3] | J102: =IF($A99<=Daten!$B$8,LOOKUP($B99,Daten!$A$169:$A$218,Daten!$V$169:$V$218),"") & " " & IF($A99<=Daten!$B$8,LOOKUP($B99,Daten!$A$169:$A$218,Daten!$W$169:$W$218),"") -> 14,4 Inhalt4Einh[14,4] | L102: =IF($A99<=Daten!$B$8,LOOKUP($B99,Daten!$A$220:$A$269,Daten!$V$220:$V$269),"") & " " & IF($A99<=Daten!$B$8,LOOKUP($B99,Daten!$A$220:$A$269,Daten!$W$220:$W$269),"") -> 14,5 Inhalt4Einh[14,5] | N102: =IF($A99<=Daten!$B$8,LOOKUP($B99,Daten!$A$271:$A$320,Daten!$V$271:$V$320),"") & " " & IF($A99<=Daten!$B$8,LOOKUP($B99,Daten!$A$271:$A$320,Daten!$W$271:$W$320),"") -> 14,6 Inhalt4Einh[14,6] | P102: =IF($A99<=Daten!$B$8,LOOKUP($B99,Daten!$A$322:$A$371,Daten!$V$322:$V$371),"") & " " & IF($A99<=Daten!$B$8,LOOKUP($B99,Daten!$A$322:$A$371,Daten!$W$322:$W$371),"") -> 14,7 Inhalt4Einh[14,7]
D103: =IF($A99<=Daten!$B$8,LOOKUP($B99,Daten!$A$16:$A$65,Daten!$X$16:$X$65),"") & " " & IF($A99<=Daten!$B$8,LOOKUP($B99,Daten!$A$16:$A$65,Daten!$Y$16:$Y$65),"") -> 14,1 Inhalt5Einh[14,1] | F103: =IF($A99<=Daten!$B$8,LOOKUP($B99,Daten!$A$67:$A$116,Daten!$X$67:$X$116),"") & " " & IF($A99<=Daten!$B$8,LOOKUP($B99,Daten!$A$67:$A$116,Daten!$Y$67:$Y$116),"") -> 14,2 Inhalt5Einh[14,2] | H103: =IF($A99<=Daten!$B$8,LOOKUP($B99,Daten!$A$118:$A$167,Daten!$X$118:$X$167),"") & " " & IF($A99<=Daten!$B$8,LOOKUP($B99,Daten!$A$118:$A$167,Daten!$Y$118:$Y$167),"") -> 14,3 Inhalt5Einh[14,3] | J103: =IF($A99<=Daten!$B$8,LOOKUP($B99,Daten!$A$169:$A$218,Daten!$X$169:$X$218),"") & " " & IF($A99<=Daten!$B$8,LOOKUP($B99,Daten!$A$169:$A$218,Daten!$Y$169:$Y$218),"") -> 14,4 Inhalt5Einh[14,4] | L103: =IF($A99<=Daten!$B$8,LOOKUP($B99,Daten!$A$220:$A$269,Daten!$X$220:$X$269),"") & " " & IF($A99<=Daten!$B$8,LOOKUP($B99,Daten!$A$220:$A$269,Daten!$Y$220:$Y$269),"") -> 14,5 Inhalt5Einh[14,5] | N103: =IF($A99<=Daten!$B$8,LOOKUP($B99,Daten!$A$271:$A$320,Daten!$X$271:$X$320),"") & " " & IF($A99<=Daten!$B$8,LOOKUP($B99,Daten!$A$271:$A$320,Daten!$Y$271:$Y$320),"") -> 14,6 Inhalt5Einh[14,6] | P103: =IF($A99<=Daten!$B$8,LOOKUP($B99,Daten!$A$322:$A$371,Daten!$X$322:$X$371),"") & " " & IF($A99<=Daten!$B$8,LOOKUP($B99,Daten!$A$322:$A$371,Daten!$Y$322:$Y$371),"") -> 14,7 Inhalt5Einh[14,7]
D104: =IF($A99<=Daten!$B$8,LOOKUP($B99,Daten!$A$16:$A$65,Daten!$Z$16:$Z$65),"") & " " & IF($A99<=Daten!$B$8,LOOKUP($B99,Daten!$A$16:$A$65,Daten!$AA$16:$AA$65),"") -> 14,1 Inhalt6Einh[14,1] | F104: =IF($A99<=Daten!$B$8,LOOKUP($B99,Daten!$A$67:$A$116,Daten!$Z$67:$Z$116),"") & " " & IF($A99<=Daten!$B$8,LOOKUP($B99,Daten!$A$67:$A$116,Daten!$AA$67:$AA$116),"") -> 14,2 Inhalt6Einh[14,2] | H104: =IF($A99<=Daten!$B$8,LOOKUP($B99,Daten!$A$118:$A$167,Daten!$Z$118:$Z$167),"") & " " & IF($A99<=Daten!$B$8,LOOKUP($B99,Daten!$A$118:$A$167,Daten!$AA$118:$AA$167),"") -> 14,3 Inhalt6Einh[14,3] | J104: =IF($A99<=Daten!$B$8,LOOKUP($B99,Daten!$A$169:$A$218,Daten!$Z$169:$Z$218),"") & " " & IF($A99<=Daten!$B$8,LOOKUP($B99,Daten!$A$169:$A$218,Daten!$AA$169:$AA$218),"") -> 14,4 Inhalt6Einh[14,4] | L104: =IF($A99<=Daten!$B$8,LOOKUP($B99,Daten!$A$220:$A$269,Daten!$Z$220:$Z$269),"") & " " & IF($A99<=Daten!$B$8,LOOKUP($B99,Daten!$A$220:$A$269,Daten!$AA$220:$AA$269),"") -> 14,5 Inhalt6Einh[14,5] | N104: =IF($A99<=Daten!$B$8,LOOKUP($B99,Daten!$A$271:$A$320,Daten!$Z$271:$Z$320),"") & " " & IF($A99<=Daten!$B$8,LOOKUP($B99,Daten!$A$271:$A$320,Daten!$AA$271:$AA$320),"") -> 14,6 Inhalt6Einh[14,6] | P104: =IF($A99<=Daten!$B$8,LOOKUP($B99,Daten!$A$322:$A$371,Daten!$Z$322:$Z$371),"") & " " & IF($A99<=Daten!$B$8,LOOKUP($B99,Daten!$A$322:$A$371,Daten!$AA$322:$AA$371),"") -> 14,7 Inhalt6Einh[14,7]
B105: =IF(A99<=Daten!$B$8,"Zusatzstoffe","") -> Zusatzstoffe | C105: =IF($A99<=Daten!$B$8,LOOKUP($B99,Daten!$A$16:$A$65,Daten!$L$16:$L$65),"") -> 14.1 | D105: =IF($A99<=Daten!$B$8,LOOKUP($B99,Daten!$A$16:$A$65,Daten!$E$16:$E$65),"") -> 214.1 | E105: =IF($A99<=Daten!$B$8,LOOKUP($B99,Daten!$A$67:$A$116,Daten!$L$67:$L$116),"") -> 14.2 | F105: =IF($A99<=Daten!$B$8,LOOKUP($B99,Daten!$A$16:$A$65,Daten!$E$67:$E$116),"") -> 0 | G105: =IF($A99<=Daten!$B$8,LOOKUP($B99,Daten!$A$118:$A$167,Daten!$L$118:$L$167),"") -> 14.3 | H105: =IF($A99<=Daten!$B$8,LOOKUP($B99,Daten!$A$118:$A$167,Daten!$E$118:$E$167),"") -> 0 | I105: =IF($A99<=Daten!$B$8,LOOKUP($B99,Daten!$A$169:$A$218,Daten!$L$169:$L$218),"") -> 14.4 | J105: =IF($A99<=Daten!$B$8,LOOKUP($B99,Daten!$A$169:$A$218,Daten!$E$169:$E$218),"") -> 0 | K105: =IF($A99<=Daten!$B$8,LOOKUP($B99,Daten!$A$220:$A$269,Daten!$L$220:$L$269),"") -> 14.5 | L105: =IF($A99<=Daten!$B$8,LOOKUP($B99,Daten!$A$220:$A$269,Daten!$E$220:$E$269),"") -> 0 | M105: =IF($A99<=Daten!$B$8,LOOKUP($B99,Daten!$A$271:$A$320,Daten!$L$271:$L$320),"") -> 14.6 | N105: =IF($A99<=Daten!$B$8,LOOKUP($B99,Daten!$A$271:$A$320,Daten!$E$271:$E$320),"") -> 0 | O105: =IF($A99<=Daten!$B$8,LOOKUP($B99,Daten!$A$322:$A$371,Daten!$L$322:$L$371),"") -> 14.7 | P105: =IF($A99<=Daten!$B$8,LOOKUP($B99,Daten!$A$322:$A$371,Daten!$E$322:$E$371),"") -> 0
A106: 15 | B106: =IF(A106<=Daten!$B$8,Daten!P9,"") -> Menülinie 15 | C106: =IF(A106<=Daten!$B$8,LOOKUP(B106,Daten!$A$16:$A$65,Daten!$C$16:$C$65),"") -> Lang[15,1] | D106: =IF($A106<=Daten!$B$8,LOOKUP($B106,Daten!$A$16:$A$65,Daten!$P$16:$P$65),"") & " " & IF($A106<=Daten!$B$8,LOOKUP($B106,Daten!$A$16:$A$65,Daten!$Q$16:$Q$65),"") -> 15,1 Inhalt1Einh[15,1] | E106: =IF($A106<=Daten!$B$8,LOOKUP($B106,Daten!$A$67:$A$116,Daten!$C$67:$C$116),"") -> Lang[15,2] | F106: =IF($A106<=Daten!$B$8,LOOKUP($B106,Daten!$A$67:$A$116,Daten!$P$67:$P$116),"") & " " & IF($A106<=Daten!$B$8,LOOKUP($B106,Daten!$A$67:$A$116,Daten!$Q$67:$Q$116),"") -> 15,2 Inhalt1Einh[15,2] | G106: =IF($A106<=Daten!$B$8,LOOKUP($B106,Daten!$A$118:$A$167,Daten!$C$118:$C$167),"") -> Lang[15,3] | H106: =IF($A106<=Daten!$B$8,LOOKUP($B106,Daten!$A$118:$A$167,Daten!$P$118:$P$167),"") & " " & IF($A106<=Daten!$B$8,LOOKUP($B106,Daten!$A$118:$A$167,Daten!$Q$118:$Q$167),"") -> 15,3 Inhalt1Einh[15,3] | I106: =IF($A106<=Daten!$B$8,LOOKUP($B106,Daten!$A$169:$A$218,Daten!$C$169:$C$218),"") -> Lang[15,4] | J106: =IF($A106<=Daten!$B$8,LOOKUP($B106,Daten!$A$169:$A$218,Daten!$P$169:$P$218),"") & " " & IF($A106<=Daten!$B$8,LOOKUP($B106,Daten!$A$169:$A$218,Daten!$Q$169:$Q$218),"") -> 15,4 Inhalt1Einh[15,4] | K106: =IF($A106<=Daten!$B$8,LOOKUP($B106,Daten!$A$220:$A$269,Daten!$C$220:$C$269),"") -> Lang[15,5] | L106: =IF($A106<=Daten!$B$8,LOOKUP($B106,Daten!$A$220:$A$269,Daten!$P$220:$P$269),"") & " " & IF($A106<=Daten!$B$8,LOOKUP($B106,Daten!$A$220:$A$269,Daten!$Q$220:$Q$269),"") -> 15,5 Inhalt1Einh[15,5] | M106: =IF($A106<=Daten!$B$8,LOOKUP($B106,Daten!$A$271:$A$320,Daten!$C$271:$C$320),"") -> Lang[15,6] | N106: =IF($A106<=Daten!$B$8,LOOKUP($B106,Daten!$A$271:$A$320,Daten!$P$271:$P$320),"") & " " & IF($A106<=Daten!$B$8,LOOKUP($B106,Daten!$A$271:$A$320,Daten!$Q$271:$Q$320),"") -> 15,6 Inhalt1Einh[15,6] | O106: =IF($A106<=Daten!$B$8,LOOKUP($B106,Daten!$A$322:$A$371,Daten!$B$322:$C$371),"") ->  | P106: =IF($A106<=Daten!$B$8,LOOKUP($B106,Daten!$A$322:$A$371,Daten!$P$322:$P$371),"") & " " & IF($A106<=Daten!$B$8,LOOKUP($B106,Daten!$A$322:$A$371,Daten!$Q$322:$Q$371),"") -> 15,7 Inhalt1Einh[15,7]
D107: =IF($A106<=Daten!$B$8,LOOKUP($B106,Daten!$A$16:$A$65,Daten!$R$16:$R$65),"") & " " & IF($A106<=Daten!$B$8,LOOKUP($B106,Daten!$A$16:$A$65,Daten!$S$16:$S$65),"") -> 15,1 Inhalt2Einh[15,1] | F107: =IF($A106<=Daten!$B$8,LOOKUP($B106,Daten!$A$67:$A$116,Daten!$R$67:$R$116),"") & " " & IF($A106<=Daten!$B$8,LOOKUP($B106,Daten!$A$67:$A$116,Daten!$S$67:$S$116),"") -> 15,2 Inhalt2Einh[15,2] | H107: =IF($A106<=Daten!$B$8,LOOKUP($B106,Daten!$A$118:$A$167,Daten!$R$118:$R$167),"") & " " & IF($A106<=Daten!$B$8,LOOKUP($B106,Daten!$A$118:$A$167,Daten!$S$118:$S$167),"") -> 15,3 Inhalt2Einh[15,3] | J107: =IF($A106<=Daten!$B$8,LOOKUP($B106,Daten!$A$169:$A$218,Daten!$R$169:$R$218),"") & " " & IF($A106<=Daten!$B$8,LOOKUP($B106,Daten!$A$169:$A$218,Daten!$S$169:$S$218),"") -> 15,4 Inhalt2Einh[15,4] | L107: =IF($A106<=Daten!$B$8,LOOKUP($B106,Daten!$A$220:$A$269,Daten!$R$220:$R$269),"") & " " & IF($A106<=Daten!$B$8,LOOKUP($B106,Daten!$A$220:$A$269,Daten!$S$220:$S$269),"") -> 15,5 Inhalt2Einh[15,5] | N107: =IF($A106<=Daten!$B$8,LOOKUP($B106,Daten!$A$271:$A$320,Daten!$R$271:$R$320),"") & " " & IF($A106<=Daten!$B$8,LOOKUP($B106,Daten!$A$271:$A$320,Daten!$S$271:$S$320),"") -> 15,6 Inhalt2Einh[15,6] | P107: =IF($A106<=Daten!$B$8,LOOKUP($B106,Daten!$A$322:$A$371,Daten!$R$322:$R$371),"") & " " & IF($A106<=Daten!$B$8,LOOKUP($B106,Daten!$A$322:$A$371,Daten!$S$322:$S$371),"") -> 15,7 Inhalt2Einh[15,7]
D108: =IF($A106<=Daten!$B$8,LOOKUP($B106,Daten!$A$16:$A$65,Daten!$T$16:$T$65),"") & " " & IF($A106<=Daten!$B$8,LOOKUP($B106,Daten!$A$16:$A$65,Daten!$U$16:$U$65),"") -> 15,1 Inhalt3Einh[15,1] | F108: =IF($A106<=Daten!$B$8,LOOKUP($B106,Daten!$A$67:$A$116,Daten!$T$67:$T$116),"") & " " & IF($A106<=Daten!$B$8,LOOKUP($B106,Daten!$A$67:$A$116,Daten!$U$67:$U$116),"") -> 15,2 Inhalt3Einh[15,2] | H108: =IF($A106<=Daten!$B$8,LOOKUP($B106,Daten!$A$118:$A$167,Daten!$T$118:$T$167),"") & " " & IF($A106<=Daten!$B$8,LOOKUP($B106,Daten!$A$118:$A$167,Daten!$U$118:$U$167),"") -> 15,3 Inhalt3Einh[15,3] | J108: =IF($A106<=Daten!$B$8,LOOKUP($B106,Daten!$A$169:$A$218,Daten!$T$169:$T$218),"") & " " & IF($A106<=Daten!$B$8,LOOKUP($B106,Daten!$A$169:$A$218,Daten!$U$169:$U$218),"") -> 15,4 Inhalt3Einh[15,4] | L108: =IF($A106<=Daten!$B$8,LOOKUP($B106,Daten!$A$220:$A$269,Daten!$T$220:$T$269),"") & " " & IF($A106<=Daten!$B$8,LOOKUP($B106,Daten!$A$220:$A$269,Daten!$U$220:$U$269),"") -> 15,5 Inhalt3Einh[15,5] | N108: =IF($A106<=Daten!$B$8,LOOKUP($B106,Daten!$A$271:$A$320,Daten!$T$271:$T$320),"") & " " & IF($A106<=Daten!$B$8,LOOKUP($B106,Daten!$A$271:$A$320,Daten!$U$271:$U$320),"") -> 15,6 Inhalt3Einh[15,6] | P108: =IF($A106<=Daten!$B$8,LOOKUP($B106,Daten!$A$322:$A$371,Daten!$T$322:$T$371),"") & " " & IF($A106<=Daten!$B$8,LOOKUP($B106,Daten!$A$322:$A$371,Daten!$U$322:$U$371),"") -> 15,7 Inhalt3Einh[15,7]
D109: =IF($A106<=Daten!$B$8,LOOKUP($B106,Daten!$A$16:$A$65,Daten!$V$16:$V$65),"") & " " & IF($A106<=Daten!$B$8,LOOKUP($B106,Daten!$A$16:$A$65,Daten!$W$16:$W$65),"") -> 15,1 Inhalt4Einh[15,1] | F109: =IF($A106<=Daten!$B$8,LOOKUP($B106,Daten!$A$67:$A$116,Daten!$V$67:$V$116),"") & " " & IF($A106<=Daten!$B$8,LOOKUP($B106,Daten!$A$67:$A$116,Daten!$W$67:$W$116),"") -> 15,2 Inhalt4Einh[15,2] | H109: =IF($A106<=Daten!$B$8,LOOKUP($B106,Daten!$A$118:$A$167,Daten!$V$118:$V$167),"") & " " & IF($A106<=Daten!$B$8,LOOKUP($B106,Daten!$A$118:$A$167,Daten!$W$118:$W$167),"") -> 15,3 Inhalt4Einh[15,3] | J109: =IF($A106<=Daten!$B$8,LOOKUP($B106,Daten!$A$169:$A$218,Daten!$V$169:$V$218),"") & " " & IF($A106<=Daten!$B$8,LOOKUP($B106,Daten!$A$169:$A$218,Daten!$W$169:$W$218),"") -> 15,4 Inhalt4Einh[15,4] | L109: =IF($A106<=Daten!$B$8,LOOKUP($B106,Daten!$A$220:$A$269,Daten!$V$220:$V$269),"") & " " & IF($A106<=Daten!$B$8,LOOKUP($B106,Daten!$A$220:$A$269,Daten!$W$220:$W$269),"") -> 15,5 Inhalt4Einh[15,5] | N109: =IF($A106<=Daten!$B$8,LOOKUP($B106,Daten!$A$271:$A$320,Daten!$V$271:$V$320),"") & " " & IF($A106<=Daten!$B$8,LOOKUP($B106,Daten!$A$271:$A$320,Daten!$W$271:$W$320),"") -> 15,6 Inhalt4Einh[15,6] | P109: =IF($A106<=Daten!$B$8,LOOKUP($B106,Daten!$A$322:$A$371,Daten!$V$322:$V$371),"") & " " & IF($A106<=Daten!$B$8,LOOKUP($B106,Daten!$A$322:$A$371,Daten!$W$322:$W$371),"") -> 15,7 Inhalt4Einh[15,7]
D110: =IF($A106<=Daten!$B$8,LOOKUP($B106,Daten!$A$16:$A$65,Daten!$X$16:$X$65),"") & " " & IF($A106<=Daten!$B$8,LOOKUP($B106,Daten!$A$16:$A$65,Daten!$Y$16:$Y$65),"") -> 15,1 Inhalt5Einh[15,1] | F110: =IF($A106<=Daten!$B$8,LOOKUP($B106,Daten!$A$67:$A$116,Daten!$X$67:$X$116),"") & " " & IF($A106<=Daten!$B$8,LOOKUP($B106,Daten!$A$67:$A$116,Daten!$Y$67:$Y$116),"") -> 15,2 Inhalt5Einh[15,2] | H110: =IF($A106<=Daten!$B$8,LOOKUP($B106,Daten!$A$118:$A$167,Daten!$X$118:$X$167),"") & " " & IF($A106<=Daten!$B$8,LOOKUP($B106,Daten!$A$118:$A$167,Daten!$Y$118:$Y$167),"") -> 15,3 Inhalt5Einh[15,3] | J110: =IF($A106<=Daten!$B$8,LOOKUP($B106,Daten!$A$169:$A$218,Daten!$X$169:$X$218),"") & " " & IF($A106<=Daten!$B$8,LOOKUP($B106,Daten!$A$169:$A$218,Daten!$Y$169:$Y$218),"") -> 15,4 Inhalt5Einh[15,4] | L110: =IF($A106<=Daten!$B$8,LOOKUP($B106,Daten!$A$220:$A$269,Daten!$X$220:$X$269),"") & " " & IF($A106<=Daten!$B$8,LOOKUP($B106,Daten!$A$220:$A$269,Daten!$Y$220:$Y$269),"") -> 15,5 Inhalt5Einh[15,5] | N110: =IF($A106<=Daten!$B$8,LOOKUP($B106,Daten!$A$271:$A$320,Daten!$X$271:$X$320),"") & " " & IF($A106<=Daten!$B$8,LOOKUP($B106,Daten!$A$271:$A$320,Daten!$Y$271:$Y$320),"") -> 15,6 Inhalt5Einh[15,6] | P110: =IF($A106<=Daten!$B$8,LOOKUP($B106,Daten!$A$322:$A$371,Daten!$X$322:$X$371),"") & " " & IF($A106<=Daten!$B$8,LOOKUP($B106,Daten!$A$322:$A$371,Daten!$Y$322:$Y$371),"") -> 15,7 Inhalt5Einh[15,7]
D111: =IF($A106<=Daten!$B$8,LOOKUP($B106,Daten!$A$16:$A$65,Daten!$Z$16:$Z$65),"") & " " & IF($A106<=Daten!$B$8,LOOKUP($B106,Daten!$A$16:$A$65,Daten!$AA$16:$AA$65),"") -> 15,1 Inhalt6Einh[15,1] | F111: =IF($A106<=Daten!$B$8,LOOKUP($B106,Daten!$A$67:$A$116,Daten!$Z$67:$Z$116),"") & " " & IF($A106<=Daten!$B$8,LOOKUP($B106,Daten!$A$67:$A$116,Daten!$AA$67:$AA$116),"") -> 15,2 Inhalt6Einh[15,2] | H111: =IF($A106<=Daten!$B$8,LOOKUP($B106,Daten!$A$118:$A$167,Daten!$Z$118:$Z$167),"") & " " & IF($A106<=Daten!$B$8,LOOKUP($B106,Daten!$A$118:$A$167,Daten!$AA$118:$AA$167),"") -> 15,3 Inhalt6Einh[15,3] | J111: =IF($A106<=Daten!$B$8,LOOKUP($B106,Daten!$A$169:$A$218,Daten!$Z$169:$Z$218),"") & " " & IF($A106<=Daten!$B$8,LOOKUP($B106,Daten!$A$169:$A$218,Daten!$AA$169:$AA$218),"") -> 15,4 Inhalt6Einh[15,4] | L111: =IF($A106<=Daten!$B$8,LOOKUP($B106,Daten!$A$220:$A$269,Daten!$Z$220:$Z$269),"") & " " & IF($A106<=Daten!$B$8,LOOKUP($B106,Daten!$A$220:$A$269,Daten!$AA$220:$AA$269),"") -> 15,5 Inhalt6Einh[15,5] | N111: =IF($A106<=Daten!$B$8,LOOKUP($B106,Daten!$A$271:$A$320,Daten!$Z$271:$Z$320),"") & " " & IF($A106<=Daten!$B$8,LOOKUP($B106,Daten!$A$271:$A$320,Daten!$AA$271:$AA$320),"") -> 15,6 Inhalt6Einh[15,6] | P111: =IF($A106<=Daten!$B$8,LOOKUP($B106,Daten!$A$322:$A$371,Daten!$Z$322:$Z$371),"") & " " & IF($A106<=Daten!$B$8,LOOKUP($B106,Daten!$A$322:$A$371,Daten!$AA$322:$AA$371),"") -> 15,7 Inhalt6Einh[15,7]
B112: =IF(A106<=Daten!$B$8,"Zusatzstoffe","") -> Zusatzstoffe | C112: =IF($A106<=Daten!$B$8,LOOKUP($B106,Daten!$A$16:$A$65,Daten!$L$16:$L$65),"") -> 15.1 | D112: =IF($A106<=Daten!$B$8,LOOKUP($B106,Daten!$A$16:$A$65,Daten!$E$16:$E$65),"") -> 215.1 | E112: =IF($A106<=Daten!$B$8,LOOKUP($B106,Daten!$A$67:$A$116,Daten!$L$67:$L$116),"") -> 15.2 | F112: =IF($A106<=Daten!$B$8,LOOKUP($B106,Daten!$A$16:$A$65,Daten!$E$67:$E$116),"") -> 0 | G112: =IF($A106<=Daten!$B$8,LOOKUP($B106,Daten!$A$118:$A$167,Daten!$L$118:$L$167),"") -> 15.3 | H112: =IF($A106<=Daten!$B$8,LOOKUP($B106,Daten!$A$118:$A$167,Daten!$E$118:$E$167),"") -> 0 | I112: =IF($A106<=Daten!$B$8,LOOKUP($B106,Daten!$A$169:$A$218,Daten!$L$169:$L$218),"") -> 15.4 | J112: =IF($A106<=Daten!$B$8,LOOKUP($B106,Daten!$A$169:$A$218,Daten!$E$169:$E$218),"") -> 0 | K112: =IF($A106<=Daten!$B$8,LOOKUP($B106,Daten!$A$220:$A$269,Daten!$L$220:$L$269),"") -> 15.5 | L112: =IF($A106<=Daten!$B$8,LOOKUP($B106,Daten!$A$220:$A$269,Daten!$E$220:$E$269),"") -> 0 | M112: =IF($A106<=Daten!$B$8,LOOKUP($B106,Daten!$A$271:$A$320,Daten!$L$271:$L$320),"") -> 15.6 | N112: =IF($A106<=Daten!$B$8,LOOKUP($B106,Daten!$A$271:$A$320,Daten!$E$271:$E$320),"") -> 0 | O112: =IF($A106<=Daten!$B$8,LOOKUP($B106,Daten!$A$322:$A$371,Daten!$L$322:$L$371),"") -> 15.7 | P112: =IF($A106<=Daten!$B$8,LOOKUP($B106,Daten!$A$322:$A$371,Daten!$E$322:$E$371),"") -> 0
A113: 16 | B113: =IF(A113<=Daten!$B$8,Daten!Q9,"") -> Menülinie 16 | C113: =IF(A113<=Daten!$B$8,LOOKUP(B113,Daten!$A$16:$A$65,Daten!$C$16:$C$65),"") -> Lang[16,1] | D113: =IF($A113<=Daten!$B$8,LOOKUP($B113,Daten!$A$16:$A$65,Daten!$P$16:$P$65),"") & " " & IF($A113<=Daten!$B$8,LOOKUP($B113,Daten!$A$16:$A$65,Daten!$Q$16:$Q$65),"") -> 16,1 Inhalt1Einh[16,1] | E113: =IF($A113<=Daten!$B$8,LOOKUP($B113,Daten!$A$67:$A$116,Daten!$C$67:$C$116),"") -> Lang[16,2] | F113: =IF($A113<=Daten!$B$8,LOOKUP($B113,Daten!$A$67:$A$116,Daten!$P$67:$P$116),"") & " " & IF($A113<=Daten!$B$8,LOOKUP($B113,Daten!$A$67:$A$116,Daten!$Q$67:$Q$116),"") -> 16,2 Inhalt1Einh[16,2] | G113: =IF($A113<=Daten!$B$8,LOOKUP($B113,Daten!$A$118:$A$167,Daten!$C$118:$C$167),"") -> Lang[16,3] | H113: =IF($A113<=Daten!$B$8,LOOKUP($B113,Daten!$A$118:$A$167,Daten!$P$118:$P$167),"") & " " & IF($A113<=Daten!$B$8,LOOKUP($B113,Daten!$A$118:$A$167,Daten!$Q$118:$Q$167),"") -> 16,3 Inhalt1Einh[16,3] | I113: =IF($A113<=Daten!$B$8,LOOKUP($B113,Daten!$A$169:$A$218,Daten!$C$169:$C$218),"") -> Lang[16,4] | J113: =IF($A113<=Daten!$B$8,LOOKUP($B113,Daten!$A$169:$A$218,Daten!$P$169:$P$218),"") & " " & IF($A113<=Daten!$B$8,LOOKUP($B113,Daten!$A$169:$A$218,Daten!$Q$169:$Q$218),"") -> 16,4 Inhalt1Einh[16,4] | K113: =IF($A113<=Daten!$B$8,LOOKUP($B113,Daten!$A$220:$A$269,Daten!$C$220:$C$269),"") -> Lang[16,5] | L113: =IF($A113<=Daten!$B$8,LOOKUP($B113,Daten!$A$220:$A$269,Daten!$P$220:$P$269),"") & " " & IF($A113<=Daten!$B$8,LOOKUP($B113,Daten!$A$220:$A$269,Daten!$Q$220:$Q$269),"") -> 16,5 Inhalt1Einh[16,5] | M113: =IF($A113<=Daten!$B$8,LOOKUP($B113,Daten!$A$271:$A$320,Daten!$C$271:$C$320),"") -> Lang[16,6] | N113: =IF($A113<=Daten!$B$8,LOOKUP($B113,Daten!$A$271:$A$320,Daten!$P$271:$P$320),"") & " " & IF($A113<=Daten!$B$8,LOOKUP($B113,Daten!$A$271:$A$320,Daten!$Q$271:$Q$320),"") -> 16,6 Inhalt1Einh[16,6] | O113: =IF($A113<=Daten!$B$8,LOOKUP($B113,Daten!$A$322:$A$371,Daten!$B$322:$C$371),"") ->  | P113: =IF($A113<=Daten!$B$8,LOOKUP($B113,Daten!$A$322:$A$371,Daten!$P$322:$P$371),"") & " " & IF($A113<=Daten!$B$8,LOOKUP($B113,Daten!$A$322:$A$371,Daten!$Q$322:$Q$371),"") -> 16,7 Inhalt1Einh[16,7]
D114: =IF($A113<=Daten!$B$8,LOOKUP($B113,Daten!$A$16:$A$65,Daten!$R$16:$R$65),"") & " " & IF($A113<=Daten!$B$8,LOOKUP($B113,Daten!$A$16:$A$65,Daten!$S$16:$S$65),"") -> 16,1 Inhalt2Einh[16,1] | F114: =IF($A113<=Daten!$B$8,LOOKUP($B113,Daten!$A$67:$A$116,Daten!$R$67:$R$116),"") & " " & IF($A113<=Daten!$B$8,LOOKUP($B113,Daten!$A$67:$A$116,Daten!$S$67:$S$116),"") -> 16,2 Inhalt2Einh[16,2] | H114: =IF($A113<=Daten!$B$8,LOOKUP($B113,Daten!$A$118:$A$167,Daten!$R$118:$R$167),"") & " " & IF($A113<=Daten!$B$8,LOOKUP($B113,Daten!$A$118:$A$167,Daten!$S$118:$S$167),"") -> 16,3 Inhalt2Einh[16,3] | J114: =IF($A113<=Daten!$B$8,LOOKUP($B113,Daten!$A$169:$A$218,Daten!$R$169:$R$218),"") & " " & IF($A113<=Daten!$B$8,LOOKUP($B113,Daten!$A$169:$A$218,Daten!$S$169:$S$218),"") -> 16,4 Inhalt2Einh[16,4] | L114: =IF($A113<=Daten!$B$8,LOOKUP($B113,Daten!$A$220:$A$269,Daten!$R$220:$R$269),"") & " " & IF($A113<=Daten!$B$8,LOOKUP($B113,Daten!$A$220:$A$269,Daten!$S$220:$S$269),"") -> 16,5 Inhalt2Einh[16,5] | N114: =IF($A113<=Daten!$B$8,LOOKUP($B113,Daten!$A$271:$A$320,Daten!$R$271:$R$320),"") & " " & IF($A113<=Daten!$B$8,LOOKUP($B113,Daten!$A$271:$A$320,Daten!$S$271:$S$320),"") -> 16,6 Inhalt2Einh[16,6] | P114: =IF($A113<=Daten!$B$8,LOOKUP($B113,Daten!$A$322:$A$371,Daten!$R$322:$R$371),"") & " " & IF($A113<=Daten!$B$8,LOOKUP($B113,Daten!$A$322:$A$371,Daten!$S$322:$S$371),"") -> 16,7 Inhalt2Einh[16,7]
D115: =IF($A113<=Daten!$B$8,LOOKUP($B113,Daten!$A$16:$A$65,Daten!$T$16:$T$65),"") & " " & IF($A113<=Daten!$B$8,LOOKUP($B113,Daten!$A$16:$A$65,Daten!$U$16:$U$65),"") -> 16,1 Inhalt3Einh[16,1] | F115: =IF($A113<=Daten!$B$8,LOOKUP($B113,Daten!$A$67:$A$116,Daten!$T$67:$T$116),"") & " " & IF($A113<=Daten!$B$8,LOOKUP($B113,Daten!$A$67:$A$116,Daten!$U$67:$U$116),"") -> 16,2 Inhalt3Einh[16,2] | H115: =IF($A113<=Daten!$B$8,LOOKUP($B113,Daten!$A$118:$A$167,Daten!$T$118:$T$167),"") & " " & IF($A113<=Daten!$B$8,LOOKUP($B113,Daten!$A$118:$A$167,Daten!$U$118:$U$167),"") -> 16,3 Inhalt3Einh[16,3] | J115: =IF($A113<=Daten!$B$8,LOOKUP($B113,Daten!$A$169:$A$218,Daten!$T$169:$T$218),"") & " " & IF($A113<=Daten!$B$8,LOOKUP($B113,Daten!$A$169:$A$218,Daten!$U$169:$U$218),"") -> 16,4 Inhalt3Einh[16,4] | L115: =IF($A113<=Daten!$B$8,LOOKUP($B113,Daten!$A$220:$A$269,Daten!$T$220:$T$269),"") & " " & IF($A113<=Daten!$B$8,LOOKUP($B113,Daten!$A$220:$A$269,Daten!$U$220:$U$269),"") -> 16,5 Inhalt3Einh[16,5] | N115: =IF($A113<=Daten!$B$8,LOOKUP($B113,Daten!$A$271:$A$320,Daten!$T$271:$T$320),"") & " " & IF($A113<=Daten!$B$8,LOOKUP($B113,Daten!$A$271:$A$320,Daten!$U$271:$U$320),"") -> 16,6 Inhalt3Einh[16,6] | P115: =IF($A113<=Daten!$B$8,LOOKUP($B113,Daten!$A$322:$A$371,Daten!$T$322:$T$371),"") & " " & IF($A113<=Daten!$B$8,LOOKUP($B113,Daten!$A$322:$A$371,Daten!$U$322:$U$371),"") -> 16,7 Inhalt3Einh[16,7]
D116: =IF($A113<=Daten!$B$8,LOOKUP($B113,Daten!$A$16:$A$65,Daten!$V$16:$V$65),"") & " " & IF($A113<=Daten!$B$8,LOOKUP($B113,Daten!$A$16:$A$65,Daten!$W$16:$W$65),"") -> 16,1 Inhalt4Einh[16,1] | F116: =IF($A113<=Daten!$B$8,LOOKUP($B113,Daten!$A$67:$A$116,Daten!$V$67:$V$116),"") & " " & IF($A113<=Daten!$B$8,LOOKUP($B113,Daten!$A$67:$A$116,Daten!$W$67:$W$116),"") -> 16,2 Inhalt4Einh[16,2] | H116: =IF($A113<=Daten!$B$8,LOOKUP($B113,Daten!$A$118:$A$167,Daten!$V$118:$V$167),"") & " " & IF($A113<=Daten!$B$8,LOOKUP($B113,Daten!$A$118:$A$167,Daten!$W$118:$W$167),"") -> 16,3 Inhalt4Einh[16,3] | J116: =IF($A113<=Daten!$B$8,LOOKUP($B113,Daten!$A$169:$A$218,Daten!$V$169:$V$218),"") & " " & IF($A113<=Daten!$B$8,LOOKUP($B113,Daten!$A$169:$A$218,Daten!$W$169:$W$218),"") -> 16,4 Inhalt4Einh[16,4] | L116: =IF($A113<=Daten!$B$8,LOOKUP($B113,Daten!$A$220:$A$269,Daten!$V$220:$V$269),"") & " " & IF($A113<=Daten!$B$8,LOOKUP($B113,Daten!$A$220:$A$269,Daten!$W$220:$W$269),"") -> 16,5 Inhalt4Einh[16,5] | N116: =IF($A113<=Daten!$B$8,LOOKUP($B113,Daten!$A$271:$A$320,Daten!$V$271:$V$320),"") & " " & IF($A113<=Daten!$B$8,LOOKUP($B113,Daten!$A$271:$A$320,Daten!$W$271:$W$320),"") -> 16,6 Inhalt4Einh[16,6] | P116: =IF($A113<=Daten!$B$8,LOOKUP($B113,Daten!$A$322:$A$371,Daten!$V$322:$V$371),"") & " " & IF($A113<=Daten!$B$8,LOOKUP($B113,Daten!$A$322:$A$371,Daten!$W$322:$W$371),"") -> 16,7 Inhalt4Einh[16,7]
D117: =IF($A113<=Daten!$B$8,LOOKUP($B113,Daten!$A$16:$A$65,Daten!$X$16:$X$65),"") & " " & IF($A113<=Daten!$B$8,LOOKUP($B113,Daten!$A$16:$A$65,Daten!$Y$16:$Y$65),"") -> 16,1 Inhalt5Einh[16,1] | F117: =IF($A113<=Daten!$B$8,LOOKUP($B113,Daten!$A$67:$A$116,Daten!$X$67:$X$116),"") & " " & IF($A113<=Daten!$B$8,LOOKUP($B113,Daten!$A$67:$A$116,Daten!$Y$67:$Y$116),"") -> 16,2 Inhalt5Einh[16,2] | H117: =IF($A113<=Daten!$B$8,LOOKUP($B113,Daten!$A$118:$A$167,Daten!$X$118:$X$167),"") & " " & IF($A113<=Daten!$B$8,LOOKUP($B113,Daten!$A$118:$A$167,Daten!$Y$118:$Y$167),"") -> 16,3 Inhalt5Einh[16,3] | J117: =IF($A113<=Daten!$B$8,LOOKUP($B113,Daten!$A$169:$A$218,Daten!$X$169:$X$218),"") & " " & IF($A113<=Daten!$B$8,LOOKUP($B113,Daten!$A$169:$A$218,Daten!$Y$169:$Y$218),"") -> 16,4 Inhalt5Einh[16,4] | L117: =IF($A113<=Daten!$B$8,LOOKUP($B113,Daten!$A$220:$A$269,Daten!$X$220:$X$269),"") & " " & IF($A113<=Daten!$B$8,LOOKUP($B113,Daten!$A$220:$A$269,Daten!$Y$220:$Y$269),"") -> 16,5 Inhalt5Einh[16,5] | N117: =IF($A113<=Daten!$B$8,LOOKUP($B113,Daten!$A$271:$A$320,Daten!$X$271:$X$320),"") & " " & IF($A113<=Daten!$B$8,LOOKUP($B113,Daten!$A$271:$A$320,Daten!$Y$271:$Y$320),"") -> 16,6 Inhalt5Einh[16,6] | P117: =IF($A113<=Daten!$B$8,LOOKUP($B113,Daten!$A$322:$A$371,Daten!$X$322:$X$371),"") & " " & IF($A113<=Daten!$B$8,LOOKUP($B113,Daten!$A$322:$A$371,Daten!$Y$322:$Y$371),"") -> 16,7 Inhalt5Einh[16,7]
D118: =IF($A113<=Daten!$B$8,LOOKUP($B113,Daten!$A$16:$A$65,Daten!$Z$16:$Z$65),"") & " " & IF($A113<=Daten!$B$8,LOOKUP($B113,Daten!$A$16:$A$65,Daten!$AA$16:$AA$65),"") -> 16,1 Inhalt6Einh[16,1] | F118: =IF($A113<=Daten!$B$8,LOOKUP($B113,Daten!$A$67:$A$116,Daten!$Z$67:$Z$116),"") & " " & IF($A113<=Daten!$B$8,LOOKUP($B113,Daten!$A$67:$A$116,Daten!$AA$67:$AA$116),"") -> 16,2 Inhalt6Einh[16,2] | H118: =IF($A113<=Daten!$B$8,LOOKUP($B113,Daten!$A$118:$A$167,Daten!$Z$118:$Z$167),"") & " " & IF($A113<=Daten!$B$8,LOOKUP($B113,Daten!$A$118:$A$167,Daten!$AA$118:$AA$167),"") -> 16,3 Inhalt6Einh[16,3] | J118: =IF($A113<=Daten!$B$8,LOOKUP($B113,Daten!$A$169:$A$218,Daten!$Z$169:$Z$218),"") & " " & IF($A113<=Daten!$B$8,LOOKUP($B113,Daten!$A$169:$A$218,Daten!$AA$169:$AA$218),"") -> 16,4 Inhalt6Einh[16,4] | L118: =IF($A113<=Daten!$B$8,LOOKUP($B113,Daten!$A$220:$A$269,Daten!$Z$220:$Z$269),"") & " " & IF($A113<=Daten!$B$8,LOOKUP($B113,Daten!$A$220:$A$269,Daten!$AA$220:$AA$269),"") -> 16,5 Inhalt6Einh[16,5] | N118: =IF($A113<=Daten!$B$8,LOOKUP($B113,Daten!$A$271:$A$320,Daten!$Z$271:$Z$320),"") & " " & IF($A113<=Daten!$B$8,LOOKUP($B113,Daten!$A$271:$A$320,Daten!$AA$271:$AA$320),"") -> 16,6 Inhalt6Einh[16,6] | P118: =IF($A113<=Daten!$B$8,LOOKUP($B113,Daten!$A$322:$A$371,Daten!$Z$322:$Z$371),"") & " " & IF($A113<=Daten!$B$8,LOOKUP($B113,Daten!$A$322:$A$371,Daten!$AA$322:$AA$371),"") -> 16,7 Inhalt6Einh[16,7]
B119: =IF(A113<=Daten!$B$8,"Zusatzstoffe","") -> Zusatzstoffe | C119: =IF($A113<=Daten!$B$8,LOOKUP($B113,Daten!$A$16:$A$65,Daten!$L$16:$L$65),"") -> 16.1 | D119: =IF($A113<=Daten!$B$8,LOOKUP($B113,Daten!$A$16:$A$65,Daten!$E$16:$E$65),"") -> 216.1 | E119: =IF($A113<=Daten!$B$8,LOOKUP($B113,Daten!$A$67:$A$116,Daten!$L$67:$L$116),"") -> 16.2 | F119: =IF($A113<=Daten!$B$8,LOOKUP($B113,Daten!$A$16:$A$65,Daten!$E$67:$E$116),"") -> 0 | G119: =IF($A113<=Daten!$B$8,LOOKUP($B113,Daten!$A$118:$A$167,Daten!$L$118:$L$167),"") -> 16.3 | H119: =IF($A113<=Daten!$B$8,LOOKUP($B113,Daten!$A$118:$A$167,Daten!$E$118:$E$167),"") -> 0 | I119: =IF($A113<=Daten!$B$8,LOOKUP($B113,Daten!$A$169:$A$218,Daten!$L$169:$L$218),"") -> 16.4 | J119: =IF($A113<=Daten!$B$8,LOOKUP($B113,Daten!$A$169:$A$218,Daten!$E$169:$E$218),"") -> 0 | K119: =IF($A113<=Daten!$B$8,LOOKUP($B113,Daten!$A$220:$A$269,Daten!$L$220:$L$269),"") -> 16.5 | L119: =IF($A113<=Daten!$B$8,LOOKUP($B113,Daten!$A$220:$A$269,Daten!$E$220:$E$269),"") -> 0 | M119: =IF($A113<=Daten!$B$8,LOOKUP($B113,Daten!$A$271:$A$320,Daten!$L$271:$L$320),"") -> 16.6 | N119: =IF($A113<=Daten!$B$8,LOOKUP($B113,Daten!$A$271:$A$320,Daten!$E$271:$E$320),"") -> 0 | O119: =IF($A113<=Daten!$B$8,LOOKUP($B113,Daten!$A$322:$A$371,Daten!$L$322:$L$371),"") -> 16.7 | P119: =IF($A113<=Daten!$B$8,LOOKUP($B113,Daten!$A$322:$A$371,Daten!$E$322:$E$371),"") -> 0
A120: 17 | B120: =IF(A120<=Daten!$B$8,Daten!R9,"") -> Menülinie 17 | C120: =IF(A120<=Daten!$B$8,LOOKUP(B120,Daten!$A$16:$A$65,Daten!$C$16:$C$65),"") -> Lang[17,1] | D120: =IF($A120<=Daten!$B$8,LOOKUP($B120,Daten!$A$16:$A$65,Daten!$P$16:$P$65),"") & " " & IF($A120<=Daten!$B$8,LOOKUP($B120,Daten!$A$16:$A$65,Daten!$Q$16:$Q$65),"") -> 17,1 Inhalt1Einh[17,1] | E120: =IF($A120<=Daten!$B$8,LOOKUP($B120,Daten!$A$67:$A$116,Daten!$C$67:$C$116),"") -> Lang[17,2] | F120: =IF($A120<=Daten!$B$8,LOOKUP($B120,Daten!$A$67:$A$116,Daten!$P$67:$P$116),"") & " " & IF($A120<=Daten!$B$8,LOOKUP($B120,Daten!$A$67:$A$116,Daten!$Q$67:$Q$116),"") -> 17,2 Inhalt1Einh[17,2] | G120: =IF($A120<=Daten!$B$8,LOOKUP($B120,Daten!$A$118:$A$167,Daten!$C$118:$C$167),"") -> Lang[17,3] | H120: =IF($A120<=Daten!$B$8,LOOKUP($B120,Daten!$A$118:$A$167,Daten!$P$118:$P$167),"") & " " & IF($A120<=Daten!$B$8,LOOKUP($B120,Daten!$A$118:$A$167,Daten!$Q$118:$Q$167),"") -> 17,3 Inhalt1Einh[17,3] | I120: =IF($A120<=Daten!$B$8,LOOKUP($B120,Daten!$A$169:$A$218,Daten!$C$169:$C$218),"") -> Lang[17,4] | J120: =IF($A120<=Daten!$B$8,LOOKUP($B120,Daten!$A$169:$A$218,Daten!$P$169:$P$218),"") & " " & IF($A120<=Daten!$B$8,LOOKUP($B120,Daten!$A$169:$A$218,Daten!$Q$169:$Q$218),"") -> 17,4 Inhalt1Einh[17,4] | K120: =IF($A120<=Daten!$B$8,LOOKUP($B120,Daten!$A$220:$A$269,Daten!$C$220:$C$269),"") -> Lang[17,5] | L120: =IF($A120<=Daten!$B$8,LOOKUP($B120,Daten!$A$220:$A$269,Daten!$P$220:$P$269),"") & " " & IF($A120<=Daten!$B$8,LOOKUP($B120,Daten!$A$220:$A$269,Daten!$Q$220:$Q$269),"") -> 17,5 Inhalt1Einh[17,5] | M120: =IF($A120<=Daten!$B$8,LOOKUP($B120,Daten!$A$271:$A$320,Daten!$C$271:$C$320),"") -> Lang[17,6] | N120: =IF($A120<=Daten!$B$8,LOOKUP($B120,Daten!$A$271:$A$320,Daten!$P$271:$P$320),"") & " " & IF($A120<=Daten!$B$8,LOOKUP($B120,Daten!$A$271:$A$320,Daten!$Q$271:$Q$320),"") -> 17,6 Inhalt1Einh[17,6] | O120: =IF($A120<=Daten!$B$8,LOOKUP($B120,Daten!$A$322:$A$371,Daten!$B$322:$C$371),"") ->  | P120: =IF($A120<=Daten!$B$8,LOOKUP($B120,Daten!$A$322:$A$371,Daten!$P$322:$P$371),"") & " " & IF($A120<=Daten!$B$8,LOOKUP($B120,Daten!$A$322:$A$371,Daten!$Q$322:$Q$371),"") -> 17,7 Inhalt1Einh[17,7]
D121: =IF($A120<=Daten!$B$8,LOOKUP($B120,Daten!$A$16:$A$65,Daten!$R$16:$R$65),"") & " " & IF($A120<=Daten!$B$8,LOOKUP($B120,Daten!$A$16:$A$65,Daten!$S$16:$S$65),"") -> 17,1 Inhalt2Einh[17,1] | F121: =IF($A120<=Daten!$B$8,LOOKUP($B120,Daten!$A$67:$A$116,Daten!$R$67:$R$116),"") & " " & IF($A120<=Daten!$B$8,LOOKUP($B120,Daten!$A$67:$A$116,Daten!$S$67:$S$116),"") -> 17,2 Inhalt2Einh[17,2] | H121: =IF($A120<=Daten!$B$8,LOOKUP($B120,Daten!$A$118:$A$167,Daten!$R$118:$R$167),"") & " " & IF($A120<=Daten!$B$8,LOOKUP($B120,Daten!$A$118:$A$167,Daten!$S$118:$S$167),"") -> 17,3 Inhalt2Einh[17,3] | J121: =IF($A120<=Daten!$B$8,LOOKUP($B120,Daten!$A$169:$A$218,Daten!$R$169:$R$218),"") & " " & IF($A120<=Daten!$B$8,LOOKUP($B120,Daten!$A$169:$A$218,Daten!$S$169:$S$218),"") -> 17,4 Inhalt2Einh[17,4] | L121: =IF($A120<=Daten!$B$8,LOOKUP($B120,Daten!$A$220:$A$269,Daten!$R$220:$R$269),"") & " " & IF($A120<=Daten!$B$8,LOOKUP($B120,Daten!$A$220:$A$269,Daten!$S$220:$S$269),"") -> 17,5 Inhalt2Einh[17,5] | N121: =IF($A120<=Daten!$B$8,LOOKUP($B120,Daten!$A$271:$A$320,Daten!$R$271:$R$320),"") & " " & IF($A120<=Daten!$B$8,LOOKUP($B120,Daten!$A$271:$A$320,Daten!$S$271:$S$320),"") -> 17,6 Inhalt2Einh[17,6] | P121: =IF($A120<=Daten!$B$8,LOOKUP($B120,Daten!$A$322:$A$371,Daten!$R$322:$R$371),"") & " " & IF($A120<=Daten!$B$8,LOOKUP($B120,Daten!$A$322:$A$371,Daten!$S$322:$S$371),"") -> 17,7 Inhalt2Einh[17,7]
D122: =IF($A120<=Daten!$B$8,LOOKUP($B120,Daten!$A$16:$A$65,Daten!$T$16:$T$65),"") & " " & IF($A120<=Daten!$B$8,LOOKUP($B120,Daten!$A$16:$A$65,Daten!$U$16:$U$65),"") -> 17,1 Inhalt3Einh[17,1] | F122: =IF($A120<=Daten!$B$8,LOOKUP($B120,Daten!$A$67:$A$116,Daten!$T$67:$T$116),"") & " " & IF($A120<=Daten!$B$8,LOOKUP($B120,Daten!$A$67:$A$116,Daten!$U$67:$U$116),"") -> 17,2 Inhalt3Einh[17,2] | H122: =IF($A120<=Daten!$B$8,LOOKUP($B120,Daten!$A$118:$A$167,Daten!$T$118:$T$167),"") & " " & IF($A120<=Daten!$B$8,LOOKUP($B120,Daten!$A$118:$A$167,Daten!$U$118:$U$167),"") -> 17,3 Inhalt3Einh[17,3] | J122: =IF($A120<=Daten!$B$8,LOOKUP($B120,Daten!$A$169:$A$218,Daten!$T$169:$T$218),"") & " " & IF($A120<=Daten!$B$8,LOOKUP($B120,Daten!$A$169:$A$218,Daten!$U$169:$U$218),"") -> 17,4 Inhalt3Einh[17,4] | L122: =IF($A120<=Daten!$B$8,LOOKUP($B120,Daten!$A$220:$A$269,Daten!$T$220:$T$269),"") & " " & IF($A120<=Daten!$B$8,LOOKUP($B120,Daten!$A$220:$A$269,Daten!$U$220:$U$269),"") -> 17,5 Inhalt3Einh[17,5] | N122: =IF($A120<=Daten!$B$8,LOOKUP($B120,Daten!$A$271:$A$320,Daten!$T$271:$T$320),"") & " " & IF($A120<=Daten!$B$8,LOOKUP($B120,Daten!$A$271:$A$320,Daten!$U$271:$U$320),"") -> 17,6 Inhalt3Einh[17,6] | P122: =IF($A120<=Daten!$B$8,LOOKUP($B120,Daten!$A$322:$A$371,Daten!$T$322:$T$371),"") & " " & IF($A120<=Daten!$B$8,LOOKUP($B120,Daten!$A$322:$A$371,Daten!$U$322:$U$371),"") -> 17,7 Inhalt3Einh[17,7]
D123: =IF($A120<=Daten!$B$8,LOOKUP($B120,Daten!$A$16:$A$65,Daten!$V$16:$V$65),"") & " " & IF($A120<=Daten!$B$8,LOOKUP($B120,Daten!$A$16:$A$65,Daten!$W$16:$W$65),"") -> 17,1 Inhalt4Einh[17,1] | F123: =IF($A120<=Daten!$B$8,LOOKUP($B120,Daten!$A$67:$A$116,Daten!$V$67:$V$116),"") & " " & IF($A120<=Daten!$B$8,LOOKUP($B120,Daten!$A$67:$A$116,Daten!$W$67:$W$116),"") -> 17,2 Inhalt4Einh[17,2] | H123: =IF($A120<=Daten!$B$8,LOOKUP($B120,Daten!$A$118:$A$167,Daten!$V$118:$V$167),"") & " " & IF($A120<=Daten!$B$8,LOOKUP($B120,Daten!$A$118:$A$167,Daten!$W$118:$W$167),"") -> 17,3 Inhalt4Einh[17,3] | J123: =IF($A120<=Daten!$B$8,LOOKUP($B120,Daten!$A$169:$A$218,Daten!$V$169:$V$218),"") & " " & IF($A120<=Daten!$B$8,LOOKUP($B120,Daten!$A$169:$A$218,Daten!$W$169:$W$218),"") -> 17,4 Inhalt4Einh[17,4] | L123: =IF($A120<=Daten!$B$8,LOOKUP($B120,Daten!$A$220:$A$269,Daten!$V$220:$V$269),"") & " " & IF($A120<=Daten!$B$8,LOOKUP($B120,Daten!$A$220:$A$269,Daten!$W$220:$W$269),"") -> 17,5 Inhalt4Einh[17,5] | N123: =IF($A120<=Daten!$B$8,LOOKUP($B120,Daten!$A$271:$A$320,Daten!$V$271:$V$320),"") & " " & IF($A120<=Daten!$B$8,LOOKUP($B120,Daten!$A$271:$A$320,Daten!$W$271:$W$320),"") -> 17,6 Inhalt4Einh[17,6] | P123: =IF($A120<=Daten!$B$8,LOOKUP($B120,Daten!$A$322:$A$371,Daten!$V$322:$V$371),"") & " " & IF($A120<=Daten!$B$8,LOOKUP($B120,Daten!$A$322:$A$371,Daten!$W$322:$W$371),"") -> 17,7 Inhalt4Einh[17,7]
D124: =IF($A120<=Daten!$B$8,LOOKUP($B120,Daten!$A$16:$A$65,Daten!$X$16:$X$65),"") & " " & IF($A120<=Daten!$B$8,LOOKUP($B120,Daten!$A$16:$A$65,Daten!$Y$16:$Y$65),"") -> 17,1 Inhalt5Einh[17,1] | F124: =IF($A120<=Daten!$B$8,LOOKUP($B120,Daten!$A$67:$A$116,Daten!$X$67:$X$116),"") & " " & IF($A120<=Daten!$B$8,LOOKUP($B120,Daten!$A$67:$A$116,Daten!$Y$67:$Y$116),"") -> 17,2 Inhalt5Einh[17,2] | H124: =IF($A120<=Daten!$B$8,LOOKUP($B120,Daten!$A$118:$A$167,Daten!$X$118:$X$167),"") & " " & IF($A120<=Daten!$B$8,LOOKUP($B120,Daten!$A$118:$A$167,Daten!$Y$118:$Y$167),"") -> 17,3 Inhalt5Einh[17,3] | J124: =IF($A120<=Daten!$B$8,LOOKUP($B120,Daten!$A$169:$A$218,Daten!$X$169:$X$218),"") & " " & IF($A120<=Daten!$B$8,LOOKUP($B120,Daten!$A$169:$A$218,Daten!$Y$169:$Y$218),"") -> 17,4 Inhalt5Einh[17,4] | L124: =IF($A120<=Daten!$B$8,LOOKUP($B120,Daten!$A$220:$A$269,Daten!$X$220:$X$269),"") & " " & IF($A120<=Daten!$B$8,LOOKUP($B120,Daten!$A$220:$A$269,Daten!$Y$220:$Y$269),"") -> 17,5 Inhalt5Einh[17,5] | N124: =IF($A120<=Daten!$B$8,LOOKUP($B120,Daten!$A$271:$A$320,Daten!$X$271:$X$320),"") & " " & IF($A120<=Daten!$B$8,LOOKUP($B120,Daten!$A$271:$A$320,Daten!$Y$271:$Y$320),"") -> 17,6 Inhalt5Einh[17,6] | P124: =IF($A120<=Daten!$B$8,LOOKUP($B120,Daten!$A$322:$A$371,Daten!$X$322:$X$371),"") & " " & IF($A120<=Daten!$B$8,LOOKUP($B120,Daten!$A$322:$A$371,Daten!$Y$322:$Y$371),"") -> 17,7 Inhalt5Einh[17,7]
D125: =IF($A120<=Daten!$B$8,LOOKUP($B120,Daten!$A$16:$A$65,Daten!$Z$16:$Z$65),"") & " " & IF($A120<=Daten!$B$8,LOOKUP($B120,Daten!$A$16:$A$65,Daten!$AA$16:$AA$65),"") -> 17,1 Inhalt6Einh[17,1] | F125: =IF($A120<=Daten!$B$8,LOOKUP($B120,Daten!$A$67:$A$116,Daten!$Z$67:$Z$116),"") & " " & IF($A120<=Daten!$B$8,LOOKUP($B120,Daten!$A$67:$A$116,Daten!$AA$67:$AA$116),"") -> 17,2 Inhalt6Einh[17,2] | H125: =IF($A120<=Daten!$B$8,LOOKUP($B120,Daten!$A$118:$A$167,Daten!$Z$118:$Z$167),"") & " " & IF($A120<=Daten!$B$8,LOOKUP($B120,Daten!$A$118:$A$167,Daten!$AA$118:$AA$167),"") -> 17,3 Inhalt6Einh[17,3] | J125: =IF($A120<=Daten!$B$8,LOOKUP($B120,Daten!$A$169:$A$218,Daten!$Z$169:$Z$218),"") & " " & IF($A120<=Daten!$B$8,LOOKUP($B120,Daten!$A$169:$A$218,Daten!$AA$169:$AA$218),"") -> 17,4 Inhalt6Einh[17,4] | L125: =IF($A120<=Daten!$B$8,LOOKUP($B120,Daten!$A$220:$A$269,Daten!$Z$220:$Z$269),"") & " " & IF($A120<=Daten!$B$8,LOOKUP($B120,Daten!$A$220:$A$269,Daten!$AA$220:$AA$269),"") -> 17,5 Inhalt6Einh[17,5] | N125: =IF($A120<=Daten!$B$8,LOOKUP($B120,Daten!$A$271:$A$320,Daten!$Z$271:$Z$320),"") & " " & IF($A120<=Daten!$B$8,LOOKUP($B120,Daten!$A$271:$A$320,Daten!$AA$271:$AA$320),"") -> 17,6 Inhalt6Einh[17,6] | P125: =IF($A120<=Daten!$B$8,LOOKUP($B120,Daten!$A$322:$A$371,Daten!$Z$322:$Z$371),"") & " " & IF($A120<=Daten!$B$8,LOOKUP($B120,Daten!$A$322:$A$371,Daten!$AA$322:$AA$371),"") -> 17,7 Inhalt6Einh[17,7]
B126: =IF(A120<=Daten!$B$8,"Zusatzstoffe","") -> Zusatzstoffe | C126: =IF($A120<=Daten!$B$8,LOOKUP($B120,Daten!$A$16:$A$65,Daten!$L$16:$L$65),"") -> 17.1 | D126: =IF($A120<=Daten!$B$8,LOOKUP($B120,Daten!$A$16:$A$65,Daten!$E$16:$E$65),"") -> 217.1 | E126: =IF($A120<=Daten!$B$8,LOOKUP($B120,Daten!$A$67:$A$116,Daten!$L$67:$L$116),"") -> 17.2 | F126: =IF($A120<=Daten!$B$8,LOOKUP($B120,Daten!$A$16:$A$65,Daten!$E$67:$E$116),"") -> 0 | G126: =IF($A120<=Daten!$B$8,LOOKUP($B120,Daten!$A$118:$A$167,Daten!$L$118:$L$167),"") -> 17.3 | H126: =IF($A120<=Daten!$B$8,LOOKUP($B120,Daten!$A$118:$A$167,Daten!$E$118:$E$167),"") -> 0 | I126: =IF($A120<=Daten!$B$8,LOOKUP($B120,Daten!$A$169:$A$218,Daten!$L$169:$L$218),"") -> 17.4 | J126: =IF($A120<=Daten!$B$8,LOOKUP($B120,Daten!$A$169:$A$218,Daten!$E$169:$E$218),"") -> 0 | K126: =IF($A120<=Daten!$B$8,LOOKUP($B120,Daten!$A$220:$A$269,Daten!$L$220:$L$269),"") -> 17.5 | L126: =IF($A120<=Daten!$B$8,LOOKUP($B120,Daten!$A$220:$A$269,Daten!$E$220:$E$269),"") -> 0 | M126: =IF($A120<=Daten!$B$8,LOOKUP($B120,Daten!$A$271:$A$320,Daten!$L$271:$L$320),"") -> 17.6 | N126: =IF($A120<=Daten!$B$8,LOOKUP($B120,Daten!$A$271:$A$320,Daten!$E$271:$E$320),"") -> 0 | O126: =IF($A120<=Daten!$B$8,LOOKUP($B120,Daten!$A$322:$A$371,Daten!$L$322:$L$371),"") -> 17.7 | P126: =IF($A120<=Daten!$B$8,LOOKUP($B120,Daten!$A$322:$A$371,Daten!$E$322:$E$371),"") -> 0
A127: 18 | B127: =IF(A127<=Daten!$B$8,Daten!S9,"") -> Menülinie 18 | C127: =IF(A127<=Daten!$B$8,LOOKUP(B127,Daten!$A$16:$A$65,Daten!$C$16:$C$65),"") -> Lang[18,1] | D127: =IF($A127<=Daten!$B$8,LOOKUP($B127,Daten!$A$16:$A$65,Daten!$P$16:$P$65),"") & " " & IF($A127<=Daten!$B$8,LOOKUP($B127,Daten!$A$16:$A$65,Daten!$Q$16:$Q$65),"") -> 18,1 Inhalt1Einh[18,1] | E127: =IF($A127<=Daten!$B$8,LOOKUP($B127,Daten!$A$57:$A$116,Daten!$C$57:$C$116),"") -> Lang[18,2] | F127: =IF($A127<=Daten!$B$8,LOOKUP($B127,Daten!$A$57:$A$116,Daten!$P$57:$P$116),"") & " " & IF($A127<=Daten!$B$8,LOOKUP($B127,Daten!$A$57:$A$116,Daten!$Q$57:$Q$116),"") -> 18,2 Inhalt1Einh[18,2] | G127: =IF($A127<=Daten!$B$8,LOOKUP($B127,Daten!$A$118:$A$167,Daten!$C$118:$C$167),"") -> Lang[18,3] | H127: =IF($A127<=Daten!$B$8,LOOKUP($B127,Daten!$A$118:$A$167,Daten!$P$118:$P$167),"") & " " & IF($A127<=Daten!$B$8,LOOKUP($B127,Daten!$A$118:$A$167,Daten!$Q$118:$Q$167),"") -> 18,3 Inhalt1Einh[18,3] | I127: =IF($A127<=Daten!$B$8,LOOKUP($B127,Daten!$A$169:$A$218,Daten!$C$169:$C$218),"") -> Lang[18,4] | J127: =IF($A127<=Daten!$B$8,LOOKUP($B127,Daten!$A$169:$A$218,Daten!$P$169:$P$218),"") & " " & IF($A127<=Daten!$B$8,LOOKUP($B127,Daten!$A$169:$A$218,Daten!$Q$169:$Q$218),"") -> 18,4 Inhalt1Einh[18,4] | K127: =IF($A127<=Daten!$B$8,LOOKUP($B127,Daten!$A$220:$A$269,Daten!$C$220:$C$269),"") -> Lang[18,5] | L127: =IF($A127<=Daten!$B$8,LOOKUP($B127,Daten!$A$220:$A$269,Daten!$P$220:$P$269),"") & " " & IF($A127<=Daten!$B$8,LOOKUP($B127,Daten!$A$220:$A$269,Daten!$Q$220:$Q$269),"") -> 18,5 Inhalt1Einh[18,5] | M127: =IF($A127<=Daten!$B$8,LOOKUP($B127,Daten!$A$271:$A$320,Daten!$C$271:$C$320),"") -> Lang[18,6] | N127: =IF($A127<=Daten!$B$8,LOOKUP($B127,Daten!$A$271:$A$320,Daten!$P$271:$P$320),"") & " " & IF($A127<=Daten!$B$8,LOOKUP($B127,Daten!$A$271:$A$320,Daten!$Q$271:$Q$320),"") -> 18,6 Inhalt1Einh[18,6] | O127: =IF($A127<=Daten!$B$8,LOOKUP($B127,Daten!$A$322:$A$371,Daten!$B$322:$C$371),"") ->  | P127: =IF($A127<=Daten!$B$8,LOOKUP($B127,Daten!$A$322:$A$371,Daten!$P$322:$P$371),"") & " " & IF($A127<=Daten!$B$8,LOOKUP($B127,Daten!$A$322:$A$371,Daten!$Q$322:$Q$371),"") -> 18,7 Inhalt1Einh[18,7]
D128: =IF($A127<=Daten!$B$8,LOOKUP($B127,Daten!$A$16:$A$65,Daten!$R$16:$R$65),"") & " " & IF($A127<=Daten!$B$8,LOOKUP($B127,Daten!$A$16:$A$65,Daten!$S$16:$S$65),"") -> 18,1 Inhalt2Einh[18,1] | F128: =IF($A127<=Daten!$B$8,LOOKUP($B127,Daten!$A$57:$A$116,Daten!$R$57:$R$116),"") & " " & IF($A127<=Daten!$B$8,LOOKUP($B127,Daten!$A$57:$A$116,Daten!$S$57:$S$116),"") -> 18,2 Inhalt2Einh[18,2] | H128: =IF($A127<=Daten!$B$8,LOOKUP($B127,Daten!$A$118:$A$167,Daten!$R$118:$R$167),"") & " " & IF($A127<=Daten!$B$8,LOOKUP($B127,Daten!$A$118:$A$167,Daten!$S$118:$S$167),"") -> 18,3 Inhalt2Einh[18,3] | J128: =IF($A127<=Daten!$B$8,LOOKUP($B127,Daten!$A$169:$A$218,Daten!$R$169:$R$218),"") & " " & IF($A127<=Daten!$B$8,LOOKUP($B127,Daten!$A$169:$A$218,Daten!$S$169:$S$218),"") -> 18,4 Inhalt2Einh[18,4] | L128: =IF($A127<=Daten!$B$8,LOOKUP($B127,Daten!$A$220:$A$269,Daten!$R$220:$R$269),"") & " " & IF($A127<=Daten!$B$8,LOOKUP($B127,Daten!$A$220:$A$269,Daten!$S$220:$S$269),"") -> 18,5 Inhalt2Einh[18,5] | N128: =IF($A127<=Daten!$B$8,LOOKUP($B127,Daten!$A$271:$A$320,Daten!$R$271:$R$320),"") & " " & IF($A127<=Daten!$B$8,LOOKUP($B127,Daten!$A$271:$A$320,Daten!$S$271:$S$320),"") -> 18,6 Inhalt2Einh[18,6] | P128: =IF($A127<=Daten!$B$8,LOOKUP($B127,Daten!$A$322:$A$371,Daten!$R$322:$R$371),"") & " " & IF($A127<=Daten!$B$8,LOOKUP($B127,Daten!$A$322:$A$371,Daten!$S$322:$S$371),"") -> 18,7 Inhalt2Einh[18,7]
D129: =IF($A127<=Daten!$B$8,LOOKUP($B127,Daten!$A$16:$A$65,Daten!$T$16:$T$65),"") & " " & IF($A127<=Daten!$B$8,LOOKUP($B127,Daten!$A$16:$A$65,Daten!$U$16:$U$65),"") -> 18,1 Inhalt3Einh[18,1] | F129: =IF($A127<=Daten!$B$8,LOOKUP($B127,Daten!$A$57:$A$116,Daten!$T$57:$T$116),"") & " " & IF($A127<=Daten!$B$8,LOOKUP($B127,Daten!$A$57:$A$116,Daten!$U$57:$U$116),"") -> 18,2 Inhalt3Einh[18,2] | H129: =IF($A127<=Daten!$B$8,LOOKUP($B127,Daten!$A$118:$A$167,Daten!$T$118:$T$167),"") & " " & IF($A127<=Daten!$B$8,LOOKUP($B127,Daten!$A$118:$A$167,Daten!$U$118:$U$167),"") -> 18,3 Inhalt3Einh[18,3] | J129: =IF($A127<=Daten!$B$8,LOOKUP($B127,Daten!$A$169:$A$218,Daten!$T$169:$T$218),"") & " " & IF($A127<=Daten!$B$8,LOOKUP($B127,Daten!$A$169:$A$218,Daten!$U$169:$U$218),"") -> 18,4 Inhalt3Einh[18,4] | L129: =IF($A127<=Daten!$B$8,LOOKUP($B127,Daten!$A$220:$A$269,Daten!$T$220:$T$269),"") & " " & IF($A127<=Daten!$B$8,LOOKUP($B127,Daten!$A$220:$A$269,Daten!$U$220:$U$269),"") -> 18,5 Inhalt3Einh[18,5] | N129: =IF($A127<=Daten!$B$8,LOOKUP($B127,Daten!$A$271:$A$320,Daten!$T$271:$T$320),"") & " " & IF($A127<=Daten!$B$8,LOOKUP($B127,Daten!$A$271:$A$320,Daten!$U$271:$U$320),"") -> 18,6 Inhalt3Einh[18,6] | P129: =IF($A127<=Daten!$B$8,LOOKUP($B127,Daten!$A$322:$A$371,Daten!$T$322:$T$371),"") & " " & IF($A127<=Daten!$B$8,LOOKUP($B127,Daten!$A$322:$A$371,Daten!$U$322:$U$371),"") -> 18,7 Inhalt3Einh[18,7]
D130: =IF($A127<=Daten!$B$8,LOOKUP($B127,Daten!$A$16:$A$65,Daten!$V$16:$V$65),"") & " " & IF($A127<=Daten!$B$8,LOOKUP($B127,Daten!$A$16:$A$65,Daten!$W$16:$W$65),"") -> 18,1 Inhalt4Einh[18,1] | F130: =IF($A127<=Daten!$B$8,LOOKUP($B127,Daten!$A$57:$A$116,Daten!$V$57:$V$116),"") & " " & IF($A127<=Daten!$B$8,LOOKUP($B127,Daten!$A$57:$A$116,Daten!$W$57:$W$116),"") -> 18,2 Inhalt4Einh[18,2] | H130: =IF($A127<=Daten!$B$8,LOOKUP($B127,Daten!$A$118:$A$167,Daten!$V$118:$V$167),"") & " " & IF($A127<=Daten!$B$8,LOOKUP($B127,Daten!$A$118:$A$167,Daten!$W$118:$W$167),"") -> 18,3 Inhalt4Einh[18,3] | J130: =IF($A127<=Daten!$B$8,LOOKUP($B127,Daten!$A$169:$A$218,Daten!$V$169:$V$218),"") & " " & IF($A127<=Daten!$B$8,LOOKUP($B127,Daten!$A$169:$A$218,Daten!$W$169:$W$218),"") -> 18,4 Inhalt4Einh[18,4] | L130: =IF($A127<=Daten!$B$8,LOOKUP($B127,Daten!$A$220:$A$269,Daten!$V$220:$V$269),"") & " " & IF($A127<=Daten!$B$8,LOOKUP($B127,Daten!$A$220:$A$269,Daten!$W$220:$W$269),"") -> 18,5 Inhalt4Einh[18,5] | N130: =IF($A127<=Daten!$B$8,LOOKUP($B127,Daten!$A$271:$A$320,Daten!$V$271:$V$320),"") & " " & IF($A127<=Daten!$B$8,LOOKUP($B127,Daten!$A$271:$A$320,Daten!$W$271:$W$320),"") -> 18,6 Inhalt4Einh[18,6] | P130: =IF($A127<=Daten!$B$8,LOOKUP($B127,Daten!$A$322:$A$371,Daten!$V$322:$V$371),"") & " " & IF($A127<=Daten!$B$8,LOOKUP($B127,Daten!$A$322:$A$371,Daten!$W$322:$W$371),"") -> 18,7 Inhalt4Einh[18,7]
D131: =IF($A127<=Daten!$B$8,LOOKUP($B127,Daten!$A$16:$A$65,Daten!$X$16:$X$65),"") & " " & IF($A127<=Daten!$B$8,LOOKUP($B127,Daten!$A$16:$A$65,Daten!$Y$16:$Y$65),"") -> 18,1 Inhalt5Einh[18,1] | F131: =IF($A127<=Daten!$B$8,LOOKUP($B127,Daten!$A$57:$A$116,Daten!$X$57:$X$116),"") & " " & IF($A127<=Daten!$B$8,LOOKUP($B127,Daten!$A$57:$A$116,Daten!$Y$57:$Y$116),"") -> 18,2 Inhalt5Einh[18,2] | H131: =IF($A127<=Daten!$B$8,LOOKUP($B127,Daten!$A$118:$A$167,Daten!$X$118:$X$167),"") & " " & IF($A127<=Daten!$B$8,LOOKUP($B127,Daten!$A$118:$A$167,Daten!$Y$118:$Y$167),"") -> 18,3 Inhalt5Einh[18,3] | J131: =IF($A127<=Daten!$B$8,LOOKUP($B127,Daten!$A$169:$A$218,Daten!$X$169:$X$218),"") & " " & IF($A127<=Daten!$B$8,LOOKUP($B127,Daten!$A$169:$A$218,Daten!$Y$169:$Y$218),"") -> 18,4 Inhalt5Einh[18,4] | L131: =IF($A127<=Daten!$B$8,LOOKUP($B127,Daten!$A$220:$A$269,Daten!$X$220:$X$269),"") & " " & IF($A127<=Daten!$B$8,LOOKUP($B127,Daten!$A$220:$A$269,Daten!$Y$220:$Y$269),"") -> 18,5 Inhalt5Einh[18,5] | N131: =IF($A127<=Daten!$B$8,LOOKUP($B127,Daten!$A$271:$A$320,Daten!$X$271:$X$320),"") & " " & IF($A127<=Daten!$B$8,LOOKUP($B127,Daten!$A$271:$A$320,Daten!$Y$271:$Y$320),"") -> 18,6 Inhalt5Einh[18,6] | P131: =IF($A127<=Daten!$B$8,LOOKUP($B127,Daten!$A$322:$A$371,Daten!$X$322:$X$371),"") & " " & IF($A127<=Daten!$B$8,LOOKUP($B127,Daten!$A$322:$A$371,Daten!$Y$322:$Y$371),"") -> 18,7 Inhalt5Einh[18,7]
D132: =IF($A127<=Daten!$B$8,LOOKUP($B127,Daten!$A$16:$A$65,Daten!$Z$16:$Z$65),"") & " " & IF($A127<=Daten!$B$8,LOOKUP($B127,Daten!$A$16:$A$65,Daten!$AA$16:$AA$65),"") -> 18,1 Inhalt6Einh[18,1] | F132: =IF($A127<=Daten!$B$8,LOOKUP($B127,Daten!$A$57:$A$116,Daten!$Z$57:$Z$116),"") & " " & IF($A127<=Daten!$B$8,LOOKUP($B127,Daten!$A$57:$A$116,Daten!$AA$57:$AA$116),"") -> 18,2 Inhalt6Einh[18,2] | H132: =IF($A127<=Daten!$B$8,LOOKUP($B127,Daten!$A$118:$A$167,Daten!$Z$118:$Z$167),"") & " " & IF($A127<=Daten!$B$8,LOOKUP($B127,Daten!$A$118:$A$167,Daten!$AA$118:$AA$167),"") -> 18,3 Inhalt6Einh[18,3] | J132: =IF($A127<=Daten!$B$8,LOOKUP($B127,Daten!$A$169:$A$218,Daten!$Z$169:$Z$218),"") & " " & IF($A127<=Daten!$B$8,LOOKUP($B127,Daten!$A$169:$A$218,Daten!$AA$169:$AA$218),"") -> 18,4 Inhalt6Einh[18,4] | L132: =IF($A127<=Daten!$B$8,LOOKUP($B127,Daten!$A$220:$A$269,Daten!$Z$220:$Z$269),"") & " " & IF($A127<=Daten!$B$8,LOOKUP($B127,Daten!$A$220:$A$269,Daten!$AA$220:$AA$269),"") -> 18,5 Inhalt6Einh[18,5] | N132: =IF($A127<=Daten!$B$8,LOOKUP($B127,Daten!$A$271:$A$320,Daten!$Z$271:$Z$320),"") & " " & IF($A127<=Daten!$B$8,LOOKUP($B127,Daten!$A$271:$A$320,Daten!$AA$271:$AA$320),"") -> 18,6 Inhalt6Einh[18,6] | P132: =IF($A127<=Daten!$B$8,LOOKUP($B127,Daten!$A$322:$A$371,Daten!$Z$322:$Z$371),"") & " " & IF($A127<=Daten!$B$8,LOOKUP($B127,Daten!$A$322:$A$371,Daten!$AA$322:$AA$371),"") -> 18,7 Inhalt6Einh[18,7]
B133: =IF(A127<=Daten!$B$8,"Zusatzstoffe","") -> Zusatzstoffe | C133: =IF($A127<=Daten!$B$8,LOOKUP($B127,Daten!$A$16:$A$65,Daten!$L$16:$L$65),"") -> 18.1 | D133: =IF($A127<=Daten!$B$8,LOOKUP($B127,Daten!$A$16:$A$65,Daten!$E$16:$E$65),"") -> 218.1 | E133: =IF($A127<=Daten!$B$8,LOOKUP($B127,Daten!$A$67:$A$116,Daten!$L$67:$L$116),"") -> 18.2 | F133: =IF($A127<=Daten!$B$8,LOOKUP($B127,Daten!$A$16:$A$65,Daten!$E$67:$E$116),"") -> 0 | G133: =IF($A127<=Daten!$B$8,LOOKUP($B127,Daten!$A$118:$A$167,Daten!$L$118:$L$167),"") -> 18.3 | H133: =IF($A127<=Daten!$B$8,LOOKUP($B127,Daten!$A$118:$A$167,Daten!$E$118:$E$167),"") -> 0 | I133: =IF($A127<=Daten!$B$8,LOOKUP($B127,Daten!$A$169:$A$218,Daten!$L$169:$L$218),"") -> 18.4 | J133: =IF($A127<=Daten!$B$8,LOOKUP($B127,Daten!$A$169:$A$218,Daten!$E$169:$E$218),"") -> 0 | K133: =IF($A127<=Daten!$B$8,LOOKUP($B127,Daten!$A$220:$A$269,Daten!$L$220:$L$269),"") -> 18.5 | L133: =IF($A127<=Daten!$B$8,LOOKUP($B127,Daten!$A$220:$A$269,Daten!$E$220:$E$269),"") -> 0 | M133: =IF($A127<=Daten!$B$8,LOOKUP($B127,Daten!$A$271:$A$320,Daten!$L$271:$L$320),"") -> 18.6 | N133: =IF($A127<=Daten!$B$8,LOOKUP($B127,Daten!$A$271:$A$320,Daten!$E$271:$E$320),"") -> 0 | O133: =IF($A127<=Daten!$B$8,LOOKUP($B127,Daten!$A$322:$A$371,Daten!$L$322:$L$371),"") -> 18.7 | P133: =IF($A127<=Daten!$B$8,LOOKUP($B127,Daten!$A$322:$A$371,Daten!$E$322:$E$371),"") -> 0
A134: 19 | B134: =IF(A134<=Daten!$B$8,Daten!T9,"") -> Menülinie 19 | C134: =IF(A134<=Daten!$B$8,LOOKUP(B134,Daten!$A$16:$A$65,Daten!$C$16:$C$65),"") -> Lang[19,1] | D134: =IF($A134<=Daten!$B$8,LOOKUP($B134,Daten!$A$16:$A$65,Daten!$P$16:$P$65),"") & " " & IF($A134<=Daten!$B$8,LOOKUP($B134,Daten!$A$16:$A$65,Daten!$Q$16:$Q$65),"") -> 19,1 Inhalt1Einh[19,1] | E134: =IF($A134<=Daten!$B$8,LOOKUP($B134,Daten!$A$67:$A$116,Daten!$C$67:$C$116),"") -> Lang[19,2] | F134: =IF($A134<=Daten!$B$8,LOOKUP($B134,Daten!$A$67:$A$116,Daten!$P$67:$P$116),"") & " " & IF($A134<=Daten!$B$8,LOOKUP($B134,Daten!$A$67:$A$116,Daten!$Q$67:$Q$116),"") -> 19,2 Inhalt1Einh[19,2] | G134: =IF($A134<=Daten!$B$8,LOOKUP($B134,Daten!$A$118:$A$167,Daten!$C$118:$C$167),"") -> Lang[19,3] | H134: =IF($A134<=Daten!$B$8,LOOKUP($B134,Daten!$A$118:$A$167,Daten!$P$118:$P$167),"") & " " & IF($A134<=Daten!$B$8,LOOKUP($B134,Daten!$A$118:$A$167,Daten!$Q$118:$Q$167),"") -> 19,3 Inhalt1Einh[19,3] | I134: =IF($A134<=Daten!$B$8,LOOKUP($B134,Daten!$A$169:$A$218,Daten!$C$169:$C$218),"") -> Lang[19,4] | J134: =IF($A134<=Daten!$B$8,LOOKUP($B134,Daten!$A$169:$A$218,Daten!$P$169:$P$218),"") & " " & IF($A134<=Daten!$B$8,LOOKUP($B134,Daten!$A$169:$A$218,Daten!$Q$169:$Q$218),"") -> 19,4 Inhalt1Einh[19,4] | K134: =IF($A134<=Daten!$B$8,LOOKUP($B134,Daten!$A$220:$A$269,Daten!$C$220:$C$269),"") -> Lang[19,5] | L134: =IF($A134<=Daten!$B$8,LOOKUP($B134,Daten!$A$220:$A$269,Daten!$P$220:$P$269),"") & " " & IF($A134<=Daten!$B$8,LOOKUP($B134,Daten!$A$220:$A$269,Daten!$Q$220:$Q$269),"") -> 19,5 Inhalt1Einh[19,5] | M134: =IF($A134<=Daten!$B$8,LOOKUP($B134,Daten!$A$271:$A$320,Daten!$C$271:$C$320),"") -> Lang[19,6] | N134: =IF($A134<=Daten!$B$8,LOOKUP($B134,Daten!$A$271:$A$320,Daten!$P$271:$P$320),"") & " " & IF($A134<=Daten!$B$8,LOOKUP($B134,Daten!$A$271:$A$320,Daten!$Q$271:$Q$320),"") -> 19,6 Inhalt1Einh[19,6] | O134: =IF($A134<=Daten!$B$8,LOOKUP($B134,Daten!$A$322:$A$371,Daten!$B$322:$C$371),"") ->  | P134: =IF($A134<=Daten!$B$8,LOOKUP($B134,Daten!$A$322:$A$371,Daten!$P$322:$P$371),"") & " " & IF($A134<=Daten!$B$8,LOOKUP($B134,Daten!$A$322:$A$371,Daten!$Q$322:$Q$371),"") -> 19,7 Inhalt1Einh[19,7]
D135: =IF($A134<=Daten!$B$8,LOOKUP($B134,Daten!$A$16:$A$65,Daten!$R$16:$R$65),"") & " " & IF($A134<=Daten!$B$8,LOOKUP($B134,Daten!$A$16:$A$65,Daten!$S$16:$S$65),"") -> 19,1 Inhalt2Einh[19,1] | F135: =IF($A134<=Daten!$B$8,LOOKUP($B134,Daten!$A$67:$A$116,Daten!$R$67:$R$116),"") & " " & IF($A134<=Daten!$B$8,LOOKUP($B134,Daten!$A$67:$A$116,Daten!$S$67:$S$116),"") -> 19,2 Inhalt2Einh[19,2] | H135: =IF($A134<=Daten!$B$8,LOOKUP($B134,Daten!$A$118:$A$167,Daten!$R$118:$R$167),"") & " " & IF($A134<=Daten!$B$8,LOOKUP($B134,Daten!$A$118:$A$167,Daten!$S$118:$S$167),"") -> 19,3 Inhalt2Einh[19,3] | J135: =IF($A134<=Daten!$B$8,LOOKUP($B134,Daten!$A$169:$A$218,Daten!$R$169:$R$218),"") & " " & IF($A134<=Daten!$B$8,LOOKUP($B134,Daten!$A$169:$A$218,Daten!$S$169:$S$218),"") -> 19,4 Inhalt2Einh[19,4] | L135: =IF($A134<=Daten!$B$8,LOOKUP($B134,Daten!$A$220:$A$269,Daten!$R$220:$R$269),"") & " " & IF($A134<=Daten!$B$8,LOOKUP($B134,Daten!$A$220:$A$269,Daten!$S$220:$S$269),"") -> 19,5 Inhalt2Einh[19,5] | N135: =IF($A134<=Daten!$B$8,LOOKUP($B134,Daten!$A$271:$A$320,Daten!$R$271:$R$320),"") & " " & IF($A134<=Daten!$B$8,LOOKUP($B134,Daten!$A$271:$A$320,Daten!$S$271:$S$320),"") -> 19,6 Inhalt2Einh[19,6] | P135: =IF($A134<=Daten!$B$8,LOOKUP($B134,Daten!$A$322:$A$371,Daten!$R$322:$R$371),"") & " " & IF($A134<=Daten!$B$8,LOOKUP($B134,Daten!$A$322:$A$371,Daten!$S$322:$S$371),"") -> 19,7 Inhalt2Einh[19,7]
D136: =IF($A134<=Daten!$B$8,LOOKUP($B134,Daten!$A$16:$A$65,Daten!$T$16:$T$65),"") & " " & IF($A134<=Daten!$B$8,LOOKUP($B134,Daten!$A$16:$A$65,Daten!$U$16:$U$65),"") -> 19,1 Inhalt3Einh[19,1] | F136: =IF($A134<=Daten!$B$8,LOOKUP($B134,Daten!$A$67:$A$116,Daten!$T$67:$T$116),"") & " " & IF($A134<=Daten!$B$8,LOOKUP($B134,Daten!$A$67:$A$116,Daten!$U$67:$U$116),"") -> 19,2 Inhalt3Einh[19,2] | H136: =IF($A134<=Daten!$B$8,LOOKUP($B134,Daten!$A$118:$A$167,Daten!$T$118:$T$167),"") & " " & IF($A134<=Daten!$B$8,LOOKUP($B134,Daten!$A$118:$A$167,Daten!$U$118:$U$167),"") -> 19,3 Inhalt3Einh[19,3] | J136: =IF($A134<=Daten!$B$8,LOOKUP($B134,Daten!$A$169:$A$218,Daten!$T$169:$T$218),"") & " " & IF($A134<=Daten!$B$8,LOOKUP($B134,Daten!$A$169:$A$218,Daten!$U$169:$U$218),"") -> 19,4 Inhalt3Einh[19,4] | L136: =IF($A134<=Daten!$B$8,LOOKUP($B134,Daten!$A$220:$A$269,Daten!$T$220:$T$269),"") & " " & IF($A134<=Daten!$B$8,LOOKUP($B134,Daten!$A$220:$A$269,Daten!$U$220:$U$269),"") -> 19,5 Inhalt3Einh[19,5] | N136: =IF($A134<=Daten!$B$8,LOOKUP($B134,Daten!$A$271:$A$320,Daten!$T$271:$T$320),"") & " " & IF($A134<=Daten!$B$8,LOOKUP($B134,Daten!$A$271:$A$320,Daten!$U$271:$U$320),"") -> 19,6 Inhalt3Einh[19,6] | P136: =IF($A134<=Daten!$B$8,LOOKUP($B134,Daten!$A$322:$A$371,Daten!$T$322:$T$371),"") & " " & IF($A134<=Daten!$B$8,LOOKUP($B134,Daten!$A$322:$A$371,Daten!$U$322:$U$371),"") -> 19,7 Inhalt3Einh[19,7]
D137: =IF($A134<=Daten!$B$8,LOOKUP($B134,Daten!$A$16:$A$65,Daten!$V$16:$V$65),"") & " " & IF($A134<=Daten!$B$8,LOOKUP($B134,Daten!$A$16:$A$65,Daten!$W$16:$W$65),"") -> 19,1 Inhalt4Einh[19,1] | F137: =IF($A134<=Daten!$B$8,LOOKUP($B134,Daten!$A$67:$A$116,Daten!$V$67:$V$116),"") & " " & IF($A134<=Daten!$B$8,LOOKUP($B134,Daten!$A$67:$A$116,Daten!$W$67:$W$116),"") -> 19,2 Inhalt4Einh[19,2] | H137: =IF($A134<=Daten!$B$8,LOOKUP($B134,Daten!$A$118:$A$167,Daten!$V$118:$V$167),"") & " " & IF($A134<=Daten!$B$8,LOOKUP($B134,Daten!$A$118:$A$167,Daten!$W$118:$W$167),"") -> 19,3 Inhalt4Einh[19,3] | J137: =IF($A134<=Daten!$B$8,LOOKUP($B134,Daten!$A$169:$A$218,Daten!$V$169:$V$218),"") & " " & IF($A134<=Daten!$B$8,LOOKUP($B134,Daten!$A$169:$A$218,Daten!$W$169:$W$218),"") -> 19,4 Inhalt4Einh[19,4] | L137: =IF($A134<=Daten!$B$8,LOOKUP($B134,Daten!$A$220:$A$269,Daten!$V$220:$V$269),"") & " " & IF($A134<=Daten!$B$8,LOOKUP($B134,Daten!$A$220:$A$269,Daten!$W$220:$W$269),"") -> 19,5 Inhalt4Einh[19,5] | N137: =IF($A134<=Daten!$B$8,LOOKUP($B134,Daten!$A$271:$A$320,Daten!$V$271:$V$320),"") & " " & IF($A134<=Daten!$B$8,LOOKUP($B134,Daten!$A$271:$A$320,Daten!$W$271:$W$320),"") -> 19,6 Inhalt4Einh[19,6] | P137: =IF($A134<=Daten!$B$8,LOOKUP($B134,Daten!$A$322:$A$371,Daten!$V$322:$V$371),"") & " " & IF($A134<=Daten!$B$8,LOOKUP($B134,Daten!$A$322:$A$371,Daten!$W$322:$W$371),"") -> 19,7 Inhalt4Einh[19,7]
D138: =IF($A134<=Daten!$B$8,LOOKUP($B134,Daten!$A$16:$A$65,Daten!$X$16:$X$65),"") & " " & IF($A134<=Daten!$B$8,LOOKUP($B134,Daten!$A$16:$A$65,Daten!$Y$16:$Y$65),"") -> 19,1 Inhalt5Einh[19,1] | F138: =IF($A134<=Daten!$B$8,LOOKUP($B134,Daten!$A$67:$A$116,Daten!$X$67:$X$116),"") & " " & IF($A134<=Daten!$B$8,LOOKUP($B134,Daten!$A$67:$A$116,Daten!$Y$67:$Y$116),"") -> 19,2 Inhalt5Einh[19,2] | H138: =IF($A134<=Daten!$B$8,LOOKUP($B134,Daten!$A$118:$A$167,Daten!$X$118:$X$167),"") & " " & IF($A134<=Daten!$B$8,LOOKUP($B134,Daten!$A$118:$A$167,Daten!$Y$118:$Y$167),"") -> 19,3 Inhalt5Einh[19,3] | J138: =IF($A134<=Daten!$B$8,LOOKUP($B134,Daten!$A$169:$A$218,Daten!$X$169:$X$218),"") & " " & IF($A134<=Daten!$B$8,LOOKUP($B134,Daten!$A$169:$A$218,Daten!$Y$169:$Y$218),"") -> 19,4 Inhalt5Einh[19,4] | L138: =IF($A134<=Daten!$B$8,LOOKUP($B134,Daten!$A$220:$A$269,Daten!$X$220:$X$269),"") & " " & IF($A134<=Daten!$B$8,LOOKUP($B134,Daten!$A$220:$A$269,Daten!$Y$220:$Y$269),"") -> 19,5 Inhalt5Einh[19,5] | N138: =IF($A134<=Daten!$B$8,LOOKUP($B134,Daten!$A$271:$A$320,Daten!$X$271:$X$320),"") & " " & IF($A134<=Daten!$B$8,LOOKUP($B134,Daten!$A$271:$A$320,Daten!$Y$271:$Y$320),"") -> 19,6 Inhalt5Einh[19,6] | P138: =IF($A134<=Daten!$B$8,LOOKUP($B134,Daten!$A$322:$A$371,Daten!$X$322:$X$371),"") & " " & IF($A134<=Daten!$B$8,LOOKUP($B134,Daten!$A$322:$A$371,Daten!$Y$322:$Y$371),"") -> 19,7 Inhalt5Einh[19,7]
D139: =IF($A134<=Daten!$B$8,LOOKUP($B134,Daten!$A$16:$A$65,Daten!$Z$16:$Z$65),"") & " " & IF($A134<=Daten!$B$8,LOOKUP($B134,Daten!$A$16:$A$65,Daten!$AA$16:$AA$65),"") -> 19,1 Inhalt6Einh[19,1] | F139: =IF($A134<=Daten!$B$8,LOOKUP($B134,Daten!$A$67:$A$116,Daten!$Z$67:$Z$116),"") & " " & IF($A134<=Daten!$B$8,LOOKUP($B134,Daten!$A$67:$A$116,Daten!$AA$67:$AA$116),"") -> 19,2 Inhalt6Einh[19,2] | H139: =IF($A134<=Daten!$B$8,LOOKUP($B134,Daten!$A$118:$A$167,Daten!$Z$118:$Z$167),"") & " " & IF($A134<=Daten!$B$8,LOOKUP($B134,Daten!$A$118:$A$167,Daten!$AA$118:$AA$167),"") -> 19,3 Inhalt6Einh[19,3] | J139: =IF($A134<=Daten!$B$8,LOOKUP($B134,Daten!$A$169:$A$218,Daten!$Z$169:$Z$218),"") & " " & IF($A134<=Daten!$B$8,LOOKUP($B134,Daten!$A$169:$A$218,Daten!$AA$169:$AA$218),"") -> 19,4 Inhalt6Einh[19,4] | L139: =IF($A134<=Daten!$B$8,LOOKUP($B134,Daten!$A$220:$A$269,Daten!$Z$220:$Z$269),"") & " " & IF($A134<=Daten!$B$8,LOOKUP($B134,Daten!$A$220:$A$269,Daten!$AA$220:$AA$269),"") -> 19,5 Inhalt6Einh[19,5] | N139: =IF($A134<=Daten!$B$8,LOOKUP($B134,Daten!$A$271:$A$320,Daten!$Z$271:$Z$320),"") & " " & IF($A134<=Daten!$B$8,LOOKUP($B134,Daten!$A$271:$A$320,Daten!$AA$271:$AA$320),"") -> 19,6 Inhalt6Einh[19,6] | P139: =IF($A134<=Daten!$B$8,LOOKUP($B134,Daten!$A$322:$A$371,Daten!$Z$322:$Z$371),"") & " " & IF($A134<=Daten!$B$8,LOOKUP($B134,Daten!$A$322:$A$371,Daten!$AA$322:$AA$371),"") -> 19,7 Inhalt6Einh[19,7]
B140: =IF(A134<=Daten!$B$8,"Zusatzstoffe","") -> Zusatzstoffe | C140: =IF($A134<=Daten!$B$8,LOOKUP($B134,Daten!$A$16:$A$65,Daten!$L$16:$L$65),"") -> 19.1 | D140: =IF($A134<=Daten!$B$8,LOOKUP($B134,Daten!$A$16:$A$65,Daten!$E$16:$E$65),"") -> 219.1 | E140: =IF($A134<=Daten!$B$8,LOOKUP($B134,Daten!$A$67:$A$116,Daten!$L$67:$L$116),"") -> 19.2 | F140: =IF($A134<=Daten!$B$8,LOOKUP($B134,Daten!$A$16:$A$65,Daten!$E$67:$E$116),"") -> 0 | G140: =IF($A134<=Daten!$B$8,LOOKUP($B134,Daten!$A$118:$A$167,Daten!$L$118:$L$167),"") -> 19.3 | H140: =IF($A134<=Daten!$B$8,LOOKUP($B134,Daten!$A$118:$A$167,Daten!$E$118:$E$167),"") -> 0 | I140: =IF($A134<=Daten!$B$8,LOOKUP($B134,Daten!$A$169:$A$218,Daten!$L$169:$L$218),"") -> 19.4 | J140: =IF($A134<=Daten!$B$8,LOOKUP($B134,Daten!$A$169:$A$218,Daten!$E$169:$E$218),"") -> 0 | K140: =IF($A134<=Daten!$B$8,LOOKUP($B134,Daten!$A$220:$A$269,Daten!$L$220:$L$269),"") -> 19.5 | L140: =IF($A134<=Daten!$B$8,LOOKUP($B134,Daten!$A$220:$A$269,Daten!$E$220:$E$269),"") -> 0 | M140: =IF($A134<=Daten!$B$8,LOOKUP($B134,Daten!$A$271:$A$320,Daten!$L$271:$L$320),"") -> 19.6 | N140: =IF($A134<=Daten!$B$8,LOOKUP($B134,Daten!$A$271:$A$320,Daten!$E$271:$E$320),"") -> 0 | O140: =IF($A134<=Daten!$B$8,LOOKUP($B134,Daten!$A$322:$A$371,Daten!$L$322:$L$371),"") -> 19.7 | P140: =IF($A134<=Daten!$B$8,LOOKUP($B134,Daten!$A$322:$A$371,Daten!$E$322:$E$371),"") -> 0
A141: 20 | B141: =IF(A141<=Daten!$B$8,Daten!U9,"") -> Menülinie 20 | C141: =IF(A141<=Daten!$B$8,LOOKUP(B141,Daten!$A$16:$A$65,Daten!$C$16:$C$65),"") -> Lang[20,1] | D141: =IF($A141<=Daten!$B$8,LOOKUP($B141,Daten!$A$16:$A$65,Daten!$P$16:$P$65),"") & " " & IF($A141<=Daten!$B$8,LOOKUP($B141,Daten!$A$16:$A$65,Daten!$Q$16:$Q$65),"") -> 20,1 Inhalt1Einh[20,1] | E141: =IF($A141<=Daten!$B$8,LOOKUP($B141,Daten!$A$67:$A$116,Daten!$C$67:$C$116),"") -> Lang[20,2] | F141: =IF($A141<=Daten!$B$8,LOOKUP($B141,Daten!$A$67:$A$116,Daten!$P$67:$P$116),"") & " " & IF($A141<=Daten!$B$8,LOOKUP($B141,Daten!$A$67:$A$116,Daten!$Q$67:$Q$116),"") -> 20,2 Inhalt1Einh[20,2] | G141: =IF($A141<=Daten!$B$8,LOOKUP($B141,Daten!$A$118:$A$167,Daten!$C$118:$C$167),"") -> Lang[20,3] | H141: =IF($A141<=Daten!$B$8,LOOKUP($B141,Daten!$A$118:$A$167,Daten!$P$118:$P$167),"") & " " & IF($A141<=Daten!$B$8,LOOKUP($B141,Daten!$A$118:$A$167,Daten!$Q$118:$Q$167),"") -> 20,3 Inhalt1Einh[20,3] | I141: =IF($A141<=Daten!$B$8,LOOKUP($B141,Daten!$A$169:$A$218,Daten!$C$169:$C$218),"") -> Lang[20,4] | J141: =IF($A141<=Daten!$B$8,LOOKUP($B141,Daten!$A$169:$A$218,Daten!$P$169:$P$218),"") & " " & IF($A141<=Daten!$B$8,LOOKUP($B141,Daten!$A$169:$A$218,Daten!$Q$169:$Q$218),"") -> 20,4 Inhalt1Einh[20,4] | K141: =IF($A141<=Daten!$B$8,LOOKUP($B141,Daten!$A$220:$A$269,Daten!$C$220:$C$269),"") -> Lang[20,5] | L141: =IF($A141<=Daten!$B$8,LOOKUP($B141,Daten!$A$220:$A$269,Daten!$P$220:$P$269),"") & " " & IF($A141<=Daten!$B$8,LOOKUP($B141,Daten!$A$220:$A$269,Daten!$Q$220:$Q$269),"") -> 20,5 Inhalt1Einh[20,5] | M141: =IF($A141<=Daten!$B$8,LOOKUP($B141,Daten!$A$271:$A$320,Daten!$C$271:$C$320),"") -> Lang[20,6] | N141: =IF($A141<=Daten!$B$8,LOOKUP($B141,Daten!$A$271:$A$320,Daten!$P$271:$P$320),"") & " " & IF($A141<=Daten!$B$8,LOOKUP($B141,Daten!$A$271:$A$320,Daten!$Q$271:$Q$320),"") -> 20,6 Inhalt1Einh[20,6] | O141: =IF($A141<=Daten!$B$8,LOOKUP($B141,Daten!$A$322:$A$371,Daten!$B$322:$C$371),"") ->  | P141: =IF($A141<=Daten!$B$8,LOOKUP($B141,Daten!$A$322:$A$371,Daten!$P$322:$P$371),"") & " " & IF($A141<=Daten!$B$8,LOOKUP($B141,Daten!$A$322:$A$371,Daten!$Q$322:$Q$371),"") -> 20,7 Inhalt1Einh[20,7]
D142: =IF($A141<=Daten!$B$8,LOOKUP($B141,Daten!$A$16:$A$65,Daten!$R$16:$R$65),"") & " " & IF($A141<=Daten!$B$8,LOOKUP($B141,Daten!$A$16:$A$65,Daten!$S$16:$S$65),"") -> 20,1 Inhalt2Einh[20,1] | F142: =IF($A141<=Daten!$B$8,LOOKUP($B141,Daten!$A$67:$A$116,Daten!$R$67:$R$116),"") & " " & IF($A141<=Daten!$B$8,LOOKUP($B141,Daten!$A$67:$A$116,Daten!$S$67:$S$116),"") -> 20,2 Inhalt2Einh[20,2] | H142: =IF($A141<=Daten!$B$8,LOOKUP($B141,Daten!$A$118:$A$167,Daten!$R$118:$R$167),"") & " " & IF($A141<=Daten!$B$8,LOOKUP($B141,Daten!$A$118:$A$167,Daten!$S$118:$S$167),"") -> 20,3 Inhalt2Einh[20,3] | J142: =IF($A141<=Daten!$B$8,LOOKUP($B141,Daten!$A$169:$A$218,Daten!$R$169:$R$218),"") & " " & IF($A141<=Daten!$B$8,LOOKUP($B141,Daten!$A$169:$A$218,Daten!$S$169:$S$218),"") -> 20,4 Inhalt2Einh[20,4] | L142: =IF($A141<=Daten!$B$8,LOOKUP($B141,Daten!$A$220:$A$269,Daten!$R$220:$R$269),"") & " " & IF($A141<=Daten!$B$8,LOOKUP($B141,Daten!$A$220:$A$269,Daten!$S$220:$S$269),"") -> 20,5 Inhalt2Einh[20,5] | N142: =IF($A141<=Daten!$B$8,LOOKUP($B141,Daten!$A$271:$A$320,Daten!$R$271:$R$320),"") & " " & IF($A141<=Daten!$B$8,LOOKUP($B141,Daten!$A$271:$A$320,Daten!$S$271:$S$320),"") -> 20,6 Inhalt2Einh[20,6] | P142: =IF($A141<=Daten!$B$8,LOOKUP($B141,Daten!$A$322:$A$371,Daten!$R$322:$R$371),"") & " " & IF($A141<=Daten!$B$8,LOOKUP($B141,Daten!$A$322:$A$371,Daten!$S$322:$S$371),"") -> 20,7 Inhalt2Einh[20,7]
D143: =IF($A141<=Daten!$B$8,LOOKUP($B141,Daten!$A$16:$A$65,Daten!$T$16:$T$65),"") & " " & IF($A141<=Daten!$B$8,LOOKUP($B141,Daten!$A$16:$A$65,Daten!$U$16:$U$65),"") -> 20,1 Inhalt3Einh[20,1] | F143: =IF($A141<=Daten!$B$8,LOOKUP($B141,Daten!$A$67:$A$116,Daten!$T$67:$T$116),"") & " " & IF($A141<=Daten!$B$8,LOOKUP($B141,Daten!$A$67:$A$116,Daten!$U$67:$U$116),"") -> 20,2 Inhalt3Einh[20,2] | H143: =IF($A141<=Daten!$B$8,LOOKUP($B141,Daten!$A$118:$A$167,Daten!$T$118:$T$167),"") & " " & IF($A141<=Daten!$B$8,LOOKUP($B141,Daten!$A$118:$A$167,Daten!$U$118:$U$167),"") -> 20,3 Inhalt3Einh[20,3] | J143: =IF($A141<=Daten!$B$8,LOOKUP($B141,Daten!$A$169:$A$218,Daten!$T$169:$T$218),"") & " " & IF($A141<=Daten!$B$8,LOOKUP($B141,Daten!$A$169:$A$218,Daten!$U$169:$U$218),"") -> 20,4 Inhalt3Einh[20,4] | L143: =IF($A141<=Daten!$B$8,LOOKUP($B141,Daten!$A$220:$A$269,Daten!$T$220:$T$269),"") & " " & IF($A141<=Daten!$B$8,LOOKUP($B141,Daten!$A$220:$A$269,Daten!$U$220:$U$269),"") -> 20,5 Inhalt3Einh[20,5] | N143: =IF($A141<=Daten!$B$8,LOOKUP($B141,Daten!$A$271:$A$320,Daten!$T$271:$T$320),"") & " " & IF($A141<=Daten!$B$8,LOOKUP($B141,Daten!$A$271:$A$320,Daten!$U$271:$U$320),"") -> 20,6 Inhalt3Einh[20,6] | P143: =IF($A141<=Daten!$B$8,LOOKUP($B141,Daten!$A$322:$A$371,Daten!$T$322:$T$371),"") & " " & IF($A141<=Daten!$B$8,LOOKUP($B141,Daten!$A$322:$A$371,Daten!$U$322:$U$371),"") -> 20,7 Inhalt3Einh[20,7]
D144: =IF($A141<=Daten!$B$8,LOOKUP($B141,Daten!$A$16:$A$65,Daten!$V$16:$V$65),"") & " " & IF($A141<=Daten!$B$8,LOOKUP($B141,Daten!$A$16:$A$65,Daten!$W$16:$W$65),"") -> 20,1 Inhalt4Einh[20,1] | F144: =IF($A141<=Daten!$B$8,LOOKUP($B141,Daten!$A$67:$A$116,Daten!$V$67:$V$116),"") & " " & IF($A141<=Daten!$B$8,LOOKUP($B141,Daten!$A$67:$A$116,Daten!$W$67:$W$116),"") -> 20,2 Inhalt4Einh[20,2] | H144: =IF($A141<=Daten!$B$8,LOOKUP($B141,Daten!$A$118:$A$167,Daten!$V$118:$V$167),"") & " " & IF($A141<=Daten!$B$8,LOOKUP($B141,Daten!$A$118:$A$167,Daten!$W$118:$W$167),"") -> 20,3 Inhalt4Einh[20,3] | J144: =IF($A141<=Daten!$B$8,LOOKUP($B141,Daten!$A$169:$A$218,Daten!$V$169:$V$218),"") & " " & IF($A141<=Daten!$B$8,LOOKUP($B141,Daten!$A$169:$A$218,Daten!$W$169:$W$218),"") -> 20,4 Inhalt4Einh[20,4] | L144: =IF($A141<=Daten!$B$8,LOOKUP($B141,Daten!$A$220:$A$269,Daten!$V$220:$V$269),"") & " " & IF($A141<=Daten!$B$8,LOOKUP($B141,Daten!$A$220:$A$269,Daten!$W$220:$W$269),"") -> 20,5 Inhalt4Einh[20,5] | N144: =IF($A141<=Daten!$B$8,LOOKUP($B141,Daten!$A$271:$A$320,Daten!$V$271:$V$320),"") & " " & IF($A141<=Daten!$B$8,LOOKUP($B141,Daten!$A$271:$A$320,Daten!$W$271:$W$320),"") -> 20,6 Inhalt4Einh[20,6] | P144: =IF($A141<=Daten!$B$8,LOOKUP($B141,Daten!$A$322:$A$371,Daten!$V$322:$V$371),"") & " " & IF($A141<=Daten!$B$8,LOOKUP($B141,Daten!$A$322:$A$371,Daten!$W$322:$W$371),"") -> 20,7 Inhalt4Einh[20,7]
D145: =IF($A141<=Daten!$B$8,LOOKUP($B141,Daten!$A$16:$A$65,Daten!$X$16:$X$65),"") & " " & IF($A141<=Daten!$B$8,LOOKUP($B141,Daten!$A$16:$A$65,Daten!$Y$16:$Y$65),"") -> 20,1 Inhalt5Einh[20,1] | F145: =IF($A141<=Daten!$B$8,LOOKUP($B141,Daten!$A$67:$A$116,Daten!$X$67:$X$116),"") & " " & IF($A141<=Daten!$B$8,LOOKUP($B141,Daten!$A$67:$A$116,Daten!$Y$67:$Y$116),"") -> 20,2 Inhalt5Einh[20,2] | H145: =IF($A141<=Daten!$B$8,LOOKUP($B141,Daten!$A$118:$A$167,Daten!$X$118:$X$167),"") & " " & IF($A141<=Daten!$B$8,LOOKUP($B141,Daten!$A$118:$A$167,Daten!$Y$118:$Y$167),"") -> 20,3 Inhalt5Einh[20,3] | J145: =IF($A141<=Daten!$B$8,LOOKUP($B141,Daten!$A$169:$A$218,Daten!$X$169:$X$218),"") & " " & IF($A141<=Daten!$B$8,LOOKUP($B141,Daten!$A$169:$A$218,Daten!$Y$169:$Y$218),"") -> 20,4 Inhalt5Einh[20,4] | L145: =IF($A141<=Daten!$B$8,LOOKUP($B141,Daten!$A$220:$A$269,Daten!$X$220:$X$269),"") & " " & IF($A141<=Daten!$B$8,LOOKUP($B141,Daten!$A$220:$A$269,Daten!$Y$220:$Y$269),"") -> 20,5 Inhalt5Einh[20,5] | N145: =IF($A141<=Daten!$B$8,LOOKUP($B141,Daten!$A$271:$A$320,Daten!$X$271:$X$320),"") & " " & IF($A141<=Daten!$B$8,LOOKUP($B141,Daten!$A$271:$A$320,Daten!$Y$271:$Y$320),"") -> 20,6 Inhalt5Einh[20,6] | P145: =IF($A141<=Daten!$B$8,LOOKUP($B141,Daten!$A$322:$A$371,Daten!$X$322:$X$371),"") & " " & IF($A141<=Daten!$B$8,LOOKUP($B141,Daten!$A$322:$A$371,Daten!$Y$322:$Y$371),"") -> 20,7 Inhalt5Einh[20,7]
D146: =IF($A141<=Daten!$B$8,LOOKUP($B141,Daten!$A$16:$A$65,Daten!$Z$16:$Z$65),"") & " " & IF($A141<=Daten!$B$8,LOOKUP($B141,Daten!$A$16:$A$65,Daten!$AA$16:$AA$65),"") -> 20,1 Inhalt6Einh[20,1] | F146: =IF($A141<=Daten!$B$8,LOOKUP($B141,Daten!$A$67:$A$116,Daten!$Z$67:$Z$116),"") & " " & IF($A141<=Daten!$B$8,LOOKUP($B141,Daten!$A$67:$A$116,Daten!$AA$67:$AA$116),"") -> 20,2 Inhalt6Einh[20,2] | H146: =IF($A141<=Daten!$B$8,LOOKUP($B141,Daten!$A$118:$A$167,Daten!$Z$118:$Z$167),"") & " " & IF($A141<=Daten!$B$8,LOOKUP($B141,Daten!$A$118:$A$167,Daten!$AA$118:$AA$167),"") -> 20,3 Inhalt6Einh[20,3] | J146: =IF($A141<=Daten!$B$8,LOOKUP($B141,Daten!$A$169:$A$218,Daten!$Z$169:$Z$218),"") & " " & IF($A141<=Daten!$B$8,LOOKUP($B141,Daten!$A$169:$A$218,Daten!$AA$169:$AA$218),"") -> 20,4 Inhalt6Einh[20,4] | L146: =IF($A141<=Daten!$B$8,LOOKUP($B141,Daten!$A$220:$A$269,Daten!$Z$220:$Z$269),"") & " " & IF($A141<=Daten!$B$8,LOOKUP($B141,Daten!$A$220:$A$269,Daten!$AA$220:$AA$269),"") -> 20,5 Inhalt6Einh[20,5] | N146: =IF($A141<=Daten!$B$8,LOOKUP($B141,Daten!$A$271:$A$320,Daten!$Z$271:$Z$320),"") & " " & IF($A141<=Daten!$B$8,LOOKUP($B141,Daten!$A$271:$A$320,Daten!$AA$271:$AA$320),"") -> 20,6 Inhalt6Einh[20,6] | P146: =IF($A141<=Daten!$B$8,LOOKUP($B141,Daten!$A$322:$A$371,Daten!$Z$322:$Z$371),"") & " " & IF($A141<=Daten!$B$8,LOOKUP($B141,Daten!$A$322:$A$371,Daten!$AA$322:$AA$371),"") -> 20,7 Inhalt6Einh[20,7]
B147: =IF(A141<=Daten!$B$8,"Zusatzstoffe","") -> Zusatzstoffe | C147: =IF($A141<=Daten!$B$8,LOOKUP($B141,Daten!$A$16:$A$65,Daten!$L$16:$L$65),"") -> 20.1 | D147: =IF($A141<=Daten!$B$8,LOOKUP($B141,Daten!$A$16:$A$65,Daten!$E$16:$E$65),"") -> 210.1 | E147: =IF($A141<=Daten!$B$8,LOOKUP($B141,Daten!$A$67:$A$116,Daten!$L$67:$L$116),"") -> 20.2 | F147: =IF($A141<=Daten!$B$8,LOOKUP($B141,Daten!$A$16:$A$65,Daten!$E$67:$E$116),"") -> 0 | G147: =IF($A141<=Daten!$B$8,LOOKUP($B141,Daten!$A$118:$A$167,Daten!$L$118:$L$167),"") -> 20.3 | H147: =IF($A141<=Daten!$B$8,LOOKUP($B141,Daten!$A$118:$A$167,Daten!$E$118:$E$167),"") -> 0 | I147: =IF($A141<=Daten!$B$8,LOOKUP($B141,Daten!$A$169:$A$218,Daten!$L$169:$L$218),"") -> 20.4 | J147: =IF($A141<=Daten!$B$8,LOOKUP($B141,Daten!$A$169:$A$218,Daten!$E$169:$E$218),"") -> 0 | K147: =IF($A141<=Daten!$B$8,LOOKUP($B141,Daten!$A$220:$A$269,Daten!$L$220:$L$269),"") -> 20.5 | L147: =IF($A141<=Daten!$B$8,LOOKUP($B141,Daten!$A$220:$A$269,Daten!$E$220:$E$269),"") -> 0 | M147: =IF($A141<=Daten!$B$8,LOOKUP($B141,Daten!$A$271:$A$320,Daten!$L$271:$L$320),"") -> 20.6 | N147: =IF($A141<=Daten!$B$8,LOOKUP($B141,Daten!$A$271:$A$320,Daten!$E$271:$E$320),"") -> 0 | O147: =IF($A141<=Daten!$B$8,LOOKUP($B141,Daten!$A$322:$A$371,Daten!$L$322:$L$371),"") -> 20.7 | P147: =IF($A141<=Daten!$B$8,LOOKUP($B141,Daten!$A$322:$A$371,Daten!$E$322:$E$371),"") -> 0
A148: 21 | B148: =IF(A148<=Daten!$B$8,Daten!V9,"") -> Menülinie 21 | C148: =IF($A148<=Daten!$B$8,LOOKUP($B148,Daten!$A$16:$A$65,Daten!$C$16:$C$65),"") -> Lang[21,1] | D148: =IF($A148<=Daten!$B$8,LOOKUP($B148,Daten!$A$16:$A$65,Daten!$P$16:$P$65),"") & " " & IF($A148<=Daten!$B$8,LOOKUP($B148,Daten!$A$16:$A$65,Daten!$Q$16:$Q$65),"") -> 21,1 Inhalt1Einh[21,1] | E148: =IF($A148<=Daten!$B$8,LOOKUP($B148,Daten!$A$67:$A$116,Daten!$C$67:$C$116),"") -> Lang[21,2] | F148: =IF($A148<=Daten!$B$8,LOOKUP($B148,Daten!$A$67:$A$116,Daten!$P$67:$P$116),"") & " " & IF($A148<=Daten!$B$8,LOOKUP($B148,Daten!$A$67:$A$116,Daten!$Q$67:$Q$116),"") -> 21,2 Inhalt1Einh[21,2] | G148: =IF($A148<=Daten!$B$8,LOOKUP($B148,Daten!$A$118:$A$167,Daten!$C$118:$C$167),"") -> Lang[21,3] | H148: =IF($A148<=Daten!$B$8,LOOKUP($B148,Daten!$A$118:$A$167,Daten!$P$118:$P$167),"") & " " & IF($A148<=Daten!$B$8,LOOKUP($B148,Daten!$A$118:$A$167,Daten!$Q$118:$Q$167),"") -> 21,3 Inhalt1Einh[21,3] | I148: =IF($A148<=Daten!$B$8,LOOKUP($B148,Daten!$A$169:$A$218,Daten!$C$169:$C$218),"") -> Lang[21,4] | J148: =IF($A148<=Daten!$B$8,LOOKUP($B148,Daten!$A$169:$A$218,Daten!$P$169:$P$218),"") & " " & IF($A148<=Daten!$B$8,LOOKUP($B148,Daten!$A$169:$A$218,Daten!$Q$169:$Q$218),"") -> 21,4 Inhalt1Einh[21,4] | K148: =IF($A148<=Daten!$B$8,LOOKUP($B148,Daten!$A$220:$A$269,Daten!$C$220:$C$269),"") -> Lang[21,5] | L148: =IF($A148<=Daten!$B$8,LOOKUP($B148,Daten!$A$220:$A$269,Daten!$P$220:$P$269),"") & " " & IF($A148<=Daten!$B$8,LOOKUP($B148,Daten!$A$220:$A$269,Daten!$Q$220:$Q$269),"") -> 21,5 Inhalt1Einh[21,5] | M148: =IF($A148<=Daten!$B$8,LOOKUP($B148,Daten!$A$271:$A$320,Daten!$C$271:$C$320),"") -> Lang[21,6] | N148: =IF($A148<=Daten!$B$8,LOOKUP($B148,Daten!$A$271:$A$320,Daten!$P$271:$P$320),"") & " " & IF($A148<=Daten!$B$8,LOOKUP($B148,Daten!$A$271:$A$320,Daten!$Q$271:$Q$320),"") -> 21,6 Inhalt1Einh[21,6] | O148: =IF($A148<=Daten!$B$8,LOOKUP($B148,Daten!$A$322:$A$371,Daten!$B$322:$C$371),"") ->  | P148: =IF($A148<=Daten!$B$8,LOOKUP($B148,Daten!$A$322:$A$371,Daten!$P$322:$P$371),"") & " " & IF($A148<=Daten!$B$8,LOOKUP($B148,Daten!$A$322:$A$371,Daten!$Q$322:$Q$371),"") -> 21,7 Inhalt1Einh[21,7]
D149: =IF($A148<=Daten!$B$8,LOOKUP($B148,Daten!$A$16:$A$65,Daten!$R$16:$R$65),"") & " " & IF($A148<=Daten!$B$8,LOOKUP($B148,Daten!$A$16:$A$65,Daten!$S$16:$S$65),"") -> 21,1 Inhalt2Einh[21,1] | F149: =IF($A148<=Daten!$B$8,LOOKUP($B148,Daten!$A$67:$A$116,Daten!$R$67:$R$116),"") & " " & IF($A148<=Daten!$B$8,LOOKUP($B148,Daten!$A$67:$A$116,Daten!$S$67:$S$116),"") -> 21,2 Inhalt2Einh[21,2] | H149: =IF($A148<=Daten!$B$8,LOOKUP($B148,Daten!$A$118:$A$167,Daten!$R$118:$R$167),"") & " " & IF($A148<=Daten!$B$8,LOOKUP($B148,Daten!$A$118:$A$167,Daten!$S$118:$S$167),"") -> 21,3 Inhalt2Einh[21,3] | J149: =IF($A148<=Daten!$B$8,LOOKUP($B148,Daten!$A$169:$A$218,Daten!$R$169:$R$218),"") & " " & IF($A148<=Daten!$B$8,LOOKUP($B148,Daten!$A$169:$A$218,Daten!$S$169:$S$218),"") -> 21,4 Inhalt2Einh[21,4] | L149: =IF($A148<=Daten!$B$8,LOOKUP($B148,Daten!$A$220:$A$269,Daten!$R$220:$R$269),"") & " " & IF($A148<=Daten!$B$8,LOOKUP($B148,Daten!$A$220:$A$269,Daten!$S$220:$S$269),"") -> 21,5 Inhalt2Einh[21,5] | N149: =IF($A148<=Daten!$B$8,LOOKUP($B148,Daten!$A$271:$A$320,Daten!$R$271:$R$320),"") & " " & IF($A148<=Daten!$B$8,LOOKUP($B148,Daten!$A$271:$A$320,Daten!$S$271:$S$320),"") -> 21,6 Inhalt2Einh[21,6] | P149: =IF($A148<=Daten!$B$8,LOOKUP($B148,Daten!$A$322:$A$371,Daten!$R$322:$R$371),"") & " " & IF($A148<=Daten!$B$8,LOOKUP($B148,Daten!$A$322:$A$371,Daten!$S$322:$S$371),"") -> 21,7 Inhalt2Einh[21,7]
D150: =IF($A148<=Daten!$B$8,LOOKUP($B148,Daten!$A$16:$A$65,Daten!$T$16:$T$65),"") & " " & IF($A148<=Daten!$B$8,LOOKUP($B148,Daten!$A$16:$A$65,Daten!$U$16:$U$65),"") -> 21,1 Inhalt3Einh[21,1] | F150: =IF($A148<=Daten!$B$8,LOOKUP($B148,Daten!$A$67:$A$116,Daten!$T$67:$T$116),"") & " " & IF($A148<=Daten!$B$8,LOOKUP($B148,Daten!$A$67:$A$116,Daten!$U$67:$U$116),"") -> 21,2 Inhalt3Einh[21,2] | H150: =IF($A148<=Daten!$B$8,LOOKUP($B148,Daten!$A$118:$A$167,Daten!$T$118:$T$167),"") & " " & IF($A148<=Daten!$B$8,LOOKUP($B148,Daten!$A$118:$A$167,Daten!$U$118:$U$167),"") -> 21,3 Inhalt3Einh[21,3] | J150: =IF($A148<=Daten!$B$8,LOOKUP($B148,Daten!$A$169:$A$218,Daten!$T$169:$T$218),"") & " " & IF($A148<=Daten!$B$8,LOOKUP($B148,Daten!$A$169:$A$218,Daten!$U$169:$U$218),"") -> 21,4 Inhalt3Einh[21,4] | L150: =IF($A148<=Daten!$B$8,LOOKUP($B148,Daten!$A$220:$A$269,Daten!$T$220:$T$269),"") & " " & IF($A148<=Daten!$B$8,LOOKUP($B148,Daten!$A$220:$A$269,Daten!$U$220:$U$269),"") -> 21,5 Inhalt3Einh[21,5] | N150: =IF($A148<=Daten!$B$8,LOOKUP($B148,Daten!$A$271:$A$320,Daten!$T$271:$T$320),"") & " " & IF($A148<=Daten!$B$8,LOOKUP($B148,Daten!$A$271:$A$320,Daten!$U$271:$U$320),"") -> 21,6 Inhalt3Einh[21,6] | P150: =IF($A148<=Daten!$B$8,LOOKUP($B148,Daten!$A$322:$A$371,Daten!$T$322:$T$371),"") & " " & IF($A148<=Daten!$B$8,LOOKUP($B148,Daten!$A$322:$A$371,Daten!$U$322:$U$371),"") -> 21,7 Inhalt3Einh[21,7]
D151: =IF($A148<=Daten!$B$8,LOOKUP($B148,Daten!$A$16:$A$65,Daten!$V$16:$V$65),"") & " " & IF($A148<=Daten!$B$8,LOOKUP($B148,Daten!$A$16:$A$65,Daten!$W$16:$W$65),"") -> 21,1 Inhalt4Einh[21,1] | F151: =IF($A148<=Daten!$B$8,LOOKUP($B148,Daten!$A$67:$A$116,Daten!$V$67:$V$116),"") & " " & IF($A148<=Daten!$B$8,LOOKUP($B148,Daten!$A$67:$A$116,Daten!$W$67:$W$116),"") -> 21,2 Inhalt4Einh[21,2] | H151: =IF($A148<=Daten!$B$8,LOOKUP($B148,Daten!$A$118:$A$167,Daten!$V$118:$V$167),"") & " " & IF($A148<=Daten!$B$8,LOOKUP($B148,Daten!$A$118:$A$167,Daten!$W$118:$W$167),"") -> 21,3 Inhalt4Einh[21,3] | J151: =IF($A148<=Daten!$B$8,LOOKUP($B148,Daten!$A$169:$A$218,Daten!$V$169:$V$218),"") & " " & IF($A148<=Daten!$B$8,LOOKUP($B148,Daten!$A$169:$A$218,Daten!$W$169:$W$218),"") -> 21,4 Inhalt4Einh[21,4] | L151: =IF($A148<=Daten!$B$8,LOOKUP($B148,Daten!$A$220:$A$269,Daten!$V$220:$V$269),"") & " " & IF($A148<=Daten!$B$8,LOOKUP($B148,Daten!$A$220:$A$269,Daten!$W$220:$W$269),"") -> 21,5 Inhalt4Einh[21,5] | N151: =IF($A148<=Daten!$B$8,LOOKUP($B148,Daten!$A$271:$A$320,Daten!$V$271:$V$320),"") & " " & IF($A148<=Daten!$B$8,LOOKUP($B148,Daten!$A$271:$A$320,Daten!$W$271:$W$320),"") -> 21,6 Inhalt4Einh[21,6] | P151: =IF($A148<=Daten!$B$8,LOOKUP($B148,Daten!$A$322:$A$371,Daten!$V$322:$V$371),"") & " " & IF($A148<=Daten!$B$8,LOOKUP($B148,Daten!$A$322:$A$371,Daten!$W$322:$W$371),"") -> 21,7 Inhalt4Einh[21,7]
D152: =IF($A148<=Daten!$B$8,LOOKUP($B148,Daten!$A$16:$A$65,Daten!$X$16:$X$65),"") & " " & IF($A148<=Daten!$B$8,LOOKUP($B148,Daten!$A$16:$A$65,Daten!$Y$16:$Y$65),"") -> 21,1 Inhalt5Einh[21,1] | F152: =IF($A148<=Daten!$B$8,LOOKUP($B148,Daten!$A$67:$A$116,Daten!$X$67:$X$116),"") & " " & IF($A148<=Daten!$B$8,LOOKUP($B148,Daten!$A$67:$A$116,Daten!$Y$67:$Y$116),"") -> 21,2 Inhalt5Einh[21,2] | H152: =IF($A148<=Daten!$B$8,LOOKUP($B148,Daten!$A$118:$A$167,Daten!$X$118:$X$167),"") & " " & IF($A148<=Daten!$B$8,LOOKUP($B148,Daten!$A$118:$A$167,Daten!$Y$118:$Y$167),"") -> 21,3 Inhalt5Einh[21,3] | J152: =IF($A148<=Daten!$B$8,LOOKUP($B148,Daten!$A$169:$A$218,Daten!$X$169:$X$218),"") & " " & IF($A148<=Daten!$B$8,LOOKUP($B148,Daten!$A$169:$A$218,Daten!$Y$169:$Y$218),"") -> 21,4 Inhalt5Einh[21,4] | L152: =IF($A148<=Daten!$B$8,LOOKUP($B148,Daten!$A$220:$A$269,Daten!$X$220:$X$269),"") & " " & IF($A148<=Daten!$B$8,LOOKUP($B148,Daten!$A$220:$A$269,Daten!$Y$220:$Y$269),"") -> 21,5 Inhalt5Einh[21,5] | N152: =IF($A148<=Daten!$B$8,LOOKUP($B148,Daten!$A$271:$A$320,Daten!$X$271:$X$320),"") & " " & IF($A148<=Daten!$B$8,LOOKUP($B148,Daten!$A$271:$A$320,Daten!$Y$271:$Y$320),"") -> 21,6 Inhalt5Einh[21,6] | P152: =IF($A148<=Daten!$B$8,LOOKUP($B148,Daten!$A$322:$A$371,Daten!$X$322:$X$371),"") & " " & IF($A148<=Daten!$B$8,LOOKUP($B148,Daten!$A$322:$A$371,Daten!$Y$322:$Y$371),"") -> 21,7 Inhalt5Einh[21,7]
D153: =IF($A148<=Daten!$B$8,LOOKUP($B148,Daten!$A$16:$A$65,Daten!$Z$16:$Z$65),"") & " " & IF($A148<=Daten!$B$8,LOOKUP($B148,Daten!$A$16:$A$65,Daten!$AA$16:$AA$65),"") -> 21,1 Inhalt6Einh[21,1] | F153: =IF($A148<=Daten!$B$8,LOOKUP($B148,Daten!$A$67:$A$116,Daten!$Z$67:$Z$116),"") & " " & IF($A148<=Daten!$B$8,LOOKUP($B148,Daten!$A$67:$A$116,Daten!$AA$67:$AA$116),"") -> 21,2 Inhalt6Einh[21,2] | H153: =IF($A148<=Daten!$B$8,LOOKUP($B148,Daten!$A$118:$A$167,Daten!$Z$118:$Z$167),"") & " " & IF($A148<=Daten!$B$8,LOOKUP($B148,Daten!$A$118:$A$167,Daten!$AA$118:$AA$167),"") -> 21,3 Inhalt6Einh[21,3] | J153: =IF($A148<=Daten!$B$8,LOOKUP($B148,Daten!$A$169:$A$218,Daten!$Z$169:$Z$218),"") & " " & IF($A148<=Daten!$B$8,LOOKUP($B148,Daten!$A$169:$A$218,Daten!$AA$169:$AA$218),"") -> 21,4 Inhalt6Einh[21,4] | L153: =IF($A148<=Daten!$B$8,LOOKUP($B148,Daten!$A$220:$A$269,Daten!$Z$220:$Z$269),"") & " " & IF($A148<=Daten!$B$8,LOOKUP($B148,Daten!$A$220:$A$269,Daten!$AA$220:$AA$269),"") -> 21,5 Inhalt6Einh[21,5] | N153: =IF($A148<=Daten!$B$8,LOOKUP($B148,Daten!$A$271:$A$320,Daten!$Z$271:$Z$320),"") & " " & IF($A148<=Daten!$B$8,LOOKUP($B148,Daten!$A$271:$A$320,Daten!$AA$271:$AA$320),"") -> 21,6 Inhalt6Einh[21,6] | P153: =IF($A148<=Daten!$B$8,LOOKUP($B148,Daten!$A$322:$A$371,Daten!$Z$322:$Z$371),"") & " " & IF($A148<=Daten!$B$8,LOOKUP($B148,Daten!$A$322:$A$371,Daten!$AA$322:$AA$371),"") -> 21,7 Inhalt6Einh[21,7]
B154: =IF(A148<=Daten!$B$8,"Zusatzstoffe","") -> Zusatzstoffe | C154: =IF($A148<=Daten!$B$8,LOOKUP($B148,Daten!$A$16:$A$65,Daten!$L$16:$L$65),"") -> 21.1 | D154: =IF($A148<=Daten!$B$8,LOOKUP($B148,Daten!$A$16:$A$65,Daten!$E$16:$E$65),"") -> 211.1 | E154: =IF($A148<=Daten!$B$8,LOOKUP($B148,Daten!$A$67:$A$116,Daten!$L$67:$L$116),"") -> 21.2 | F154: =IF($A148<=Daten!$B$8,LOOKUP($B148,Daten!$A$16:$A$65,Daten!$E$67:$E$116),"") -> 0 | G154: =IF($A148<=Daten!$B$8,LOOKUP($B148,Daten!$A$118:$A$167,Daten!$L$118:$L$167),"") -> 21.3 | H154: =IF($A148<=Daten!$B$8,LOOKUP($B148,Daten!$A$118:$A$167,Daten!$E$118:$E$167),"") -> 0 | I154: =IF($A148<=Daten!$B$8,LOOKUP($B148,Daten!$A$169:$A$218,Daten!$L$169:$L$218),"") -> 21.4 | J154: =IF($A148<=Daten!$B$8,LOOKUP($B148,Daten!$A$169:$A$218,Daten!$E$169:$E$218),"") -> 0 | K154: =IF($A148<=Daten!$B$8,LOOKUP($B148,Daten!$A$220:$A$269,Daten!$L$220:$L$269),"") -> 21.5 | L154: =IF($A148<=Daten!$B$8,LOOKUP($B148,Daten!$A$220:$A$269,Daten!$E$220:$E$269),"") -> 0 | M154: =IF($A148<=Daten!$B$8,LOOKUP($B148,Daten!$A$271:$A$320,Daten!$L$271:$L$320),"") -> 21.6 | N154: =IF($A148<=Daten!$B$8,LOOKUP($B148,Daten!$A$271:$A$320,Daten!$E$271:$E$320),"") -> 0 | O154: =IF($A148<=Daten!$B$8,LOOKUP($B148,Daten!$A$322:$A$371,Daten!$L$322:$L$371),"") -> 21.7 | P154: =IF($A148<=Daten!$B$8,LOOKUP($B148,Daten!$A$322:$A$371,Daten!$E$322:$E$371),"") -> 0
A155: 22 | B155: =IF(A155<=Daten!$B$8,Daten!W9,"") -> Menülinie 22 | C155: =IF($A155<=Daten!$B$8,LOOKUP($B155,Daten!$A$16:$A$65,Daten!$C$16:$C$65),"") -> Lang[22,1] | D155: =IF($A155<=Daten!$B$8,LOOKUP($B155,Daten!$A$16:$A$65,Daten!$P$16:$P$65),"") & " " & IF($A155<=Daten!$B$8,LOOKUP($B155,Daten!$A$16:$A$65,Daten!$Q$16:$Q$65),"") -> 22,1 Inhalt1Einh[22,1] | E155: =IF($A155<=Daten!$B$8,LOOKUP($B155,Daten!$A$67:$A$116,Daten!$C$67:$C$116),"") -> Lang[22,2] | F155: =IF($A155<=Daten!$B$8,LOOKUP($B155,Daten!$A$67:$A$116,Daten!$P$67:$P$116),"") & " " & IF($A155<=Daten!$B$8,LOOKUP($B155,Daten!$A$67:$A$116,Daten!$Q$67:$Q$116),"") -> 22,2 Inhalt1Einh[22,2] | G155: =IF($A155<=Daten!$B$8,LOOKUP($B155,Daten!$A$118:$A$167,Daten!$C$118:$C$167),"") -> Lang[22,3] | H155: =IF($A155<=Daten!$B$8,LOOKUP($B155,Daten!$A$118:$A$167,Daten!$P$118:$P$167),"") & " " & IF($A155<=Daten!$B$8,LOOKUP($B155,Daten!$A$118:$A$167,Daten!$Q$118:$Q$167),"") -> 22,3 Inhalt1Einh[22,3] | I155: =IF($A155<=Daten!$B$8,LOOKUP($B155,Daten!$A$169:$A$218,Daten!$C$169:$C$218),"") -> Lang[22,4] | J155: =IF($A155<=Daten!$B$8,LOOKUP($B155,Daten!$A$169:$A$218,Daten!$P$169:$P$218),"") & " " & IF($A155<=Daten!$B$8,LOOKUP($B155,Daten!$A$169:$A$218,Daten!$Q$169:$Q$218),"") -> 22,4 Inhalt1Einh[22,4] | K155: =IF($A155<=Daten!$B$8,LOOKUP($B155,Daten!$A$220:$A$269,Daten!$C$220:$C$269),"") -> Lang[22,5] | L155: =IF($A155<=Daten!$B$8,LOOKUP($B155,Daten!$A$220:$A$269,Daten!$P$220:$P$269),"") & " " & IF($A155<=Daten!$B$8,LOOKUP($B155,Daten!$A$220:$A$269,Daten!$Q$220:$Q$269),"") -> 22,5 Inhalt1Einh[22,5] | M155: =IF($A155<=Daten!$B$8,LOOKUP($B155,Daten!$A$271:$A$320,Daten!$C$271:$C$320),"") -> Lang[22,6] | N155: =IF($A155<=Daten!$B$8,LOOKUP($B155,Daten!$A$271:$A$320,Daten!$P$271:$P$320),"") & " " & IF($A155<=Daten!$B$8,LOOKUP($B155,Daten!$A$271:$A$320,Daten!$Q$271:$Q$320),"") -> 22,6 Inhalt1Einh[22,6] | O155: =IF($A155<=Daten!$B$8,LOOKUP($B155,Daten!$A$322:$A$371,Daten!$B$322:$C$371),"") ->  | P155: =IF($A155<=Daten!$B$8,LOOKUP($B155,Daten!$A$322:$A$371,Daten!$P$322:$P$371),"") & " " & IF($A155<=Daten!$B$8,LOOKUP($B155,Daten!$A$322:$A$371,Daten!$Q$322:$Q$371),"") -> 22,7 Inhalt1Einh[22,7]
D156: =IF($A155<=Daten!$B$8,LOOKUP($B155,Daten!$A$16:$A$65,Daten!$R$16:$R$65),"") & " " & IF($A155<=Daten!$B$8,LOOKUP($B155,Daten!$A$16:$A$65,Daten!$S$16:$S$65),"") -> 22,1 Inhalt2Einh[22,1] | F156: =IF($A155<=Daten!$B$8,LOOKUP($B155,Daten!$A$67:$A$116,Daten!$R$67:$R$116),"") & " " & IF($A155<=Daten!$B$8,LOOKUP($B155,Daten!$A$67:$A$116,Daten!$S$67:$S$116),"") -> 22,2 Inhalt2Einh[22,2] | H156: =IF($A155<=Daten!$B$8,LOOKUP($B155,Daten!$A$118:$A$167,Daten!$R$118:$R$167),"") & " " & IF($A155<=Daten!$B$8,LOOKUP($B155,Daten!$A$118:$A$167,Daten!$S$118:$S$167),"") -> 22,3 Inhalt2Einh[22,3] | J156: =IF($A155<=Daten!$B$8,LOOKUP($B155,Daten!$A$169:$A$218,Daten!$R$169:$R$218),"") & " " & IF($A155<=Daten!$B$8,LOOKUP($B155,Daten!$A$169:$A$218,Daten!$S$169:$S$218),"") -> 22,4 Inhalt2Einh[22,4] | L156: =IF($A155<=Daten!$B$8,LOOKUP($B155,Daten!$A$220:$A$269,Daten!$R$220:$R$269),"") & " " & IF($A155<=Daten!$B$8,LOOKUP($B155,Daten!$A$220:$A$269,Daten!$S$220:$S$269),"") -> 22,5 Inhalt2Einh[22,5] | N156: =IF($A155<=Daten!$B$8,LOOKUP($B155,Daten!$A$271:$A$320,Daten!$R$271:$R$320),"") & " " & IF($A155<=Daten!$B$8,LOOKUP($B155,Daten!$A$271:$A$320,Daten!$S$271:$S$320),"") -> 22,6 Inhalt2Einh[22,6] | P156: =IF($A155<=Daten!$B$8,LOOKUP($B155,Daten!$A$322:$A$371,Daten!$R$322:$R$371),"") & " " & IF($A155<=Daten!$B$8,LOOKUP($B155,Daten!$A$322:$A$371,Daten!$S$322:$S$371),"") -> 22,7 Inhalt2Einh[22,7]
D157: =IF($A155<=Daten!$B$8,LOOKUP($B155,Daten!$A$16:$A$65,Daten!$T$16:$T$65),"") & " " & IF($A155<=Daten!$B$8,LOOKUP($B155,Daten!$A$16:$A$65,Daten!$U$16:$U$65),"") -> 22,1 Inhalt3Einh[22,1] | F157: =IF($A155<=Daten!$B$8,LOOKUP($B155,Daten!$A$67:$A$116,Daten!$T$67:$T$116),"") & " " & IF($A155<=Daten!$B$8,LOOKUP($B155,Daten!$A$67:$A$116,Daten!$U$67:$U$116),"") -> 22,2 Inhalt3Einh[22,2] | H157: =IF($A155<=Daten!$B$8,LOOKUP($B155,Daten!$A$118:$A$167,Daten!$T$118:$T$167),"") & " " & IF($A155<=Daten!$B$8,LOOKUP($B155,Daten!$A$118:$A$167,Daten!$U$118:$U$167),"") -> 22,3 Inhalt3Einh[22,3] | J157: =IF($A155<=Daten!$B$8,LOOKUP($B155,Daten!$A$169:$A$218,Daten!$T$169:$T$218),"") & " " & IF($A155<=Daten!$B$8,LOOKUP($B155,Daten!$A$169:$A$218,Daten!$U$169:$U$218),"") -> 22,4 Inhalt3Einh[22,4] | L157: =IF($A155<=Daten!$B$8,LOOKUP($B155,Daten!$A$220:$A$269,Daten!$T$220:$T$269),"") & " " & IF($A155<=Daten!$B$8,LOOKUP($B155,Daten!$A$220:$A$269,Daten!$U$220:$U$269),"") -> 22,5 Inhalt3Einh[22,5] | N157: =IF($A155<=Daten!$B$8,LOOKUP($B155,Daten!$A$271:$A$320,Daten!$T$271:$T$320),"") & " " & IF($A155<=Daten!$B$8,LOOKUP($B155,Daten!$A$271:$A$320,Daten!$U$271:$U$320),"") -> 22,6 Inhalt3Einh[22,6] | P157: =IF($A155<=Daten!$B$8,LOOKUP($B155,Daten!$A$322:$A$371,Daten!$T$322:$T$371),"") & " " & IF($A155<=Daten!$B$8,LOOKUP($B155,Daten!$A$322:$A$371,Daten!$U$322:$U$371),"") -> 22,7 Inhalt3Einh[22,7]
D158: =IF($A155<=Daten!$B$8,LOOKUP($B155,Daten!$A$16:$A$65,Daten!$V$16:$V$65),"") & " " & IF($A155<=Daten!$B$8,LOOKUP($B155,Daten!$A$16:$A$65,Daten!$W$16:$W$65),"") -> 22,1 Inhalt4Einh[22,1] | F158: =IF($A155<=Daten!$B$8,LOOKUP($B155,Daten!$A$67:$A$116,Daten!$V$67:$V$116),"") & " " & IF($A155<=Daten!$B$8,LOOKUP($B155,Daten!$A$67:$A$116,Daten!$W$67:$W$116),"") -> 22,2 Inhalt4Einh[22,2] | H158: =IF($A155<=Daten!$B$8,LOOKUP($B155,Daten!$A$118:$A$167,Daten!$V$118:$V$167),"") & " " & IF($A155<=Daten!$B$8,LOOKUP($B155,Daten!$A$118:$A$167,Daten!$W$118:$W$167),"") -> 22,3 Inhalt4Einh[22,3] | J158: =IF($A155<=Daten!$B$8,LOOKUP($B155,Daten!$A$169:$A$218,Daten!$V$169:$V$218),"") & " " & IF($A155<=Daten!$B$8,LOOKUP($B155,Daten!$A$169:$A$218,Daten!$W$169:$W$218),"") -> 22,4 Inhalt4Einh[22,4] | L158: =IF($A155<=Daten!$B$8,LOOKUP($B155,Daten!$A$220:$A$269,Daten!$V$220:$V$269),"") & " " & IF($A155<=Daten!$B$8,LOOKUP($B155,Daten!$A$220:$A$269,Daten!$W$220:$W$269),"") -> 22,5 Inhalt4Einh[22,5] | N158: =IF($A155<=Daten!$B$8,LOOKUP($B155,Daten!$A$271:$A$320,Daten!$V$271:$V$320),"") & " " & IF($A155<=Daten!$B$8,LOOKUP($B155,Daten!$A$271:$A$320,Daten!$W$271:$W$320),"") -> 22,6 Inhalt4Einh[22,6] | P158: =IF($A155<=Daten!$B$8,LOOKUP($B155,Daten!$A$322:$A$371,Daten!$V$322:$V$371),"") & " " & IF($A155<=Daten!$B$8,LOOKUP($B155,Daten!$A$322:$A$371,Daten!$W$322:$W$371),"") -> 22,7 Inhalt4Einh[22,7]
D159: =IF($A155<=Daten!$B$8,LOOKUP($B155,Daten!$A$16:$A$65,Daten!$X$16:$X$65),"") & " " & IF($A155<=Daten!$B$8,LOOKUP($B155,Daten!$A$16:$A$65,Daten!$Y$16:$Y$65),"") -> 22,1 Inhalt5Einh[22,1] | F159: =IF($A155<=Daten!$B$8,LOOKUP($B155,Daten!$A$67:$A$116,Daten!$X$67:$X$116),"") & " " & IF($A155<=Daten!$B$8,LOOKUP($B155,Daten!$A$67:$A$116,Daten!$Y$67:$Y$116),"") -> 22,2 Inhalt5Einh[22,2] | H159: =IF($A155<=Daten!$B$8,LOOKUP($B155,Daten!$A$118:$A$167,Daten!$X$118:$X$167),"") & " " & IF($A155<=Daten!$B$8,LOOKUP($B155,Daten!$A$118:$A$167,Daten!$Y$118:$Y$167),"") -> 22,3 Inhalt5Einh[22,3] | J159: =IF($A155<=Daten!$B$8,LOOKUP($B155,Daten!$A$169:$A$218,Daten!$X$169:$X$218),"") & " " & IF($A155<=Daten!$B$8,LOOKUP($B155,Daten!$A$169:$A$218,Daten!$Y$169:$Y$218),"") -> 22,4 Inhalt5Einh[22,4] | L159: =IF($A155<=Daten!$B$8,LOOKUP($B155,Daten!$A$220:$A$269,Daten!$X$220:$X$269),"") & " " & IF($A155<=Daten!$B$8,LOOKUP($B155,Daten!$A$220:$A$269,Daten!$Y$220:$Y$269),"") -> 22,5 Inhalt5Einh[22,5] | N159: =IF($A155<=Daten!$B$8,LOOKUP($B155,Daten!$A$271:$A$320,Daten!$X$271:$X$320),"") & " " & IF($A155<=Daten!$B$8,LOOKUP($B155,Daten!$A$271:$A$320,Daten!$Y$271:$Y$320),"") -> 22,6 Inhalt5Einh[22,6] | P159: =IF($A155<=Daten!$B$8,LOOKUP($B155,Daten!$A$322:$A$371,Daten!$X$322:$X$371),"") & " " & IF($A155<=Daten!$B$8,LOOKUP($B155,Daten!$A$322:$A$371,Daten!$Y$322:$Y$371),"") -> 22,7 Inhalt5Einh[22,7]
D160: =IF($A155<=Daten!$B$8,LOOKUP($B155,Daten!$A$16:$A$65,Daten!$Z$16:$Z$65),"") & " " & IF($A155<=Daten!$B$8,LOOKUP($B155,Daten!$A$16:$A$65,Daten!$AA$16:$AA$65),"") -> 22,1 Inhalt6Einh[22,1] | F160: =IF($A155<=Daten!$B$8,LOOKUP($B155,Daten!$A$67:$A$116,Daten!$Z$67:$Z$116),"") & " " & IF($A155<=Daten!$B$8,LOOKUP($B155,Daten!$A$67:$A$116,Daten!$AA$67:$AA$116),"") -> 22,2 Inhalt6Einh[22,2] | H160: =IF($A155<=Daten!$B$8,LOOKUP($B155,Daten!$A$118:$A$167,Daten!$Z$118:$Z$167),"") & " " & IF($A155<=Daten!$B$8,LOOKUP($B155,Daten!$A$118:$A$167,Daten!$AA$118:$AA$167),"") -> 22,3 Inhalt6Einh[22,3] | J160: =IF($A155<=Daten!$B$8,LOOKUP($B155,Daten!$A$169:$A$218,Daten!$Z$169:$Z$218),"") & " " & IF($A155<=Daten!$B$8,LOOKUP($B155,Daten!$A$169:$A$218,Daten!$AA$169:$AA$218),"") -> 22,4 Inhalt6Einh[22,4] | L160: =IF($A155<=Daten!$B$8,LOOKUP($B155,Daten!$A$220:$A$269,Daten!$Z$220:$Z$269),"") & " " & IF($A155<=Daten!$B$8,LOOKUP($B155,Daten!$A$220:$A$269,Daten!$AA$220:$AA$269),"") -> 22,5 Inhalt6Einh[22,5] | N160: =IF($A155<=Daten!$B$8,LOOKUP($B155,Daten!$A$271:$A$320,Daten!$Z$271:$Z$320),"") & " " & IF($A155<=Daten!$B$8,LOOKUP($B155,Daten!$A$271:$A$320,Daten!$AA$271:$AA$320),"") -> 22,6 Inhalt6Einh[22,6] | P160: =IF($A155<=Daten!$B$8,LOOKUP($B155,Daten!$A$322:$A$371,Daten!$Z$322:$Z$371),"") & " " & IF($A155<=Daten!$B$8,LOOKUP($B155,Daten!$A$322:$A$371,Daten!$AA$322:$AA$371),"") -> 22,7 Inhalt6Einh[22,7]
B161: =IF(A155<=Daten!$B$8,"Zusatzstoffe","") -> Zusatzstoffe | C161: =IF($A155<=Daten!$B$8,LOOKUP($B155,Daten!$A$16:$A$65,Daten!$L$16:$L$65),"") -> 22.1 | D161: =IF($A155<=Daten!$B$8,LOOKUP($B155,Daten!$A$16:$A$65,Daten!$E$16:$E$65),"") -> 212.1 | E161: =IF($A155<=Daten!$B$8,LOOKUP($B155,Daten!$A$67:$A$116,Daten!$L$67:$L$116),"") -> 22.2 | F161: =IF($A155<=Daten!$B$8,LOOKUP($B155,Daten!$A$16:$A$65,Daten!$E$67:$E$116),"") -> 0 | G161: =IF($A155<=Daten!$B$8,LOOKUP($B155,Daten!$A$118:$A$167,Daten!$L$118:$L$167),"") -> 22.3 | H161: =IF($A155<=Daten!$B$8,LOOKUP($B155,Daten!$A$118:$A$167,Daten!$E$118:$E$167),"") -> 0 | I161: =IF($A155<=Daten!$B$8,LOOKUP($B155,Daten!$A$169:$A$218,Daten!$L$169:$L$218),"") -> 22.4 | J161: =IF($A155<=Daten!$B$8,LOOKUP($B155,Daten!$A$169:$A$218,Daten!$E$169:$E$218),"") -> 0 | K161: =IF($A155<=Daten!$B$8,LOOKUP($B155,Daten!$A$220:$A$269,Daten!$L$220:$L$269),"") -> 22.5 | L161: =IF($A155<=Daten!$B$8,LOOKUP($B155,Daten!$A$220:$A$269,Daten!$E$220:$E$269),"") -> 0 | M161: =IF($A155<=Daten!$B$8,LOOKUP($B155,Daten!$A$271:$A$320,Daten!$L$271:$L$320),"") -> 22.6 | N161: =IF($A155<=Daten!$B$8,LOOKUP($B155,Daten!$A$271:$A$320,Daten!$E$271:$E$320),"") -> 0 | O161: =IF($A155<=Daten!$B$8,LOOKUP($B155,Daten!$A$322:$A$371,Daten!$L$322:$L$371),"") -> 22.7 | P161: =IF($A155<=Daten!$B$8,LOOKUP($B155,Daten!$A$322:$A$371,Daten!$E$322:$E$371),"") -> 0
A162: 23 | B162: =IF(A162<=Daten!$B$8,Daten!X9,"") -> Menülinie 23 | C162: =IF(A162<=Daten!$B$8,LOOKUP(B162,Daten!$A$16:$A$65,Daten!$C$16:$C$65),"") -> Lang[23,1] | D162: =IF($A162<=Daten!$B$8,LOOKUP($B162,Daten!$A$16:$A$65,Daten!$P$16:$P$65),"") & " " & IF($A162<=Daten!$B$8,LOOKUP($B162,Daten!$A$16:$A$65,Daten!$Q$16:$Q$65),"") -> 23,1 Inhalt1Einh[23,1] | E162: =IF($A162<=Daten!$B$8,LOOKUP($B162,Daten!$A$67:$A$116,Daten!$C$67:$C$116),"") -> Lang[23,2] | F162: =IF($A162<=Daten!$B$8,LOOKUP($B162,Daten!$A$67:$A$116,Daten!$P$67:$P$116),"") & " " & IF($A162<=Daten!$B$8,LOOKUP($B162,Daten!$A$67:$A$116,Daten!$Q$67:$Q$116),"") -> 23,2 Inhalt1Einh[23,2] | G162: =IF($A162<=Daten!$B$8,LOOKUP($B162,Daten!$A$118:$A$167,Daten!$C$118:$C$167),"") -> Lang[23,3] | H162: =IF($A162<=Daten!$B$8,LOOKUP($B162,Daten!$A$118:$A$167,Daten!$P$118:$P$167),"") & " " & IF($A162<=Daten!$B$8,LOOKUP($B162,Daten!$A$118:$A$167,Daten!$Q$118:$Q$167),"") -> 23,3 Inhalt1Einh[23,3] | I162: =IF($A162<=Daten!$B$8,LOOKUP($B162,Daten!$A$169:$A$218,Daten!$C$169:$C$218),"") -> Lang[23,4] | J162: =IF($A162<=Daten!$B$8,LOOKUP($B162,Daten!$A$169:$A$218,Daten!$P$169:$P$218),"") & " " & IF($A162<=Daten!$B$8,LOOKUP($B162,Daten!$A$169:$A$218,Daten!$Q$169:$Q$218),"") -> 23,4 Inhalt1Einh[23,4] | K162: =IF($A162<=Daten!$B$8,LOOKUP($B162,Daten!$A$220:$A$269,Daten!$C$220:$C$269),"") -> Lang[23,5] | L162: =IF($A162<=Daten!$B$8,LOOKUP($B162,Daten!$A$220:$A$269,Daten!$P$220:$P$269),"") & " " & IF($A162<=Daten!$B$8,LOOKUP($B162,Daten!$A$220:$A$269,Daten!$Q$220:$Q$269),"") -> 23,5 Inhalt1Einh[23,5] | M162: =IF($A162<=Daten!$B$8,LOOKUP($B162,Daten!$A$271:$A$320,Daten!$C$271:$C$320),"") -> Lang[23,6] | N162: =IF($A162<=Daten!$B$8,LOOKUP($B162,Daten!$A$271:$A$320,Daten!$P$271:$P$320),"") & " " & IF($A162<=Daten!$B$8,LOOKUP($B162,Daten!$A$271:$A$320,Daten!$Q$271:$Q$320),"") -> 23,6 Inhalt1Einh[23,6] | O162: =IF($A162<=Daten!$B$8,LOOKUP($B162,Daten!$A$322:$A$371,Daten!$B$322:$C$371),"") ->  | P162: =IF($A162<=Daten!$B$8,LOOKUP($B162,Daten!$A$322:$A$371,Daten!$P$322:$P$371),"") & " " & IF($A162<=Daten!$B$8,LOOKUP($B162,Daten!$A$322:$A$371,Daten!$Q$322:$Q$371),"") -> 23,7 Inhalt1Einh[23,7]
D163: =IF($A162<=Daten!$B$8,LOOKUP($B162,Daten!$A$16:$A$65,Daten!$R$16:$R$65),"") & " " & IF($A162<=Daten!$B$8,LOOKUP($B162,Daten!$A$16:$A$65,Daten!$S$16:$S$65),"") -> 23,1 Inhalt2Einh[23,1] | F163: =IF($A162<=Daten!$B$8,LOOKUP($B162,Daten!$A$67:$A$116,Daten!$R$67:$R$116),"") & " " & IF($A162<=Daten!$B$8,LOOKUP($B162,Daten!$A$67:$A$116,Daten!$S$67:$S$116),"") -> 23,2 Inhalt2Einh[23,2] | H163: =IF($A162<=Daten!$B$8,LOOKUP($B162,Daten!$A$118:$A$167,Daten!$R$118:$R$167),"") & " " & IF($A162<=Daten!$B$8,LOOKUP($B162,Daten!$A$118:$A$167,Daten!$S$118:$S$167),"") -> 23,3 Inhalt2Einh[23,3] | J163: =IF($A162<=Daten!$B$8,LOOKUP($B162,Daten!$A$169:$A$218,Daten!$R$169:$R$218),"") & " " & IF($A162<=Daten!$B$8,LOOKUP($B162,Daten!$A$169:$A$218,Daten!$S$169:$S$218),"") -> 23,4 Inhalt2Einh[23,4] | L163: =IF($A162<=Daten!$B$8,LOOKUP($B162,Daten!$A$220:$A$269,Daten!$R$220:$R$269),"") & " " & IF($A162<=Daten!$B$8,LOOKUP($B162,Daten!$A$220:$A$269,Daten!$S$220:$S$269),"") -> 23,5 Inhalt2Einh[23,5] | N163: =IF($A162<=Daten!$B$8,LOOKUP($B162,Daten!$A$271:$A$320,Daten!$R$271:$R$320),"") & " " & IF($A162<=Daten!$B$8,LOOKUP($B162,Daten!$A$271:$A$320,Daten!$S$271:$S$320),"") -> 23,6 Inhalt2Einh[23,6] | P163: =IF($A162<=Daten!$B$8,LOOKUP($B162,Daten!$A$322:$A$371,Daten!$R$322:$R$371),"") & " " & IF($A162<=Daten!$B$8,LOOKUP($B162,Daten!$A$322:$A$371,Daten!$S$322:$S$371),"") -> 23,7 Inhalt2Einh[23,7]
D164: =IF($A162<=Daten!$B$8,LOOKUP($B162,Daten!$A$16:$A$65,Daten!$T$16:$T$65),"") & " " & IF($A162<=Daten!$B$8,LOOKUP($B162,Daten!$A$16:$A$65,Daten!$U$16:$U$65),"") -> 23,1 Inhalt3Einh[23,1] | F164: =IF($A162<=Daten!$B$8,LOOKUP($B162,Daten!$A$67:$A$116,Daten!$T$67:$T$116),"") & " " & IF($A162<=Daten!$B$8,LOOKUP($B162,Daten!$A$67:$A$116,Daten!$U$67:$U$116),"") -> 23,2 Inhalt3Einh[23,2] | H164: =IF($A162<=Daten!$B$8,LOOKUP($B162,Daten!$A$118:$A$167,Daten!$T$118:$T$167),"") & " " & IF($A162<=Daten!$B$8,LOOKUP($B162,Daten!$A$118:$A$167,Daten!$U$118:$U$167),"") -> 23,3 Inhalt3Einh[23,3] | J164: =IF($A162<=Daten!$B$8,LOOKUP($B162,Daten!$A$169:$A$218,Daten!$T$169:$T$218),"") & " " & IF($A162<=Daten!$B$8,LOOKUP($B162,Daten!$A$169:$A$218,Daten!$U$169:$U$218),"") -> 23,4 Inhalt3Einh[23,4] | L164: =IF($A162<=Daten!$B$8,LOOKUP($B162,Daten!$A$220:$A$269,Daten!$T$220:$T$269),"") & " " & IF($A162<=Daten!$B$8,LOOKUP($B162,Daten!$A$220:$A$269,Daten!$U$220:$U$269),"") -> 23,5 Inhalt3Einh[23,5] | N164: =IF($A162<=Daten!$B$8,LOOKUP($B162,Daten!$A$271:$A$320,Daten!$T$271:$T$320),"") & " " & IF($A162<=Daten!$B$8,LOOKUP($B162,Daten!$A$271:$A$320,Daten!$U$271:$U$320),"") -> 23,6 Inhalt3Einh[23,6] | P164: =IF($A162<=Daten!$B$8,LOOKUP($B162,Daten!$A$322:$A$371,Daten!$T$322:$T$371),"") & " " & IF($A162<=Daten!$B$8,LOOKUP($B162,Daten!$A$322:$A$371,Daten!$U$322:$U$371),"") -> 23,7 Inhalt3Einh[23,7]
D165: =IF($A162<=Daten!$B$8,LOOKUP($B162,Daten!$A$16:$A$65,Daten!$V$16:$V$65),"") & " " & IF($A162<=Daten!$B$8,LOOKUP($B162,Daten!$A$16:$A$65,Daten!$W$16:$W$65),"") -> 23,1 Inhalt4Einh[23,1] | F165: =IF($A162<=Daten!$B$8,LOOKUP($B162,Daten!$A$67:$A$116,Daten!$V$67:$V$116),"") & " " & IF($A162<=Daten!$B$8,LOOKUP($B162,Daten!$A$67:$A$116,Daten!$W$67:$W$116),"") -> 23,2 Inhalt4Einh[23,2] | H165: =IF($A162<=Daten!$B$8,LOOKUP($B162,Daten!$A$118:$A$167,Daten!$V$118:$V$167),"") & " " & IF($A162<=Daten!$B$8,LOOKUP($B162,Daten!$A$118:$A$167,Daten!$W$118:$W$167),"") -> 23,3 Inhalt4Einh[23,3] | J165: =IF($A162<=Daten!$B$8,LOOKUP($B162,Daten!$A$169:$A$218,Daten!$V$169:$V$218),"") & " " & IF($A162<=Daten!$B$8,LOOKUP($B162,Daten!$A$169:$A$218,Daten!$W$169:$W$218),"") -> 23,4 Inhalt4Einh[23,4] | L165: =IF($A162<=Daten!$B$8,LOOKUP($B162,Daten!$A$220:$A$269,Daten!$V$220:$V$269),"") & " " & IF($A162<=Daten!$B$8,LOOKUP($B162,Daten!$A$220:$A$269,Daten!$W$220:$W$269),"") -> 23,5 Inhalt4Einh[23,5] | N165: =IF($A162<=Daten!$B$8,LOOKUP($B162,Daten!$A$271:$A$320,Daten!$V$271:$V$320),"") & " " & IF($A162<=Daten!$B$8,LOOKUP($B162,Daten!$A$271:$A$320,Daten!$W$271:$W$320),"") -> 23,6 Inhalt4Einh[23,6] | P165: =IF($A162<=Daten!$B$8,LOOKUP($B162,Daten!$A$322:$A$371,Daten!$V$322:$V$371),"") & " " & IF($A162<=Daten!$B$8,LOOKUP($B162,Daten!$A$322:$A$371,Daten!$W$322:$W$371),"") -> 23,7 Inhalt4Einh[23,7]
D166: =IF($A162<=Daten!$B$8,LOOKUP($B162,Daten!$A$16:$A$65,Daten!$X$16:$X$65),"") & " " & IF($A162<=Daten!$B$8,LOOKUP($B162,Daten!$A$16:$A$65,Daten!$Y$16:$Y$65),"") -> 23,1 Inhalt5Einh[23,1] | F166: =IF($A162<=Daten!$B$8,LOOKUP($B162,Daten!$A$67:$A$116,Daten!$X$67:$X$116),"") & " " & IF($A162<=Daten!$B$8,LOOKUP($B162,Daten!$A$67:$A$116,Daten!$Y$67:$Y$116),"") -> 23,2 Inhalt5Einh[23,2] | H166: =IF($A162<=Daten!$B$8,LOOKUP($B162,Daten!$A$118:$A$167,Daten!$X$118:$X$167),"") & " " & IF($A162<=Daten!$B$8,LOOKUP($B162,Daten!$A$118:$A$167,Daten!$Y$118:$Y$167),"") -> 23,3 Inhalt5Einh[23,3] | J166: =IF($A162<=Daten!$B$8,LOOKUP($B162,Daten!$A$169:$A$218,Daten!$X$169:$X$218),"") & " " & IF($A162<=Daten!$B$8,LOOKUP($B162,Daten!$A$169:$A$218,Daten!$Y$169:$Y$218),"") -> 23,4 Inhalt5Einh[23,4] | L166: =IF($A162<=Daten!$B$8,LOOKUP($B162,Daten!$A$220:$A$269,Daten!$X$220:$X$269),"") & " " & IF($A162<=Daten!$B$8,LOOKUP($B162,Daten!$A$220:$A$269,Daten!$Y$220:$Y$269),"") -> 23,5 Inhalt5Einh[23,5] | N166: =IF($A162<=Daten!$B$8,LOOKUP($B162,Daten!$A$271:$A$320,Daten!$X$271:$X$320),"") & " " & IF($A162<=Daten!$B$8,LOOKUP($B162,Daten!$A$271:$A$320,Daten!$Y$271:$Y$320),"") -> 23,6 Inhalt5Einh[23,6] | P166: =IF($A162<=Daten!$B$8,LOOKUP($B162,Daten!$A$322:$A$371,Daten!$X$322:$X$371),"") & " " & IF($A162<=Daten!$B$8,LOOKUP($B162,Daten!$A$322:$A$371,Daten!$Y$322:$Y$371),"") -> 23,7 Inhalt5Einh[23,7]
D167: =IF($A162<=Daten!$B$8,LOOKUP($B162,Daten!$A$16:$A$65,Daten!$Z$16:$Z$65),"") & " " & IF($A162<=Daten!$B$8,LOOKUP($B162,Daten!$A$16:$A$65,Daten!$AA$16:$AA$65),"") -> 23,1 Inhalt6Einh[23,1] | F167: =IF($A162<=Daten!$B$8,LOOKUP($B162,Daten!$A$67:$A$116,Daten!$Z$67:$Z$116),"") & " " & IF($A162<=Daten!$B$8,LOOKUP($B162,Daten!$A$67:$A$116,Daten!$AA$67:$AA$116),"") -> 23,2 Inhalt6Einh[23,2] | H167: =IF($A162<=Daten!$B$8,LOOKUP($B162,Daten!$A$118:$A$167,Daten!$Z$118:$Z$167),"") & " " & IF($A162<=Daten!$B$8,LOOKUP($B162,Daten!$A$118:$A$167,Daten!$AA$118:$AA$167),"") -> 23,3 Inhalt6Einh[23,3] | J167: =IF($A162<=Daten!$B$8,LOOKUP($B162,Daten!$A$169:$A$218,Daten!$Z$169:$Z$218),"") & " " & IF($A162<=Daten!$B$8,LOOKUP($B162,Daten!$A$169:$A$218,Daten!$AA$169:$AA$218),"") -> 23,4 Inhalt6Einh[23,4] | L167: =IF($A162<=Daten!$B$8,LOOKUP($B162,Daten!$A$220:$A$269,Daten!$Z$220:$Z$269),"") & " " & IF($A162<=Daten!$B$8,LOOKUP($B162,Daten!$A$220:$A$269,Daten!$AA$220:$AA$269),"") -> 23,5 Inhalt6Einh[23,5] | N167: =IF($A162<=Daten!$B$8,LOOKUP($B162,Daten!$A$271:$A$320,Daten!$Z$271:$Z$320),"") & " " & IF($A162<=Daten!$B$8,LOOKUP($B162,Daten!$A$271:$A$320,Daten!$AA$271:$AA$320),"") -> 23,6 Inhalt6Einh[23,6] | P167: =IF($A162<=Daten!$B$8,LOOKUP($B162,Daten!$A$322:$A$371,Daten!$Z$322:$Z$371),"") & " " & IF($A162<=Daten!$B$8,LOOKUP($B162,Daten!$A$322:$A$371,Daten!$AA$322:$AA$371),"") -> 23,7 Inhalt6Einh[23,7]
B168: =IF(A162<=Daten!$B$8,"Zusatzstoffe","") -> Zusatzstoffe | C168: =IF($A162<=Daten!$B$8,LOOKUP($B162,Daten!$A$16:$A$65,Daten!$L$16:$L$65),"") -> 23.1 | D168: =IF($A162<=Daten!$B$8,LOOKUP($B162,Daten!$A$16:$A$65,Daten!$E$16:$E$65),"") -> 213.1 | E168: =IF($A162<=Daten!$B$8,LOOKUP($B162,Daten!$A$67:$A$116,Daten!$L$67:$L$116),"") -> 23.2 | F168: =IF($A162<=Daten!$B$8,LOOKUP($B162,Daten!$A$16:$A$65,Daten!$E$67:$E$116),"") -> 0 | G168: =IF($A162<=Daten!$B$8,LOOKUP($B162,Daten!$A$118:$A$167,Daten!$L$118:$L$167),"") -> 23.3 | H168: =IF($A162<=Daten!$B$8,LOOKUP($B162,Daten!$A$118:$A$167,Daten!$E$118:$E$167),"") -> 0 | I168: =IF($A162<=Daten!$B$8,LOOKUP($B162,Daten!$A$169:$A$218,Daten!$L$169:$L$218),"") -> 23.4 | J168: =IF($A162<=Daten!$B$8,LOOKUP($B162,Daten!$A$169:$A$218,Daten!$E$169:$E$218),"") -> 0 | K168: =IF($A162<=Daten!$B$8,LOOKUP($B162,Daten!$A$220:$A$269,Daten!$L$220:$L$269),"") -> 23.5 | L168: =IF($A162<=Daten!$B$8,LOOKUP($B162,Daten!$A$220:$A$269,Daten!$E$220:$E$269),"") -> 0 | M168: =IF($A162<=Daten!$B$8,LOOKUP($B162,Daten!$A$271:$A$320,Daten!$L$271:$L$320),"") -> 23.6 | N168: =IF($A162<=Daten!$B$8,LOOKUP($B162,Daten!$A$271:$A$320,Daten!$E$271:$E$320),"") -> 0 | O168: =IF($A162<=Daten!$B$8,LOOKUP($B162,Daten!$A$322:$A$371,Daten!$L$322:$L$371),"") -> 23.7 | P168: =IF($A162<=Daten!$B$8,LOOKUP($B162,Daten!$A$322:$A$371,Daten!$E$322:$E$371),"") -> 0
A169: 24 | B169: =IF(A169<=Daten!$B$8,Daten!Y9,"") -> Menülinie 24 | C169: =IF(A169<=Daten!$B$8,LOOKUP(B169,Daten!$A$16:$A$65,Daten!$C$16:$C$65),"") -> Lang[24,1] | D169: =IF($A169<=Daten!$B$8,LOOKUP($B169,Daten!$A$16:$A$65,Daten!$P$16:$P$65),"") & " " & IF($A169<=Daten!$B$8,LOOKUP($B169,Daten!$A$16:$A$65,Daten!$Q$16:$Q$65),"") -> 24,1 Inhalt1Einh[24,1] | E169: =IF($A169<=Daten!$B$8,LOOKUP($B169,Daten!$A$67:$A$116,Daten!$C$67:$C$116),"") -> Lang[24,2] | F169: =IF($A169<=Daten!$B$8,LOOKUP($B169,Daten!$A$67:$A$116,Daten!$P$67:$P$116),"") & " " & IF($A169<=Daten!$B$8,LOOKUP($B169,Daten!$A$67:$A$116,Daten!$Q$67:$Q$116),"") -> 24,2 Inhalt1Einh[24,2] | G169: =IF($A169<=Daten!$B$8,LOOKUP($B169,Daten!$A$118:$A$167,Daten!$C$118:$C$167),"") -> Lang[24,3] | H169: =IF($A169<=Daten!$B$8,LOOKUP($B169,Daten!$A$118:$A$167,Daten!$P$118:$P$167),"") & " " & IF($A169<=Daten!$B$8,LOOKUP($B169,Daten!$A$118:$A$167,Daten!$Q$118:$Q$167),"") -> 24,3 Inhalt1Einh[24,3] | I169: =IF($A169<=Daten!$B$8,LOOKUP($B169,Daten!$A$169:$A$218,Daten!$C$169:$C$218),"") -> Lang[24,4] | J169: =IF($A169<=Daten!$B$8,LOOKUP($B169,Daten!$A$169:$A$218,Daten!$P$169:$P$218),"") & " " & IF($A169<=Daten!$B$8,LOOKUP($B169,Daten!$A$169:$A$218,Daten!$Q$169:$Q$218),"") -> 24,4 Inhalt1Einh[24,4] | K169: =IF($A169<=Daten!$B$8,LOOKUP($B169,Daten!$A$220:$A$269,Daten!$C$220:$C$269),"") -> Lang[24,5] | L169: =IF($A169<=Daten!$B$8,LOOKUP($B169,Daten!$A$220:$A$269,Daten!$P$220:$P$269),"") & " " & IF($A169<=Daten!$B$8,LOOKUP($B169,Daten!$A$220:$A$269,Daten!$Q$220:$Q$269),"") -> 24,5 Inhalt1Einh[24,5] | M169: =IF($A169<=Daten!$B$8,LOOKUP($B169,Daten!$A$271:$A$320,Daten!$C$271:$C$320),"") -> Lang[24,6] | N169: =IF($A169<=Daten!$B$8,LOOKUP($B169,Daten!$A$271:$A$320,Daten!$P$271:$P$320),"") & " " & IF($A169<=Daten!$B$8,LOOKUP($B169,Daten!$A$271:$A$320,Daten!$Q$271:$Q$320),"") -> 24,6 Inhalt1Einh[24,6] | O169: =IF($A169<=Daten!$B$8,LOOKUP($B169,Daten!$A$322:$A$371,Daten!$B$322:$C$371),"") ->  | P169: =IF($A169<=Daten!$B$8,LOOKUP($B169,Daten!$A$322:$A$371,Daten!$P$322:$P$371),"") & " " & IF($A169<=Daten!$B$8,LOOKUP($B169,Daten!$A$322:$A$371,Daten!$Q$322:$Q$371),"") -> 24,7 Inhalt1Einh[24,7]
D170: =IF($A169<=Daten!$B$8,LOOKUP($B169,Daten!$A$16:$A$65,Daten!$R$16:$R$65),"") & " " & IF($A169<=Daten!$B$8,LOOKUP($B169,Daten!$A$16:$A$65,Daten!$S$16:$S$65),"") -> 24,1 Inhalt2Einh[24,1] | F170: =IF($A169<=Daten!$B$8,LOOKUP($B169,Daten!$A$67:$A$116,Daten!$R$67:$R$116),"") & " " & IF($A169<=Daten!$B$8,LOOKUP($B169,Daten!$A$67:$A$116,Daten!$S$67:$S$116),"") -> 24,2 Inhalt2Einh[24,2] | H170: =IF($A169<=Daten!$B$8,LOOKUP($B169,Daten!$A$118:$A$167,Daten!$R$118:$R$167),"") & " " & IF($A169<=Daten!$B$8,LOOKUP($B169,Daten!$A$118:$A$167,Daten!$S$118:$S$167),"") -> 24,3 Inhalt2Einh[24,3] | J170: =IF($A169<=Daten!$B$8,LOOKUP($B169,Daten!$A$169:$A$218,Daten!$R$169:$R$218),"") & " " & IF($A169<=Daten!$B$8,LOOKUP($B169,Daten!$A$169:$A$218,Daten!$S$169:$S$218),"") -> 24,4 Inhalt2Einh[24,4] | L170: =IF($A169<=Daten!$B$8,LOOKUP($B169,Daten!$A$220:$A$269,Daten!$R$220:$R$269),"") & " " & IF($A169<=Daten!$B$8,LOOKUP($B169,Daten!$A$220:$A$269,Daten!$S$220:$S$269),"") -> 24,5 Inhalt2Einh[24,5] | N170: =IF($A169<=Daten!$B$8,LOOKUP($B169,Daten!$A$271:$A$320,Daten!$R$271:$R$320),"") & " " & IF($A169<=Daten!$B$8,LOOKUP($B169,Daten!$A$271:$A$320,Daten!$S$271:$S$320),"") -> 24,6 Inhalt2Einh[24,6] | P170: =IF($A169<=Daten!$B$8,LOOKUP($B169,Daten!$A$322:$A$371,Daten!$R$322:$R$371),"") & " " & IF($A169<=Daten!$B$8,LOOKUP($B169,Daten!$A$322:$A$371,Daten!$S$322:$S$371),"") -> 24,7 Inhalt2Einh[24,7]
D171: =IF($A169<=Daten!$B$8,LOOKUP($B169,Daten!$A$16:$A$65,Daten!$T$16:$T$65),"") & " " & IF($A169<=Daten!$B$8,LOOKUP($B169,Daten!$A$16:$A$65,Daten!$U$16:$U$65),"") -> 24,1 Inhalt3Einh[24,1] | F171: =IF($A169<=Daten!$B$8,LOOKUP($B169,Daten!$A$67:$A$116,Daten!$T$67:$T$116),"") & " " & IF($A169<=Daten!$B$8,LOOKUP($B169,Daten!$A$67:$A$116,Daten!$U$67:$U$116),"") -> 24,2 Inhalt3Einh[24,2] | H171: =IF($A169<=Daten!$B$8,LOOKUP($B169,Daten!$A$118:$A$167,Daten!$T$118:$T$167),"") & " " & IF($A169<=Daten!$B$8,LOOKUP($B169,Daten!$A$118:$A$167,Daten!$U$118:$U$167),"") -> 24,3 Inhalt3Einh[24,3] | J171: =IF($A169<=Daten!$B$8,LOOKUP($B169,Daten!$A$169:$A$218,Daten!$T$169:$T$218),"") & " " & IF($A169<=Daten!$B$8,LOOKUP($B169,Daten!$A$169:$A$218,Daten!$U$169:$U$218),"") -> 24,4 Inhalt3Einh[24,4] | L171: =IF($A169<=Daten!$B$8,LOOKUP($B169,Daten!$A$220:$A$269,Daten!$T$220:$T$269),"") & " " & IF($A169<=Daten!$B$8,LOOKUP($B169,Daten!$A$220:$A$269,Daten!$U$220:$U$269),"") -> 24,5 Inhalt3Einh[24,5] | N171: =IF($A169<=Daten!$B$8,LOOKUP($B169,Daten!$A$271:$A$320,Daten!$T$271:$T$320),"") & " " & IF($A169<=Daten!$B$8,LOOKUP($B169,Daten!$A$271:$A$320,Daten!$U$271:$U$320),"") -> 24,6 Inhalt3Einh[24,6] | P171: =IF($A169<=Daten!$B$8,LOOKUP($B169,Daten!$A$322:$A$371,Daten!$T$322:$T$371),"") & " " & IF($A169<=Daten!$B$8,LOOKUP($B169,Daten!$A$322:$A$371,Daten!$U$322:$U$371),"") -> 24,7 Inhalt3Einh[24,7]
D172: =IF($A169<=Daten!$B$8,LOOKUP($B169,Daten!$A$16:$A$65,Daten!$V$16:$V$65),"") & " " & IF($A169<=Daten!$B$8,LOOKUP($B169,Daten!$A$16:$A$65,Daten!$W$16:$W$65),"") -> 24,1 Inhalt4Einh[24,1] | F172: =IF($A169<=Daten!$B$8,LOOKUP($B169,Daten!$A$67:$A$116,Daten!$V$67:$V$116),"") & " " & IF($A169<=Daten!$B$8,LOOKUP($B169,Daten!$A$67:$A$116,Daten!$W$67:$W$116),"") -> 24,2 Inhalt4Einh[24,2] | H172: =IF($A169<=Daten!$B$8,LOOKUP($B169,Daten!$A$118:$A$167,Daten!$V$118:$V$167),"") & " " & IF($A169<=Daten!$B$8,LOOKUP($B169,Daten!$A$118:$A$167,Daten!$W$118:$W$167),"") -> 24,3 Inhalt4Einh[24,3] | J172: =IF($A169<=Daten!$B$8,LOOKUP($B169,Daten!$A$169:$A$218,Daten!$V$169:$V$218),"") & " " & IF($A169<=Daten!$B$8,LOOKUP($B169,Daten!$A$169:$A$218,Daten!$W$169:$W$218),"") -> 24,4 Inhalt4Einh[24,4] | L172: =IF($A169<=Daten!$B$8,LOOKUP($B169,Daten!$A$220:$A$269,Daten!$V$220:$V$269),"") & " " & IF($A169<=Daten!$B$8,LOOKUP($B169,Daten!$A$220:$A$269,Daten!$W$220:$W$269),"") -> 24,5 Inhalt4Einh[24,5] | N172: =IF($A169<=Daten!$B$8,LOOKUP($B169,Daten!$A$271:$A$320,Daten!$V$271:$V$320),"") & " " & IF($A169<=Daten!$B$8,LOOKUP($B169,Daten!$A$271:$A$320,Daten!$W$271:$W$320),"") -> 24,6 Inhalt4Einh[24,6] | P172: =IF($A169<=Daten!$B$8,LOOKUP($B169,Daten!$A$322:$A$371,Daten!$V$322:$V$371),"") & " " & IF($A169<=Daten!$B$8,LOOKUP($B169,Daten!$A$322:$A$371,Daten!$W$322:$W$371),"") -> 24,7 Inhalt4Einh[24,7]
D173: =IF($A169<=Daten!$B$8,LOOKUP($B169,Daten!$A$16:$A$65,Daten!$X$16:$X$65),"") & " " & IF($A169<=Daten!$B$8,LOOKUP($B169,Daten!$A$16:$A$65,Daten!$Y$16:$Y$65),"") -> 24,1 Inhalt5Einh[24,1] | F173: =IF($A169<=Daten!$B$8,LOOKUP($B169,Daten!$A$67:$A$116,Daten!$X$67:$X$116),"") & " " & IF($A169<=Daten!$B$8,LOOKUP($B169,Daten!$A$67:$A$116,Daten!$Y$67:$Y$116),"") -> 24,2 Inhalt5Einh[24,2] | H173: =IF($A169<=Daten!$B$8,LOOKUP($B169,Daten!$A$118:$A$167,Daten!$X$118:$X$167),"") & " " & IF($A169<=Daten!$B$8,LOOKUP($B169,Daten!$A$118:$A$167,Daten!$Y$118:$Y$167),"") -> 24,3 Inhalt5Einh[24,3] | J173: =IF($A169<=Daten!$B$8,LOOKUP($B169,Daten!$A$169:$A$218,Daten!$X$169:$X$218),"") & " " & IF($A169<=Daten!$B$8,LOOKUP($B169,Daten!$A$169:$A$218,Daten!$Y$169:$Y$218),"") -> 24,4 Inhalt5Einh[24,4] | L173: =IF($A169<=Daten!$B$8,LOOKUP($B169,Daten!$A$220:$A$269,Daten!$X$220:$X$269),"") & " " & IF($A169<=Daten!$B$8,LOOKUP($B169,Daten!$A$220:$A$269,Daten!$Y$220:$Y$269),"") -> 24,5 Inhalt5Einh[24,5] | N173: =IF($A169<=Daten!$B$8,LOOKUP($B169,Daten!$A$271:$A$320,Daten!$X$271:$X$320),"") & " " & IF($A169<=Daten!$B$8,LOOKUP($B169,Daten!$A$271:$A$320,Daten!$Y$271:$Y$320),"") -> 24,6 Inhalt5Einh[24,6] | P173: =IF($A169<=Daten!$B$8,LOOKUP($B169,Daten!$A$322:$A$371,Daten!$X$322:$X$371),"") & " " & IF($A169<=Daten!$B$8,LOOKUP($B169,Daten!$A$322:$A$371,Daten!$Y$322:$Y$371),"") -> 24,7 Inhalt5Einh[24,7]
D174: =IF($A169<=Daten!$B$8,LOOKUP($B169,Daten!$A$16:$A$65,Daten!$Z$16:$Z$65),"") & " " & IF($A169<=Daten!$B$8,LOOKUP($B169,Daten!$A$16:$A$65,Daten!$AA$16:$AA$65),"") -> 24,1 Inhalt6Einh[24,1] | F174: =IF($A169<=Daten!$B$8,LOOKUP($B169,Daten!$A$67:$A$116,Daten!$Z$67:$Z$116),"") & " " & IF($A169<=Daten!$B$8,LOOKUP($B169,Daten!$A$67:$A$116,Daten!$AA$67:$AA$116),"") -> 24,2 Inhalt6Einh[24,2] | H174: =IF($A169<=Daten!$B$8,LOOKUP($B169,Daten!$A$118:$A$167,Daten!$Z$118:$Z$167),"") & " " & IF($A169<=Daten!$B$8,LOOKUP($B169,Daten!$A$118:$A$167,Daten!$AA$118:$AA$167),"") -> 24,3 Inhalt6Einh[24,3] | J174: =IF($A169<=Daten!$B$8,LOOKUP($B169,Daten!$A$169:$A$218,Daten!$Z$169:$Z$218),"") & " " & IF($A169<=Daten!$B$8,LOOKUP($B169,Daten!$A$169:$A$218,Daten!$AA$169:$AA$218),"") -> 24,4 Inhalt6Einh[24,4] | L174: =IF($A169<=Daten!$B$8,LOOKUP($B169,Daten!$A$220:$A$269,Daten!$Z$220:$Z$269),"") & " " & IF($A169<=Daten!$B$8,LOOKUP($B169,Daten!$A$220:$A$269,Daten!$AA$220:$AA$269),"") -> 24,5 Inhalt6Einh[24,5] | N174: =IF($A169<=Daten!$B$8,LOOKUP($B169,Daten!$A$271:$A$320,Daten!$Z$271:$Z$320),"") & " " & IF($A169<=Daten!$B$8,LOOKUP($B169,Daten!$A$271:$A$320,Daten!$AA$271:$AA$320),"") -> 24,6 Inhalt6Einh[24,6] | P174: =IF($A169<=Daten!$B$8,LOOKUP($B169,Daten!$A$322:$A$371,Daten!$Z$322:$Z$371),"") & " " & IF($A169<=Daten!$B$8,LOOKUP($B169,Daten!$A$322:$A$371,Daten!$AA$322:$AA$371),"") -> 24,7 Inhalt6Einh[24,7]
B175: =IF(A169<=Daten!$B$8,"Zusatzstoffe","") -> Zusatzstoffe | C175: =IF($A169<=Daten!$B$8,LOOKUP($B169,Daten!$A$16:$A$65,Daten!$L$16:$L$65),"") -> 24.1 | D175: =IF($A169<=Daten!$B$8,LOOKUP($B169,Daten!$A$16:$A$65,Daten!$E$16:$E$65),"") -> 214.1 | E175: =IF($A169<=Daten!$B$8,LOOKUP($B169,Daten!$A$67:$A$116,Daten!$L$67:$L$116),"") -> 24.2 | F175: =IF($A169<=Daten!$B$8,LOOKUP($B169,Daten!$A$16:$A$65,Daten!$E$67:$E$116),"") -> 0 | G175: =IF($A169<=Daten!$B$8,LOOKUP($B169,Daten!$A$118:$A$167,Daten!$L$118:$L$167),"") -> 24.3 | H175: =IF($A169<=Daten!$B$8,LOOKUP($B169,Daten!$A$118:$A$167,Daten!$E$118:$E$167),"") -> 0 | I175: =IF($A169<=Daten!$B$8,LOOKUP($B169,Daten!$A$169:$A$218,Daten!$L$169:$L$218),"") -> 24.4 | J175: =IF($A169<=Daten!$B$8,LOOKUP($B169,Daten!$A$169:$A$218,Daten!$E$169:$E$218),"") -> 0 | K175: =IF($A169<=Daten!$B$8,LOOKUP($B169,Daten!$A$220:$A$269,Daten!$L$220:$L$269),"") -> 24.5 | L175: =IF($A169<=Daten!$B$8,LOOKUP($B169,Daten!$A$220:$A$269,Daten!$E$220:$E$269),"") -> 0 | M175: =IF($A169<=Daten!$B$8,LOOKUP($B169,Daten!$A$271:$A$320,Daten!$L$271:$L$320),"") -> 24.6 | N175: =IF($A169<=Daten!$B$8,LOOKUP($B169,Daten!$A$271:$A$320,Daten!$E$271:$E$320),"") -> 0 | O175: =IF($A169<=Daten!$B$8,LOOKUP($B169,Daten!$A$322:$A$371,Daten!$L$322:$L$371),"") -> 24.7 | P175: =IF($A169<=Daten!$B$8,LOOKUP($B169,Daten!$A$322:$A$371,Daten!$E$322:$E$371),"") -> 0
A176: 25 | B176: =IF(A176<=Daten!$B$8,Daten!Z9,"") -> Menülinie 25 | C176: =IF(A176<=Daten!$B$8,LOOKUP(B176,Daten!$A$16:$A$65,Daten!$C$16:$C$65),"") -> Lang[25,1] | D176: =IF($A176<=Daten!$B$8,LOOKUP($B176,Daten!$A$16:$A$65,Daten!$P$16:$P$65),"") & " " & IF($A176<=Daten!$B$8,LOOKUP($B176,Daten!$A$16:$A$65,Daten!$Q$16:$Q$65),"") -> 25,1 Inhalt1Einh[25,1] | E176: =IF($A176<=Daten!$B$8,LOOKUP($B176,Daten!$A$67:$A$116,Daten!$C$67:$C$116),"") -> Lang[25,2] | F176: =IF($A176<=Daten!$B$8,LOOKUP($B176,Daten!$A$67:$A$116,Daten!$P$67:$P$116),"") & " " & IF($A176<=Daten!$B$8,LOOKUP($B176,Daten!$A$67:$A$116,Daten!$Q$67:$Q$116),"") -> 25,2 Inhalt1Einh[25,2] | G176: =IF($A176<=Daten!$B$8,LOOKUP($B176,Daten!$A$118:$A$167,Daten!$C$118:$C$167),"") -> Lang[25,3] | H176: =IF($A176<=Daten!$B$8,LOOKUP($B176,Daten!$A$118:$A$167,Daten!$P$118:$P$167),"") & " " & IF($A176<=Daten!$B$8,LOOKUP($B176,Daten!$A$118:$A$167,Daten!$Q$118:$Q$167),"") -> 25,3 Inhalt1Einh[25,3] | I176: =IF($A176<=Daten!$B$8,LOOKUP($B176,Daten!$A$169:$A$218,Daten!$C$169:$C$218),"") -> Lang[25,4] | J176: =IF($A176<=Daten!$B$8,LOOKUP($B176,Daten!$A$169:$A$218,Daten!$P$169:$P$218),"") & " " & IF($A176<=Daten!$B$8,LOOKUP($B176,Daten!$A$169:$A$218,Daten!$Q$169:$Q$218),"") -> 25,4 Inhalt1Einh[25,4] | K176: =IF($A176<=Daten!$B$8,LOOKUP($B176,Daten!$A$220:$A$269,Daten!$C$220:$C$269),"") -> Lang[25,5] | L176: =IF($A176<=Daten!$B$8,LOOKUP($B176,Daten!$A$220:$A$269,Daten!$P$220:$P$269),"") & " " & IF($A176<=Daten!$B$8,LOOKUP($B176,Daten!$A$220:$A$269,Daten!$Q$220:$Q$269),"") -> 25,5 Inhalt1Einh[25,5] | M176: =IF($A176<=Daten!$B$8,LOOKUP($B176,Daten!$A$271:$A$320,Daten!$C$271:$C$320),"") -> Lang[25,6] | N176: =IF($A176<=Daten!$B$8,LOOKUP($B176,Daten!$A$271:$A$320,Daten!$P$271:$P$320),"") & " " & IF($A176<=Daten!$B$8,LOOKUP($B176,Daten!$A$271:$A$320,Daten!$Q$271:$Q$320),"") -> 25,6 Inhalt1Einh[25,6] | O176: =IF($A176<=Daten!$B$8,LOOKUP($B176,Daten!$A$322:$A$371,Daten!$B$322:$C$371),"") ->  | P176: =IF($A176<=Daten!$B$8,LOOKUP($B176,Daten!$A$322:$A$371,Daten!$P$322:$P$371),"") & " " & IF($A176<=Daten!$B$8,LOOKUP($B176,Daten!$A$322:$A$371,Daten!$Q$322:$Q$371),"") -> 25,7 Inhalt1Einh[25,7]
D177: =IF($A176<=Daten!$B$8,LOOKUP($B176,Daten!$A$16:$A$65,Daten!$R$16:$R$65),"") & " " & IF($A176<=Daten!$B$8,LOOKUP($B176,Daten!$A$16:$A$65,Daten!$S$16:$S$65),"") -> 25,1 Inhalt2Einh[25,1] | F177: =IF($A176<=Daten!$B$8,LOOKUP($B176,Daten!$A$67:$A$116,Daten!$R$67:$R$116),"") & " " & IF($A176<=Daten!$B$8,LOOKUP($B176,Daten!$A$67:$A$116,Daten!$S$67:$S$116),"") -> 25,2 Inhalt2Einh[25,2] | H177: =IF($A176<=Daten!$B$8,LOOKUP($B176,Daten!$A$118:$A$167,Daten!$R$118:$R$167),"") & " " & IF($A176<=Daten!$B$8,LOOKUP($B176,Daten!$A$118:$A$167,Daten!$S$118:$S$167),"") -> 25,3 Inhalt2Einh[25,3] | J177: =IF($A176<=Daten!$B$8,LOOKUP($B176,Daten!$A$169:$A$218,Daten!$R$169:$R$218),"") & " " & IF($A176<=Daten!$B$8,LOOKUP($B176,Daten!$A$169:$A$218,Daten!$S$169:$S$218),"") -> 25,4 Inhalt2Einh[25,4] | L177: =IF($A176<=Daten!$B$8,LOOKUP($B176,Daten!$A$220:$A$269,Daten!$R$220:$R$269),"") & " " & IF($A176<=Daten!$B$8,LOOKUP($B176,Daten!$A$220:$A$269,Daten!$S$220:$S$269),"") -> 25,5 Inhalt2Einh[25,5] | N177: =IF($A176<=Daten!$B$8,LOOKUP($B176,Daten!$A$271:$A$320,Daten!$R$271:$R$320),"") & " " & IF($A176<=Daten!$B$8,LOOKUP($B176,Daten!$A$271:$A$320,Daten!$S$271:$S$320),"") -> 25,6 Inhalt2Einh[25,6] | P177: =IF($A176<=Daten!$B$8,LOOKUP($B176,Daten!$A$322:$A$371,Daten!$R$322:$R$371),"") & " " & IF($A176<=Daten!$B$8,LOOKUP($B176,Daten!$A$322:$A$371,Daten!$S$322:$S$371),"") -> 25,7 Inhalt2Einh[25,7]
D178: =IF($A176<=Daten!$B$8,LOOKUP($B176,Daten!$A$16:$A$65,Daten!$T$16:$T$65),"") & " " & IF($A176<=Daten!$B$8,LOOKUP($B176,Daten!$A$16:$A$65,Daten!$U$16:$U$65),"") -> 25,1 Inhalt3Einh[25,1] | F178: =IF($A176<=Daten!$B$8,LOOKUP($B176,Daten!$A$67:$A$116,Daten!$T$67:$T$116),"") & " " & IF($A176<=Daten!$B$8,LOOKUP($B176,Daten!$A$67:$A$116,Daten!$U$67:$U$116),"") -> 25,2 Inhalt3Einh[25,2] | H178: =IF($A176<=Daten!$B$8,LOOKUP($B176,Daten!$A$118:$A$167,Daten!$T$118:$T$167),"") & " " & IF($A176<=Daten!$B$8,LOOKUP($B176,Daten!$A$118:$A$167,Daten!$U$118:$U$167),"") -> 25,3 Inhalt3Einh[25,3] | J178: =IF($A176<=Daten!$B$8,LOOKUP($B176,Daten!$A$169:$A$218,Daten!$T$169:$T$218),"") & " " & IF($A176<=Daten!$B$8,LOOKUP($B176,Daten!$A$169:$A$218,Daten!$U$169:$U$218),"") -> 25,4 Inhalt3Einh[25,4] | L178: =IF($A176<=Daten!$B$8,LOOKUP($B176,Daten!$A$220:$A$269,Daten!$T$220:$T$269),"") & " " & IF($A176<=Daten!$B$8,LOOKUP($B176,Daten!$A$220:$A$269,Daten!$U$220:$U$269),"") -> 25,5 Inhalt3Einh[25,5] | N178: =IF($A176<=Daten!$B$8,LOOKUP($B176,Daten!$A$271:$A$320,Daten!$T$271:$T$320),"") & " " & IF($A176<=Daten!$B$8,LOOKUP($B176,Daten!$A$271:$A$320,Daten!$U$271:$U$320),"") -> 25,6 Inhalt3Einh[25,6] | P178: =IF($A176<=Daten!$B$8,LOOKUP($B176,Daten!$A$322:$A$371,Daten!$T$322:$T$371),"") & " " & IF($A176<=Daten!$B$8,LOOKUP($B176,Daten!$A$322:$A$371,Daten!$U$322:$U$371),"") -> 25,7 Inhalt3Einh[25,7]
D179: =IF($A176<=Daten!$B$8,LOOKUP($B176,Daten!$A$16:$A$65,Daten!$V$16:$V$65),"") & " " & IF($A176<=Daten!$B$8,LOOKUP($B176,Daten!$A$16:$A$65,Daten!$W$16:$W$65),"") -> 25,1 Inhalt4Einh[25,1] | F179: =IF($A176<=Daten!$B$8,LOOKUP($B176,Daten!$A$67:$A$116,Daten!$V$67:$V$116),"") & " " & IF($A176<=Daten!$B$8,LOOKUP($B176,Daten!$A$67:$A$116,Daten!$W$67:$W$116),"") -> 25,2 Inhalt4Einh[25,2] | H179: =IF($A176<=Daten!$B$8,LOOKUP($B176,Daten!$A$118:$A$167,Daten!$V$118:$V$167),"") & " " & IF($A176<=Daten!$B$8,LOOKUP($B176,Daten!$A$118:$A$167,Daten!$W$118:$W$167),"") -> 25,3 Inhalt4Einh[25,3] | J179: =IF($A176<=Daten!$B$8,LOOKUP($B176,Daten!$A$169:$A$218,Daten!$V$169:$V$218),"") & " " & IF($A176<=Daten!$B$8,LOOKUP($B176,Daten!$A$169:$A$218,Daten!$W$169:$W$218),"") -> 25,4 Inhalt4Einh[25,4] | L179: =IF($A176<=Daten!$B$8,LOOKUP($B176,Daten!$A$220:$A$269,Daten!$V$220:$V$269),"") & " " & IF($A176<=Daten!$B$8,LOOKUP($B176,Daten!$A$220:$A$269,Daten!$W$220:$W$269),"") -> 25,5 Inhalt4Einh[25,5] | N179: =IF($A176<=Daten!$B$8,LOOKUP($B176,Daten!$A$271:$A$320,Daten!$V$271:$V$320),"") & " " & IF($A176<=Daten!$B$8,LOOKUP($B176,Daten!$A$271:$A$320,Daten!$W$271:$W$320),"") -> 25,6 Inhalt4Einh[25,6] | P179: =IF($A176<=Daten!$B$8,LOOKUP($B176,Daten!$A$322:$A$371,Daten!$V$322:$V$371),"") & " " & IF($A176<=Daten!$B$8,LOOKUP($B176,Daten!$A$322:$A$371,Daten!$W$322:$W$371),"") -> 25,7 Inhalt4Einh[25,7]
D180: =IF($A176<=Daten!$B$8,LOOKUP($B176,Daten!$A$16:$A$65,Daten!$X$16:$X$65),"") & " " & IF($A176<=Daten!$B$8,LOOKUP($B176,Daten!$A$16:$A$65,Daten!$Y$16:$Y$65),"") -> 25,1 Inhalt5Einh[25,1] | F180: =IF($A176<=Daten!$B$8,LOOKUP($B176,Daten!$A$67:$A$116,Daten!$X$67:$X$116),"") & " " & IF($A176<=Daten!$B$8,LOOKUP($B176,Daten!$A$67:$A$116,Daten!$Y$67:$Y$116),"") -> 25,2 Inhalt5Einh[25,2] | H180: =IF($A176<=Daten!$B$8,LOOKUP($B176,Daten!$A$118:$A$167,Daten!$X$118:$X$167),"") & " " & IF($A176<=Daten!$B$8,LOOKUP($B176,Daten!$A$118:$A$167,Daten!$Y$118:$Y$167),"") -> 25,3 Inhalt5Einh[25,3] | J180: =IF($A176<=Daten!$B$8,LOOKUP($B176,Daten!$A$169:$A$218,Daten!$X$169:$X$218),"") & " " & IF($A176<=Daten!$B$8,LOOKUP($B176,Daten!$A$169:$A$218,Daten!$Y$169:$Y$218),"") -> 25,4 Inhalt5Einh[25,4] | L180: =IF($A176<=Daten!$B$8,LOOKUP($B176,Daten!$A$220:$A$269,Daten!$X$220:$X$269),"") & " " & IF($A176<=Daten!$B$8,LOOKUP($B176,Daten!$A$220:$A$269,Daten!$Y$220:$Y$269),"") -> 25,5 Inhalt5Einh[25,5] | N180: =IF($A176<=Daten!$B$8,LOOKUP($B176,Daten!$A$271:$A$320,Daten!$X$271:$X$320),"") & " " & IF($A176<=Daten!$B$8,LOOKUP($B176,Daten!$A$271:$A$320,Daten!$Y$271:$Y$320),"") -> 25,6 Inhalt5Einh[25,6] | P180: =IF($A176<=Daten!$B$8,LOOKUP($B176,Daten!$A$322:$A$371,Daten!$X$322:$X$371),"") & " " & IF($A176<=Daten!$B$8,LOOKUP($B176,Daten!$A$322:$A$371,Daten!$Y$322:$Y$371),"") -> 25,7 Inhalt5Einh[25,7]
D181: =IF($A176<=Daten!$B$8,LOOKUP($B176,Daten!$A$16:$A$65,Daten!$Z$16:$Z$65),"") & " " & IF($A176<=Daten!$B$8,LOOKUP($B176,Daten!$A$16:$A$65,Daten!$AA$16:$AA$65),"") -> 25,1 Inhalt6Einh[25,1] | F181: =IF($A176<=Daten!$B$8,LOOKUP($B176,Daten!$A$67:$A$116,Daten!$Z$67:$Z$116),"") & " " & IF($A176<=Daten!$B$8,LOOKUP($B176,Daten!$A$67:$A$116,Daten!$AA$67:$AA$116),"") -> 25,2 Inhalt6Einh[25,2] | H181: =IF($A176<=Daten!$B$8,LOOKUP($B176,Daten!$A$118:$A$167,Daten!$Z$118:$Z$167),"") & " " & IF($A176<=Daten!$B$8,LOOKUP($B176,Daten!$A$118:$A$167,Daten!$AA$118:$AA$167),"") -> 25,3 Inhalt6Einh[25,3] | J181: =IF($A176<=Daten!$B$8,LOOKUP($B176,Daten!$A$169:$A$218,Daten!$Z$169:$Z$218),"") & " " & IF($A176<=Daten!$B$8,LOOKUP($B176,Daten!$A$169:$A$218,Daten!$AA$169:$AA$218),"") -> 25,4 Inhalt6Einh[25,4] | L181: =IF($A176<=Daten!$B$8,LOOKUP($B176,Daten!$A$220:$A$269,Daten!$Z$220:$Z$269),"") & " " & IF($A176<=Daten!$B$8,LOOKUP($B176,Daten!$A$220:$A$269,Daten!$AA$220:$AA$269),"") -> 25,5 Inhalt6Einh[25,5] | N181: =IF($A176<=Daten!$B$8,LOOKUP($B176,Daten!$A$271:$A$320,Daten!$Z$271:$Z$320),"") & " " & IF($A176<=Daten!$B$8,LOOKUP($B176,Daten!$A$271:$A$320,Daten!$AA$271:$AA$320),"") -> 25,6 Inhalt6Einh[25,6] | P181: =IF($A176<=Daten!$B$8,LOOKUP($B176,Daten!$A$322:$A$371,Daten!$Z$322:$Z$371),"") & " " & IF($A176<=Daten!$B$8,LOOKUP($B176,Daten!$A$322:$A$371,Daten!$AA$322:$AA$371),"") -> 25,7 Inhalt6Einh[25,7]
B182: =IF(A176<=Daten!$B$8,"Zusatzstoffe","") -> Zusatzstoffe | C182: =IF($A176<=Daten!$B$8,LOOKUP($B176,Daten!$A$16:$A$65,Daten!$L$16:$L$65),"") -> 25.1 | D182: =IF($A176<=Daten!$B$8,LOOKUP($B176,Daten!$A$16:$A$65,Daten!$E$16:$E$65),"") -> 215.1 | E182: =IF($A176<=Daten!$B$8,LOOKUP($B176,Daten!$A$67:$A$116,Daten!$L$67:$L$116),"") -> 25.2 | F182: =IF($A176<=Daten!$B$8,LOOKUP($B176,Daten!$A$16:$A$65,Daten!$E$67:$E$116),"") -> 0 | G182: =IF($A176<=Daten!$B$8,LOOKUP($B176,Daten!$A$118:$A$167,Daten!$L$118:$L$167),"") -> 25.3 | H182: =IF($A176<=Daten!$B$8,LOOKUP($B176,Daten!$A$118:$A$167,Daten!$E$118:$E$167),"") -> 0 | I182: =IF($A176<=Daten!$B$8,LOOKUP($B176,Daten!$A$169:$A$218,Daten!$L$169:$L$218),"") -> 25.4 | J182: =IF($A176<=Daten!$B$8,LOOKUP($B176,Daten!$A$169:$A$218,Daten!$E$169:$E$218),"") -> 0 | K182: =IF($A176<=Daten!$B$8,LOOKUP($B176,Daten!$A$220:$A$269,Daten!$L$220:$L$269),"") -> 25.5 | L182: =IF($A176<=Daten!$B$8,LOOKUP($B176,Daten!$A$220:$A$269,Daten!$E$220:$E$269),"") -> 0 | M182: =IF($A176<=Daten!$B$8,LOOKUP($B176,Daten!$A$271:$A$320,Daten!$L$271:$L$320),"") -> 25.6 | N182: =IF($A176<=Daten!$B$8,LOOKUP($B176,Daten!$A$271:$A$320,Daten!$E$271:$E$320),"") -> 0 | O182: =IF($A176<=Daten!$B$8,LOOKUP($B176,Daten!$A$322:$A$371,Daten!$L$322:$L$371),"") -> 25.7 | P182: =IF($A176<=Daten!$B$8,LOOKUP($B176,Daten!$A$322:$A$371,Daten!$E$322:$E$371),"") -> 0
A183: 26 | B183: =IF(A183<=Daten!$B$8,Daten!AA9,"") -> Menülinie 26 | C183: =IF(A183<=Daten!$B$8,LOOKUP(B183,Daten!$A$16:$A$65,Daten!$C$16:$C$65),"") -> Lang[26,1] | D183: =IF($A183<=Daten!$B$8,LOOKUP($B183,Daten!$A$16:$A$65,Daten!$P$16:$P$65),"") & " " & IF($A183<=Daten!$B$8,LOOKUP($B183,Daten!$A$16:$A$65,Daten!$Q$16:$Q$65),"") -> 26,1 Inhalt1Einh[26,1] | E183: =IF($A183<=Daten!$B$8,LOOKUP($B183,Daten!$A$67:$A$116,Daten!$C$67:$C$116),"") -> Lang[26,2] | F183: =IF($A183<=Daten!$B$8,LOOKUP($B183,Daten!$A$67:$A$116,Daten!$P$67:$P$116),"") & " " & IF($A183<=Daten!$B$8,LOOKUP($B183,Daten!$A$67:$A$116,Daten!$Q$67:$Q$116),"") -> 26,2 Inhalt1Einh[26,2] | G183: =IF($A183<=Daten!$B$8,LOOKUP($B183,Daten!$A$118:$A$167,Daten!$C$118:$C$167),"") -> Lang[26,3] | H183: =IF($A183<=Daten!$B$8,LOOKUP($B183,Daten!$A$118:$A$167,Daten!$P$118:$P$167),"") & " " & IF($A183<=Daten!$B$8,LOOKUP($B183,Daten!$A$118:$A$167,Daten!$Q$118:$Q$167),"") -> 26,3 Inhalt1Einh[26,3] | I183: =IF($A183<=Daten!$B$8,LOOKUP($B183,Daten!$A$169:$A$218,Daten!$C$169:$C$218),"") -> Lang[26,4] | J183: =IF($A183<=Daten!$B$8,LOOKUP($B183,Daten!$A$169:$A$218,Daten!$P$169:$P$218),"") & " " & IF($A183<=Daten!$B$8,LOOKUP($B183,Daten!$A$169:$A$218,Daten!$Q$169:$Q$218),"") -> 26,4 Inhalt1Einh[26,4] | K183: =IF($A183<=Daten!$B$8,LOOKUP($B183,Daten!$A$220:$A$269,Daten!$C$220:$C$269),"") -> Lang[26,5] | L183: =IF($A183<=Daten!$B$8,LOOKUP($B183,Daten!$A$220:$A$269,Daten!$P$220:$P$269),"") & " " & IF($A183<=Daten!$B$8,LOOKUP($B183,Daten!$A$220:$A$269,Daten!$Q$220:$Q$269),"") -> 26,5 Inhalt1Einh[26,5] | M183: =IF($A183<=Daten!$B$8,LOOKUP($B183,Daten!$A$271:$A$320,Daten!$C$271:$C$320),"") -> Lang[26,6] | N183: =IF($A183<=Daten!$B$8,LOOKUP($B183,Daten!$A$271:$A$320,Daten!$P$271:$P$320),"") & " " & IF($A183<=Daten!$B$8,LOOKUP($B183,Daten!$A$271:$A$320,Daten!$Q$271:$Q$320),"") -> 26,6 Inhalt1Einh[26,6] | O183: =IF($A183<=Daten!$B$8,LOOKUP($B183,Daten!$A$322:$A$371,Daten!$B$322:$C$371),"") ->  | P183: =IF($A183<=Daten!$B$8,LOOKUP($B183,Daten!$A$322:$A$371,Daten!$P$322:$P$371),"") & " " & IF($A183<=Daten!$B$8,LOOKUP($B183,Daten!$A$322:$A$371,Daten!$Q$322:$Q$371),"") -> 26,7 Inhalt1Einh[26,7]
D184: =IF($A183<=Daten!$B$8,LOOKUP($B183,Daten!$A$16:$A$65,Daten!$R$16:$R$65),"") & " " & IF($A183<=Daten!$B$8,LOOKUP($B183,Daten!$A$16:$A$65,Daten!$S$16:$S$65),"") -> 26,1 Inhalt2Einh[26,1] | F184: =IF($A183<=Daten!$B$8,LOOKUP($B183,Daten!$A$67:$A$116,Daten!$R$67:$R$116),"") & " " & IF($A183<=Daten!$B$8,LOOKUP($B183,Daten!$A$67:$A$116,Daten!$S$67:$S$116),"") -> 26,2 Inhalt2Einh[26,2] | H184: =IF($A183<=Daten!$B$8,LOOKUP($B183,Daten!$A$118:$A$167,Daten!$R$118:$R$167),"") & " " & IF($A183<=Daten!$B$8,LOOKUP($B183,Daten!$A$118:$A$167,Daten!$S$118:$S$167),"") -> 26,3 Inhalt2Einh[26,3] | J184: =IF($A183<=Daten!$B$8,LOOKUP($B183,Daten!$A$169:$A$218,Daten!$R$169:$R$218),"") & " " & IF($A183<=Daten!$B$8,LOOKUP($B183,Daten!$A$169:$A$218,Daten!$S$169:$S$218),"") -> 26,4 Inhalt2Einh[26,4] | L184: =IF($A183<=Daten!$B$8,LOOKUP($B183,Daten!$A$220:$A$269,Daten!$R$220:$R$269),"") & " " & IF($A183<=Daten!$B$8,LOOKUP($B183,Daten!$A$220:$A$269,Daten!$S$220:$S$269),"") -> 26,5 Inhalt2Einh[26,5] | N184: =IF($A183<=Daten!$B$8,LOOKUP($B183,Daten!$A$271:$A$320,Daten!$R$271:$R$320),"") & " " & IF($A183<=Daten!$B$8,LOOKUP($B183,Daten!$A$271:$A$320,Daten!$S$271:$S$320),"") -> 26,6 Inhalt2Einh[26,6] | P184: =IF($A183<=Daten!$B$8,LOOKUP($B183,Daten!$A$322:$A$371,Daten!$R$322:$R$371),"") & " " & IF($A183<=Daten!$B$8,LOOKUP($B183,Daten!$A$322:$A$371,Daten!$S$322:$S$371),"") -> 26,7 Inhalt2Einh[26,7]
D185: =IF($A183<=Daten!$B$8,LOOKUP($B183,Daten!$A$16:$A$65,Daten!$T$16:$T$65),"") & " " & IF($A183<=Daten!$B$8,LOOKUP($B183,Daten!$A$16:$A$65,Daten!$U$16:$U$65),"") -> 26,1 Inhalt3Einh[26,1] | F185: =IF($A183<=Daten!$B$8,LOOKUP($B183,Daten!$A$67:$A$116,Daten!$T$67:$T$116),"") & " " & IF($A183<=Daten!$B$8,LOOKUP($B183,Daten!$A$67:$A$116,Daten!$U$67:$U$116),"") -> 26,2 Inhalt3Einh[26,2] | H185: =IF($A183<=Daten!$B$8,LOOKUP($B183,Daten!$A$118:$A$167,Daten!$T$118:$T$167),"") & " " & IF($A183<=Daten!$B$8,LOOKUP($B183,Daten!$A$118:$A$167,Daten!$U$118:$U$167),"") -> 26,3 Inhalt3Einh[26,3] | J185: =IF($A183<=Daten!$B$8,LOOKUP($B183,Daten!$A$169:$A$218,Daten!$T$169:$T$218),"") & " " & IF($A183<=Daten!$B$8,LOOKUP($B183,Daten!$A$169:$A$218,Daten!$U$169:$U$218),"") -> 26,4 Inhalt3Einh[26,4] | L185: =IF($A183<=Daten!$B$8,LOOKUP($B183,Daten!$A$220:$A$269,Daten!$T$220:$T$269),"") & " " & IF($A183<=Daten!$B$8,LOOKUP($B183,Daten!$A$220:$A$269,Daten!$U$220:$U$269),"") -> 26,5 Inhalt3Einh[26,5] | N185: =IF($A183<=Daten!$B$8,LOOKUP($B183,Daten!$A$271:$A$320,Daten!$T$271:$T$320),"") & " " & IF($A183<=Daten!$B$8,LOOKUP($B183,Daten!$A$271:$A$320,Daten!$U$271:$U$320),"") -> 26,6 Inhalt3Einh[26,6] | P185: =IF($A183<=Daten!$B$8,LOOKUP($B183,Daten!$A$322:$A$371,Daten!$T$322:$T$371),"") & " " & IF($A183<=Daten!$B$8,LOOKUP($B183,Daten!$A$322:$A$371,Daten!$U$322:$U$371),"") -> 26,7 Inhalt3Einh[26,7]
D186: =IF($A183<=Daten!$B$8,LOOKUP($B183,Daten!$A$16:$A$65,Daten!$V$16:$V$65),"") & " " & IF($A183<=Daten!$B$8,LOOKUP($B183,Daten!$A$16:$A$65,Daten!$W$16:$W$65),"") -> 26,1 Inhalt4Einh[26,1] | F186: =IF($A183<=Daten!$B$8,LOOKUP($B183,Daten!$A$67:$A$116,Daten!$V$67:$V$116),"") & " " & IF($A183<=Daten!$B$8,LOOKUP($B183,Daten!$A$67:$A$116,Daten!$W$67:$W$116),"") -> 26,2 Inhalt4Einh[26,2] | H186: =IF($A183<=Daten!$B$8,LOOKUP($B183,Daten!$A$118:$A$167,Daten!$V$118:$V$167),"") & " " & IF($A183<=Daten!$B$8,LOOKUP($B183,Daten!$A$118:$A$167,Daten!$W$118:$W$167),"") -> 26,3 Inhalt4Einh[26,3] | J186: =IF($A183<=Daten!$B$8,LOOKUP($B183,Daten!$A$169:$A$218,Daten!$V$169:$V$218),"") & " " & IF($A183<=Daten!$B$8,LOOKUP($B183,Daten!$A$169:$A$218,Daten!$W$169:$W$218),"") -> 26,4 Inhalt4Einh[26,4] | L186: =IF($A183<=Daten!$B$8,LOOKUP($B183,Daten!$A$220:$A$269,Daten!$V$220:$V$269),"") & " " & IF($A183<=Daten!$B$8,LOOKUP($B183,Daten!$A$220:$A$269,Daten!$W$220:$W$269),"") -> 26,5 Inhalt4Einh[26,5] | N186: =IF($A183<=Daten!$B$8,LOOKUP($B183,Daten!$A$271:$A$320,Daten!$V$271:$V$320),"") & " " & IF($A183<=Daten!$B$8,LOOKUP($B183,Daten!$A$271:$A$320,Daten!$W$271:$W$320),"") -> 26,6 Inhalt4Einh[26,6] | P186: =IF($A183<=Daten!$B$8,LOOKUP($B183,Daten!$A$322:$A$371,Daten!$V$322:$V$371),"") & " " & IF($A183<=Daten!$B$8,LOOKUP($B183,Daten!$A$322:$A$371,Daten!$W$322:$W$371),"") -> 26,7 Inhalt4Einh[26,7]
D187: =IF($A183<=Daten!$B$8,LOOKUP($B183,Daten!$A$16:$A$65,Daten!$X$16:$X$65),"") & " " & IF($A183<=Daten!$B$8,LOOKUP($B183,Daten!$A$16:$A$65,Daten!$Y$16:$Y$65),"") -> 26,1 Inhalt5Einh[26,1] | F187: =IF($A183<=Daten!$B$8,LOOKUP($B183,Daten!$A$67:$A$116,Daten!$X$67:$X$116),"") & " " & IF($A183<=Daten!$B$8,LOOKUP($B183,Daten!$A$67:$A$116,Daten!$Y$67:$Y$116),"") -> 26,2 Inhalt5Einh[26,2] | H187: =IF($A183<=Daten!$B$8,LOOKUP($B183,Daten!$A$118:$A$167,Daten!$X$118:$X$167),"") & " " & IF($A183<=Daten!$B$8,LOOKUP($B183,Daten!$A$118:$A$167,Daten!$Y$118:$Y$167),"") -> 26,3 Inhalt5Einh[26,3] | J187: =IF($A183<=Daten!$B$8,LOOKUP($B183,Daten!$A$169:$A$218,Daten!$X$169:$X$218),"") & " " & IF($A183<=Daten!$B$8,LOOKUP($B183,Daten!$A$169:$A$218,Daten!$Y$169:$Y$218),"") -> 26,4 Inhalt5Einh[26,4] | L187: =IF($A183<=Daten!$B$8,LOOKUP($B183,Daten!$A$220:$A$269,Daten!$X$220:$X$269),"") & " " & IF($A183<=Daten!$B$8,LOOKUP($B183,Daten!$A$220:$A$269,Daten!$Y$220:$Y$269),"") -> 26,5 Inhalt5Einh[26,5] | N187: =IF($A183<=Daten!$B$8,LOOKUP($B183,Daten!$A$271:$A$320,Daten!$X$271:$X$320),"") & " " & IF($A183<=Daten!$B$8,LOOKUP($B183,Daten!$A$271:$A$320,Daten!$Y$271:$Y$320),"") -> 26,6 Inhalt5Einh[26,6] | P187: =IF($A183<=Daten!$B$8,LOOKUP($B183,Daten!$A$322:$A$371,Daten!$X$322:$X$371),"") & " " & IF($A183<=Daten!$B$8,LOOKUP($B183,Daten!$A$322:$A$371,Daten!$Y$322:$Y$371),"") -> 26,7 Inhalt5Einh[26,7]
D188: =IF($A183<=Daten!$B$8,LOOKUP($B183,Daten!$A$16:$A$65,Daten!$Z$16:$Z$65),"") & " " & IF($A183<=Daten!$B$8,LOOKUP($B183,Daten!$A$16:$A$65,Daten!$AA$16:$AA$65),"") -> 26,1 Inhalt6Einh[26,1] | F188: =IF($A183<=Daten!$B$8,LOOKUP($B183,Daten!$A$67:$A$116,Daten!$Z$67:$Z$116),"") & " " & IF($A183<=Daten!$B$8,LOOKUP($B183,Daten!$A$67:$A$116,Daten!$AA$67:$AA$116),"") -> 26,2 Inhalt6Einh[26,2] | H188: =IF($A183<=Daten!$B$8,LOOKUP($B183,Daten!$A$118:$A$167,Daten!$Z$118:$Z$167),"") & " " & IF($A183<=Daten!$B$8,LOOKUP($B183,Daten!$A$118:$A$167,Daten!$AA$118:$AA$167),"") -> 26,3 Inhalt6Einh[26,3] | J188: =IF($A183<=Daten!$B$8,LOOKUP($B183,Daten!$A$169:$A$218,Daten!$Z$169:$Z$218),"") & " " & IF($A183<=Daten!$B$8,LOOKUP($B183,Daten!$A$169:$A$218,Daten!$AA$169:$AA$218),"") -> 26,4 Inhalt6Einh[26,4] | L188: =IF($A183<=Daten!$B$8,LOOKUP($B183,Daten!$A$220:$A$269,Daten!$Z$220:$Z$269),"") & " " & IF($A183<=Daten!$B$8,LOOKUP($B183,Daten!$A$220:$A$269,Daten!$AA$220:$AA$269),"") -> 26,5 Inhalt6Einh[26,5] | N188: =IF($A183<=Daten!$B$8,LOOKUP($B183,Daten!$A$271:$A$320,Daten!$Z$271:$Z$320),"") & " " & IF($A183<=Daten!$B$8,LOOKUP($B183,Daten!$A$271:$A$320,Daten!$AA$271:$AA$320),"") -> 26,6 Inhalt6Einh[26,6] | P188: =IF($A183<=Daten!$B$8,LOOKUP($B183,Daten!$A$322:$A$371,Daten!$Z$322:$Z$371),"") & " " & IF($A183<=Daten!$B$8,LOOKUP($B183,Daten!$A$322:$A$371,Daten!$AA$322:$AA$371),"") -> 26,7 Inhalt6Einh[26,7]
B189: =IF(A183<=Daten!$B$8,"Zusatzstoffe","") -> Zusatzstoffe | C189: =IF($A183<=Daten!$B$8,LOOKUP($B183,Daten!$A$16:$A$65,Daten!$L$16:$L$65),"") -> 26.1 | D189: =IF($A183<=Daten!$B$8,LOOKUP($B183,Daten!$A$16:$A$65,Daten!$E$16:$E$65),"") -> 216.1 | E189: =IF($A183<=Daten!$B$8,LOOKUP($B183,Daten!$A$67:$A$116,Daten!$L$67:$L$116),"") -> 26.2 | F189: =IF($A183<=Daten!$B$8,LOOKUP($B183,Daten!$A$16:$A$65,Daten!$E$67:$E$116),"") -> 0 | G189: =IF($A183<=Daten!$B$8,LOOKUP($B183,Daten!$A$118:$A$167,Daten!$L$118:$L$167),"") -> 26.3 | H189: =IF($A183<=Daten!$B$8,LOOKUP($B183,Daten!$A$118:$A$167,Daten!$E$118:$E$167),"") -> 0 | I189: =IF($A183<=Daten!$B$8,LOOKUP($B183,Daten!$A$169:$A$218,Daten!$L$169:$L$218),"") -> 26.4 | J189: =IF($A183<=Daten!$B$8,LOOKUP($B183,Daten!$A$169:$A$218,Daten!$E$169:$E$218),"") -> 0 | K189: =IF($A183<=Daten!$B$8,LOOKUP($B183,Daten!$A$220:$A$269,Daten!$L$220:$L$269),"") -> 26.5 | L189: =IF($A183<=Daten!$B$8,LOOKUP($B183,Daten!$A$220:$A$269,Daten!$E$220:$E$269),"") -> 0 | M189: =IF($A183<=Daten!$B$8,LOOKUP($B183,Daten!$A$271:$A$320,Daten!$L$271:$L$320),"") -> 26.6 | N189: =IF($A183<=Daten!$B$8,LOOKUP($B183,Daten!$A$271:$A$320,Daten!$E$271:$E$320),"") -> 0 | O189: =IF($A183<=Daten!$B$8,LOOKUP($B183,Daten!$A$322:$A$371,Daten!$L$322:$L$371),"") -> 26.7 | P189: =IF($A183<=Daten!$B$8,LOOKUP($B183,Daten!$A$322:$A$371,Daten!$E$322:$E$371),"") -> 0
A190: 27 | B190: =IF(A190<=Daten!$B$8,Daten!AB9,"") -> Menülinie 27 | C190: =IF(A190<=Daten!$B$8,LOOKUP(B190,Daten!$A$16:$A$65,Daten!$C$16:$C$65),"") -> Lang[27,1] | D190: =IF($A190<=Daten!$B$8,LOOKUP($B190,Daten!$A$16:$A$65,Daten!$P$16:$P$65),"") & " " & IF($A190<=Daten!$B$8,LOOKUP($B190,Daten!$A$16:$A$65,Daten!$Q$16:$Q$65),"") -> 27,1 Inhalt1Einh[27,1] | E190: =IF($A190<=Daten!$B$8,LOOKUP($B190,Daten!$A$67:$A$116,Daten!$C$67:$C$116),"") -> Lang[27,2] | F190: =IF($A190<=Daten!$B$8,LOOKUP($B190,Daten!$A$67:$A$116,Daten!$P$67:$P$116),"") & " " & IF($A190<=Daten!$B$8,LOOKUP($B190,Daten!$A$67:$A$116,Daten!$Q$67:$Q$116),"") -> 27,2 Inhalt1Einh[27,2] | G190: =IF($A190<=Daten!$B$8,LOOKUP($B190,Daten!$A$118:$A$167,Daten!$C$118:$C$167),"") -> Lang[27,3] | H190: =IF($A190<=Daten!$B$8,LOOKUP($B190,Daten!$A$118:$A$167,Daten!$P$118:$P$167),"") & " " & IF($A190<=Daten!$B$8,LOOKUP($B190,Daten!$A$118:$A$167,Daten!$Q$118:$Q$167),"") -> 27,3 Inhalt1Einh[27,3] | I190: =IF($A190<=Daten!$B$8,LOOKUP($B190,Daten!$A$169:$A$218,Daten!$C$169:$C$218),"") -> Lang[27,4] | J190: =IF($A190<=Daten!$B$8,LOOKUP($B190,Daten!$A$169:$A$218,Daten!$P$169:$P$218),"") & " " & IF($A190<=Daten!$B$8,LOOKUP($B190,Daten!$A$169:$A$218,Daten!$Q$169:$Q$218),"") -> 27,4 Inhalt1Einh[27,4] | K190: =IF($A190<=Daten!$B$8,LOOKUP($B190,Daten!$A$220:$A$269,Daten!$C$220:$C$269),"") -> Lang[27,5] | L190: =IF($A190<=Daten!$B$8,LOOKUP($B190,Daten!$A$220:$A$269,Daten!$P$220:$P$269),"") & " " & IF($A190<=Daten!$B$8,LOOKUP($B190,Daten!$A$220:$A$269,Daten!$Q$220:$Q$269),"") -> 27,5 Inhalt1Einh[27,5] | M190: =IF($A190<=Daten!$B$8,LOOKUP($B190,Daten!$A$271:$A$320,Daten!$C$271:$C$320),"") -> Lang[27,6] | N190: =IF($A190<=Daten!$B$8,LOOKUP($B190,Daten!$A$271:$A$320,Daten!$P$271:$P$320),"") & " " & IF($A190<=Daten!$B$8,LOOKUP($B190,Daten!$A$271:$A$320,Daten!$Q$271:$Q$320),"") -> 27,6 Inhalt1Einh[27,6] | O190: =IF($A190<=Daten!$B$8,LOOKUP($B190,Daten!$A$322:$A$371,Daten!$B$322:$C$371),"") ->  | P190: =IF($A190<=Daten!$B$8,LOOKUP($B190,Daten!$A$322:$A$371,Daten!$P$322:$P$371),"") & " " & IF($A190<=Daten!$B$8,LOOKUP($B190,Daten!$A$322:$A$371,Daten!$Q$322:$Q$371),"") -> 27,7 Inhalt1Einh[27,7]
D191: =IF($A190<=Daten!$B$8,LOOKUP($B190,Daten!$A$16:$A$65,Daten!$R$16:$R$65),"") & " " & IF($A190<=Daten!$B$8,LOOKUP($B190,Daten!$A$16:$A$65,Daten!$S$16:$S$65),"") -> 27,1 Inhalt2Einh[27,1] | F191: =IF($A190<=Daten!$B$8,LOOKUP($B190,Daten!$A$67:$A$116,Daten!$R$67:$R$116),"") & " " & IF($A190<=Daten!$B$8,LOOKUP($B190,Daten!$A$67:$A$116,Daten!$S$67:$S$116),"") -> 27,2 Inhalt2Einh[27,2] | H191: =IF($A190<=Daten!$B$8,LOOKUP($B190,Daten!$A$118:$A$167,Daten!$R$118:$R$167),"") & " " & IF($A190<=Daten!$B$8,LOOKUP($B190,Daten!$A$118:$A$167,Daten!$S$118:$S$167),"") -> 27,3 Inhalt2Einh[27,3] | J191: =IF($A190<=Daten!$B$8,LOOKUP($B190,Daten!$A$169:$A$218,Daten!$R$169:$R$218),"") & " " & IF($A190<=Daten!$B$8,LOOKUP($B190,Daten!$A$169:$A$218,Daten!$S$169:$S$218),"") -> 27,4 Inhalt2Einh[27,4] | L191: =IF($A190<=Daten!$B$8,LOOKUP($B190,Daten!$A$220:$A$269,Daten!$R$220:$R$269),"") & " " & IF($A190<=Daten!$B$8,LOOKUP($B190,Daten!$A$220:$A$269,Daten!$S$220:$S$269),"") -> 27,5 Inhalt2Einh[27,5] | N191: =IF($A190<=Daten!$B$8,LOOKUP($B190,Daten!$A$271:$A$320,Daten!$R$271:$R$320),"") & " " & IF($A190<=Daten!$B$8,LOOKUP($B190,Daten!$A$271:$A$320,Daten!$S$271:$S$320),"") -> 27,6 Inhalt2Einh[27,6] | P191: =IF($A190<=Daten!$B$8,LOOKUP($B190,Daten!$A$322:$A$371,Daten!$R$322:$R$371),"") & " " & IF($A190<=Daten!$B$8,LOOKUP($B190,Daten!$A$322:$A$371,Daten!$S$322:$S$371),"") -> 27,7 Inhalt2Einh[27,7]
D192: =IF($A190<=Daten!$B$8,LOOKUP($B190,Daten!$A$16:$A$65,Daten!$T$16:$T$65),"") & " " & IF($A190<=Daten!$B$8,LOOKUP($B190,Daten!$A$16:$A$65,Daten!$U$16:$U$65),"") -> 27,1 Inhalt3Einh[27,1] | F192: =IF($A190<=Daten!$B$8,LOOKUP($B190,Daten!$A$67:$A$116,Daten!$T$67:$T$116),"") & " " & IF($A190<=Daten!$B$8,LOOKUP($B190,Daten!$A$67:$A$116,Daten!$U$67:$U$116),"") -> 27,2 Inhalt3Einh[27,2] | H192: =IF($A190<=Daten!$B$8,LOOKUP($B190,Daten!$A$118:$A$167,Daten!$T$118:$T$167),"") & " " & IF($A190<=Daten!$B$8,LOOKUP($B190,Daten!$A$118:$A$167,Daten!$U$118:$U$167),"") -> 27,3 Inhalt3Einh[27,3] | J192: =IF($A190<=Daten!$B$8,LOOKUP($B190,Daten!$A$169:$A$218,Daten!$T$169:$T$218),"") & " " & IF($A190<=Daten!$B$8,LOOKUP($B190,Daten!$A$169:$A$218,Daten!$U$169:$U$218),"") -> 27,4 Inhalt3Einh[27,4] | L192: =IF($A190<=Daten!$B$8,LOOKUP($B190,Daten!$A$220:$A$269,Daten!$T$220:$T$269),"") & " " & IF($A190<=Daten!$B$8,LOOKUP($B190,Daten!$A$220:$A$269,Daten!$U$220:$U$269),"") -> 27,5 Inhalt3Einh[27,5] | N192: =IF($A190<=Daten!$B$8,LOOKUP($B190,Daten!$A$271:$A$320,Daten!$T$271:$T$320),"") & " " & IF($A190<=Daten!$B$8,LOOKUP($B190,Daten!$A$271:$A$320,Daten!$U$271:$U$320),"") -> 27,6 Inhalt3Einh[27,6] | P192: =IF($A190<=Daten!$B$8,LOOKUP($B190,Daten!$A$322:$A$371,Daten!$T$322:$T$371),"") & " " & IF($A190<=Daten!$B$8,LOOKUP($B190,Daten!$A$322:$A$371,Daten!$U$322:$U$371),"") -> 27,7 Inhalt3Einh[27,7]
D193: =IF($A190<=Daten!$B$8,LOOKUP($B190,Daten!$A$16:$A$65,Daten!$V$16:$V$65),"") & " " & IF($A190<=Daten!$B$8,LOOKUP($B190,Daten!$A$16:$A$65,Daten!$W$16:$W$65),"") -> 27,1 Inhalt4Einh[27,1] | F193: =IF($A190<=Daten!$B$8,LOOKUP($B190,Daten!$A$67:$A$116,Daten!$V$67:$V$116),"") & " " & IF($A190<=Daten!$B$8,LOOKUP($B190,Daten!$A$67:$A$116,Daten!$W$67:$W$116),"") -> 27,2 Inhalt4Einh[27,2] | H193: =IF($A190<=Daten!$B$8,LOOKUP($B190,Daten!$A$118:$A$167,Daten!$V$118:$V$167),"") & " " & IF($A190<=Daten!$B$8,LOOKUP($B190,Daten!$A$118:$A$167,Daten!$W$118:$W$167),"") -> 27,3 Inhalt4Einh[27,3] | J193: =IF($A190<=Daten!$B$8,LOOKUP($B190,Daten!$A$169:$A$218,Daten!$V$169:$V$218),"") & " " & IF($A190<=Daten!$B$8,LOOKUP($B190,Daten!$A$169:$A$218,Daten!$W$169:$W$218),"") -> 27,4 Inhalt4Einh[27,4] | L193: =IF($A190<=Daten!$B$8,LOOKUP($B190,Daten!$A$220:$A$269,Daten!$V$220:$V$269),"") & " " & IF($A190<=Daten!$B$8,LOOKUP($B190,Daten!$A$220:$A$269,Daten!$W$220:$W$269),"") -> 27,5 Inhalt4Einh[27,5] | N193: =IF($A190<=Daten!$B$8,LOOKUP($B190,Daten!$A$271:$A$320,Daten!$V$271:$V$320),"") & " " & IF($A190<=Daten!$B$8,LOOKUP($B190,Daten!$A$271:$A$320,Daten!$W$271:$W$320),"") -> 27,6 Inhalt4Einh[27,6] | P193: =IF($A190<=Daten!$B$8,LOOKUP($B190,Daten!$A$322:$A$371,Daten!$V$322:$V$371),"") & " " & IF($A190<=Daten!$B$8,LOOKUP($B190,Daten!$A$322:$A$371,Daten!$W$322:$W$371),"") -> 27,7 Inhalt4Einh[27,7]
D194: =IF($A190<=Daten!$B$8,LOOKUP($B190,Daten!$A$16:$A$65,Daten!$X$16:$X$65),"") & " " & IF($A190<=Daten!$B$8,LOOKUP($B190,Daten!$A$16:$A$65,Daten!$Y$16:$Y$65),"") -> 27,1 Inhalt5Einh[27,1] | F194: =IF($A190<=Daten!$B$8,LOOKUP($B190,Daten!$A$67:$A$116,Daten!$X$67:$X$116),"") & " " & IF($A190<=Daten!$B$8,LOOKUP($B190,Daten!$A$67:$A$116,Daten!$Y$67:$Y$116),"") -> 27,2 Inhalt5Einh[27,2] | H194: =IF($A190<=Daten!$B$8,LOOKUP($B190,Daten!$A$118:$A$167,Daten!$X$118:$X$167),"") & " " & IF($A190<=Daten!$B$8,LOOKUP($B190,Daten!$A$118:$A$167,Daten!$Y$118:$Y$167),"") -> 27,3 Inhalt5Einh[27,3] | J194: =IF($A190<=Daten!$B$8,LOOKUP($B190,Daten!$A$169:$A$218,Daten!$X$169:$X$218),"") & " " & IF($A190<=Daten!$B$8,LOOKUP($B190,Daten!$A$169:$A$218,Daten!$Y$169:$Y$218),"") -> 27,4 Inhalt5Einh[27,4] | L194: =IF($A190<=Daten!$B$8,LOOKUP($B190,Daten!$A$220:$A$269,Daten!$X$220:$X$269),"") & " " & IF($A190<=Daten!$B$8,LOOKUP($B190,Daten!$A$220:$A$269,Daten!$Y$220:$Y$269),"") -> 27,5 Inhalt5Einh[27,5] | N194: =IF($A190<=Daten!$B$8,LOOKUP($B190,Daten!$A$271:$A$320,Daten!$X$271:$X$320),"") & " " & IF($A190<=Daten!$B$8,LOOKUP($B190,Daten!$A$271:$A$320,Daten!$Y$271:$Y$320),"") -> 27,6 Inhalt5Einh[27,6] | P194: =IF($A190<=Daten!$B$8,LOOKUP($B190,Daten!$A$322:$A$371,Daten!$X$322:$X$371),"") & " " & IF($A190<=Daten!$B$8,LOOKUP($B190,Daten!$A$322:$A$371,Daten!$Y$322:$Y$371),"") -> 27,7 Inhalt5Einh[27,7]
D195: =IF($A190<=Daten!$B$8,LOOKUP($B190,Daten!$A$16:$A$65,Daten!$Z$16:$Z$65),"") & " " & IF($A190<=Daten!$B$8,LOOKUP($B190,Daten!$A$16:$A$65,Daten!$AA$16:$AA$65),"") -> 27,1 Inhalt6Einh[27,1] | F195: =IF($A190<=Daten!$B$8,LOOKUP($B190,Daten!$A$67:$A$116,Daten!$Z$67:$Z$116),"") & " " & IF($A190<=Daten!$B$8,LOOKUP($B190,Daten!$A$67:$A$116,Daten!$AA$67:$AA$116),"") -> 27,2 Inhalt6Einh[27,2] | H195: =IF($A190<=Daten!$B$8,LOOKUP($B190,Daten!$A$118:$A$167,Daten!$Z$118:$Z$167),"") & " " & IF($A190<=Daten!$B$8,LOOKUP($B190,Daten!$A$118:$A$167,Daten!$AA$118:$AA$167),"") -> 27,3 Inhalt6Einh[27,3] | J195: =IF($A190<=Daten!$B$8,LOOKUP($B190,Daten!$A$169:$A$218,Daten!$Z$169:$Z$218),"") & " " & IF($A190<=Daten!$B$8,LOOKUP($B190,Daten!$A$169:$A$218,Daten!$AA$169:$AA$218),"") -> 27,4 Inhalt6Einh[27,4] | L195: =IF($A190<=Daten!$B$8,LOOKUP($B190,Daten!$A$220:$A$269,Daten!$Z$220:$Z$269),"") & " " & IF($A190<=Daten!$B$8,LOOKUP($B190,Daten!$A$220:$A$269,Daten!$AA$220:$AA$269),"") -> 27,5 Inhalt6Einh[27,5] | N195: =IF($A190<=Daten!$B$8,LOOKUP($B190,Daten!$A$271:$A$320,Daten!$Z$271:$Z$320),"") & " " & IF($A190<=Daten!$B$8,LOOKUP($B190,Daten!$A$271:$A$320,Daten!$AA$271:$AA$320),"") -> 27,6 Inhalt6Einh[27,6] | P195: =IF($A190<=Daten!$B$8,LOOKUP($B190,Daten!$A$322:$A$371,Daten!$Z$322:$Z$371),"") & " " & IF($A190<=Daten!$B$8,LOOKUP($B190,Daten!$A$322:$A$371,Daten!$AA$322:$AA$371),"") -> 27,7 Inhalt6Einh[27,7]
B196: =IF(A190<=Daten!$B$8,"Zusatzstoffe","") -> Zusatzstoffe | C196: =IF($A190<=Daten!$B$8,LOOKUP($B190,Daten!$A$16:$A$65,Daten!$L$16:$L$65),"") -> 27.1 | D196: =IF($A190<=Daten!$B$8,LOOKUP($B190,Daten!$A$16:$A$65,Daten!$E$16:$E$65),"") -> 217.1 | E196: =IF($A190<=Daten!$B$8,LOOKUP($B190,Daten!$A$67:$A$116,Daten!$L$67:$L$116),"") -> 27.2 | F196: =IF($A190<=Daten!$B$8,LOOKUP($B190,Daten!$A$16:$A$65,Daten!$E$67:$E$116),"") -> 0 | G196: =IF($A190<=Daten!$B$8,LOOKUP($B190,Daten!$A$118:$A$167,Daten!$L$118:$L$167),"") -> 27.3 | H196: =IF($A190<=Daten!$B$8,LOOKUP($B190,Daten!$A$118:$A$167,Daten!$E$118:$E$167),"") -> 0 | I196: =IF($A190<=Daten!$B$8,LOOKUP($B190,Daten!$A$169:$A$218,Daten!$L$169:$L$218),"") -> 27.4 | J196: =IF($A190<=Daten!$B$8,LOOKUP($B190,Daten!$A$169:$A$218,Daten!$E$169:$E$218),"") -> 0 | K196: =IF($A190<=Daten!$B$8,LOOKUP($B190,Daten!$A$220:$A$269,Daten!$L$220:$L$269),"") -> 27.5 | L196: =IF($A190<=Daten!$B$8,LOOKUP($B190,Daten!$A$220:$A$269,Daten!$E$220:$E$269),"") -> 0 | M196: =IF($A190<=Daten!$B$8,LOOKUP($B190,Daten!$A$271:$A$320,Daten!$L$271:$L$320),"") -> 27.6 | N196: =IF($A190<=Daten!$B$8,LOOKUP($B190,Daten!$A$271:$A$320,Daten!$E$271:$E$320),"") -> 0 | O196: =IF($A190<=Daten!$B$8,LOOKUP($B190,Daten!$A$322:$A$371,Daten!$L$322:$L$371),"") -> 27.7 | P196: =IF($A190<=Daten!$B$8,LOOKUP($B190,Daten!$A$322:$A$371,Daten!$E$322:$E$371),"") -> 0
A197: 28 | B197: =IF(A197<=Daten!$B$8,Daten!AC9,"") -> Menülinie 28 | C197: =IF(A197<=Daten!$B$8,LOOKUP(B197,Daten!$A$16:$A$65,Daten!$C$16:$C$65),"") -> Lang[28,1] | D197: =IF($A197<=Daten!$B$8,LOOKUP($B197,Daten!$A$16:$A$65,Daten!$P$16:$P$65),"") & " " & IF($A197<=Daten!$B$8,LOOKUP($B197,Daten!$A$16:$A$65,Daten!$Q$16:$Q$65),"") -> 28,1 Inhalt1Einh[28,1] | E197: =IF($A197<=Daten!$B$8,LOOKUP($B197,Daten!$A$57:$A$116,Daten!$C$57:$C$116),"") -> Lang[28,2] | F197: =IF($A197<=Daten!$B$8,LOOKUP($B197,Daten!$A$57:$A$116,Daten!$P$57:$P$116),"") & " " & IF($A197<=Daten!$B$8,LOOKUP($B197,Daten!$A$57:$A$116,Daten!$Q$57:$Q$116),"") -> 28,2 Inhalt1Einh[28,2] | G197: =IF($A197<=Daten!$B$8,LOOKUP($B197,Daten!$A$118:$A$167,Daten!$C$118:$C$167),"") -> Lang[28,3] | H197: =IF($A197<=Daten!$B$8,LOOKUP($B197,Daten!$A$118:$A$167,Daten!$P$118:$P$167),"") & " " & IF($A197<=Daten!$B$8,LOOKUP($B197,Daten!$A$118:$A$167,Daten!$Q$118:$Q$167),"") -> 28,3 Inhalt1Einh[28,3] | I197: =IF($A197<=Daten!$B$8,LOOKUP($B197,Daten!$A$169:$A$218,Daten!$C$169:$C$218),"") -> Lang[28,4] | J197: =IF($A197<=Daten!$B$8,LOOKUP($B197,Daten!$A$169:$A$218,Daten!$P$169:$P$218),"") & " " & IF($A197<=Daten!$B$8,LOOKUP($B197,Daten!$A$169:$A$218,Daten!$Q$169:$Q$218),"") -> 28,4 Inhalt1Einh[28,4] | K197: =IF($A197<=Daten!$B$8,LOOKUP($B197,Daten!$A$220:$A$269,Daten!$C$220:$C$269),"") -> Lang[28,5] | L197: =IF($A197<=Daten!$B$8,LOOKUP($B197,Daten!$A$220:$A$269,Daten!$P$220:$P$269),"") & " " & IF($A197<=Daten!$B$8,LOOKUP($B197,Daten!$A$220:$A$269,Daten!$Q$220:$Q$269),"") -> 28,5 Inhalt1Einh[28,5] | M197: =IF($A197<=Daten!$B$8,LOOKUP($B197,Daten!$A$271:$A$320,Daten!$C$271:$C$320),"") -> Lang[28,6] | N197: =IF($A197<=Daten!$B$8,LOOKUP($B197,Daten!$A$271:$A$320,Daten!$P$271:$P$320),"") & " " & IF($A197<=Daten!$B$8,LOOKUP($B197,Daten!$A$271:$A$320,Daten!$Q$271:$Q$320),"") -> 28,6 Inhalt1Einh[28,6] | O197: =IF($A197<=Daten!$B$8,LOOKUP($B197,Daten!$A$322:$A$371,Daten!$B$322:$C$371),"") ->  | P197: =IF($A197<=Daten!$B$8,LOOKUP($B197,Daten!$A$322:$A$371,Daten!$P$322:$P$371),"") & " " & IF($A197<=Daten!$B$8,LOOKUP($B197,Daten!$A$322:$A$371,Daten!$Q$322:$Q$371),"") -> 28,7 Inhalt1Einh[28,7]
D198: =IF($A197<=Daten!$B$8,LOOKUP($B197,Daten!$A$16:$A$65,Daten!$R$16:$R$65),"") & " " & IF($A197<=Daten!$B$8,LOOKUP($B197,Daten!$A$16:$A$65,Daten!$S$16:$S$65),"") -> 28,1 Inhalt2Einh[28,1] | F198: =IF($A197<=Daten!$B$8,LOOKUP($B197,Daten!$A$57:$A$116,Daten!$R$57:$R$116),"") & " " & IF($A197<=Daten!$B$8,LOOKUP($B197,Daten!$A$57:$A$116,Daten!$S$57:$S$116),"") -> 28,2 Inhalt2Einh[28,2] | H198: =IF($A197<=Daten!$B$8,LOOKUP($B197,Daten!$A$118:$A$167,Daten!$R$118:$R$167),"") & " " & IF($A197<=Daten!$B$8,LOOKUP($B197,Daten!$A$118:$A$167,Daten!$S$118:$S$167),"") -> 28,3 Inhalt2Einh[28,3] | J198: =IF($A197<=Daten!$B$8,LOOKUP($B197,Daten!$A$169:$A$218,Daten!$R$169:$R$218),"") & " " & IF($A197<=Daten!$B$8,LOOKUP($B197,Daten!$A$169:$A$218,Daten!$S$169:$S$218),"") -> 28,4 Inhalt2Einh[28,4] | L198: =IF($A197<=Daten!$B$8,LOOKUP($B197,Daten!$A$220:$A$269,Daten!$R$220:$R$269),"") & " " & IF($A197<=Daten!$B$8,LOOKUP($B197,Daten!$A$220:$A$269,Daten!$S$220:$S$269),"") -> 28,5 Inhalt2Einh[28,5] | N198: =IF($A197<=Daten!$B$8,LOOKUP($B197,Daten!$A$271:$A$320,Daten!$R$271:$R$320),"") & " " & IF($A197<=Daten!$B$8,LOOKUP($B197,Daten!$A$271:$A$320,Daten!$S$271:$S$320),"") -> 28,6 Inhalt2Einh[28,6] | P198: =IF($A197<=Daten!$B$8,LOOKUP($B197,Daten!$A$322:$A$371,Daten!$R$322:$R$371),"") & " " & IF($A197<=Daten!$B$8,LOOKUP($B197,Daten!$A$322:$A$371,Daten!$S$322:$S$371),"") -> 28,7 Inhalt2Einh[28,7]
D199: =IF($A197<=Daten!$B$8,LOOKUP($B197,Daten!$A$16:$A$65,Daten!$T$16:$T$65),"") & " " & IF($A197<=Daten!$B$8,LOOKUP($B197,Daten!$A$16:$A$65,Daten!$U$16:$U$65),"") -> 28,1 Inhalt3Einh[28,1] | F199: =IF($A197<=Daten!$B$8,LOOKUP($B197,Daten!$A$57:$A$116,Daten!$T$57:$T$116),"") & " " & IF($A197<=Daten!$B$8,LOOKUP($B197,Daten!$A$57:$A$116,Daten!$U$57:$U$116),"") -> 28,2 Inhalt3Einh[28,2] | H199: =IF($A197<=Daten!$B$8,LOOKUP($B197,Daten!$A$118:$A$167,Daten!$T$118:$T$167),"") & " " & IF($A197<=Daten!$B$8,LOOKUP($B197,Daten!$A$118:$A$167,Daten!$U$118:$U$167),"") -> 28,3 Inhalt3Einh[28,3] | J199: =IF($A197<=Daten!$B$8,LOOKUP($B197,Daten!$A$169:$A$218,Daten!$T$169:$T$218),"") & " " & IF($A197<=Daten!$B$8,LOOKUP($B197,Daten!$A$169:$A$218,Daten!$U$169:$U$218),"") -> 28,4 Inhalt3Einh[28,4] | L199: =IF($A197<=Daten!$B$8,LOOKUP($B197,Daten!$A$220:$A$269,Daten!$T$220:$T$269),"") & " " & IF($A197<=Daten!$B$8,LOOKUP($B197,Daten!$A$220:$A$269,Daten!$U$220:$U$269),"") -> 28,5 Inhalt3Einh[28,5] | N199: =IF($A197<=Daten!$B$8,LOOKUP($B197,Daten!$A$271:$A$320,Daten!$T$271:$T$320),"") & " " & IF($A197<=Daten!$B$8,LOOKUP($B197,Daten!$A$271:$A$320,Daten!$U$271:$U$320),"") -> 28,6 Inhalt3Einh[28,6] | P199: =IF($A197<=Daten!$B$8,LOOKUP($B197,Daten!$A$322:$A$371,Daten!$T$322:$T$371),"") & " " & IF($A197<=Daten!$B$8,LOOKUP($B197,Daten!$A$322:$A$371,Daten!$U$322:$U$371),"") -> 28,7 Inhalt3Einh[28,7]
D200: =IF($A197<=Daten!$B$8,LOOKUP($B197,Daten!$A$16:$A$65,Daten!$V$16:$V$65),"") & " " & IF($A197<=Daten!$B$8,LOOKUP($B197,Daten!$A$16:$A$65,Daten!$W$16:$W$65),"") -> 28,1 Inhalt4Einh[28,1] | F200: =IF($A197<=Daten!$B$8,LOOKUP($B197,Daten!$A$57:$A$116,Daten!$V$57:$V$116),"") & " " & IF($A197<=Daten!$B$8,LOOKUP($B197,Daten!$A$57:$A$116,Daten!$W$57:$W$116),"") -> 28,2 Inhalt4Einh[28,2] | H200: =IF($A197<=Daten!$B$8,LOOKUP($B197,Daten!$A$118:$A$167,Daten!$V$118:$V$167),"") & " " & IF($A197<=Daten!$B$8,LOOKUP($B197,Daten!$A$118:$A$167,Daten!$W$118:$W$167),"") -> 28,3 Inhalt4Einh[28,3] | J200: =IF($A197<=Daten!$B$8,LOOKUP($B197,Daten!$A$169:$A$218,Daten!$V$169:$V$218),"") & " " & IF($A197<=Daten!$B$8,LOOKUP($B197,Daten!$A$169:$A$218,Daten!$W$169:$W$218),"") -> 28,4 Inhalt4Einh[28,4] | L200: =IF($A197<=Daten!$B$8,LOOKUP($B197,Daten!$A$220:$A$269,Daten!$V$220:$V$269),"") & " " & IF($A197<=Daten!$B$8,LOOKUP($B197,Daten!$A$220:$A$269,Daten!$W$220:$W$269),"") -> 28,5 Inhalt4Einh[28,5] | N200: =IF($A197<=Daten!$B$8,LOOKUP($B197,Daten!$A$271:$A$320,Daten!$V$271:$V$320),"") & " " & IF($A197<=Daten!$B$8,LOOKUP($B197,Daten!$A$271:$A$320,Daten!$W$271:$W$320),"") -> 28,6 Inhalt4Einh[28,6] | P200: =IF($A197<=Daten!$B$8,LOOKUP($B197,Daten!$A$322:$A$371,Daten!$V$322:$V$371),"") & " " & IF($A197<=Daten!$B$8,LOOKUP($B197,Daten!$A$322:$A$371,Daten!$W$322:$W$371),"") -> 28,7 Inhalt4Einh[28,7]
